Workbook

Sheet Historical scenario - input
B1: Unit cost - historical | C1: Calibration period: 2015-16 to 2018-19
B2: Replacement lives - calibrated | C2: Reference to 2020 refers to 2019-20
C3: All expenditure values are in $2019-20 | D3: Unit cost | E3: Replacement life | G3: Method | H3: Volume | CV3: Replacement Cost (NOT depreciated)
H4: Installation date | CV4: Installation date
A5: ID | B5: Asset group | C5: Asset category | D5: $ ('000) | E5: μ | F5: σ | G5: # | H5: 2019 | I5: 2018 | J5: 2017 | K5: 2016 | L5: 2015 | M5: 2014 | N5: 2013 | O5: 2012 | P5: 2011 | Q5: 2010 | R5: 2009 | S5: 2008 | T5: 2007 | U5: 2006 | V5: 2005 | W5: 2004 | X5: 2003 | Y5: 2002 | Z5: 2001 | AA5: 2000 | AB5: 1999 | AC5: 1998 | AD5: 1997 | AE5: 1996 | AF5: 1995 | AG5: 1994 | AH5: 1993 | AI5: 1992 | AJ5: 1991 | AK5: 1990 | AL5: 1989 | AM5: 1988 | AN5: 1987 | AO5: 1986 | AP5: 1985 | AQ5: 1984 | AR5: 1983 | AS5: 1982 | AT5: 1981 | AU5: 1980 | AV5: 1979 | AW5: 1978 | AX5: 1977 | AY5: 1976 | AZ5: 1975 | BA5: 1974 | BB5: 1973 | BC5: 1972 | BD5: 1971 | BE5: 1970 | BF5: 1969 | BG5: 1968 | BH5: 1967 | BI5: 1966 | BJ5: 1965 | BK5: 1964 | BL5: 1963 | BM5: 1962 | BN5: 1961 | BO5: 1960 | BP5: 1959 | BQ5: 1958 | BR5: 1957 | BS5: 1956 | BT5: 1955 | BU5: 1954 | BV5: 1953 | BW5: 1952 | BX5: 1951 | BY5: 1950 | BZ5: 1949 | CA5: 1948 | CB5: 1947 | CC5: 1946 | CD5: 1945 | CE5: 1944 | CF5: 1943 | CG5: 1942 | CH5: 1941 | CI5: 1940 | CJ5: 1939 | CK5: 1938 | CL5: 1937 | CM5: 1936 | CN5: 1935 | CO5: 1934 | CP5: 1933 | CQ5: 1932 | CR5: 1931 | CS5: 1930 | CT5: 1929 | CV5: 2019 | CW5: 2018 | CX5: 2017 | CY5: 2016 | CZ5: 2015 | DA5: 2014 | DB5: 2013 | DC5: 2012 | DD5: 2011 | DE5: 2010 | DF5: 2009 | DG5: 2008 | DH5: 2007 | DI5: 2006 | DJ5: 2005 | DK5: 2004 | DL5: 2003 | DM5: 2002 | DN5: 2001 | DO5: 2000 | DP5: 1999 | DQ5: 1998 | DR5: 1997 | DS5: 1996 | DT5: 1995 | DU5: 1994 | DV5: 1993 | DW5: 1992 | DX5: 1991 | DY5: 1990 | DZ5: 1989 | EA5: 1988 | EB5: 1987 | EC5: 1986 | ED5: 1985 | EE5: 1984 | EF5: 1983 | EG5: 1982 | EH5: 1981 | EI5: 1980 | EJ5: 1979 | EK5: 1978 | EL5: 1977 | EM5: 1976 | EN5: 1975 | EO5: 1974 | EP5: 1973 | EQ5: 1972 | ER5: 1971 | ES5: 1970 | ET5: 1969 | EU5: 1968 | EV5: 1967 | EW5: 1966 | EX5: 1965 | EY5: 1964 | EZ5: 1963 | FA5: 1962 | FB5: 1961 | FC5: 1960 | FD5: 1959 | FE5: 1958 | FF5: 1957 | FG5: 1956 | FH5: 1955 | FI5: 1954 | FJ5: 1953 | FK5: 1952 | FL5: 1951 | FM5: 1950 | FN5: 1949 | FO5: 1948 | FP5: 1947 | FQ5: 1946 | FR5: 1945 | FS5: 1944 | FT5: 1943 | FU5: 1942 | FV5: 1941 | FW5: 1940 | FX5: 1939 | FY5: 1938 | FZ5: 1937 | GA5: 1936 | GB5: 1935 | GC5: 1934 | GD5: 1933 | GE5: 1932 | GF5: 1931 | GG5: 1930 | GH5: 1929
A6: 1 | B6: OVERHEAD CONDUCTORS | C6: ˂ = 1 kv | D6: 25.26687622 | E6: 92.57490622 | F6: 9.621585432 | G6: 2 | H6: 31.329 | I6: 44.42183012 | J6: 21.13748744 | K6: 20.36857169 | L6: 42.91912257 | M6: 151.2583535 | N6: 205.1067034 | O6: 188.2688661 | P6: 93.95066462 | Q6: 89.44322786 | R6: 96.47856716 | S6: 105.3742451 | T6: 38.17510909 | U6: 91.03689442 | V6: 59.77362633 | W6: 46.36508084 | X6: 51.73388422 | Y6: 45.27539033 | Z6: 67.45604829 | AA6: 143.2743773 | AB6: 9.473878313 | AC6: 90.19806243 | AD6: 5.062990145 | AE6: 157.7933729 | AF6: 88.3964655 | AG6: 117.5088923 | AH6: 4.154987451 | AI6: 362.1174891 | AJ6: 246.449534 | AK6: 256.1897179 | AL6: 283.841786 | AM6: 155.0753577 | AN6: 273.0343832 | AO6: 404.6865962 | AP6: 315.5376202 | AQ6: 424.9518828 | AR6: 392.8484599 | AS6: 311.8454097 | AT6: 454.4355635 | AU6: 563.2141746 | AV6: 639.5878904 | AW6: 425.4848145 | AX6: 821.9294071 | AY6: 938.6628766 | AZ6: 1181.524845 | BA6: 1329.816492 | BB6: 1486.869063 | BC6: 1127.219968 | BD6: 2373.395583 | BE6: 2420.208042 | BF6: 1844.42679 | BG6: 3666.190627 | BH6: 1854.846842 | BI6: 3231.789529 | BJ6: 4075.993016 | BK6: 4147.52514 | BL6: 3984.5852 | BM6: 3624.060574 | BN6: 4310.040225 | BO6: 3057.446601 | BP6: 2650.23178 | BQ6: 3492.214034 | BR6: 2340.985381 | BS6: 1702.223179 | BT6: 5020.555244 | BU6: 2321.759282 | BV6: 1188.265896 | BW6: 478.4735527 | BX6: 18.03885787 | BY6: 54.16909739 | BZ6: 10.45217696 | CA6: 21.44647556 | CB6: 145.6052548 | CC6: 103.8631576 | CD6: 127.9065289 | CE6: 51.74954772 | CF6: 56.3551182 | CG6: 102.1223965 | CH6: 97.58427837 | CI6: 583.0583186 | CJ6: 302.3664763 | CK6: 256.6240483 | CL6: 262.7997618 | CM6: 221.9391912 | CN6: 312.8994748 | CO6: 85.94024515 | CP6: 24.65904483 | CQ6: 15.10484262 | CR6: 0.9881059168 | CS6: 4.102663668 | CT6: 0.1173191422 | CV6: =IFERROR($D6*H6,"") -> 791.5859651 | CW6: =IFERROR($D6*I6,"") -> 1122.400883 | CX6: =IFERROR($D6*J6,"") -> 534.0782786 | CY6: =IFERROR($D6*K6,"") -> 514.6501796 | CZ6: =IFERROR($D6*L6,"") -> 1084.432157 | DA6: =IFERROR($D6*M6,"") -> 3821.826096 | DB6: =IFERROR($D6*N6,"") -> 5182.405686 | DC6: =IFERROR($D6*O6,"") -> 4756.966135 | DD6: =IFERROR($D6*P6,"") -> 2373.839814 | DE6: =IFERROR($D6*Q6,"") -> 2259.950967 | DF6: =IFERROR($D6*R6,"") -> 2437.712014 | DG6: =IFERROR($D6*S6,"") -> 2662.478007 | DH6: =IFERROR($D6*T6,"") -> 964.5657561 | DI6: =IFERROR($D6*U6,"") -> 2300.217943 | DJ6: =IFERROR($D6*V6,"") -> 1510.292818 | DK6: =IFERROR($D6*W6,"") -> 1171.500758 | DL6: =IFERROR($D6*X6,"") -> 1307.153649 | DM6: =IFERROR($D6*Y6,"") -> 1143.967683 | DN6: =IFERROR($D6*Z6,"") -> 1704.403622 | DO6: =IFERROR($D6*AA6,"") -> 3620.095957 | DP6: =IFERROR($D6*AB6,"") -> 239.3753107 | DQ6: =IFERROR($D6*AC6,"") -> 2279.023279 | DR6: =IFERROR($D6*AD6,"") -> 127.9259453 | DS6: =IFERROR($D6*AE6,"") -> 3986.945622 | DT6: =IFERROR($D6*AF6,"") -> 2233.502552 | DU6: =IFERROR($D6*AG6,"") -> 2969.082637 | DV6: =IFERROR($D6*AH6,"") -> 104.9835536 | DW6: =IFERROR($D6*AI6,"") -> 9149.577773 | DX6: =IFERROR($D6*AJ6,"") -> 6227.009869 | DY6: =IFERROR($D6*AK6,"") -> 6473.113891 | DZ6: =IFERROR($D6*AL6,"") -> 7171.795273 | EA6: =IFERROR($D6*AM6,"") -> 3918.269868 | EB6: =IFERROR($D6*AN6,"") -> 6898.725963 | EC6: =IFERROR($D6*AO6,"") -> 10225.16614 | ED6: =IFERROR($D6*AP6,"") -> 7972.649992 | EE6: =IFERROR($D6*AQ6,"") -> 10737.20662 | EF6: =IFERROR($D6*AR6,"") -> 9926.053409 | EG6: =IFERROR($D6*AS6,"") -> 7879.359367 | EH6: =IFERROR($D6*AT6,"") -> 11482.16713 | EI6: =IFERROR($D6*AU6,"") -> 14230.66284 | EJ6: =IFERROR($D6*AV6,"") -> 16160.38806 | EK6: =IFERROR($D6*AW6,"") -> 10750.67214 | EL6: =IFERROR($D6*AX6,"") -> 20767.58859 | EM6: =IFERROR($D6*AY6,"") -> 23717.07872 | EN6: =IFERROR($D6*AZ6,"") -> 29853.44201 | EO6: =IFERROR($D6*BA6,"") -> 33600.30869 | EP6: =IFERROR($D6*BB6,"") -> 37568.53658 | EQ6: =IFERROR($D6*BC6,"") -> 28481.32739 | ER6: =IFERROR($D6*BD6,"") -> 59968.29241 | ES6: =IFERROR($D6*BE6,"") -> 61151.09701 | ET6: =IFERROR($D6*BF6,"") -> 46602.9034 | EU6: =IFERROR($D6*BG6,"") -> 92633.18476 | EV6: =IFERROR($D6*BH6,"") -> 46866.18555 | EW6: =IFERROR($D6*BI6,"") -> 81657.22601 | EX6: =IFERROR($D6*BJ6,"") -> 102987.611 | EY6: =IFERROR($D6*BK6,"") -> 104795.0043 | EZ6: =IFERROR($D6*BL6,"") -> 100678.021 | FA6: =IFERROR($D6*BM6,"") -> 91568.68993 | FB6: =IFERROR($D6*BN6,"") -> 108901.2529 | FC6: =IFERROR($D6*BO6,"") -> 77252.12481 | FD6: =IFERROR($D6*BP6,"") -> 66963.07833 | FE6: =IFERROR($D6*BQ6,"") -> 88237.33972 | FF6: =IFERROR($D6*BR6,"") -> 59149.38785 | FG6: =IFERROR($D6*BS6,"") -> 43009.86235 | FH6: =IFERROR($D6*BT6,"") -> 126853.7479 | FI6: =IFERROR($D6*BU6,"") -> 58663.60438 | FJ6: =IFERROR($D6*BV6,"") -> 30023.76732 | FK6: =IFERROR($D6*BW6,"") -> 12089.53203 | FL6: =IFERROR($D6*BX6,"") -> 455.7855889 | FM6: =IFERROR($D6*BY6,"") -> 1368.683879 | FN6: =IFERROR($D6*BZ6,"") -> 264.0938614 | FO6: =IFERROR($D6*CA6,"") -> 541.8854433 | FP6: =IFERROR($D6*CB6,"") -> 3678.989949 | FQ6: =IFERROR($D6*CC6,"") -> 2624.297548 | FR6: =IFERROR($D6*CD6,"") -> 3231.798434 | FS6: =IFERROR($D6*CE6,"") -> 1307.549417 | FT6: =IFERROR($D6*CF6,"") -> 1423.917796 | FU6: =IFERROR($D6*CG6,"") -> 2580.313952 | FV6: =IFERROR($D6*CH6,"") -> 2465.649882 | FW6: =IFERROR($D6*CI6,"") -> 14732.06237 | FX6: =IFERROR($D6*CJ6,"") -> 7639.856329 | FY6: =IFERROR($D6*CK6,"") -> 6484.088063 | FZ6: =IFERROR($D6*CL6,"") -> 6640.129051 | GA6: =IFERROR($D6*CM6,"") -> 5607.710072 | GB6: =IFERROR($D6*CN6,"") -> 7905.992298 | GC6: =IFERROR($D6*CO6,"") -> 2171.441536 | GD6: =IFERROR($D6*CP6,"") -> 623.0570334 | GE6: =IFERROR($D6*CQ6,"") -> 381.6521887 | GF6: =IFERROR($D6*CR6,"") -> 24.96634989 | GG6: =IFERROR($D6*CS6,"") -> 103.6614951 | GH6: =IFERROR($D6*CT6,"") -> 2.964288245
A7: 1 | B7: OVERHEAD CONDUCTORS | C7: ˃ 11 kv & < = 22 kv ; swer | D7: 9.355608459 | E7: 92.57490622 | F7: 9.621585432 | G7: 2 | H7: 3.63 | I7: 2.192631789 | J7: 5.436726804 | K7: 21.75289075 | L7: 7.147154613 | M7: 70.82154231 | N7: 3.601851625 | O7: 9.024041701 | P7: 21.72411204 | Q7: 35.72030654 | R7: 14.22247569 | S7: 23.5905466 | T7: 12.1494704 | U7: 26.49215008 | V7: 26.29574708 | W7: 12.51989044 | X7: 16.74050438 | Y7: 9.569244573 | Z7: 24.68603428 | AA7: 51.60260972 | AB7: 0.2430415091 | AC7: 54.08713341 | AD7: 0.7148072419 | AE7: 58.81873523 | AF7: 61.21370631 | AG7: 64.56791142 | AH7: 0.8126516408 | AI7: 100.7425792 | AJ7: 61.61996487 | AK7: 191.1402446 | AL7: 89.46452234 | AM7: 120.2217817 | AN7: 168.4957345 | AO7: 99.93172538 | AP7: 69.58583772 | AQ7: 69.77102022 | AR7: 57.21977597 | AS7: 187.6579462 | AT7: 135.5143657 | AU7: 341.8082183 | AV7: 120.500867 | AW7: 240.6622718 | AX7: 412.1736816 | AY7: 524.3350216 | AZ7: 1011.068088 | BA7: 754.2204122 | BB7: 862.1820196 | BC7: 554.3448172 | BD7: 1102.842951 | BE7: 1751.374807 | BF7: 1121.858868 | BG7: 2496.24617 | BH7: 771.0840942 | BI7: 2233.142905 | BJ7: 2025.859504 | BK7: 2010.469904 | BL7: 1709.446379 | BM7: 1716.781081 | BN7: 1461.714887 | BO7: 1072.729412 | BP7: 989.0691371 | BQ7: 1020.388941 | BR7: 206.0462244 | BS7: 219.7312909 | BT7: 212.3830562 | BU7: 74.09728176 | BV7: 41.56548904 | BW7: 10.81245092 | BX7: 1.316791122 | BY7: 6.535897409 | BZ7: 0.3462671558 | CA7: 3.657515014 | CB7: 4.857963389 | CC7: 0.2958781214 | CD7: 7.061415851 | CE7: 0.4785052154 | CF7: 5.062181582 | CG7: 7.74810908 | CH7: 2.560948066 | CI7: 7.438475266 | CJ7: 1.588025082 | CK7: 8.793181418 | CL7: 2.92311274 | CM7: 0.5919742032 | CN7: 1.380376702 | CO7: 1.291286794 | CP7: 0.9206031373 | CQ7: 0 | CR7: 0 | CS7: 1.886680335 | CT7: 0 | CV7: =IFERROR($D7*H7,"") -> 33.9608587 | CW7: 20.51340451 | CX7: 50.86388727 | CY7: 203.5115287 | CZ7: 66.86598016 | DA7: 662.5786203 | DB7: 33.69751353 | DC7: 84.42540087 | DD7: 203.2422864 | DE7: 334.185202 | DF7: 133.0599139 | DG7: 220.7039174 | DH7: 113.6656881 | DI7: 247.8501833 | DJ7: 246.0127138 | DK7: 117.1311929 | DL7: 156.6176044 | DM7: 89.52610547 | DN7: 230.9528711 | DO7: 482.773812 | DP7: 2.273801199 | DQ7: 506.0180429 | DR7: 6.687456679 | DS7: 550.2850568 | DT7: 572.6914685 | DU7: 604.0720983 | DV7: 7.602850564 | DW7: 942.5081259 | DX7: 576.4922646 | DY7: 1788.233289 | DZ7: 836.9950419 | EA7: 1124.747917 | EB7: 1576.380119 | EC7: 934.9220953 | ED7: 651.017852 | EE7: 652.7503469 | EF7: 535.3258201 | EG7: 1755.654269 | EH7: 1267.819346 | EI7: 3197.823858 | EJ7: 1127.35893 | EK7: 2251.541986 | EL7: 3856.135582 | EM7: 4905.473164 | EN7: 9459.157157 | EO7: 7056.190868 | EP7: 8066.237396 | EQ7: 5186.233061 | ER7: 10317.76684 | ES7: 16385.17696 | ET7: 10495.67231 | EU7: 23353.90179 | EV7: 7213.960874 | EW7: 20892.41066 | EX7: 18953.14831 | EY7: 18809.16924 | EZ7: 15992.91101 | FA7: 16061.5316 | FB7: 13675.23216 | FC7: 10036.03636 | FD7: 9253.343585 | FE7: 9546.359406 | FF7: 1927.6878 | FG7: 2055.719924 | FH7: 1986.972717 | FI7: 693.225156 | FJ7: 388.8704408 | FK7: 101.1570573 | FL7: 12.31938216 | FM7: 61.14729708 | FN7: 3.239539931 | FO7: 34.2182784 | FP7: 45.44920337 | FQ7: 2.768119855 | FR7: 66.06384186 | FS7: 4.476707441 | FT7: 47.35978883 | FU7: 72.48827484 | FV7: 23.95922739 | FW7: 69.59146212 | FX7: 14.85694089 | FY7: 82.26556245 | FZ7: 27.34749828 | GA7: 5.538278863 | GB7: 12.91426395 | GC7: 12.08077365 | GD7: 8.612802498 | GE7: 0 | GF7: 0 | GG7: 17.6510425 | GH7: 0
A8: 1 | B8: OVERHEAD CONDUCTORS | C8: > 1 kv & < = 11 kv | D8: 25.26687622 | E8: 90.20277494 | F8: 9.497514145 | G8: 2 | H8: 70.444 | I8: 42.52595017 | J8: 32.70864627 | K8: 11.18926082 | L8: 39.2306492 | M8: 114.8466879 | N8: 102.3390171 | O8: 134.7882982 | P8: 164.2858872 | Q8: 74.36823397 | R8: 142.1636705 | S8: 157.0144096 | T8: 41.32719454 | U8: 108.9927663 | V8: 57.21884046 | W8: 34.17743551 | X8: 60.18035281 | Y8: 46.02543711 | Z8: 54.38941458 | AA8: 209.4041893 | AB8: 4.75087661 | AC8: 278.0444485 | AD8: 8.382765359 | AE8: 348.3820011 | AF8: 119.8380223 | AG8: 193.6234108 | AH8: 22.6370422 | AI8: 534.6468479 | AJ8: 243.007261 | AK8: 364.1200177 | AL8: 352.6211062 | AM8: 234.7186424 | AN8: 323.489955 | AO8: 497.9989736 | AP8: 390.6976816 | AQ8: 327.8494504 | AR8: 285.0055802 | AS8: 281.9460809 | AT8: 529.1797567 | AU8: 704.1772267 | AV8: 852.7977298 | AW8: 409.5403197 | AX8: 1137.355679 | AY8: 983.0187117 | AZ8: 815.9169066 | BA8: 1215.89432 | BB8: 1687.964191 | BC8: 1614.093098 | BD8: 2248.921255 | BE8: 2245.095292 | BF8: 2222.888955 | BG8: 3811.78299 | BH8: 1354.874017 | BI8: 2332.941757 | BJ8: 2304.705053 | BK8: 1805.057994 | BL8: 2315.118843 | BM8: 2159.259925 | BN8: 2382.774029 | BO8: 1546.848851 | BP8: 1055.771144 | BQ8: 1183.090038 | BR8: 1126.163656 | BS8: 1461.704542 | BT8: 3035.140038 | BU8: 1073.531598 | BV8: 533.9151526 | BW8: 183.5044739 | BX8: 10.66617427 | BY8: 67.82842273 | BZ8: 1.335358092 | CA8: 9.427604964 | CB8: 85.13194729 | CC8: 26.32947205 | CD8: 37.85391076 | CE8: 20.97835596 | CF8: 15.22682188 | CG8: 27.98573774 | CH8: 14.49731199 | CI8: 147.4902312 | CJ8: 51.13122414 | CK8: 61.86075512 | CL8: 80.01043191 | CM8: 59.67321327 | CN8: 64.72380568 | CO8: 28.76156813 | CP8: 5.964437767 | CQ8: 2.986693484 | CR8: 1.486686442 | CS8: 2.005652078 | CT8: 0 | CV8: 1779.899828 | CW8: 1074.497919 | CX8: 826.4453167 | CY8: 282.7176681 | CZ8: 991.2359574 | DA8: 2901.817048 | DB8: 2585.787277 | DC8: 3405.679247 | DD8: 4150.991175 | DE8: 1879.052962 | DF8: 3592.031867 | DG8: 3967.263651 | DH8: 1044.209109 | DI8: 2753.906734 | DJ8: 1445.741359 | DK8: 863.5570325 | DL8: 1520.569525 | DM8: 1162.919022 | DN8: 1374.250606 | DO8: 5290.989731 | DP8: 120.0398112 | DQ8: 7025.314664 | DR8: 211.8062947 | DS8: 8802.524899 | DT8: 3027.932475 | DU8: 4892.258755 | DV8: 571.9673433 | DW8: 13508.85573 | DX8: 6140.034384 | DY8: 9200.175416 | DZ8: 8909.633843 | EA8: 5930.606883 | EB8: 8173.580652 | EC8: 12582.87842 | ED8: 9871.70996 | EE8: 8283.731481 | EF8: 7201.200717 | EG8: 7123.896727 | EH8: 13370.71941 | EI8: 17792.35882 | EJ8: 21547.53468 | EK8: 10347.80456 | EL8: 28737.42517 | EM8: 24837.81211 | EN8: 20615.67148 | EO8: 30721.85127 | EP8: 42649.58227 | EQ8: 40783.09052 | ER8: 56823.21497 | ES8: 56726.54484 | ET8: 56165.46008 | EU8: 96311.84898 | EV8: 34233.43409 | EW8: 58946.15061 | EX8: 58232.69729 | EY8: 45608.17691 | EZ8: 58495.82124 | FA8: 54557.75324 | FB8: 60205.25645 | FC8: 39084.03845 | FD8: 26676.03881 | FE8: 29892.98955 | FF8: 28454.63771 | FG8: 36932.70773 | FH8: 76688.50765 | FI8: 27124.79 | FJ8: 13490.36807 | FK8: 4636.584828 | FL8: 269.500905 | FM8: 1713.812361 | FN8: 33.74032762 | FO8: 238.2061277 | FP8: 2151.018375 | FQ8: 665.2635112 | FR8: 956.4500775 | FS8: 530.0575232 | FT8: 384.7342237 | FU8: 707.1121715 | FV8: 366.3017876 | FW8: 3726.617414 | FX8: 1291.926311 | FY8: 1563.028042 | FZ8: 2021.613679 | GA8: 1507.755693 | GB8: 1635.368386 | GC8: 726.7149817 | GD8: 150.7027108 | GE8: 75.46441456 | GF8: 37.56392232 | GG8: 50.6765628 | GH8: 0
A9: 1 | B9: OVERHEAD CONDUCTORS | C9: > 22 kv & < = 66 kv | D9: 145.8037331 | E9: 98.37797212 | F9: 9.91856704 | G9: 2 | H9: 0.53 | I9: 0.8116946658 | J9: 10.43503476 | K9: 10.48066129 | L9: 13.60496201 | M9: 39.96514899 | N9: 20.23471438 | O9: 17.46534972 | P9: 30.74982166 | Q9: 26.77600127 | R9: 28.10893687 | S9: 34.95480128 | T9: 32.1441679 | U9: 11.23742401 | V9: 15.76251893 | W9: 53.19873053 | X9: 16.5873237 | Y9: 14.86087692 | Z9: 12.76191434 | AA9: 145.7164397 | AB9: 1.449242471 | AC9: 143.483216 | AD9: 197.3631756 | AE9: 19.14110315 | AF9: 14.80356942 | AG9: 73.40824877 | AH9: 0.1921872959 | AI9: 111.6687116 | AJ9: 72.69958062 | AK9: 86.63000629 | AL9: 245.6039189 | AM9: 86.68172615 | AN9: 90.05599769 | AO9: 86.62271667 | AP9: 115.6324177 | AQ9: 82.34224654 | AR9: 57.00051484 | AS9: 8.169517748 | AT9: 132.3723273 | AU9: 86.4392917 | AV9: 101.6890318 | AW9: 543.5908826 | AX9: 426.692966 | AY9: 730.2269405 | AZ9: 255.4269648 | BA9: 219.8387198 | BB9: 676.3627966 | BC9: 128.8036582 | BD9: 554.0840028 | BE9: 593.3590704 | BF9: 362.6880912 | BG9: 749.4227806 | BH9: 250.0361179 | BI9: 724.1638731 | BJ9: 1055.208319 | BK9: 789.2067791 | BL9: 1109.985951 | BM9: 405.3603284 | BN9: 811.4876086 | BO9: 506.8566819 | BP9: 238.531914 | BQ9: 350.2611648 | BR9: 477.5671133 | BS9: 276.948533 | BT9: 655.0711292 | BU9: 239.6394968 | BV9: 168.5548772 | BW9: 96.00927317 | BX9: 4.021473895 | BY9: 29.89961326 | BZ9: 0 | CA9: 5.988867173 | CB9: 15.72049091 | CC9: 101.1737577 | CD9: 35.46972744 | CE9: 20.48487666 | CF9: 73.65733488 | CG9: 45.54728348 | CH9: 20.94255283 | CI9: 44.54619204 | CJ9: 22.20894055 | CK9: 24.51837444 | CL9: 24.76158789 | CM9: 4.117959491 | CN9: 8.713592751 | CO9: 60.13111428 | CP9: 2.432140969 | CQ9: 0.2662600178 | CR9: 0 | CS9: 0 | CT9: 0 | CV9: 77.27597855 | CW9: 118.3481124 | CX9: 1521.467023 | CY9: 1528.119541 | CZ9: 1983.65425 | DA9: 5827.067918 | DB9: 2950.296895 | DC9: 2546.513189 | DD9: 4483.438791 | DE9: 3904.040943 | DF9: 4098.38793 | DG9: 5096.540516 | DH9: 4686.739678 | DI9: 1638.458372 | DJ9: 2298.234103 | DK9: 7756.573508 | DL9: 2418.493719 | DM9: 2166.771333 | DN9: 1860.734753 | DO9: 21246.00089 | DP9: 211.3049625 | DQ9: 20920.38853 | DR9: 28776.28779 | DS9: 2790.844295 | DT9: 2158.415684 | DU9: 10703.19671 | DV9: 28.0216252 | DW9: 16281.71502 | DX9: 10599.87025 | DY9: 12630.97832 | DZ9: 35809.96824 | EA9: 12638.51927 | EB9: 13130.50065 | EC9: 12629.91546 | ED9: 16859.63816 | EE9: 12005.80694 | EF9: 8310.887853 | EG9: 1191.146185 | EH9: 19300.37949 | EI9: 12603.17142 | EJ9: 14826.64046 | EK9: 79257.57998 | EL9: 62213.42734 | EM9: 106469.8139 | EN9: 37242.205 | EO9: 32053.30603 | EP9: 98616.22068 | EQ9: 18780.0542 | ER9: 80787.51607 | ES9: 86513.96755 | ET9: 52881.27765 | EU9: 109268.6391 | EV9: 36456.1994 | EW9: 105585.7961 | EX9: 153853.3121 | EY9: 115069.2946 | EZ9: 161840.0954 | FA9: 59103.04913 | FB9: 118317.9227 | FC9: 73901.59638 | FD9: 34778.84353 | FE9: 51069.3854 | FF9: 69631.06793 | FG9: 40380.12999 | FH9: 95511.81609 | FI9: 34940.33324 | FJ9: 24575.93033 | FK9: 13998.51044 | FL9: 586.3459066 | FM9: 4359.475233 | FN9: 0 | FO9: 873.199191 | FP9: 2292.106261 | FQ9: 14751.51156 | FR9: 5171.618674 | FS9: 2986.77149 | FT9: 10739.5144 | FU9: 6640.963964 | FV9: 3053.502384 | FW9: 6495.001095 | FX9: 3238.146441 | FY9: 3574.870524 | FZ9: 3610.331952 | GA9: 600.4138667 | GB9: 1270.474352 | GC9: 8767.340938 | GD9: 354.6152328 | GE9: 38.82170458 | GF9: 0 | GG9: 0 | GH9: 0
A10: 3 | B10: SERVICE LINES | C10: ˂ = 11 kv ; commercial and industrial ; complex type | D10: 0.5441931666 | E10: 49.65298367 | F10: 7.046487329 | G10: 2 | H10: 3235 | I10: 2658 | J10: 2087 | K10: 2160 | L10: 1958 | M10: 1709 | N10: 901 | O10: 864 | P10: 844 | Q10: 831 | R10: 868 | S10: 891 | T10: 909 | U10: 956 | V10: 922 | W10: 1349 | X10: 1740 | Y10: 2211 | Z10: 2454 | AA10: 2137 | AB10: 2025 | AC10: 1860 | AD10: 2012 | AE10: 2191 | AF10: 2126 | AG10: 1954 | AH10: 1909 | AI10: 1980 | AJ10: 2048 | AK10: 2354 | AL10: 2413 | AM10: 2354 | AN10: 2505 | AO10: 2251 | AP10: 1849 | AQ10: 1836 | AR10: 1854 | AS10: 1736 | AT10: 1608 | AU10: 1305 | AV10: 1070 | AW10: 1020 | AX10: 1111 | AY10: 1213 | AZ10: 1197 | BA10: 1320 | BB10: 1181 | BC10: 1402 | BD10: 933 | BE10: 943 | BF10: 937 | BG10: 1043 | BH10: 1045 | BI10: 1175 | BJ10: 351 | BK10: 125 | BL10: 125 | BM10: 155 | BN10: 102 | BO10: 28 | BP10: 28 | BQ10: 14 | BR10: 14 | BS10: 5 | BT10: 5 | BU10: 2 | BV10: 2 | BW10: 2 | BX10: 2 | BY10: 1 | BZ10: 1 | CA10: 1 | CB10: 1 | CC10: 0 | CD10: 0 | CE10: 0 | CF10: 0 | CG10: 1 | CH10: 1 | CI10: 0 | CJ10: 0 | CK10: 0 | CL10: 0 | CM10: 0 | CN10: 0 | CO10: 0 | CP10: 0 | CQ10: 0 | CR10: 0 | CS10: 0 | CT10: 0 | CV10: 1760.464894 | CW10: 1446.465437 | CX10: 1135.731139 | CY10: 1175.45724 | CZ10: 1065.53022 | DA10: 930.0261218 | DB10: 490.3180431 | DC10: 470.182896 | DD10: 459.2990326 | DE10: 452.2245215 | DF10: 472.3596686 | DG10: 484.8761115 | DH10: 494.6715885 | DI10: 520.2486673 | DJ10: 501.7460996 | DK10: 734.1165818 | DL10: 946.8961099 | DM10: 1203.211091 | DN10: 1335.450031 | DO10: 1162.940797 | DP10: 1101.991162 | DQ10: 1012.19929 | DR10: 1094.916651 | DS10: 1192.327228 | DT10: 1156.954672 | DU10: 1063.353448 | DV10: 1038.864755 | DW10: 1077.50247 | DX10: 1114.507605 | DY10: 1281.030714 | DZ10: 1313.138111 | EA10: 1281.030714 | EB10: 1363.203882 | EC10: 1224.978818 | ED10: 1006.213165 | EE10: 999.1386539 | EF10: 1008.934131 | EG10: 944.7193373 | EH10: 875.0626119 | EI10: 710.1720825 | EJ10: 582.2866883 | EK10: 555.07703 | EL10: 604.5986081 | EM10: 660.1063111 | EN10: 651.3992205 | EO10: 718.3349799 | EP10: 642.6921298 | EQ10: 762.9588196 | ER10: 507.7322245 | ES10: 513.1741561 | ET10: 509.9089971 | EU10: 567.5934728 | EV10: 568.6818591 | EW10: 639.4269708 | EX10: 191.0118015 | EY10: 68.02414583 | EZ10: 68.02414583 | FA10: 84.34994083 | FB10: 55.507703 | FC10: 15.23740867 | FD10: 15.23740867 | FE10: 7.618704333 | FF10: 7.618704333 | FG10: 2.720965833 | FH10: 2.720965833 | FI10: 1.088386333 | FJ10: 1.088386333 | FK10: 1.088386333 | FL10: 1.088386333 | FM10: 0.5441931666 | FN10: 0.5441931666 | FO10: 0.5441931666 | FP10: 0.5441931666 | FQ10: 0 | FR10: 0 | FS10: 0 | FT10: 0 | FU10: 0.5441931666 | FV10: 0.5441931666 | FW10: 0 | FX10: 0 | FY10: 0 | FZ10: 0 | GA10: 0 | GB10: 0 | GC10: 0 | GD10: 0 | GE10: 0 | GF10: 0 | GG10: 0 | GH10: 0
A11: 3 | B11: SERVICE LINES | C11: ˂ = 11 kv ; residential ; simple type | D11: 0.5318676802 | E11: 52.23783822 | F11: 7.227574851 | G11: 2 | H11: 28821 | I11: 22773 | J11: 18846 | K11: 18759 | L11: 13148 | M11: 13315 | N11: 5803 | O11: 6454 | P11: 7928 | Q11: 8539 | R11: 8756 | S11: 8607 | T11: 8302 | U11: 8357 | V11: 8631 | W11: 9607 | X11: 11477 | Y11: 13145 | Z11: 14986 | AA11: 14238 | AB11: 11711 | AC11: 10625 | AD11: 10196 | AE11: 11618 | AF11: 14504 | AG11: 15997 | AH11: 16273 | AI11: 16491 | AJ11: 15826 | AK11: 15392 | AL11: 15612 | AM11: 16043 | AN11: 16566 | AO11: 16276 | AP11: 16247 | AQ11: 15054 | AR11: 12707 | AS11: 11648 | AT11: 10039 | AU11: 7843 | AV11: 6923 | AW11: 7564 | AX11: 11936 | AY11: 15690 | AZ11: 15583 | BA11: 17652 | BB11: 14908 | BC11: 15049 | BD11: 10068 | BE11: 8741 | BF11: 8708 | BG11: 9871 | BH11: 9873 | BI11: 9841 | BJ11: 5661 | BK11: 2773 | BL11: 2774 | BM11: 6989 | BN11: 5649 | BO11: 1085 | BP11: 1083 | BQ11: 540 | BR11: 540 | BS11: 124 | BT11: 124 | BU11: 44 | BV11: 44 | BW11: 37 | BX11: 37 | BY11: 22 | BZ11: 22 | CA11: 10 | CB11: 10 | CC11: 3 | CD11: 3 | CE11: 1 | CF11: 1 | CG11: 5 | CH11: 5 | CI11: 0 | CJ11: 0 | CK11: 0 | CL11: 0 | CM11: 0 | CN11: 0 | CO11: 0 | CP11: 0 | CQ11: 0 | CR11: 0 | CS11: 0 | CT11: 0 | CV11: 15328.95841 | CW11: 12112.22268 | CX11: 10023.5783 | CY11: 9977.305812 | CZ11: 6992.996259 | DA11: 7081.818162 | DB11: 3086.428148 | DC11: 3432.674008 | DD11: 4216.646968 | DE11: 4541.618121 | DF11: 4657.033408 | DG11: 4577.785123 | DH11: 4415.565481 | DI11: 4444.818203 | DJ11: 4590.549948 | DK11: 5109.652803 | DL11: 6104.245365 | DM11: 6991.400656 | DN11: 7970.569055 | DO11: 7572.73203 | DP11: 6228.702403 | DQ11: 5651.094102 | DR11: 5422.922867 | DS11: 6179.238708 | DT11: 7714.208833 | DU11: 8508.28728 | DV11: 8655.08276 | DW11: 8771.029914 | DX11: 8417.337906 | DY11: 8186.507333 | DZ11: 8303.518223 | EA11: 8532.753193 | EB11: 8810.91999 | EC11: 8656.678363 | ED11: 8641.2542 | EE11: 8006.736057 | EF11: 6758.442612 | EG11: 6195.194739 | EH11: 5339.419641 | EI11: 4171.438216 | EJ11: 3682.11995 | EK11: 4023.047133 | EL11: 6348.372631 | EM11: 8345.003902 | EN11: 8288.09406 | EO11: 9388.52829 | EP11: 7929.083376 | EQ11: 8004.076719 | ER11: 5354.843804 | ES11: 4649.055392 | ET11: 4631.503759 | EU11: 5250.065871 | EV11: 5251.129606 | EW11: 5234.109841 | EX11: 3010.902937 | EY11: 1474.869077 | EZ11: 1475.400945 | FA11: 3717.223217 | FB11: 3004.520525 | FC11: 577.076433 | FD11: 576.0126976 | FE11: 287.2085473 | FF11: 287.2085473 | FG11: 65.95159234 | FH11: 65.95159234 | FI11: 23.40217793 | FJ11: 23.40217793 | FK11: 19.67910417 | FL11: 19.67910417 | FM11: 11.70108896 | FN11: 11.70108896 | FO11: 5.318676802 | FP11: 5.318676802 | FQ11: 1.595603041 | FR11: 1.595603041 | FS11: 0.5318676802 | FT11: 0.5318676802 | FU11: 2.659338401 | FV11: 2.659338401 | FW11: 0 | FX11: 0 | FY11: 0 | FZ11: 0 | GA11: 0 | GB11: 0 | GC11: 0 | GD11: 0 | GE11: 0 | GF11: 0 | GG11: 0 | GH11: 0
A12: 4 | B12: SWITCHGEAR | C12: ˂ = 11 kv ; circuit breaker | D12: 93.59779794 | E12: 51.64920094 | F12: 7.186737851 | G12: 2 | H12: 9 | I12: 49 | J12: 7 | K12: 20 | L12: 27 | M12: 27 | N12: 64 | O12: 135 | P12: 35 | Q12: 20 | R12: 32 | S12: 12 | T12: 32 | U12: 13 | V12: 14 | W12: 17 | X12: 30 | Y12: 31 | Z12: 8 | AA12: 4 | AB12: 32 | AC12: 11 | AD12: 10 | AE12: 0 | AF12: 0 | AG12: 6 | AH12: 4 | AI12: 9 | AJ12: 20 | AK12: 28 | AL12: 0 | AM12: 26 | AN12: 0 | AO12: 31 | AP12: 0 | AQ12: 0 | AR12: 3 | AS12: 0 | AT12: 0 | AU12: 0 | AV12: 0 | AW12: 0 | AX12: 2 | AY12: 11 | AZ12: 0 | BA12: 0 | BB12: 0 | BC12: 38 | BD12: 41 | BE12: 43 | BF12: 36 | BG12: 12 | BH12: 78 | BI12: 67 | BJ12: 2 | BK12: 73 | BL12: 12 | BM12: 16 | BN12: 15 | BO12: 0 | BP12: 0 | BQ12: 29 | BR12: 1 | BS12: 4 | BT12: 0 | BU12: 0 | BV12: 1 | BW12: 0 | BX12: 0 | BY12: 0 | BZ12: 0 | CA12: 0 | CB12: 0 | CC12: 0 | CD12: 0 | CE12: 0 | CF12: 0 | CG12: 0 | CH12: 0 | CI12: 0 | CJ12: 0 | CK12: 0 | CL12: 0 | CM12: 0 | CN12: 0 | CO12: 0 | CP12: 0 | CQ12: 0 | CR12: 0 | CS12: 0 | CT12: 0 | CV12: 842.3801815 | CW12: 4586.292099 | CX12: 655.1845856 | CY12: 1871.955959 | CZ12: 2527.140544 | DA12: 2527.140544 | DB12: 5990.259068 | DC12: 12635.70272 | DD12: 3275.922928 | DE12: 1871.955959 | DF12: 2995.129534 | DG12: 1123.173575 | DH12: 2995.129534 | DI12: 1216.771373 | DJ12: 1310.369171 | DK12: 1591.162565 | DL12: 2807.933938 | DM12: 2901.531736 | DN12: 748.7823835 | DO12: 374.3911918 | DP12: 2995.129534 | DQ12: 1029.575777 | DR12: 935.9779794 | DS12: 0 | DT12: 0 | DU12: 561.5867876 | DV12: 374.3911918 | DW12: 842.3801815 | DX12: 1871.955959 | DY12: 2620.738342 | DZ12: 0 | EA12: 2433.542746 | EB12: 0 | EC12: 2901.531736 | ED12: 0 | EE12: 0 | EF12: 280.7933938 | EG12: 0 | EH12: 0 | EI12: 0 | EJ12: 0 | EK12: 0 | EL12: 187.1955959 | EM12: 1029.575777 | EN12: 0 | EO12: 0 | EP12: 0 | EQ12: 3556.716322 | ER12: 3837.509716 | ES12: 4024.705311 | ET12: 3369.520726 | EU12: 1123.173575 | EV12: 7300.628239 | EW12: 6271.052462 | EX12: 187.1955959 | EY12: 6832.63925 | EZ12: 1123.173575 | FA12: 1497.564767 | FB12: 1403.966969 | FC12: 0 | FD12: 0 | FE12: 2714.33614 | FF12: 93.59779794 | FG12: 374.3911918 | FH12: 0 | FI12: 0 | FJ12: 93.59779794 | FK12: 0 | FL12: 0 | FM12: 0 | FN12: 0 | FO12: 0 | FP12: 0 | FQ12: 0 | FR12: 0 | FS12: 0 | FT12: 0 | FU12: 0 | FV12: 0 | FW12: 0 | FX12: 0 | FY12: 0 | FZ12: 0 | GA12: 0 | GB12: 0 | GC12: 0 | GD12: 0 | GE12: 0 | GF12: 0 | GG12: 0 | GH12: 0
A13: 4 | B13: SWITCHGEAR | C13: ˂ = 11 kv ; switch | D13: 84.0256018 | E13: 77.1571802 | F13: 8.783915994 | G13: 2 | H13: 30 | I13: 10 | J13: 22 | K13: 14 | L13: 0 | M13: 21 | N13: 39 | O13: 20 | P13: 6 | Q13: 11 | R13: 18 | S13: 13 | T13: 4 | U13: 14 | V13: 4 | W13: 4 | X13: 0 | Y13: 4 | Z13: 1 | AA13: 0 | AB13: 0 | AC13: 0 | AD13: 1 | AE13: 13 | AF13: 0 | AG13: 0 | AH13: 0 | AI13: 5 | AJ13: 11 | AK13: 1 | AL13: 7 | AM13: 3 | AN13: 15 | AO13: 0 | AP13: 8 | AQ13: 25 | AR13: 20 | AS13: 11 | AT13: 28 | AU13: 20 | AV13: 3 | AW13: 44 | AX13: 22 | AY13: 25 | AZ13: 6 | BA13: 6 | BB13: 67 | BC13: 32 | BD13: 105 | BE13: 144 | BF13: 81 | BG13: 77 | BH13: 106 | BI13: 144 | BJ13: 34 | BK13: 38 | BL13: 8 | BM13: 12 | BN13: 0 | BO13: 3 | BP13: 5 | BQ13: 55 | BR13: 3 | BS13: 18 | BT13: 0 | BU13: 0 | BV13: 3 | BW13: 0 | BX13: 3 | BY13: 0 | BZ13: 0 | CA13: 0 | CB13: 0 | CC13: 0 | CD13: 0 | CE13: 0 | CF13: 0 | CG13: 8 | CH13: 0 | CI13: 0 | CJ13: 0 | CK13: 0 | CL13: 0 | CM13: 0 | CN13: 0 | CO13: 0 | CP13: 0 | CQ13: 0 | CR13: 0 | CS13: 0 | CT13: 0 | CV13: 2520.768054 | CW13: 840.256018 | CX13: 1848.56324 | CY13: 1176.358425 | CZ13: 0 | DA13: 1764.537638 | DB13: 3276.99847 | DC13: 1680.512036 | DD13: 504.1536108 | DE13: 924.2816198 | DF13: 1512.460832 | DG13: 1092.332823 | DH13: 336.1024072 | DI13: 1176.358425 | DJ13: 336.1024072 | DK13: 336.1024072 | DL13: 0 | DM13: 336.1024072 | DN13: 84.0256018 | DO13: 0 | DP13: 0 | DQ13: 0 | DR13: 84.0256018 | DS13: 1092.332823 | DT13: 0 | DU13: 0 | DV13: 0 | DW13: 420.128009 | DX13: 924.2816198 | DY13: 84.0256018 | DZ13: 588.1792126 | EA13: 252.0768054 | EB13: 1260.384027 | EC13: 0 | ED13: 672.2048144 | EE13: 2100.640045 | EF13: 1680.512036 | EG13: 924.2816198 | EH13: 2352.716851 | EI13: 1680.512036 | EJ13: 252.0768054 | EK13: 3697.126479 | EL13: 1848.56324 | EM13: 2100.640045 | EN13: 504.1536108 | EO13: 504.1536108 | EP13: 5629.715321 | EQ13: 2688.819258 | ER13: 8822.688189 | ES13: 12099.68666 | ET13: 6806.073746 | EU13: 6469.971339 | EV13: 8906.713791 | EW13: 12099.68666 | EX13: 2856.870461 | EY13: 3192.972869 | EZ13: 672.2048144 | FA13: 1008.307222 | FB13: 0 | FC13: 252.0768054 | FD13: 420.128009 | FE13: 4621.408099 | FF13: 252.0768054 | FG13: 1512.460832 | FH13: 0 | FI13: 0 | FJ13: 252.0768054 | FK13: 0 | FL13: 252.0768054 | FM13: 0 | FN13: 0 | FO13: 0 | FP13: 0 | FQ13: 0 | FR13: 0 | FS13: 0 | FT13: 0 | FU13: 672.2048144 | FV13: 0 | FW13: 0 | FX13: 0 | FY13: 0 | FZ13: 0 | GA13: 0 | GB13: 0 | GC13: 0 | GD13: 0 | GE13: 0 | GF13: 0 | GG13: 0 | GH13: 0
A14: 4 | B14: SWITCHGEAR | C14: > 11 kv & < = 22 kv ; switch | D14: 44.24539306 | E14: 37.8892408 | F14: 6.15542369 | G14: 2 | H14: 118 | I14: 371 | J14: 448 | K14: 276 | L14: 301 | M14: 327 | N14: 268 | O14: 410 | P14: 442 | Q14: 451 | R14: 455 | S14: 434 | T14: 338 | U14: 542 | V14: 330 | W14: 288 | X14: 260 | Y14: 142 | Z14: 48 | AA14: 21 | AB14: 73 | AC14: 52 | AD14: 362 | AE14: 1 | AF14: 3 | AG14: 0 | AH14: 0 | AI14: 418 | AJ14: 7 | AK14: 1 | AL14: 10 | AM14: 3 | AN14: 4 | AO14: 142 | AP14: 1 | AQ14: 0 | AR14: 0 | AS14: 1 | AT14: 82 | AU14: 0 | AV14: 0 | AW14: 0 | AX14: 0 | AY14: 72 | AZ14: 0 | BA14: 55 | BB14: 0 | BC14: 0 | BD14: 0 | BE14: 0 | BF14: 0 | BG14: 0 | BH14: 10 | BI14: 0 | BJ14: 0 | BK14: 0 | BL14: 0 | BM14: 0 | BN14: 0 | BO14: 0 | BP14: 0 | BQ14: 0 | BR14: 0 | BS14: 0 | BT14: 1 | BU14: 0 | BV14: 1 | BW14: 0 | BX14: 0 | BY14: 0 | BZ14: 0 | CA14: 0 | CB14: 0 | CC14: 0 | CD14: 0 | CE14: 0 | CF14: 0 | CG14: 0 | CH14: 0 | CI14: 0 | CJ14: 0 | CK14: 0 | CL14: 0 | CM14: 0 | CN14: 0 | CO14: 0 | CP14: 0 | CQ14: 0 | CR14: 0 | CS14: 0 | CT14: 0 | CV14: 5220.956382 | CW14: 16415.04083 | CX14: 19821.93609 | CY14: 12211.72849 | CZ14: 13317.86331 | DA14: 14468.24353 | DB14: 11857.76534 | DC14: 18140.61116 | DD14: 19556.46373 | DE14: 19954.67227 | DF14: 20131.65384 | DG14: 19202.50059 | DH14: 14954.94286 | DI14: 23981.00304 | DJ14: 14600.97971 | DK14: 12742.6732 | DL14: 11503.8022 | DM14: 6282.845815 | DN14: 2123.778867 | DO14: 929.1532544 | DP14: 3229.913694 | DQ14: 2300.760439 | DR14: 16016.83229 | DS14: 44.24539306 | DT14: 132.7361792 | DU14: 0 | DV14: 0 | DW14: 18494.5743 | DX14: 309.7177515 | DY14: 44.24539306 | DZ14: 442.4539306 | EA14: 132.7361792 | EB14: 176.9815723 | EC14: 6282.845815 | ED14: 44.24539306 | EE14: 0 | EF14: 0 | EG14: 44.24539306 | EH14: 3628.122231 | EI14: 0 | EJ14: 0 | EK14: 0 | EL14: 0 | EM14: 3185.668301 | EN14: 0 | EO14: 2433.496619 | EP14: 0 | EQ14: 0 | ER14: 0 | ES14: 0 | ET14: 0 | EU14: 0 | EV14: 442.4539306 | EW14: 0 | EX14: 0 | EY14: 0 | EZ14: 0 | FA14: 0 | FB14: 0 | FC14: 0 | FD14: 0 | FE14: 0 | FF14: 0 | FG14: 0 | FH14: 44.24539306 | FI14: 0 | FJ14: 44.24539306 | FK14: 0 | FL14: 0 | FM14: 0 | FN14: 0 | FO14: 0 | FP14: 0 | FQ14: 0 | FR14: 0 | FS14: 0 | FT14: 0 | FU14: 0 | FV14: 0 | FW14: 0 | FX14: 0 | FY14: 0 | FZ14: 0 | GA14: 0 | GB14: 0 | GC14: 0 | GD14: 0 | GE14: 0 | GF14: 0 | GG14: 0 | GH14: 0
A15: 4 | B15: SWITCHGEAR | C15: > 22 kv & < = 33 kv ; circuit breaker | D15: 193.2407509 | E15: 59.47813246 | F15: 7.712206718 | G15: 2 | H15: 13 | I15: 9 | J15: 0 | K15: 11 | L15: 1 | M15: 11 | N15: 20 | O15: 20 | P15: 14 | Q15: 8 | R15: 5 | S15: 5 | T15: 7 | U15: 7 | V15: 11 | W15: 7 | X15: 7 | Y15: 1 | Z15: 0 | AA15: 3 | AB15: 0 | AC15: 0 | AD15: 0 | AE15: 0 | AF15: 0 | AG15: 0 | AH15: 0 | AI15: 0 | AJ15: 0 | AK15: 2 | AL15: 2 | AM15: 0 | AN15: 0 | AO15: 0 | AP15: 0 | AQ15: 0 | AR15: 0 | AS15: 0 | AT15: 0 | AU15: 0 | AV15: 0 | AW15: 0 | AX15: 0 | AY15: 0 | AZ15: 0 | BA15: 0 | BB15: 0 | BC15: 0 | BD15: 0 | BE15: 0 | BF15: 0 | BG15: 20 | BH15: 19 | BI15: 0 | BJ15: 0 | BK15: 1 | BL15: 2 | BM15: 0 | BN15: 9 | BO15: 0 | BP15: 3 | BQ15: 24 | BR15: 0 | BS15: 0 | BT15: 0 | BU15: 13 | BV15: 0 | BW15: 0 | BX15: 0 | BY15: 0 | BZ15: 0 | CA15: 0 | CB15: 2 | CC15: 0 | CD15: 0 | CE15: 0 | CF15: 0 | CG15: 0 | CH15: 0 | CI15: 0 | CJ15: 0 | CK15: 0 | CL15: 0 | CM15: 0 | CN15: 0 | CO15: 0 | CP15: 0 | CQ15: 0 | CR15: 0 | CS15: 0 | CT15: 0 | CV15: 2512.129761 | CW15: 1739.166758 | CX15: 0 | CY15: 2125.648259 | CZ15: 193.2407509 | DA15: 2125.648259 | DB15: 3864.815017 | DC15: 3864.815017 | DD15: 2705.370512 | DE15: 1545.926007 | DF15: 966.2037543 | DG15: 966.2037543 | DH15: 1352.685256 | DI15: 1352.685256 | DJ15: 2125.648259 | DK15: 1352.685256 | DL15: 1352.685256 | DM15: 193.2407509 | DN15: 0 | DO15: 579.7222526 | DP15: 0 | DQ15: 0 | DR15: 0 | DS15: 0 | DT15: 0 | DU15: 0 | DV15: 0 | DW15: 0 | DX15: 0 | DY15: 386.4815017 | DZ15: 386.4815017 | EA15: 0 | EB15: 0 | EC15: 0 | ED15: 0 | EE15: 0 | EF15: 0 | EG15: 0 | EH15: 0 | EI15: 0 | EJ15: 0 | EK15: 0 | EL15: 0 | EM15: 0 | EN15: 0 | EO15: 0 | EP15: 0 | EQ15: 0 | ER15: 0 | ES15: 0 | ET15: 0 | EU15: 3864.815017 | EV15: 3671.574266 | EW15: 0 | EX15: 0 | EY15: 193.2407509 | EZ15: 386.4815017 | FA15: 0 | FB15: 1739.166758 | FC15: 0 | FD15: 579.7222526 | FE15: 4637.778021 | FF15: 0 | FG15: 0 | FH15: 0 | FI15: 2512.129761 | FJ15: 0 | FK15: 0 | FL15: 0 | FM15: 0 | FN15: 0 | FO15: 0 | FP15: 386.4815017 | FQ15: 0 | FR15: 0 | FS15: 0 | FT15: 0 | FU15: 0 | FV15: 0 | FW15: 0 | FX15: 0 | FY15: 0 | FZ15: 0 | GA15: 0 | GB15: 0 | GC15: 0 | GD15: 0 | GE15: 0 | GF15: 0 | GG15: 0 | GH15: 0
A16: 4 | B16: SWITCHGEAR | C16: > 22 kv & < = 33 kv ; switch | D16: 49.91802672 | E16: 74.62367646 | F16: 8.638499665 | G16: 2 | H16: 43 | I16: 6 | J16: 20 | K16: 19 | L16: 9 | M16: 57 | N16: 49 | O16: 32 | P16: 34 | Q16: 40 | R16: 20 | S16: 1 | T16: 9 | U16: 36 | V16: 19 | W16: 16 | X16: 6 | Y16: 7 | Z16: 12 | AA16: 4 | AB16: 0 | AC16: 0 | AD16: 0 | AE16: 8 | AF16: 0 | AG16: 0 | AH16: 3 | AI16: 27 | AJ16: 15 | AK16: 4 | AL16: 5 | AM16: 0 | AN16: 10 | AO16: 3 | AP16: 4 | AQ16: 10 | AR16: 3 | AS16: 3 | AT16: 11 | AU16: 21 | AV16: 13 | AW16: 3 | AX16: 5 | AY16: 9 | AZ16: 2 | BA16: 16 | BB16: 43 | BC16: 8 | BD16: 6 | BE16: 15 | BF16: 76 | BG16: 39 | BH16: 65 | BI16: 55 | BJ16: 25 | BK16: 16 | BL16: 4 | BM16: 3 | BN16: 0 | BO16: 0 | BP16: 0 | BQ16: 21 | BR16: 24 | BS16: 27 | BT16: 8 | BU16: 0 | BV16: 1 | BW16: 0 | BX16: 1 | BY16: 0 | BZ16: 0 | CA16: 0 | CB16: 0 | CC16: 0 | CD16: 0 | CE16: 0 | CF16: 0 | CG16: 4 | CH16: 4 | CI16: 0 | CJ16: 0 | CK16: 0 | CL16: 0 | CM16: 0 | CN16: 0 | CO16: 0 | CP16: 0 | CQ16: 0 | CR16: 0 | CS16: 0 | CT16: 0 | CV16: 2146.475149 | CW16: 299.5081603 | CX16: 998.3605343 | CY16: 948.4425076 | CZ16: 449.2622405 | DA16: 2845.327523 | DB16: 2445.983309 | DC16: 1597.376855 | DD16: 1697.212908 | DE16: 1996.721069 | DF16: 998.3605343 | DG16: 49.91802672 | DH16: 449.2622405 | DI16: 1797.048962 | DJ16: 948.4425076 | DK16: 798.6884275 | DL16: 299.5081603 | DM16: 349.426187 | DN16: 599.0163206 | DO16: 199.6721069 | DP16: 0 | DQ16: 0 | DR16: 0 | DS16: 399.3442137 | DT16: 0 | DU16: 0 | DV16: 149.7540802 | DW16: 1347.786721 | DX16: 748.7704008 | DY16: 199.6721069 | DZ16: 249.5901336 | EA16: 0 | EB16: 499.1802672 | EC16: 149.7540802 | ED16: 199.6721069 | EE16: 499.1802672 | EF16: 149.7540802 | EG16: 149.7540802 | EH16: 549.0982939 | EI16: 1048.278561 | EJ16: 648.9343473 | EK16: 149.7540802 | EL16: 249.5901336 | EM16: 449.2622405 | EN16: 99.83605343 | EO16: 798.6884275 | EP16: 2146.475149 | EQ16: 399.3442137 | ER16: 299.5081603 | ES16: 748.7704008 | ET16: 3793.770031 | EU16: 1946.803042 | EV16: 3244.671737 | EW16: 2745.491469 | EX16: 1247.950668 | EY16: 798.6884275 | EZ16: 199.6721069 | FA16: 149.7540802 | FB16: 0 | FC16: 0 | FD16: 0 | FE16: 1048.278561 | FF16: 1198.032641 | FG16: 1347.786721 | FH16: 399.3442137 | FI16: 0 | FJ16: 49.91802672 | FK16: 0 | FL16: 49.91802672 | FM16: 0 | FN16: 0 | FO16: 0 | FP16: 0 | FQ16: 0 | FR16: 0 | FS16: 0 | FT16: 0 | FU16: 199.6721069 | FV16: 199.6721069 | FW16: 0 | FX16: 0 | FY16: 0 | FZ16: 0 | GA16: 0 | GB16: 0 | GC16: 0 | GD16: 0 | GE16: 0 | GF16: 0 | GG16: 0 | GH16: 0
A17: 4 | B17: SWITCHGEAR | C17: > 33 kv & < = 66 kv ; circuit breaker | D17: 220.1379644 | E17: 60.835398 | F17: 7.799704994 | G17: 2 | H17: 6 | I17: 4 | J17: 9 | K17: 9 | L17: 10 | M17: 11 | N17: 14 | O17: 40 | P17: 40 | Q17: 30 | R17: 15 | S17: 23 | T17: 16 | U17: 19 | V17: 12 | W17: 2 | X17: 14 | Y17: 12 | Z17: 7 | AA17: 5 | AB17: 2 | AC17: 6 | AD17: 1 | AE17: 2 | AF17: 1 | AG17: 0 | AH17: 0 | AI17: 2 | AJ17: 8 | AK17: 0 | AL17: 0 | AM17: 6 | AN17: 4 | AO17: 2 | AP17: 12 | AQ17: 11 | AR17: 0 | AS17: 10 | AT17: 0 | AU17: 0 | AV17: 0 | AW17: 0 | AX17: 0 | AY17: 0 | AZ17: 0 | BA17: 0 | BB17: 2 | BC17: 7 | BD17: 10 | BE17: 24 | BF17: 6 | BG17: 5 | BH17: 3 | BI17: 0 | BJ17: 15 | BK17: 10 | BL17: 0 | BM17: 0 | BN17: 0 | BO17: 0 | BP17: 2 | BQ17: 5 | BR17: 0 | BS17: 0 | BT17: 3 | BU17: 7 | BV17: 0 | BW17: 7 | BX17: 0 | BY17: 0 | BZ17: 0 | CA17: 0 | CB17: 0 | CC17: 0 | CD17: 0 | CE17: 0 | CF17: 0 | CG17: 0 | CH17: 0 | CI17: 0 | CJ17: 0 | CK17: 0 | CL17: 0 | CM17: 0 | CN17: 0 | CO17: 0 | CP17: 0 | CQ17: 0 | CR17: 0 | CS17: 0 | CT17: 0 | CV17: 1320.827786 | CW17: 880.5518576 | CX17: 1981.24168 | CY17: 1981.24168 | CZ17: 2201.379644 | DA17: 2421.517609 | DB17: 3081.931502 | DC17: 8805.518576 | DD17: 8805.518576 | DE17: 6604.138932 | DF17: 3302.069466 | DG17: 5063.173181 | DH17: 3522.207431 | DI17: 4182.621324 | DJ17: 2641.655573 | DK17: 440.2759288 | DL17: 3081.931502 | DM17: 2641.655573 | DN17: 1540.965751 | DO17: 1100.689822 | DP17: 440.2759288 | DQ17: 1320.827786 | DR17: 220.1379644 | DS17: 440.2759288 | DT17: 220.1379644 | DU17: 0 | DV17: 0 | DW17: 440.2759288 | DX17: 1761.103715 | DY17: 0 | DZ17: 0 | EA17: 1320.827786 | EB17: 880.5518576 | EC17: 440.2759288 | ED17: 2641.655573 | EE17: 2421.517609 | EF17: 0 | EG17: 2201.379644 | EH17: 0 | EI17: 0 | EJ17: 0 | EK17: 0 | EL17: 0 | EM17: 0 | EN17: 0 | EO17: 0 | EP17: 440.2759288 | EQ17: 1540.965751 | ER17: 2201.379644 | ES17: 5283.311146 | ET17: 1320.827786 | EU17: 1100.689822 | EV17: 660.4138932 | EW17: 0 | EX17: 3302.069466 | EY17: 2201.379644 | EZ17: 0 | FA17: 0 | FB17: 0 | FC17: 0 | FD17: 440.2759288 | FE17: 1100.689822 | FF17: 0 | FG17: 0 | FH17: 660.4138932 | FI17: 1540.965751 | FJ17: 0 | FK17: 1540.965751 | FL17: 0 | FM17: 0 | FN17: 0 | FO17: 0 | FP17: 0 | FQ17: 0 | FR17: 0 | FS17: 0 | FT17: 0 | FU17: 0 | FV17: 0 | FW17: 0 | FX17: 0 | FY17: 0 | FZ17: 0 | GA17: 0 | GB17: 0 | GC17: 0 | GD17: 0 | GE17: 0 | GF17: 0 | GG17: 0 | GH17: 0
A18: 4 | B18: SWITCHGEAR | C18: > 33 kv & < = 66 kv ; switch | D18: 38.94326568 | E18: 71.95372724 | F18: 8.482554287 | G18: 2 | H18: 2 | I18: 7 | J18: 1 | K18: 19 | L18: 35 | M18: 58 | N18: 70 | O18: 76 | P18: 80 | Q18: 66 | R18: 25 | S18: 24 | T18: 18 | U18: 22 | V18: 13 | W18: 7 | X18: 20 | Y18: 20 | Z18: 12 | AA18: 3 | AB18: 2 | AC18: 13 | AD18: 1 | AE18: 12 | AF18: 0 | AG18: 0 | AH18: 0 | AI18: 17 | AJ18: 11 | AK18: 0 | AL18: 2 | AM18: 25 | AN18: 9 | AO18: 4 | AP18: 0 | AQ18: 0 | AR18: 5 | AS18: 6 | AT18: 0 | AU18: 8 | AV18: 4 | AW18: 10 | AX18: 18 | AY18: 6 | AZ18: 3 | BA18: 0 | BB18: 12 | BC18: 14 | BD18: 85 | BE18: 74 | BF18: 57 | BG18: 48 | BH18: 31 | BI18: 72 | BJ18: 34 | BK18: 65 | BL18: 22 | BM18: 24 | BN18: 19 | BO18: 0 | BP18: 30 | BQ18: 33 | BR18: 0 | BS18: 37 | BT18: 14 | BU18: 10 | BV18: 12 | BW18: 0 | BX18: 0 | BY18: 0 | BZ18: 0 | CA18: 0 | CB18: 0 | CC18: 0 | CD18: 0 | CE18: 0 | CF18: 0 | CG18: 0 | CH18: 7 | CI18: 0 | CJ18: 0 | CK18: 4 | CL18: 0 | CM18: 0 | CN18: 0 | CO18: 0 | CP18: 0 | CQ18: 0 | CR18: 0 | CS18: 0 | CT18: 0 | CV18: 77.88653136 | CW18: 272.6028598 | CX18: 38.94326568 | CY18: 739.9220479 | CZ18: 1363.014299 | DA18: 2258.70941 | DB18: 2726.028598 | DC18: 2959.688192 | DD18: 3115.461254 | DE18: 2570.255535 | DF18: 973.581642 | DG18: 934.6383763 | DH18: 700.9787823 | DI18: 856.751845 | DJ18: 506.2624539 | DK18: 272.6028598 | DL18: 778.8653136 | DM18: 778.8653136 | DN18: 467.3191882 | DO18: 116.829797 | DP18: 77.88653136 | DQ18: 506.2624539 | DR18: 38.94326568 | DS18: 467.3191882 | DT18: 0 | DU18: 0 | DV18: 0 | DW18: 662.0355166 | DX18: 428.3759225 | DY18: 0 | DZ18: 77.88653136 | EA18: 973.581642 | EB18: 350.4893911 | EC18: 155.7730627 | ED18: 0 | EE18: 0 | EF18: 194.7163284 | EG18: 233.6595941 | EH18: 0 | EI18: 311.5461254 | EJ18: 155.7730627 | EK18: 389.4326568 | EL18: 700.9787823 | EM18: 233.6595941 | EN18: 116.829797 | EO18: 0 | EP18: 467.3191882 | EQ18: 545.2057195 | ER18: 3310.177583 | ES18: 2881.80166 | ET18: 2219.766144 | EU18: 1869.276753 | EV18: 1207.241236 | EW18: 2803.915129 | EX18: 1324.071033 | EY18: 2531.312269 | EZ18: 856.751845 | FA18: 934.6383763 | FB18: 739.9220479 | FC18: 0 | FD18: 1168.29797 | FE18: 1285.127767 | FF18: 0 | FG18: 1440.90083 | FH18: 545.2057195 | FI18: 389.4326568 | FJ18: 467.3191882 | FK18: 0 | FL18: 0 | FM18: 0 | FN18: 0 | FO18: 0 | FP18: 0 | FQ18: 0 | FR18: 0 | FS18: 0 | FT18: 0 | FU18: 0 | FV18: 272.6028598 | FW18: 0 | FX18: 0 | FY18: 155.7730627 | FZ18: 0 | GA18: 0 | GB18: 0 | GC18: 0 | GD18: 0 | GE18: 0 | GF18: 0 | GG18: 0 | GH18: 0
A19: 5 | B19: TRANSFORMERS | C19: ground outdoor / indoor chamber mounted ; ˂ 22 kv ; > 600 kva ; multiple phase | D19: 189.2723177 | E19: 62.61000548 | F19: 7.912648449 | G19: 2 | H19: 0 | I19: 0 | J19: 0 | K19: 0 | L19: 0 | M19: 0 | N19: 0 | O19: 0 | P19: 0 | Q19: 0 | R19: 0 | S19: 0 | T19: 3 | U19: 0 | V19: 0 | W19: 0 | X19: 0 | Y19: 0 | Z19: 0 | AA19: 2 | AB19: 0 | AC19: 0 | AD19: 0 | AE19: 0 | AF19: 0 | AG19: 0 | AH19: 0 | AI19: 2 | AJ19: 0 | AK19: 0 | AL19: 4 | AM19: 2 | AN19: 0 | AO19: 8 | AP19: 0 | AQ19: 4 | AR19: 1 | AS19: 2 | AT19: 1 | AU19: 2 | AV19: 2 | AW19: 4 | AX19: 0 | AY19: 2 | AZ19: 2 | BA19: 1 | BB19: 0 | BC19: 10 | BD19: 4 | BE19: 1 | BF19: 1 | BG19: 5 | BH19: 2 | BI19: 2 | BJ19: 5 | BK19: 1 | BL19: 1 | BM19: 1 | BN19: 0 | BO19: 0 | BP19: 0 | BQ19: 0 | BR19: 0 | BS19: 0 | BT19: 0 | BU19: 0 | BV19: 0 | BW19: 0 | BX19: 0 | BY19: 0 | BZ19: 0 | CA19: 0 | CB19: 0 | CC19: 0 | CD19: 0 | CE19: 0 | CF19: 0 | CG19: 0 | CH19: 0 | CI19: 0 | CJ19: 0 | CK19: 0 | CL19: 0 | CM19: 0 | CN19: 0 | CO19: 0 | CP19: 0 | CQ19: 0 | CR19: 0 | CS19: 0 | CT19: 0 | CV19: 0 | CW19: 0 | CX19: 0 | CY19: 0 | CZ19: 0 | DA19: 0 | DB19: 0 | DC19: 0 | DD19: 0 | DE19: 0 | DF19: 0 | DG19: 0 | DH19: 567.8169531 | DI19: 0 | DJ19: 0 | DK19: 0 | DL19: 0 | DM19: 0 | DN19: 0 | DO19: 378.5446354 | DP19: 0 | DQ19: 0 | DR19: 0 | DS19: 0 | DT19: 0 | DU19: 0 | DV19: 0 | DW19: 378.5446354 | DX19: 0 | DY19: 0 | DZ19: 757.0892708 | EA19: 378.5446354 | EB19: 0 | EC19: 1514.178542 | ED19: 0 | EE19: 757.0892708 | EF19: 189.2723177 | EG19: 378.5446354 | EH19: 189.2723177 | EI19: 378.5446354 | EJ19: 378.5446354 | EK19: 757.0892708 | EL19: 0 | EM19: 378.5446354 | EN19: 378.5446354 | EO19: 189.2723177 | EP19: 0 | EQ19: 1892.723177 | ER19: 757.0892708 | ES19: 189.2723177 | ET19: 189.2723177 | EU19: 946.3615885 | EV19: 378.5446354 | EW19: 378.5446354 | EX19: 946.3615885 | EY19: 189.2723177 | EZ19: 189.2723177 | FA19: 189.2723177 | FB19: 0 | FC19: 0 | FD19: 0 | FE19: 0 | FF19: 0 | FG19: 0 | FH19: 0 | FI19: 0 | FJ19: 0 | FK19: 0 | FL19: 0 | FM19: 0 | FN19: 0 | FO19: 0 | FP19: 0 | FQ19: 0 | FR19: 0 | FS19: 0 | FT19: 0 | FU19: 0 | FV19: 0 | FW19: 0 | FX19: 0 | FY19: 0 | FZ19: 0 | GA19: 0 | GB19: 0 | GC19: 0 | GD19: 0 | GE19: 0 | GF19: 0 | GG19: 0 | GH19: 0
A20: 5 | B20: TRANSFORMERS | C20: ground outdoor / indoor chamber mounted ; > = 22 kv & < = 33 kv ; < = 15 mva | D20: 190.2907775 | E20: 62.61000548 | F20: 7.912648449 | G20: 2 | H20: 1 | I20: 8 | J20: 7 | K20: 7 | L20: 6 | M20: 2 | N20: 7 | O20: 11 | P20: 7 | Q20: 7 | R20: 4 | S20: 2 | T20: 4 | U20: 2 | V20: 2 | W20: 5 | X20: 3 | Y20: 10 | Z20: 8 | AA20: 0 | AB20: 1 | AC20: 2 | AD20: 0 | AE20: 2 | AF20: 0 | AG20: 1 | AH20: 0 | AI20: 13 | AJ20: 2 | AK20: 3 | AL20: 0 | AM20: 24 | AN20: 0 | AO20: 7 | AP20: 0 | AQ20: 9 | AR20: 14 | AS20: 0 | AT20: 0 | AU20: 1 | AV20: 3 | AW20: 0 | AX20: 5 | AY20: 5 | AZ20: 11 | BA20: 0 | BB20: 3 | BC20: 0 | BD20: 3 | BE20: 17 | BF20: 2 | BG20: 1 | BH20: 13 | BI20: 7 | BJ20: 0 | BK20: 5 | BL20: 7 | BM20: 4 | BN20: 3 | BO20: 0 | BP20: 2 | BQ20: 6 | BR20: 5 | BS20: 6 | BT20: 2 | BU20: 2 | BV20: 0 | BW20: 4 | BX20: 0 | BY20: 0 | BZ20: 0 | CA20: 0 | CB20: 0 | CC20: 0 | CD20: 0 | CE20: 0 | CF20: 0 | CG20: 0 | CH20: 0 | CI20: 0 | CJ20: 0 | CK20: 0 | CL20: 0 | CM20: 0 | CN20: 0 | CO20: 0 | CP20: 0 | CQ20: 0 | CR20: 0 | CS20: 0 | CT20: 0 | CV20: 190.2907775 | CW20: 1522.32622 | CX20: 1332.035443 | CY20: 1332.035443 | CZ20: 1141.744665 | DA20: 380.5815551 | DB20: 1332.035443 | DC20: 2093.198553 | DD20: 1332.035443 | DE20: 1332.035443 | DF20: 761.1631101 | DG20: 380.5815551 | DH20: 761.1631101 | DI20: 380.5815551 | DJ20: 380.5815551 | DK20: 951.4538877 | DL20: 570.8723326 | DM20: 1902.907775 | DN20: 1522.32622 | DO20: 0 | DP20: 190.2907775 | DQ20: 380.5815551 | DR20: 0 | DS20: 380.5815551 | DT20: 0 | DU20: 190.2907775 | DV20: 0 | DW20: 2473.780108 | DX20: 380.5815551 | DY20: 570.8723326 | DZ20: 0 | EA20: 4566.978661 | EB20: 0 | EC20: 1332.035443 | ED20: 0 | EE20: 1712.616998 | EF20: 2664.070885 | EG20: 0 | EH20: 0 | EI20: 190.2907775 | EJ20: 570.8723326 | EK20: 0 | EL20: 951.4538877 | EM20: 951.4538877 | EN20: 2093.198553 | EO20: 0 | EP20: 570.8723326 | EQ20: 0 | ER20: 570.8723326 | ES20: 3234.943218 | ET20: 380.5815551 | EU20: 190.2907775 | EV20: 2473.780108 | EW20: 1332.035443 | EX20: 0 | EY20: 951.4538877 | EZ20: 1332.035443 | FA20: 761.1631101 | FB20: 570.8723326 | FC20: 0 | FD20: 380.5815551 | FE20: 1141.744665 | FF20: 951.4538877 | FG20: 1141.744665 | FH20: 380.5815551 | FI20: 380.5815551 | FJ20: 0 | FK20: 761.1631101 | FL20: 0 | FM20: 0 | FN20: 0 | FO20: 0 | FP20: 0 | FQ20: 0 | FR20: 0 | FS20: 0 | FT20: 0 | FU20: 0 | FV20: 0 | FW20: 0 | FX20: 0 | FY20: 0 | FZ20: 0 | GA20: 0 | GB20: 0 | GC20: 0 | GD20: 0 | GE20: 0 | GF20: 0 | GG20: 0 | GH20: 0
A21: 5 | B21: TRANSFORMERS | C21: ground outdoor / indoor chamber mounted ; > 33 kv & < = 66 kv ; < = 15 mva | D21: 175.2758991 | E21: 62.61000548 | F21: 7.912648449 | G21: 2 | H21: 0 | I21: 0 | J21: 0 | K21: 2 | L21: 0 | M21: 1 | N21: 1 | O21: 0 | P21: 4 | Q21: 3 | R21: 0 | S21: 4 | T21: 0 | U21: 0 | V21: 0 | W21: 1 | X21: 0 | Y21: 0 | Z21: 5 | AA21: 0 | AB21: 1 | AC21: 0 | AD21: 0 | AE21: 0 | AF21: 0 | AG21: 0 | AH21: 0 | AI21: 4 | AJ21: 1 | AK21: 2 | AL21: 1 | AM21: 2 | AN21: 5 | AO21: 0 | AP21: 0 | AQ21: 9 | AR21: 0 | AS21: 0 | AT21: 0 | AU21: 0 | AV21: 5 | AW21: 5 | AX21: 0 | AY21: 0 | AZ21: 3 | BA21: 0 | BB21: 0 | BC21: 3 | BD21: 0 | BE21: 9 | BF21: 7 | BG21: 5 | BH21: 7 | BI21: 5 | BJ21: 4 | BK21: 18 | BL21: 5 | BM21: 12 | BN21: 5 | BO21: 0 | BP21: 2 | BQ21: 5 | BR21: 0 | BS21: 2 | BT21: 4 | BU21: 2 | BV21: 0 | BW21: 2 | BX21: 0 | BY21: 0 | BZ21: 0 | CA21: 0 | CB21: 0 | CC21: 0 | CD21: 0 | CE21: 0 | CF21: 1 | CG21: 0 | CH21: 0 | CI21: 0 | CJ21: 0 | CK21: 0 | CL21: 0 | CM21: 0 | CN21: 0 | CO21: 0 | CP21: 0 | CQ21: 0 | CR21: 0 | CS21: 0 | CT21: 0 | CV21: 0 | CW21: 0 | CX21: 0 | CY21: 350.5517981 | CZ21: 0 | DA21: 175.2758991 | DB21: 175.2758991 | DC21: 0 | DD21: 701.1035962 | DE21: 525.8276972 | DF21: 0 | DG21: 701.1035962 | DH21: 0 | DI21: 0 | DJ21: 0 | DK21: 175.2758991 | DL21: 0 | DM21: 0 | DN21: 876.3794953 | DO21: 0 | DP21: 175.2758991 | DQ21: 0 | DR21: 0 | DS21: 0 | DT21: 0 | DU21: 0 | DV21: 0 | DW21: 701.1035962 | DX21: 175.2758991 | DY21: 350.5517981 | DZ21: 175.2758991 | EA21: 350.5517981 | EB21: 876.3794953 | EC21: 0 | ED21: 0 | EE21: 1577.483091 | EF21: 0 | EG21: 0 | EH21: 0 | EI21: 0 | EJ21: 876.3794953 | EK21: 876.3794953 | EL21: 0 | EM21: 0 | EN21: 525.8276972 | EO21: 0 | EP21: 0 | EQ21: 525.8276972 | ER21: 0 | ES21: 1577.483091 | ET21: 1226.931293 | EU21: 876.3794953 | EV21: 1226.931293 | EW21: 876.3794953 | EX21: 701.1035962 | EY21: 3154.966183 | EZ21: 876.3794953 | FA21: 2103.310789 | FB21: 876.3794953 | FC21: 0 | FD21: 350.5517981 | FE21: 876.3794953 | FF21: 0 | FG21: 350.5517981 | FH21: 701.1035962 | FI21: 350.5517981 | FJ21: 0 | FK21: 350.5517981 | FL21: 0 | FM21: 0 | FN21: 0 | FO21: 0 | FP21: 0 | FQ21: 0 | FR21: 0 | FS21: 0 | FT21: 175.2758991 | FU21: 0 | FV21: 0 | FW21: 0 | FX21: 0 | FY21: 0 | FZ21: 0 | GA21: 0 | GB21: 0 | GC21: 0 | GD21: 0 | GE21: 0 | GF21: 0 | GG21: 0 | GH21: 0
A22: 5 | B22: TRANSFORMERS | C22: ground outdoor / indoor chamber mounted ; > 33 kv & < = 66 kv ; > 15 mva and < = 40 mva | D22: 335.9500967 | E22: 61.27622635 | F22: 7.827913282 | G22: 2 | H22: 1 | I22: 2 | J22: 0 | K22: 0 | L22: 3 | M22: 5 | N22: 1 | O22: 11 | P22: 4 | Q22: 4 | R22: 4 | S22: 2 | T22: 4 | U22: 2 | V22: 5 | W22: 2 | X22: 5 | Y22: 4 | Z22: 4 | AA22: 0 | AB22: 1 | AC22: 0 | AD22: 0 | AE22: 2 | AF22: 0 | AG22: 3 | AH22: 0 | AI22: 1 | AJ22: 5 | AK22: 1 | AL22: 3 | AM22: 0 | AN22: 1 | AO22: 4 | AP22: 0 | AQ22: 2 | AR22: 3 | AS22: 2 | AT22: 0 | AU22: 4 | AV22: 1 | AW22: 4 | AX22: 0 | AY22: 0 | AZ22: 0 | BA22: 0 | BB22: 1 | BC22: 4 | BD22: 0 | BE22: 3 | BF22: 6 | BG22: 4 | BH22: 2 | BI22: 0 | BJ22: 0 | BK22: 0 | BL22: 0 | BM22: 0 | BN22: 0 | BO22: 0 | BP22: 0 | BQ22: 0 | BR22: 2 | BS22: 0 | BT22: 0 | BU22: 0 | BV22: 0 | BW22: 0 | BX22: 0 | BY22: 0 | BZ22: 0 | CA22: 0 | CB22: 0 | CC22: 0 | CD22: 0 | CE22: 0 | CF22: 0 | CG22: 0 | CH22: 0 | CI22: 0 | CJ22: 0 | CK22: 0 | CL22: 0 | CM22: 0 | CN22: 0 | CO22: 0 | CP22: 0 | CQ22: 0 | CR22: 0 | CS22: 0 | CT22: 0 | CV22: 335.9500967 | CW22: 671.9001933 | CX22: 0 | CY22: 0 | CZ22: 1007.85029 | DA22: 1679.750483 | DB22: 335.9500967 | DC22: 3695.451063 | DD22: 1343.800387 | DE22: 1343.800387 | DF22: 1343.800387 | DG22: 671.9001933 | DH22: 1343.800387 | DI22: 671.9001933 | DJ22: 1679.750483 | DK22: 671.9001933 | DL22: 1679.750483 | DM22: 1343.800387 | DN22: 1343.800387 | DO22: 0 | DP22: 335.9500967 | DQ22: 0 | DR22: 0 | DS22: 671.9001933 | DT22: 0 | DU22: 1007.85029 | DV22: 0 | DW22: 335.9500967 | DX22: 1679.750483 | DY22: 335.9500967 | DZ22: 1007.85029 | EA22: 0 | EB22: 335.9500967 | EC22: 1343.800387 | ED22: 0 | EE22: 671.9001933 | EF22: 1007.85029 | EG22: 671.9001933 | EH22: 0 | EI22: 1343.800387 | EJ22: 335.9500967 | EK22: 1343.800387 | EL22: 0 | EM22: 0 | EN22: 0 | EO22: 0 | EP22: 335.9500967 | EQ22: 1343.800387 | ER22: 0 | ES22: 1007.85029 | ET22: 2015.70058 | EU22: 1343.800387 | EV22: 671.9001933 | EW22: 0 | EX22: 0 | EY22: 0 | EZ22: 0 | FA22: 0 | FB22: 0 | FC22: 0 | FD22: 0 | FE22: 0 | FF22: 671.9001933 | FG22: 0 | FH22: 0 | FI22: 0 | FJ22: 0 | FK22: 0 | FL22: 0 | FM22: 0 | FN22: 0 | FO22: 0 | FP22: 0 | FQ22: 0 | FR22: 0 | FS22: 0 | FT22: 0 | FU22: 0 | FV22: 0 | FW22: 0 | FX22: 0 | FY22: 0 | FZ22: 0 | GA22: 0 | GB22: 0 | GC22: 0 | GD22: 0 | GE22: 0 | GF22: 0 | GG22: 0 | GH22: 0
A23: 5 | B23: TRANSFORMERS | C23: kiosk mounted ; < = 22 kv ; < = 60 kva ; multiple phase | D23: 45.06438148 | E23: 65.06722712 | F23: 8.06642592 | G23: 2 | H23: 0 | I23: 0 | J23: 1.006778135 | K23: 0 | L23: 0 | M23: 1.006778135 | N23: 1.006778135 | O23: 5.033890676 | P23: 1.006778135 | Q23: 1.006778135 | R23: 0 | S23: 2.01355627 | T23: 1.006778135 | U23: 3.020334406 | V23: 3.020334406 | W23: 0 | X23: 2.01355627 | Y23: 1.006778135 | Z23: 0 | AA23: 0 | AB23: 1.006778135 | AC23: 0 | AD23: 0 | AE23: 0 | AF23: 0 | AG23: 2.01355627 | AH23: 3.020334406 | AI23: 1.006778135 | AJ23: 1.006778135 | AK23: 3.020334406 | AL23: 1.006778135 | AM23: 10.06778135 | AN23: 8.054225082 | AO23: 3.020334406 | AP23: 2.01355627 | AQ23: 1.006778135 | AR23: 1.006778135 | AS23: 0 | AT23: 0 | AU23: 1.006778135 | AV23: 0 | AW23: 0 | AX23: 1.006778135 | AY23: 1.006778135 | AZ23: 0 | BA23: 0 | BB23: 0 | BC23: 0 | BD23: 0 | BE23: 0 | BF23: 1.006778135 | BG23: 0 | BH23: 0 | BI23: 0 | BJ23: 0 | BK23: 0 | BL23: 0 | BM23: 0 | BN23: 0 | BO23: 0 | BP23: 0 | BQ23: 0 | BR23: 0 | BS23: 0 | BT23: 0 | BU23: 0 | BV23: 0 | BW23: 0 | BX23: 0 | BY23: 0 | BZ23: 0 | CA23: 0 | CB23: 0 | CC23: 0 | CD23: 0 | CE23: 0 | CF23: 0 | CG23: 0 | CH23: 0 | CI23: 0 | CJ23: 0 | CK23: 0 | CL23: 0 | CM23: 0 | CN23: 0 | CO23: 0 | CP23: 0 | CQ23: 0 | CR23: 0 | CS23: 0 | CT23: 0 | CV23: 0 | CW23: 0 | CX23: 45.36983396 | CY23: 0 | CZ23: 0 | DA23: 45.36983396 | DB23: 45.36983396 | DC23: 226.8491698 | DD23: 45.36983396 | DE23: 45.36983396 | DF23: 0 | DG23: 90.73966791 | DH23: 45.36983396 | DI23: 136.1095019 | DJ23: 136.1095019 | DK23: 0 | DL23: 90.73966791 | DM23: 45.36983396 | DN23: 0 | DO23: 0 | DP23: 45.36983396 | DQ23: 0 | DR23: 0 | DS23: 0 | DT23: 0 | DU23: 90.73966791 | DV23: 136.1095019 | DW23: 45.36983396 | DX23: 45.36983396 | DY23: 136.1095019 | DZ23: 45.36983396 | EA23: 453.6983396 | EB23: 362.9586716 | EC23: 136.1095019 | ED23: 90.73966791 | EE23: 45.36983396 | EF23: 45.36983396 | EG23: 0 | EH23: 0 | EI23: 45.36983396 | EJ23: 0 | EK23: 0 | EL23: 45.36983396 | EM23: 45.36983396 | EN23: 0 | EO23: 0 | EP23: 0 | EQ23: 0 | ER23: 0 | ES23: 0 | ET23: 45.36983396 | EU23: 0 | EV23: 0 | EW23: 0 | EX23: 0 | EY23: 0 | EZ23: 0 | FA23: 0 | FB23: 0 | FC23: 0 | FD23: 0 | FE23: 0 | FF23: 0 | FG23: 0 | FH23: 0 | FI23: 0 | FJ23: 0 | FK23: 0 | FL23: 0 | FM23: 0 | FN23: 0 | FO23: 0 | FP23: 0 | FQ23: 0 | FR23: 0 | FS23: 0 | FT23: 0 | FU23: 0 | FV23: 0 | FW23: 0 | FX23: 0 | FY23: 0 | FZ23: 0 | GA23: 0 | GB23: 0 | GC23: 0 | GD23: 0 | GE23: 0 | GF23: 0 | GG23: 0 | GH23: 0
A24: 5 | B24: TRANSFORMERS | C24: kiosk mounted ; < = 22 kv ; < = 60 kva ; single phase | D24: 10.96451801 | E24: 65.06722712 | F24: 8.06642592 | G24: 2 | H24: 0 | I24: 1.006778135 | J24: 0 | K24: 1.006778135 | L24: 0 | M24: 0 | N24: 3.020334406 | O24: 2.01355627 | P24: 4.027112541 | Q24: 0 | R24: 3.020334406 | S24: 10.06778135 | T24: 7.047446947 | U24: 10.06778135 | V24: 6.040668811 | W24: 4.027112541 | X24: 7.047446947 | Y24: 8.054225082 | Z24: 2.01355627 | AA24: 4.027112541 | AB24: 13.08811576 | AC24: 5.033890676 | AD24: 10.06778135 | AE24: 9.061003217 | AF24: 13.08811576 | AG24: 12.08133762 | AH24: 18.12200643 | AI24: 11.07455949 | AJ24: 26.17623152 | AK24: 15.10167203 | AL24: 16.10845016 | AM24: 18.12200643 | AN24: 44.29823795 | AO24: 37.250791 | AP24: 12.08133762 | AQ24: 15.10167203 | AR24: 4.027112541 | AS24: 1.006778135 | AT24: 2.01355627 | AU24: 1.006778135 | AV24: 3.020334406 | AW24: 1.006778135 | AX24: 0 | AY24: 0 | AZ24: 1.006778135 | BA24: 1.006778135 | BB24: 1.006778135 | BC24: 0 | BD24: 1.006778135 | BE24: 1.006778135 | BF24: 0 | BG24: 1.006778135 | BH24: 0 | BI24: 0 | BJ24: 0 | BK24: 0 | BL24: 1.006778135 | BM24: 0 | BN24: 0 | BO24: 0 | BP24: 0 | BQ24: 0 | BR24: 0 | BS24: 0 | BT24: 0 | BU24: 0 | BV24: 0 | BW24: 0 | BX24: 0 | BY24: 0 | BZ24: 0 | CA24: 0 | CB24: 0 | CC24: 0 | CD24: 0 | CE24: 0 | CF24: 0 | CG24: 0 | CH24: 0 | CI24: 0 | CJ24: 0 | CK24: 0 | CL24: 0 | CM24: 0 | CN24: 0 | CO24: 0 | CP24: 0 | CQ24: 0 | CR24: 0 | CS24: 0 | CT24: 0 | CV24: 0 | CW24: 11.038837 | CX24: 0 | CY24: 11.038837 | CZ24: 0 | DA24: 0 | DB24: 33.11651099 | DC24: 22.07767399 | DD24: 44.15534799 | DE24: 0 | DF24: 33.11651099 | DG24: 110.38837 | DH24: 77.27185898 | DI24: 110.38837 | DJ24: 66.23302198 | DK24: 44.15534799 | DL24: 77.27185898 | DM24: 88.31069597 | DN24: 22.07767399 | DO24: 44.15534799 | DP24: 143.504881 | DQ24: 55.19418498 | DR24: 110.38837 | DS24: 99.34953297 | DT24: 143.504881 | DU24: 132.466044 | DV24: 198.6990659 | DW24: 121.427207 | DX24: 287.0097619 | DY24: 165.5825549 | DZ24: 176.6213919 | EA24: 198.6990659 | EB24: 485.7088279 | EC24: 408.4369689 | ED24: 132.466044 | EE24: 165.5825549 | EF24: 44.15534799 | EG24: 11.038837 | EH24: 22.07767399 | EI24: 11.038837 | EJ24: 33.11651099 | EK24: 11.038837 | EL24: 0 | EM24: 0 | EN24: 11.038837 | EO24: 11.038837 | EP24: 11.038837 | EQ24: 0 | ER24: 11.038837 | ES24: 11.038837 | ET24: 0 | EU24: 11.038837 | EV24: 0 | EW24: 0 | EX24: 0 | EY24: 0 | EZ24: 11.038837 | FA24: 0 | FB24: 0 | FC24: 0 | FD24: 0 | FE24: 0 | FF24: 0 | FG24: 0 | FH24: 0 | FI24: 0 | FJ24: 0 | FK24: 0 | FL24: 0 | FM24: 0 | FN24: 0 | FO24: 0 | FP24: 0 | FQ24: 0 | FR24: 0 | FS24: 0 | FT24: 0 | FU24: 0 | FV24: 0 | FW24: 0 | FX24: 0 | FY24: 0 | FZ24: 0 | GA24: 0 | GB24: 0 | GC24: 0 | GD24: 0 | GE24: 0 | GF24: 0 | GG24: 0 | GH24: 0
A25: 5 | B25: TRANSFORMERS | C25: kiosk mounted ; < = 22 kv ; > 60 kva and < = 600 kva ; multiple phase | D25: 27.01041949 | E25: 47.66073066 | F25: 6.903675156 | G25: 2 | H25: 14 | I25: 70.47505497 | J25: 8.054291997 | K25: 11.0746515 | L25: 52.35289798 | M25: 223.5066029 | N25: 268.8119954 | O25: 306.0630959 | P25: 353.3820614 | Q25: 419.8299703 | R25: 418.8231838 | S25: 378.5517238 | T25: 300.0223769 | U25: 328.2123989 | V25: 317.1377474 | W25: 295.9952309 | X25: 273.8459279 | Y25: 273.8459279 | Z25: 172.1604914 | AA25: 185.2487159 | AB25: 163.0994129 | AC25: 193.3030079 | AD25: 164.1061994 | AE25: 139.9433234 | AF25: 265.7916359 | AG25: 331.2327584 | AH25: 284.9205794 | AI25: 274.8527144 | AJ25: 377.5449373 | AK25: 371.5042184 | AL25: 416.8096108 | AM25: 303.0427364 | AN25: 358.4159939 | AO25: 463.1217898 | AP25: 405.7349593 | AQ25: 271.8323549 | AR25: 167.1265589 | AS25: 176.1876374 | AT25: 143.9704694 | AU25: 140.9501099 | AV25: 146.9908289 | AW25: 230.5541084 | AX25: 250.6898384 | AY25: 216.4590974 | AZ25: 175.1808509 | BA25: 105.7125825 | BB25: 62.42076298 | BC25: 28.19002199 | BD25: 22.14930299 | BE25: 7.047505497 | BF25: 1.0067865 | BG25: 4.027145998 | BH25: 5.033932498 | BI25: 10.067865 | BJ25: 11.0746515 | BK25: 4.027145998 | BL25: 21.14251649 | BM25: 1.0067865 | BN25: 5.033932498 | BO25: 1.0067865 | BP25: 0 | BQ25: 1.0067865 | BR25: 0 | BS25: 6.040718998 | BT25: 35.23752749 | BU25: 0 | BV25: 0 | BW25: 0 | BX25: 0 | BY25: 0 | BZ25: 0 | CA25: 0 | CB25: 0 | CC25: 0 | CD25: 0 | CE25: 0 | CF25: 0 | CG25: 0 | CH25: 0 | CI25: 0 | CJ25: 0 | CK25: 0 | CL25: 0 | CM25: 0 | CN25: 0 | CO25: 0 | CP25: 0 | CQ25: 0 | CR25: 0 | CS25: 0 | CT25: 0 | CV25: 378.1458729 | CW25: 1903.560799 | CX25: 217.5498056 | CY25: 299.1309826 | CZ25: 1414.073736 | DA25: 6037.007104 | DB25: 7260.724761 | DC25: 8266.892611 | DD25: 9544.997719 | DE25: 11339.78361 | DF25: 11312.58989 | DG25: 10224.84086 | DH25: 8103.730257 | DI25: 8865.154576 | DJ25: 8566.023594 | DK25: 7994.955354 | DL25: 7396.693389 | DM25: 7396.693389 | DN25: 4650.127094 | DO25: 5003.645528 | DP25: 4405.383563 | DQ25: 5221.195333 | DR25: 4432.577288 | DS25: 3779.927872 | DT25: 7179.143583 | DU25: 8946.735754 | DV25: 7695.824372 | DW25: 7423.887115 | DX25: 10197.64714 | DY25: 10034.48478 | DZ25: 11258.20244 | EA25: 8185.311434 | EB25: 9680.966347 | EC25: 12509.11382 | ED25: 10959.07145 | EE25: 7342.305938 | EF25: 4514.158465 | EG25: 4758.901997 | EH25: 3888.702774 | EI25: 3807.121597 | EJ25: 3970.283951 | EK25: 6227.363184 | EL25: 6771.237698 | EM25: 5846.651024 | EN25: 4731.708271 | EO25: 2855.341198 | EP25: 1686.010993 | EQ25: 761.4243195 | ER25: 598.2619653 | ES25: 190.3560799 | ET25: 27.19372569 | EU25: 108.7749028 | EV25: 135.9686285 | EW25: 271.9372569 | EX25: 299.1309826 | EY25: 108.7749028 | EZ25: 571.0682396 | FA25: 27.19372569 | FB25: 135.9686285 | FC25: 27.19372569 | FD25: 0 | FE25: 27.19372569 | FF25: 0 | FG25: 163.1623542 | FH25: 951.7803993 | FI25: 0 | FJ25: 0 | FK25: 0 | FL25: 0 | FM25: 0 | FN25: 0 | FO25: 0 | FP25: 0 | FQ25: 0 | FR25: 0 | FS25: 0 | FT25: 0 | FU25: 0 | FV25: 0 | FW25: 0 | FX25: 0 | FY25: 0 | FZ25: 0 | GA25: 0 | GB25: 0 | GC25: 0 | GD25: 0 | GE25: 0 | GF25: 0 | GG25: 0 | GH25: 0
A26: 5 | B26: TRANSFORMERS | C26: kiosk mounted ; < = 22 kv ; > 60 kva and < = 600 kva ; single phase | D26: 39.58930684 | E26: 42.49473739 | F26: 6.518798769 | G26: 2 | H26: 0 | I26: 14.09489389 | J26: 0 | K26: 0 | L26: 0 | M26: 2.01355627 | N26: 2.01355627 | O26: 0 | P26: 2.01355627 | Q26: 8.054225082 | R26: 0 | S26: 0 | T26: 2.01355627 | U26: 0 | V26: 1.006778135 | W26: 1.006778135 | X26: 0 | Y26: 0 | Z26: 2.01355627 | AA26: 2.01355627 | AB26: 1.006778135 | AC26: 1.006778135 | AD26: 2.01355627 | AE26: 0 | AF26: 1.006778135 | AG26: 2.01355627 | AH26: 0 | AI26: 2.01355627 | AJ26: 6.040668811 | AK26: 0 | AL26: 1.006778135 | AM26: 2.01355627 | AN26: 0 | AO26: 4.027112541 | AP26: 26.17623152 | AQ26: 19.12878457 | AR26: 4.027112541 | AS26: 12.08133762 | AT26: 0 | AU26: 2.01355627 | AV26: 6.040668811 | AW26: 1.006778135 | AX26: 0 | AY26: 0 | AZ26: 0 | BA26: 1.006778135 | BB26: 0 | BC26: 0 | BD26: 0 | BE26: 0 | BF26: 0 | BG26: 0 | BH26: 0 | BI26: 0 | BJ26: 0 | BK26: 0 | BL26: 0 | BM26: 0 | BN26: 0 | BO26: 0 | BP26: 0 | BQ26: 0 | BR26: 0 | BS26: 0 | BT26: 0 | BU26: 0 | BV26: 0 | BW26: 0 | BX26: 0 | BY26: 0 | BZ26: 0 | CA26: 0 | CB26: 0 | CC26: 0 | CD26: 0 | CE26: 0 | CF26: 0 | CG26: 0 | CH26: 0 | CI26: 0 | CJ26: 0 | CK26: 0 | CL26: 0 | CM26: 0 | CN26: 0 | CO26: 0 | CP26: 0 | CQ26: 0 | CR26: 0 | CS26: 0 | CT26: 0 | CV26: 0 | CW26: 558.0070792 | CX26: 0 | CY26: 0 | CZ26: 0 | DA26: 79.71529702 | DB26: 79.71529702 | DC26: 0 | DD26: 79.71529702 | DE26: 318.8611881 | DF26: 0 | DG26: 0 | DH26: 79.71529702 | DI26: 0 | DJ26: 39.85764851 | DK26: 39.85764851 | DL26: 0 | DM26: 0 | DN26: 79.71529702 | DO26: 79.71529702 | DP26: 39.85764851 | DQ26: 39.85764851 | DR26: 79.71529702 | DS26: 0 | DT26: 39.85764851 | DU26: 79.71529702 | DV26: 0 | DW26: 79.71529702 | DX26: 239.1458911 | DY26: 0 | DZ26: 39.85764851 | EA26: 79.71529702 | EB26: 0 | EC26: 159.430594 | ED26: 1036.298861 | EE26: 757.2953217 | EF26: 159.430594 | EG26: 478.2917821 | EH26: 0 | EI26: 79.71529702 | EJ26: 239.1458911 | EK26: 39.85764851 | EL26: 0 | EM26: 0 | EN26: 0 | EO26: 39.85764851 | EP26: 0 | EQ26: 0 | ER26: 0 | ES26: 0 | ET26: 0 | EU26: 0 | EV26: 0 | EW26: 0 | EX26: 0 | EY26: 0 | EZ26: 0 | FA26: 0 | FB26: 0 | FC26: 0 | FD26: 0 | FE26: 0 | FF26: 0 | FG26: 0 | FH26: 0 | FI26: 0 | FJ26: 0 | FK26: 0 | FL26: 0 | FM26: 0 | FN26: 0 | FO26: 0 | FP26: 0 | FQ26: 0 | FR26: 0 | FS26: 0 | FT26: 0 | FU26: 0 | FV26: 0 | FW26: 0 | FX26: 0 | FY26: 0 | FZ26: 0 | GA26: 0 | GB26: 0 | GC26: 0 | GD26: 0 | GE26: 0 | GF26: 0 | GG26: 0 | GH26: 0
A27: 5 | B27: TRANSFORMERS | C27: kiosk mounted ; < = 22 kv ; > 600 kva ; multiple phase | D27: 48.80257484 | E27: 57.23704587 | F27: 7.565516894 | G27: 2 | H27: 1 | I27: 11.07460236 | J27: 2.013564066 | K27: 2.013564066 | L27: 5.033910165 | M27: 25.16955082 | N27: 77.52221654 | O27: 80.54256264 | P27: 75.50865247 | Q27: 79.5357806 | R27: 65.44083214 | S27: 90.61038296 | T27: 76.5154345 | U27: 74.50187044 | V27: 72.48830637 | W27: 65.44083214 | X27: 72.48830637 | Y27: 54.36622978 | Z27: 51.34588368 | AA27: 57.38657588 | AB27: 60.40692198 | AC27: 55.37301181 | AD27: 35.23737115 | AE27: 25.16955082 | AF27: 37.25093522 | AG27: 35.23737115 | AH27: 40.27128132 | AI27: 16.10851253 | AJ27: 37.25093522 | AK27: 45.30519148 | AL27: 39.26449928 | AM27: 34.23058912 | AN27: 36.24415319 | AO27: 44.29840945 | AP27: 31.21024302 | AQ27: 11.07460236 | AR27: 19.12885863 | AS27: 23.15598676 | AT27: 7.047474231 | AU27: 12.0813844 | AV27: 14.09494846 | AW27: 7.047474231 | AX27: 10.06782033 | AY27: 0 | AZ27: 3.020346099 | BA27: 4.027128132 | BB27: 1.006782033 | BC27: 1.006782033 | BD27: 2.013564066 | BE27: 1.006782033 | BF27: 4.027128132 | BG27: 1.006782033 | BH27: 0 | BI27: 3.020346099 | BJ27: 2.013564066 | BK27: 0 | BL27: 1.006782033 | BM27: 0 | BN27: 3.020346099 | BO27: 0 | BP27: 0 | BQ27: 0 | BR27: 0 | BS27: 3.020346099 | BT27: 6.040692198 | BU27: 0 | BV27: 0 | BW27: 0 | BX27: 0 | BY27: 0 | BZ27: 0 | CA27: 0 | CB27: 0 | CC27: 0 | CD27: 0 | CE27: 0 | CF27: 0 | CG27: 0 | CH27: 0 | CI27: 0 | CJ27: 0 | CK27: 0 | CL27: 0 | CM27: 0 | CN27: 0 | CO27: 0 | CP27: 0 | CQ27: 0 | CR27: 0 | CS27: 0 | CT27: 0 | CV27: 48.80257484 | CW27: 540.4691106 | CX27: 98.26711102 | CY27: 98.26711102 | CZ27: 245.6677776 | DA27: 1228.338888 | DB27: 3783.283774 | DC27: 3930.684441 | DD27: 3685.016663 | DE27: 3881.550885 | DF27: 3193.681108 | DG27: 4422.019996 | DH27: 3734.150219 | DI27: 3635.883108 | DJ27: 3537.615997 | DK27: 3193.681108 | DL27: 3537.615997 | DM27: 2653.211998 | DN27: 2505.811331 | DO27: 2800.612664 | DP27: 2948.013331 | DQ27: 2702.345553 | DR27: 1719.674443 | DS27: 1228.338888 | DT27: 1817.941554 | DU27: 1719.674443 | DV27: 1965.34222 | DW27: 786.1368882 | DX27: 1817.941554 | DY27: 2211.009998 | DZ27: 1916.208665 | EA27: 1670.540887 | EB27: 1768.807998 | EC27: 2161.876442 | ED27: 1523.140221 | EE27: 540.4691106 | EF27: 933.5375547 | EG27: 1130.071777 | EH27: 343.9348886 | EI27: 589.6026661 | EJ27: 687.8697771 | EK27: 343.9348886 | EL27: 491.3355551 | EM27: 0 | EN27: 147.4006665 | EO27: 196.534222 | EP27: 49.13355551 | EQ27: 49.13355551 | ER27: 98.26711102 | ES27: 49.13355551 | ET27: 196.534222 | EU27: 49.13355551 | EV27: 0 | EW27: 147.4006665 | EX27: 98.26711102 | EY27: 0 | EZ27: 49.13355551 | FA27: 0 | FB27: 147.4006665 | FC27: 0 | FD27: 0 | FE27: 0 | FF27: 0 | FG27: 147.4006665 | FH27: 294.8013331 | FI27: 0 | FJ27: 0 | FK27: 0 | FL27: 0 | FM27: 0 | FN27: 0 | FO27: 0 | FP27: 0 | FQ27: 0 | FR27: 0 | FS27: 0 | FT27: 0 | FU27: 0 | FV27: 0 | FW27: 0 | FX27: 0 | FY27: 0 | FZ27: 0 | GA27: 0 | GB27: 0 | GC27: 0 | GD27: 0 | GE27: 0 | GF27: 0 | GG27: 0 | GH27: 0
B28: TRANSFORMERS | C28: kiosk mounted ; > 22 kv ; > 60 kva and < ≈ 600 kva | D28: 13.27022791 | E28: 56.94491871 | F28: 7.546185706 | G28: 2 | H28: 1 | I28: 1.007086232 | J28: 1.007086232 | K28: 0 | L28: 0 | M28: 4.028344929 | N28: 0 | O28: 1.007086232 | P28: 0 | Q28: 3.021258697 | R28: 4.028344929 | S28: 4.028344929 | T28: 3.021258697 | U28: 5.035431161 | V28: 3.021258697 | W28: 2.014172465 | X28: 4.028344929 | Y28: 1.007086232 | Z28: 2.014172465 | AA28: 5.035431161 | AB28: 2.014172465 | AC28: 5.035431161 | AD28: 1.007086232 | AE28: 0 | AF28: 0 | AG28: 0 | AH28: 0 | AI28: 0 | AJ28: 0 | AK28: 0 | AL28: 0 | AM28: 0 | AN28: 0 | AO28: 2.014172465 | AP28: 0 | AQ28: 0 | AR28: 0 | AS28: 0 | AT28: 0 | AU28: 0 | AV28: 0 | AW28: 0 | AX28: 0 | AY28: 0 | AZ28: 0 | BA28: 0 | BB28: 0 | BC28: 0 | BD28: 0 | BE28: 0 | BF28: 0 | BG28: 0 | BH28: 0 | BI28: 0 | BJ28: 1.007086232 | BK28: 0 | BL28: 0 | BM28: 0 | BN28: 0 | BO28: 0 | BP28: 0 | BQ28: 0 | BR28: 0 | BS28: 0 | BT28: 0 | BU28: 1.007086232 | BV28: 0 | BW28: 0 | BX28: 0 | BY28: 0 | BZ28: 0 | CA28: 0 | CB28: 0 | CC28: 0 | CD28: 0 | CE28: 0 | CF28: 0 | CG28: 0 | CH28: 0 | CI28: 0 | CJ28: 0 | CK28: 0 | CL28: 0 | CM28: 0 | CN28: 0 | CO28: 0 | CP28: 0 | CQ28: 0 | CR28: 0 | CS28: 0 | CT28: 0 | CV28: 13.27022791 | CW28: 13.36426383 | CX28: 13.36426383 | CY28: 0 | CZ28: 0 | DA28: 53.4570553 | DB28: 0 | DC28: 13.36426383 | DD28: 0 | DE28: 40.09279148 | DF28: 53.4570553 | DG28: 53.4570553 | DH28: 40.09279148 | DI28: 66.82131913 | DJ28: 40.09279148 | DK28: 26.72852765 | DL28: 53.4570553 | DM28: 13.36426383 | DN28: 26.72852765 | DO28: 66.82131913 | DP28: 26.72852765 | DQ28: 66.82131913 | DR28: 13.36426383 | DS28: 0 | DT28: 0 | DU28: 0 | DV28: 0 | DW28: 0 | DX28: 0 | DY28: 0 | DZ28: 0 | EA28: 0 | EB28: 0 | EC28: 26.72852765 | ED28: 0 | EE28: 0 | EF28: 0 | EG28: 0 | EH28: 0 | EI28: 0 | EJ28: 0 | EK28: 0 | EL28: 0 | EM28: 0 | EN28: 0 | EO28: 0 | EP28: 0 | EQ28: 0 | ER28: 0 | ES28: 0 | ET28: 0 | EU28: 0 | EV28: 0 | EW28: 0 | EX28: 13.36426383 | EY28: 0 | EZ28: 0 | FA28: 0 | FB28: 0 | FC28: 0 | FD28: 0 | FE28: 0 | FF28: 0 | FG28: 0 | FH28: 0 | FI28: 13.36426383 | FJ28: 0 | FK28: 0 | FL28: 0 | FM28: 0 | FN28: 0 | FO28: 0 | FP28: 0 | FQ28: 0 | FR28: 0 | FS28: 0 | FT28: 0 | FU28: 0 | FV28: 0 | FW28: 0 | FX28: 0 | FY28: 0 | FZ28: 0 | GA28: 0 | GB28: 0 | GC28: 0 | GD28: 0 | GE28: 0 | GF28: 0 | GG28: 0 | GH28: 0
A29: 5 | B29: TRANSFORMERS | C29: pole mounted ; < = 22 kv ; < = 60 kva ; multiple phase | D29: 16.3822144 | E29: 40.32640056 | F29: 6.350307123 | G29: 2 | H29: 47 | I29: 102.6948511 | J29: 35.23842929 | K29: 21.14305758 | L29: 30.20436797 | M29: 49.33380101 | N29: 58.3951114 | O29: 65.44279726 | P29: 81.55179351 | Q29: 59.40192367 | R29: 92.62672843 | S29: 74.50410765 | T29: 78.53135671 | U29: 106.7221001 | V29: 93.63354069 | W29: 95.64716523 | X29: 100.6812266 | Y29: 110.7493492 | Z29: 176.1921465 | AA29: 248.6826296 | AB29: 212.437388 | AC29: 197.335204 | AD29: 175.1853342 | AE29: 178.205771 | AF29: 250.6962541 | AG29: 276.873373 | AH29: 269.8256872 | AI29: 266.8052504 | AJ29: 322.179925 | AK29: 405.745343 | AL29: 297.0096183 | AM29: 230.5600088 | AN29: 264.7916258 | AO29: 244.6553805 | AP29: 274.8597485 | AQ29: 253.7166909 | AR29: 234.5872579 | AS29: 322.179925 | AT29: 290.9687447 | AU29: 258.7507522 | AV29: 216.4646371 | AW29: 207.4033267 | AX29: 176.1921465 | AY29: 212.437388 | AZ29: 229.5531965 | BA29: 177.1989587 | BB29: 183.2398323 | BC29: 118.8038473 | BD29: 128.87197 | BE29: 149.0082153 | BF29: 141.9605294 | BG29: 97.66078976 | BH29: 76.51773218 | BI29: 77.52454445 | BJ29: 75.51091991 | BK29: 62.42236046 | BL29: 49.33380101 | BM29: 28.19074343 | BN29: 16.10899625 | BO29: 13.08855945 | BP29: 7.047685859 | BQ29: 5.034061328 | BR29: 12.08174719 | BS29: 15.10218398 | BT29: 7.047685859 | BU29: 2.013624531 | BV29: 1.006812266 | BW29: 1.006812266 | BX29: 1.006812266 | BY29: 0 | BZ29: 0 | CA29: 0 | CB29: 0 | CC29: 0 | CD29: 0 | CE29: 0 | CF29: 0 | CG29: 0 | CH29: 0 | CI29: 0 | CJ29: 0 | CK29: 0 | CL29: 0 | CM29: 0 | CN29: 0 | CO29: 0 | CP29: 0 | CQ29: 0 | CR29: 0 | CS29: 0 | CT29: 0 | CV29: 769.9640768 | CW29: 1682.369068 | CX29: 577.2835038 | CY29: 346.3701023 | CZ29: 494.8144319 | DA29: 808.1969054 | DB29: 956.6412349 | DC29: 1072.097936 | DD29: 1335.998966 | DE29: 973.1350493 | DF29: 1517.430924 | DG29: 1220.542265 | DH29: 1286.517523 | DI29: 1748.344326 | DJ29: 1533.924739 | DK29: 1566.912368 | DL29: 1649.38144 | DM29: 1814.319583 | DN29: 2886.417519 | DO29: 4073.972156 | DP29: 3480.194837 | DQ29: 3232.787621 | DR29: 2869.923705 | DS29: 2919.405148 | DT29: 4106.959784 | DU29: 4535.798959 | DV29: 4420.342258 | DW29: 4370.860815 | DX29: 5278.020606 | DY29: 6647.007201 | DZ29: 4865.675247 | EA29: 3777.083496 | EB29: 4337.873186 | EC29: 4007.996898 | ED29: 4502.81133 | EE29: 4156.441228 | EF29: 3843.058754 | EG29: 5278.020606 | EH29: 4766.71236 | EI29: 4238.9103 | EJ29: 3546.170095 | EK29: 3397.725765 | EL29: 2886.417519 | EM29: 3480.194837 | EN29: 3760.589682 | EO29: 2902.911334 | EP29: 3001.87422 | EQ29: 1946.270099 | ER29: 2111.208243 | ES29: 2441.08453 | ET29: 2325.62783 | EU29: 1599.899996 | EV29: 1253.529894 | EW29: 1270.023708 | EX29: 1237.03608 | EY29: 1022.616492 | EZ29: 808.1969054 | FA29: 461.8268031 | FB29: 263.9010303 | FC29: 214.4195871 | FD29: 115.4567008 | FE29: 82.46907198 | FF29: 197.9257727 | FG29: 247.4072159 | FH29: 115.4567008 | FI29: 32.98762879 | FJ29: 16.4938144 | FK29: 16.4938144 | FL29: 16.4938144 | FM29: 0 | FN29: 0 | FO29: 0 | FP29: 0 | FQ29: 0 | FR29: 0 | FS29: 0 | FT29: 0 | FU29: 0 | FV29: 0 | FW29: 0 | FX29: 0 | FY29: 0 | FZ29: 0 | GA29: 0 | GB29: 0 | GC29: 0 | GD29: 0 | GE29: 0 | GF29: 0 | GG29: 0 | GH29: 0
A30: 5 | B30: TRANSFORMERS | C30: pole mounted ; < = 22 kv ; < = 60 kva ; single phase | D30: 14.90282186 | E30: 53.67121733 | F30: 7.326064245 | G30: 2 | H30: 278 | I30: 575.9094083 | J30: 244.6608151 | K30: 221.5036186 | L30: 221.5036186 | M30: 525.5676768 | N30: 485.2942916 | O30: 502.4104803 | P30: 642.3604938 | Q30: 563.8273927 | R30: 570.8752351 | S30: 424.8842138 | T30: 533.6223538 | U30: 510.4651573 | V30: 533.6223538 | W30: 480.2601184 | X30: 483.2806223 | Y30: 593.025597 | Z30: 477.2396145 | AA30: 592.0187623 | AB30: 554.765881 | AC30: 418.843206 | AD30: 539.6633616 | AE30: 549.7317079 | AF30: 761.1669802 | AG30: 1138.729966 | AH30: 731.9687759 | AI30: 675.5860366 | AJ30: 949.4450559 | AK30: 1068.251542 | AL30: 763.1806494 | AM30: 793.3856883 | AN30: 793.3856883 | AO30: 777.2763342 | AP30: 823.5907272 | AQ30: 747.0712953 | AR30: 893.0623167 | AS30: 779.2900035 | AT30: 751.0986339 | AU30: 684.6475483 | AV30: 678.6065405 | AW30: 581.950416 | AX30: 491.3352994 | AY30: 542.6838655 | AZ30: 720.893595 | BA30: 503.4173149 | BB30: 434.9525601 | BC30: 449.0482449 | BD30: 428.9115523 | BE30: 693.70906 | BF30: 487.3079608 | BG30: 371.5219784 | BH30: 308.0913967 | BI30: 371.5219784 | BJ30: 388.6381671 | BK30: 330.2417586 | BL30: 351.3852858 | BM30: 442.0004025 | BN30: 220.4967839 | BO30: 211.4352723 | BP30: 167.1345486 | BQ30: 16.10935408 | BR30: 7.047842409 | BS30: 1.00683463 | BT30: 3.02050389 | BU30: 3.02050389 | BV30: 0 | BW30: 0 | BX30: 0 | BY30: 0 | BZ30: 0 | CA30: 0 | CB30: 0 | CC30: 0 | CD30: 0 | CE30: 0 | CF30: 0 | CG30: 0 | CH30: 0 | CI30: 0 | CJ30: 0 | CK30: 0 | CL30: 0 | CM30: 0 | CN30: 0 | CO30: 0 | CP30: 0 | CQ30: 0 | CR30: 0 | CS30: 0 | CT30: 0 | CV30: 4142.984477 | CW30: 8582.675319 | CX30: 3646.136543 | CY30: 3301.028969 | CZ30: 3301.028969 | DA30: 7832.441463 | DB30: 7232.254377 | DC30: 7487.333889 | DD30: 9572.98401 | DE30: 8402.619194 | DF30: 8507.651934 | DG30: 6331.973749 | DH30: 7952.47888 | DI30: 7607.371306 | DJ30: 7952.47888 | DK30: 7157.230992 | DL30: 7202.245023 | DM30: 8837.75483 | DN30: 7112.21696 | DO30: 8822.750153 | DP30: 8267.577099 | DQ30: 6241.945687 | DR30: 8042.506942 | DS30: 8192.553714 | DT30: 11343.53591 | DU30: 16970.28984 | DV30: 10908.40027 | DW30: 10068.13836 | DX30: 14149.41053 | DY30: 15919.96244 | DZ30: 11373.54527 | EA30: 11823.68558 | EB30: 11823.68558 | EC30: 11583.61075 | ED30: 12273.82589 | EE30: 11133.47043 | EF30: 13309.14862 | EG30: 11613.6201 | EH30: 11193.48914 | EI30: 10203.18045 | EJ30: 10113.15239 | EK30: 8672.703382 | EL30: 7322.28244 | EM30: 8087.520974 | EN30: 10743.34883 | EO30: 7502.338566 | EP30: 6482.020521 | EQ30: 6692.086001 | ER30: 6391.992458 | ES30: 10338.22254 | ET30: 7262.263732 | EU30: 5536.725862 | EV30: 4591.431202 | EW30: 5536.725862 | EX30: 5791.805373 | EY30: 4921.534099 | EZ30: 5236.632319 | FA30: 6587.053261 | FB30: 3286.024292 | FC30: 3150.982198 | FD30: 2490.776404 | FE30: 240.0748341 | FF30: 105.0327399 | FG30: 15.00467713 | FH30: 45.01403139 | FI30: 45.01403139 | FJ30: 0 | FK30: 0 | FL30: 0 | FM30: 0 | FN30: 0 | FO30: 0 | FP30: 0 | FQ30: 0 | FR30: 0 | FS30: 0 | FT30: 0 | FU30: 0 | FV30: 0 | FW30: 0 | FX30: 0 | FY30: 0 | FZ30: 0 | GA30: 0 | GB30: 0 | GC30: 0 | GD30: 0 | GE30: 0 | GF30: 0 | GG30: 0 | GH30: 0
A31: 5 | B31: TRANSFORMERS | C31: pole mounted ; < = 22 kv ; > 60 kva and < = 600 kva ; multiple phase | D31: 16.60665847 | E31: 59.39077334 | F31: 7.706540945 | G31: 2 | H31: 110 | I31: 375.5452239 | J31: 82.55953984 | K31: 54.36847746 | L31: 88.60048178 | M31: 326.2108647 | N31: 401.722639 | O31: 483.2753552 | P31: 581.9440735 | Q31: 757.1313898 | R31: 616.1760778 | S31: 589.9986628 | T31: 561.8076004 | U31: 597.0464284 | V31: 545.6984219 | W31: 515.4937122 | X31: 507.4391229 | Y31: 342.3200432 | Z31: 783.3088048 | AA31: 351.3814562 | AB31: 275.8696819 | AC31: 244.6581486 | AD31: 229.5557937 | AE31: 134.91437 | AF31: 254.7263851 | AG31: 272.8492109 | AH31: 271.8423873 | AI31: 237.610383 | AJ31: 263.787798 | AK31: 353.3951035 | AL31: 307.0812153 | AM31: 303.0539206 | AN31: 333.2586303 | AO31: 281.9106239 | AP31: 351.3814562 | AQ31: 337.285925 | AR31: 346.3473379 | AS31: 361.4496927 | AT31: 248.6854432 | AU31: 252.7127378 | AV31: 211.4329679 | AW31: 221.5012045 | AX31: 189.2828474 | AY31: 170.153198 | AZ31: 195.3237894 | BA31: 161.0917851 | BB31: 148.0030775 | BC31: 119.8120151 | BD31: 134.91437 | BE31: 96.65507103 | BF31: 112.7642495 | BG31: 96.65507103 | BH31: 90.61412909 | BI31: 77.52542156 | BJ31: 84.57318716 | BK31: 59.40259574 | BL31: 45.30706455 | BM31: 14.09553119 | BN31: 4.027294626 | BO31: 4.027294626 | BP31: 7.047765596 | BQ31: 4.027294626 | BR31: 4.027294626 | BS31: 6.04094194 | BT31: 7.047765596 | BU31: 1.006823657 | BV31: 0 | BW31: 0 | BX31: 0 | BY31: 0 | BZ31: 0 | CA31: 0 | CB31: 0 | CC31: 0 | CD31: 0 | CE31: 0 | CF31: 0 | CG31: 0 | CH31: 0 | CI31: 0 | CJ31: 0 | CK31: 0 | CL31: 0 | CM31: 0 | CN31: 0 | CO31: 0 | CP31: 0 | CQ31: 0 | CR31: 0 | CS31: 0 | CT31: 0 | CV31: 1826.732431 | CW31: 6236.551272 | CX31: 1371.038081 | CY31: 902.8787365 | CZ31: 1471.357941 | DA31: 5417.272419 | DB31: 6671.270664 | DC31: 8025.588769 | DD31: 9664.146475 | DE31: 12573.4224 | DF31: 10232.62568 | DG31: 9797.906288 | DH31: 9329.746943 | DI31: 9914.946124 | DJ31: 9062.227318 | DK31: 8560.62802 | DL31: 8426.868207 | DM31: 5684.792044 | DN31: 13008.1418 | DO31: 5835.271834 | DP31: 4581.273589 | DQ31: 4062.954314 | DR31: 3812.154665 | DS31: 2240.476865 | DT31: 4230.15408 | DU31: 4531.113659 | DV31: 4514.393682 | DW31: 3945.914478 | DX31: 4380.63387 | DY31: 5868.711787 | DZ31: 5099.592863 | EA31: 5032.712957 | EB31: 5534.312255 | EC31: 4681.593448 | ED31: 5835.271834 | EE31: 5601.192161 | EF31: 5751.671951 | EG31: 6002.4716 | EH31: 4129.83422 | EI31: 4196.714127 | EJ31: 3511.195086 | EK31: 3678.394852 | EL31: 3143.355601 | EM31: 2825.676046 | EN31: 3243.675461 | EO31: 2675.196256 | EP31: 2457.83656 | EQ31: 1989.677216 | ER31: 2240.476865 | ES31: 1605.117754 | ET31: 1872.637379 | EU31: 1605.117754 | EV31: 1504.797894 | EW31: 1287.438198 | EX31: 1404.478034 | EY31: 986.4786195 | EZ31: 752.3989471 | FA31: 234.0796724 | FB31: 66.8799064 | FC31: 66.8799064 | FD31: 117.0398362 | FE31: 66.8799064 | FF31: 66.8799064 | FG31: 100.3198596 | FH31: 117.0398362 | FI31: 16.7199766 | FJ31: 0 | FK31: 0 | FL31: 0 | FM31: 0 | FN31: 0 | FO31: 0 | FP31: 0 | FQ31: 0 | FR31: 0 | FS31: 0 | FT31: 0 | FU31: 0 | FV31: 0 | FW31: 0 | FX31: 0 | FY31: 0 | FZ31: 0 | GA31: 0 | GB31: 0 | GC31: 0 | GD31: 0 | GE31: 0 | GF31: 0 | GG31: 0 | GH31: 0
A32: 5 | B32: TRANSFORMERS | C32: pole mounted ; < = 22 kv ; > 60 kva and < = 600 kva ; single phase | D32: 21.32083748 | E32: 59.4613885 | F32: 7.711121092 | G32: 2 | H32: 7 | I32: 17.07535479 | J32: 11.02740174 | K32: 7.034252177 | L32: 8.054803483 | M32: 9.061653918 | N32: 12.04110261 | O32: 29.10960697 | P32: 15.06850435 | Q32: 12.04795305 | R32: 19.09590609 | S32: 10.06850435 | T32: 9.034252177 | U32: 12.06850435 | V32: 15.10275653 | W32: 8.047953047 | X32: 8.047953047 | Y32: 10.05480348 | Z32: 21.04795305 | AA32: 9.061653918 | AB32: 11.07535479 | AC32: 4.027401741 | AD32: 6.041102612 | AE32: 5.034252177 | AF32: 1.006850435 | AG32: 23.15756001 | AH32: 3.020551306 | AI32: 3.020551306 | AJ32: 8.054803483 | AK32: 8.054803483 | AL32: 6.041102612 | AM32: 8.041102612 | AN32: 10.06850435 | AO32: 11.07535479 | AP32: 8.054803483 | AQ32: 7.047953047 | AR32: 6.041102612 | AS32: 6.041102612 | AT32: 9.061653918 | AU32: 3.020551306 | AV32: 3.020551306 | AW32: 3.020551306 | AX32: 3.020551306 | AY32: 5.034252177 | AZ32: 8.054803483 | BA32: 4.027401741 | BB32: 3.020551306 | BC32: 1.006850435 | BD32: 4.027401741 | BE32: 2.013700871 | BF32: 4.027401741 | BG32: 6.041102612 | BH32: 2.013700871 | BI32: 2.013700871 | BJ32: 2.013700871 | BK32: 2.013700871 | BL32: 4.027401741 | BM32: 1.006850435 | BN32: 0 | BO32: 2.013700871 | BP32: 2.013700871 | BQ32: 0 | BR32: 0 | BS32: 0 | BT32: 0 | BU32: 0 | BV32: 0 | BW32: 0 | BX32: 0 | BY32: 0 | BZ32: 0 | CA32: 0 | CB32: 0 | CC32: 0 | CD32: 0 | CE32: 0 | CF32: 0 | CG32: 0 | CH32: 0 | CI32: 0 | CJ32: 0 | CK32: 0 | CL32: 0 | CM32: 0 | CN32: 0 | CO32: 0 | CP32: 0 | CQ32: 0 | CR32: 0 | CS32: 0 | CT32: 0 | CV32: 149.2458624 | CW32: 364.0608644 | CX32: 235.1134404 | CY32: 149.9761475 | CZ32: 171.735156 | DA32: 193.2020505 | DB32: 256.7263919 | DC32: 620.6411993 | DD32: 321.2731324 | DE32: 256.8724489 | DF32: 407.1407104 | DG32: 214.668945 | DH32: 192.6178224 | DI32: 257.31062 | DJ32: 322.0034175 | DK32: 171.589099 | DL32: 171.589099 | DM32: 214.376831 | DN32: 448.7599863 | DO32: 193.2020505 | DP32: 236.1358395 | DQ32: 85.867578 | DR32: 128.801367 | DS32: 107.3344725 | DT32: 21.4668945 | DU32: 493.7385735 | DV32: 64.4006835 | DW32: 64.4006835 | DX32: 171.735156 | DY32: 171.735156 | DZ32: 128.801367 | EA32: 171.443042 | EB32: 214.668945 | EC32: 236.1358395 | ED32: 171.735156 | EE32: 150.2682615 | EF32: 128.801367 | EG32: 128.801367 | EH32: 193.2020505 | EI32: 64.4006835 | EJ32: 64.4006835 | EK32: 64.4006835 | EL32: 64.4006835 | EM32: 107.3344725 | EN32: 171.735156 | EO32: 85.867578 | EP32: 64.4006835 | EQ32: 21.4668945 | ER32: 85.867578 | ES32: 42.933789 | ET32: 85.867578 | EU32: 128.801367 | EV32: 42.933789 | EW32: 42.933789 | EX32: 42.933789 | EY32: 42.933789 | EZ32: 85.867578 | FA32: 21.4668945 | FB32: 0 | FC32: 42.933789 | FD32: 42.933789 | FE32: 0 | FF32: 0 | FG32: 0 | FH32: 0 | FI32: 0 | FJ32: 0 | FK32: 0 | FL32: 0 | FM32: 0 | FN32: 0 | FO32: 0 | FP32: 0 | FQ32: 0 | FR32: 0 | FS32: 0 | FT32: 0 | FU32: 0 | FV32: 0 | FW32: 0 | FX32: 0 | FY32: 0 | FZ32: 0 | GA32: 0 | GB32: 0 | GC32: 0 | GD32: 0 | GE32: 0 | GF32: 0 | GG32: 0 | GH32: 0
A33: 5 | B33: TRANSFORMERS | C33: pole mounted ; < = 22 kv ; > 600 kva ; multiple phase | D33: 16.60665847 | E33: 53.86170301 | F33: 7.339053278 | G33: 2 | H33: 0 | I33: 0 | J33: 0 | K33: 0 | L33: 0 | M33: 0 | N33: 0 | O33: 0 | P33: 0 | Q33: 0 | R33: 0 | S33: 0 | T33: 0 | U33: 0 | V33: 0 | W33: 0 | X33: 2.01355627 | Y33: 2.01355627 | Z33: 1.006778135 | AA33: 2.01355627 | AB33: 1.006778135 | AC33: 1.006778135 | AD33: 0 | AE33: 0 | AF33: 0 | AG33: 0 | AH33: 1.006778135 | AI33: 2.01355627 | AJ33: 0 | AK33: 0 | AL33: 0 | AM33: 2.01355627 | AN33: 1.006778135 | AO33: 1.006778135 | AP33: 2.01355627 | AQ33: 0 | AR33: 0 | AS33: 0 | AT33: 0 | AU33: 0 | AV33: 0 | AW33: 0 | AX33: 1.006778135 | AY33: 0 | AZ33: 0 | BA33: 0 | BB33: 0 | BC33: 0 | BD33: 0 | BE33: 1.006778135 | BF33: 0 | BG33: 0 | BH33: 0 | BI33: 0 | BJ33: 0 | BK33: 0 | BL33: 0 | BM33: 0 | BN33: 0 | BO33: 0 | BP33: 0 | BQ33: 0 | BR33: 0 | BS33: 0 | BT33: 0 | BU33: 0 | BV33: 0 | BW33: 0 | BX33: 0 | BY33: 0 | BZ33: 0 | CA33: 0 | CB33: 0 | CC33: 0 | CD33: 0 | CE33: 0 | CF33: 0 | CG33: 0 | CH33: 0 | CI33: 0 | CJ33: 0 | CK33: 0 | CL33: 0 | CM33: 0 | CN33: 0 | CO33: 0 | CP33: 0 | CQ33: 0 | CR33: 0 | CS33: 0 | CT33: 0 | CV33: 0 | CW33: 0 | CX33: 0 | CY33: 0 | CZ33: 0 | DA33: 0 | DB33: 0 | DC33: 0 | DD33: 0 | DE33: 0 | DF33: 0 | DG33: 0 | DH33: 0 | DI33: 0 | DJ33: 0 | DK33: 0 | DL33: 33.43844129 | DM33: 33.43844129 | DN33: 16.71922064 | DO33: 33.43844129 | DP33: 16.71922064 | DQ33: 16.71922064 | DR33: 0 | DS33: 0 | DT33: 0 | DU33: 0 | DV33: 16.71922064 | DW33: 33.43844129 | DX33: 0 | DY33: 0 | DZ33: 0 | EA33: 33.43844129 | EB33: 16.71922064 | EC33: 16.71922064 | ED33: 33.43844129 | EE33: 0 | EF33: 0 | EG33: 0 | EH33: 0 | EI33: 0 | EJ33: 0 | EK33: 0 | EL33: 16.71922064 | EM33: 0 | EN33: 0 | EO33: 0 | EP33: 0 | EQ33: 0 | ER33: 0 | ES33: 16.71922064 | ET33: 0 | EU33: 0 | EV33: 0 | EW33: 0 | EX33: 0 | EY33: 0 | EZ33: 0 | FA33: 0 | FB33: 0 | FC33: 0 | FD33: 0 | FE33: 0 | FF33: 0 | FG33: 0 | FH33: 0 | FI33: 0 | FJ33: 0 | FK33: 0 | FL33: 0 | FM33: 0 | FN33: 0 | FO33: 0 | FP33: 0 | FQ33: 0 | FR33: 0 | FS33: 0 | FT33: 0 | FU33: 0 | FV33: 0 | FW33: 0 | FX33: 0 | FY33: 0 | FZ33: 0 | GA33: 0 | GB33: 0 | GC33: 0 | GD33: 0 | GE33: 0 | GF33: 0 | GG33: 0 | GH33: 0
B34: TRANSFORMERS | C34: pole mounted ; > = 22 kv & < = 33 kv ; < = 60kva | D34: 13.2009146 | E34: 45.87231211 | F34: 6.772910166 | G34: 2 | H34: 13 | I34: 15.10271936 | J34: 4.02739183 | K34: 9.061631618 | L34: 6.041087745 | M34: 30.20543873 | N34: 19.13011119 | O34: 51.34924583 | P34: 44.30131013 | Q34: 30.20543873 | R34: 32.21913464 | S34: 18.12326324 | T34: 20.13695915 | U34: 33.2259826 | V34: 26.1780469 | W34: 20.13695915 | X34: 19.13011119 | Y34: 24.16435098 | Z34: 18.12326324 | AA34: 25.17119894 | AB34: 26.1780469 | AC34: 23.15750302 | AD34: 21.14380711 | AE34: 33.2259826 | AF34: 43.29446217 | AG34: 20.13695915 | AH34: 33.2259826 | AI34: 32.21913464 | AJ34: 23.15750302 | AK34: 43.29446217 | AL34: 30.20543873 | AM34: 22.15065507 | AN34: 42.28761422 | AO34: 18.12326324 | AP34: 27.18489485 | AQ34: 26.1780469 | AR34: 26.1780469 | AS34: 19.13011119 | AT34: 23.15750302 | AU34: 11.07532753 | AV34: 16.10956732 | AW34: 13.08902345 | AX34: 15.10271936 | AY34: 20.13695915 | AZ34: 10.06847958 | BA34: 13.08902345 | BB34: 11.07532753 | BC34: 8.05478366 | BD34: 13.08902345 | BE34: 33.2259826 | BF34: 6.041087745 | BG34: 17.11641528 | BH34: 26.1780469 | BI34: 6.041087745 | BJ34: 10.06847958 | BK34: 10.06847958 | BL34: 17.11641528 | BM34: 3.020543873 | BN34: 4.02739183 | BO34: 4.02739183 | BP34: 0 | BQ34: 5.034239788 | BR34: 15.10271936 | BS34: 1.006847958 | BT34: 1.006847958 | BU34: 0 | BV34: 1.006847958 | BW34: 0 | BX34: 0 | BY34: 0 | BZ34: 0 | CA34: 0 | CB34: 0 | CC34: 0 | CD34: 0 | CE34: 0 | CF34: 0 | CG34: 0 | CH34: 0 | CI34: 0 | CJ34: 0 | CK34: 0 | CL34: 0 | CM34: 0 | CN34: 0 | CO34: 0 | CP34: 0 | CQ34: 0 | CR34: 0 | CS34: 0 | CT34: 0 | CV34: 171.6118899 | CW34: 199.3697086 | CX34: 53.16525563 | CY34: 119.6218252 | CZ34: 79.74788344 | DA34: 398.7394172 | DB34: 252.5349642 | DC34: 677.8570092 | DD34: 584.8178119 | DE34: 398.7394172 | DF34: 425.322045 | DG34: 239.2436503 | DH34: 265.8262781 | DI34: 438.6133589 | DJ34: 345.5741616 | DK34: 265.8262781 | DL34: 252.5349642 | DM34: 318.9915338 | DN34: 239.2436503 | DO34: 332.2828477 | DP34: 345.5741616 | DQ34: 305.7002199 | DR34: 279.117592 | DS34: 438.6133589 | DT34: 571.526498 | DU34: 265.8262781 | DV34: 438.6133589 | DW34: 425.322045 | DX34: 305.7002199 | DY34: 571.526498 | DZ34: 398.7394172 | EA34: 292.408906 | EB34: 558.2351841 | EC34: 239.2436503 | ED34: 358.8654755 | EE34: 345.5741616 | EF34: 345.5741616 | EG34: 252.5349642 | EH34: 305.7002199 | EI34: 146.204453 | EJ34: 212.6610225 | EK34: 172.7870808 | EL34: 199.3697086 | EM34: 265.8262781 | EN34: 132.9131391 | EO34: 172.7870808 | EP34: 146.204453 | EQ34: 106.3305113 | ER34: 172.7870808 | ES34: 438.6133589 | ET34: 79.74788344 | EU34: 225.9523364 | EV34: 345.5741616 | EW34: 79.74788344 | EX34: 132.9131391 | EY34: 132.9131391 | EZ34: 225.9523364 | FA34: 39.87394172 | FB34: 53.16525563 | FC34: 53.16525563 | FD34: 0 | FE34: 66.45656953 | FF34: 199.3697086 | FG34: 13.29131391 | FH34: 13.29131391 | FI34: 0 | FJ34: 13.29131391 | FK34: 0 | FL34: 0 | FM34: 0 | FN34: 0 | FO34: 0 | FP34: 0 | FQ34: 0 | FR34: 0 | FS34: 0 | FT34: 0 | FU34: 0 | FV34: 0 | FW34: 0 | FX34: 0 | FY34: 0 | FZ34: 0 | GA34: 0 | GB34: 0 | GC34: 0 | GD34: 0 | GE34: 0 | GF34: 0 | GG34: 0 | GH34: 0
B35: TRANSFORMERS | C35: pole mounted ; > = 22 kv & < = 33 kv ; > 60 kva and < = 600 kva | D35: 33.083136 | E35: 45.87231211 | F35: 6.772910166 | G35: 2 | H35: 5 | I35: 11.07515981 | J35: 3.020498129 | K35: 3.020498129 | L35: 4.027330838 | M35: 8.054661677 | N35: 26.17765045 | O35: 21.1434869 | P35: 31.211814 | Q35: 25.17081774 | R35: 20.13665419 | S35: 20.13665419 | T35: 16.10932335 | U35: 17.11615606 | V35: 10.0683271 | W35: 15.10249064 | X35: 17.11615606 | Y35: 17.11615606 | Z35: 14.09565793 | AA35: 17.11615606 | AB35: 9.061494386 | AC35: 6.040996257 | AD35: 14.09565793 | AE35: 12.08199251 | AF35: 22.15031961 | AG35: 26.17765045 | AH35: 16.10932335 | AI35: 13.08882522 | AJ35: 11.07515981 | AK35: 11.07515981 | AL35: 21.1434869 | AM35: 10.0683271 | AN35: 5.034163548 | AO35: 7.047828967 | AP35: 12.08199251 | AQ35: 11.07515981 | AR35: 4.027330838 | AS35: 13.08882522 | AT35: 9.061494386 | AU35: 8.054661677 | AV35: 4.027330838 | AW35: 6.040996257 | AX35: 4.027330838 | AY35: 2.013665419 | AZ35: 4.027330838 | BA35: 7.047828967 | BB35: 2.013665419 | BC35: 2.013665419 | BD35: 5.034163548 | BE35: 7.047828967 | BF35: 3.020498129 | BG35: 1.00683271 | BH35: 1.00683271 | BI35: 5.034163548 | BJ35: 6.040996257 | BK35: 11.07515981 | BL35: 4.027330838 | BM35: 2.013665419 | BN35: 1.00683271 | BO35: 0 | BP35: 1.00683271 | BQ35: 4.027330838 | BR35: 1.00683271 | BS35: 0 | BT35: 0 | BU35: 3.020498129 | BV35: 0 | BW35: 0 | BX35: 0 | BY35: 0 | BZ35: 0 | CA35: 0 | CB35: 0 | CC35: 0 | CD35: 0 | CE35: 0 | CF35: 0 | CG35: 0 | CH35: 0 | CI35: 0 | CJ35: 0 | CK35: 0 | CL35: 0 | CM35: 0 | CN35: 0 | CO35: 0 | CP35: 0 | CQ35: 0 | CR35: 0 | CS35: 0 | CT35: 0 | CV35: 165.41568 | CW35: 366.4010181 | CX35: 99.92755038 | CY35: 99.92755038 | CZ35: 133.2367338 | DA35: 266.4734677 | DB35: 866.03877 | DC35: 699.4928527 | DD35: 1032.584687 | DE35: 832.7295865 | DF35: 666.1836692 | DG35: 666.1836692 | DH35: 532.9469354 | DI35: 566.2561188 | DJ35: 333.0918346 | DK35: 499.6377519 | DL35: 566.2561188 | DM35: 566.2561188 | DN35: 466.3285684 | DO35: 566.2561188 | DP35: 299.7826511 | DQ35: 199.8551008 | DR35: 466.3285684 | DS35: 399.7102015 | DT35: 732.8020361 | DU35: 866.03877 | DV35: 532.9469354 | DW35: 433.019385 | DX35: 366.4010181 | DY35: 366.4010181 | DZ35: 699.4928527 | EA35: 333.0918346 | EB35: 166.5459173 | EC35: 233.1642842 | ED35: 399.7102015 | EE35: 366.4010181 | EF35: 133.2367338 | EG35: 433.019385 | EH35: 299.7826511 | EI35: 266.4734677 | EJ35: 133.2367338 | EK35: 199.8551008 | EL35: 133.2367338 | EM35: 66.61836692 | EN35: 133.2367338 | EO35: 233.1642842 | EP35: 66.61836692 | EQ35: 66.61836692 | ER35: 166.5459173 | ES35: 233.1642842 | ET35: 99.92755038 | EU35: 33.30918346 | EV35: 33.30918346 | EW35: 166.5459173 | EX35: 199.8551008 | EY35: 366.4010181 | EZ35: 133.2367338 | FA35: 66.61836692 | FB35: 33.30918346 | FC35: 0 | FD35: 33.30918346 | FE35: 133.2367338 | FF35: 33.30918346 | FG35: 0 | FH35: 0 | FI35: 99.92755038 | FJ35: 0 | FK35: 0 | FL35: 0 | FM35: 0 | FN35: 0 | FO35: 0 | FP35: 0 | FQ35: 0 | FR35: 0 | FS35: 0 | FT35: 0 | FU35: 0 | FV35: 0 | FW35: 0 | FX35: 0 | FY35: 0 | FZ35: 0 | GA35: 0 | GB35: 0 | GC35: 0 | GD35: 0 | GE35: 0 | GF35: 0 | GG35: 0 | GH35: 0
A36: 6 | B36: UNDERGROUND CABLES | C36: ˂ = 1 kv | D36: 313.7494033 | E36: 75.08410478 | F36: 8.665108469 | G36: 2 | H36: 5.08 | I36: 6.913598281 | J36: 0 | K36: 5.040984022 | L36: 38.0034414 | M36: 184.0336526 | N36: 189.2808441 | O36: 257.7062561 | P36: 322.2762026 | Q36: 457.2983918 | R36: 493.1859402 | S36: 450.1926286 | T36: 494.6282527 | U36: 454.9874326 | V36: 501.5415862 | W36: 471.0819564 | X36: 401.6829656 | Y36: 442.5470145 | Z36: 306.9803138 | AA36: 235.8954159 | AB36: 255.1190609 | AC36: 219.6690676 | AD36: 240.640875 | AE36: 195.5953714 | AF36: 331.8888756 | AG36: 501.18185 | AH36: 451.5706959 | AI36: 327.6992054 | AJ36: 466.1291502 | AK36: 396.8109209 | AL36: 400.5094048 | AM36: 271.5477214 | AN36: 339.9703778 | AO36: 459.850326 | AP36: 435.647697 | AQ36: 277.1681887 | AR36: 151.2221215 | AS36: 157.0059831 | AT36: 126.9191698 | AU36: 102.6215081 | AV36: 160.3039077 | AW36: 261.1826965 | AX36: 277.4418563 | AY36: 261.8242818 | AZ36: 181.3415082 | BA36: 118.9859913 | BB36: 63.16207837 | BC36: 53.14212735 | BD36: 38.44880393 | BE36: 387.097483 | BF36: 0.2115995061 | BG36: 0.9295920105 | BH36: 0 | BI36: 0.03919013361 | BJ36: 0 | BK36: 0.1287287028 | BL36: 0 | BM36: 0 | BN36: 0.4637499144 | BO36: 0 | BP36: 0 | BQ36: 0 | BR36: 0.3151029623 | BS36: 40.85685394 | BT36: 0 | BU36: 0 | BV36: 0 | BW36: 0 | BX36: 0 | BY36: 0 | BZ36: 0 | CA36: 0 | CB36: 0 | CC36: 0 | CD36: 0 | CE36: 0 | CF36: 0 | CG36: 0 | CH36: 0 | CI36: 0 | CJ36: 0 | CK36: 0 | CL36: 0 | CM36: 0 | CN36: 0 | CO36: 0 | CP36: 0 | CQ36: 0 | CR36: 0 | CS36: 0 | CT36: 0 | CV36: 1593.846969 | CW36: 2169.137335 | CX36: 0 | CY36: 1581.605729 | CZ36: 11923.55706 | DA36: 57740.44869 | DB36: 59386.75189 | DC36: 80855.18406 | DD36: 101113.9662 | DE36: 143477.0975 | DF36: 154736.7944 | DG36: 141247.6686 | DH36: 155189.3191 | DI36: 142752.0355 | DJ36: 157358.3734 | DK36: 147801.6827 | DL36: 126027.7907 | DM36: 138848.8617 | DN36: 96314.89028 | DO36: 74012.04596 | DP36: 80043.45312 | DQ36: 68921.03888 | DR36: 75500.93092 | DS36: 61367.93106 | DT36: 104129.9367 | DU36: 157245.5064 | DV36: 141680.0364 | DW36: 102815.4301 | DX36: 146247.7427 | DY36: 124499.1897 | DZ36: 125659.5867 | EA36: 85197.93555 | EB36: 106665.5032 | EC36: 144277.7654 | ED36: 136684.205 | EE36: 86961.35381 | EF36: 47445.85038 | EG36: 49260.5335 | EH36: 39820.81378 | EI36: 32197.43692 | EJ36: 50295.25537 | EK36: 81945.91517 | EL36: 87047.21684 | EM36: 82147.21219 | EN36: 56895.78998 | EO36: 37331.78378 | EP36: 19817.0644 | EQ36: 16673.31074 | ER36: 12063.28929 | ES36: 121451.6043 | ET36: 66.38921878 | EU36: 291.6589386 | EV36: 0 | EW36: 12.29588103 | EX36: 0 | EY36: 40.38855368 | EZ36: 0 | FA36: 0 | FB36: 145.5012589 | FC36: 0 | FD36: 0 | FE36: 0 | FF36: 98.86336639 | FG36: 12818.81354 | FH36: 0 | FI36: 0 | FJ36: 0 | FK36: 0 | FL36: 0 | FM36: 0 | FN36: 0 | FO36: 0 | FP36: 0 | FQ36: 0 | FR36: 0 | FS36: 0 | FT36: 0 | FU36: 0 | FV36: 0 | FW36: 0 | FX36: 0 | FY36: 0 | FZ36: 0 | GA36: 0 | GB36: 0 | GC36: 0 | GD36: 0 | GE36: 0 | GF36: 0 | GG36: 0 | GH36: 0
A37: 6 | B37: UNDERGROUND CABLES | C37: > 1 kv & < = 11 kv | D37: 831.757894 | E37: 68.94168675 | F37: 8.303113076 | G37: 2 | H37: 3.088 | I37: 3.577600556 | J37: 0 | K37: 1.544797401 | L37: 16.64689571 | M37: 66.66595668 | N37: 92.33852371 | O37: 113.4767134 | P37: 129.1121037 | Q37: 157.7477888 | R37: 164.4170953 | S37: 163.9938365 | T37: 139.3205876 | U37: 128.9449661 | V37: 122.1861507 | W37: 105.897121 | X37: 114.7067156 | Y37: 110.0408292 | Z37: 78.08010254 | AA37: 82.00431399 | AB37: 80.36075753 | AC37: 76.33542183 | AD37: 66.18723378 | AE37: 47.19807747 | AF37: 104.7439717 | AG37: 116.8073033 | AH37: 98.311785 | AI37: 89.15530882 | AJ37: 128.6709269 | AK37: 115.7170525 | AL37: 122.0235523 | AM37: 91.59538017 | AN37: 122.5369858 | AO37: 169.3435707 | AP37: 136.5836326 | AQ37: 83.00205154 | AR37: 43.38534734 | AS37: 57.96254159 | AT37: 34.95358685 | AU37: 34.69288968 | AV37: 48.05489436 | AW37: 57.64042934 | AX37: 86.46449304 | AY37: 81.95476852 | AZ37: 42.28647059 | BA37: 55.00745151 | BB37: 19.37629449 | BC37: 16.63675273 | BD37: 24.56412918 | BE37: 60.81559071 | BF37: 0.5566553301 | BG37: 0.5792382854 | BH37: 1.620713781 | BI37: 1.075167781 | BJ37: 0.4389369856 | BK37: 0.8030061139 | BL37: 0 | BM37: 0.3143083168 | BN37: 0.2660453286 | BO37: 30.18717758 | BP37: 0 | BQ37: 0 | BR37: 0 | BS37: 0 | BT37: 0 | BU37: 0 | BV37: 0 | BW37: 0 | BX37: 0 | BY37: 0 | BZ37: 0 | CA37: 0 | CB37: 0 | CC37: 0 | CD37: 0 | CE37: 0 | CF37: 0 | CG37: 0 | CH37: 0 | CI37: 0 | CJ37: 0 | CK37: 0 | CL37: 0 | CM37: 0 | CN37: 0 | CO37: 0 | CP37: 0 | CQ37: 0 | CR37: 0 | CS37: 0 | CT37: 0 | CV37: 2568.468377 | CW37: 2975.697504 | CX37: 0 | CY37: 1284.897433 | CZ37: 13846.18691 | DA37: 55449.93573 | DB37: 76803.29602 | DC37: 94385.15215 | DD37: 107390.0114 | DE37: 131207.9686 | DF37: 136755.217 | DG37: 136403.1681 | DH37: 115880.9985 | DI37: 107250.9934 | DJ37: 101629.2954 | DK37: 88080.76635 | DL37: 95408.21618 | DM37: 91527.32835 | DN37: 64943.74165 | DO37: 68207.7355 | DP37: 66840.69445 | DQ37: 63492.5897 | DR37: 55051.75418 | DS37: 39257.37352 | DT37: 87121.62535 | DU37: 97155.39661 | DV37: 81771.60325 | DW37: 74155.6319 | DX37: 107023.0592 | DY37: 96248.57185 | DZ37: 101494.0529 | EA37: 76185.18051 | EB37: 101921.1053 | EC37: 140852.8517 | ED37: 113604.5146 | EE37: 69037.61159 | EF37: 36086.10514 | EG37: 48210.80152 | EH37: 29072.92179 | EI37: 28856.08485 | EJ37: 39970.03773 | EK37: 47942.88211 | EL37: 71917.52464 | EM37: 68166.52567 | EN37: 35172.10572 | EO37: 45752.88202 | EP37: 16116.3859 | EQ37: 13837.75041 | ER37: 20431.40836 | ES37: 50583.84765 | ET37: 463.002465 | EU37: 481.7860164 | EV37: 1348.041481 | EW37: 894.279289 | EX37: 365.0893028 | EY37: 667.9066742 | EZ37: 0 | FA37: 261.4284236 | FB37: 221.2853023 | FC37: 25108.42325 | FD37: 0 | FE37: 0 | FF37: 0 | FG37: 0 | FH37: 0 | FI37: 0 | FJ37: 0 | FK37: 0 | FL37: 0 | FM37: 0 | FN37: 0 | FO37: 0 | FP37: 0 | FQ37: 0 | FR37: 0 | FS37: 0 | FT37: 0 | FU37: 0 | FV37: 0 | FW37: 0 | FX37: 0 | FY37: 0 | FZ37: 0 | GA37: 0 | GB37: 0 | GC37: 0 | GD37: 0 | GE37: 0 | GF37: 0 | GG37: 0 | GH37: 0
A38: 6 | B38: UNDERGROUND CABLES | C38: > 11 kv & < = 22 kv | D38: 831.757894 | E38: 68.94168675 | F38: 8.303113076 | G38: 2 | H38: 0.09 | I38: 0.0199704918 | J38: 0.3823223834 | K38: 0.0329714589 | L38: 0.344637227 | M38: 1.058322772 | N38: 0.6054658902 | O38: 2.93348291 | P38: 0.2636129197 | Q38: 0.7584900945 | R38: 0.7158592193 | S38: 1.034094856 | T38: 2.040232357 | U38: 1.646558022 | V38: 3.420048835 | W38: 1.198329356 | X38: 3.948918362 | Y38: 0.8617640307 | Z38: 0.7656339106 | AA38: 2.721818355 | AB38: 0.6141239511 | AC38: 0.9934178449 | AD38: 2.485071069 | AE38: 0.07136489104 | AF38: 1.904895509 | AG38: 0.2135329371 | AH38: 0.9124912308 | AI38: 0.1105398689 | AJ38: 4.45490814 | AK38: 1.391481047 | AL38: 1.22438902 | AM38: 3.49724601 | AN38: 1.022615904 | AO38: 2.086153051 | AP38: 0.321691534 | AQ38: 2.53211035 | AR38: 1.026425939 | AS38: 0.03970007884 | AT38: 0.3483251458 | AU38: 3.689371923 | AV38: 0 | AW38: 0 | AX38: 0.7786759543 | AY38: 0.09831600577 | AZ38: 0.1312874647 | BA38: 0.07759283327 | BB38: 0 | BC38: 0 | BD38: 0.6160411804 | BE38: 4.726238823 | BF38: 0 | BG38: 0 | BH38: 0 | BI38: 0.06417222834 | BJ38: 0.1180744578 | BK38: 0 | BL38: 0.1172929121 | BM38: 0.3804417891 | BN38: 0.1094774552 | BO38: 0 | BP38: 0 | BQ38: 0 | BR38: 0 | BS38: 0 | BT38: 0 | BU38: 0 | BV38: 0 | BW38: 0 | BX38: 0 | BY38: 0 | BZ38: 0 | CA38: 0 | CB38: 0 | CC38: 0 | CD38: 0 | CE38: 0 | CF38: 0 | CG38: 0 | CH38: 0 | CI38: 0 | CJ38: 0 | CK38: 0 | CL38: 0 | CM38: 0 | CN38: 0 | CO38: 0 | CP38: 0 | CQ38: 0 | CR38: 0 | CS38: 0 | CT38: 0 | CV38: 74.85821046 | CW38: 16.6106142 | CX38: 317.9996604 | CY38: 27.42427121 | CZ38: 286.6547342 | DA38: 880.2683203 | DB38: 503.6010337 | DC38: 2439.947567 | DD38: 219.2621269 | DE38: 630.8801236 | DF38: 595.4215566 | DG38: 860.1165595 | DH38: 1696.979369 | DI38: 1369.537633 | DJ38: 2844.652616 | DK38: 996.7199016 | DL38: 3284.544021 | DM38: 716.7790353 | DN38: 636.822049 | DO38: 2263.893903 | DP38: 510.8024442 | DQ38: 826.2831346 | DR38: 2066.977479 | DS38: 59.35831147 | DT38: 1584.411877 | DU38: 177.6077061 | DV38: 758.9717844 | DW38: 91.94240853 | DX38: 3705.405012 | DY38: 1157.375345 | DZ38: 1018.395233 | EA38: 2908.861976 | EB38: 850.5688503 | EC38: 1735.174268 | ED38: 267.5694728 | EE38: 2106.102772 | EF38: 853.7378772 | EG38: 33.02085397 | EH38: 289.7221897 | EI38: 3068.66422 | EJ38: 0 | EK38: 0 | EL38: 647.6698719 | EM38: 81.77511391 | EN38: 109.1993851 | EO38: 64.53845159 | EP38: 0 | EQ38: 0 | ER38: 512.3971148 | ES38: 3931.08645 | ET38: 0 | EU38: 0 | EV38: 0 | EW38: 53.37575749 | EX38: 98.20936236 | EY38: 0 | EZ38: 97.55930556 | FA38: 316.4354613 | FB38: 91.05873757 | FC38: 0 | FD38: 0 | FE38: 0 | FF38: 0 | FG38: 0 | FH38: 0 | FI38: 0 | FJ38: 0 | FK38: 0 | FL38: 0 | FM38: 0 | FN38: 0 | FO38: 0 | FP38: 0 | FQ38: 0 | FR38: 0 | FS38: 0 | FT38: 0 | FU38: 0 | FV38: 0 | FW38: 0 | FX38: 0 | FY38: 0 | FZ38: 0 | GA38: 0 | GB38: 0 | GC38: 0 | GD38: 0 | GE38: 0 | GF38: 0 | GG38: 0 | GH38: 0
A39: 6 | B39: UNDERGROUND CABLES | C39: > 22 kv & < = 33 kv | D39: 726.7914062 | E39: 65.10566196 | F39: 8.068807964 | G39: 2 | H39: 0.12 | I39: 0.03019701493 | J39: 0.07891886096 | K39: 1.73755563 | L39: 2.178801366 | M39: 8.155647715 | N39: 1.709696568 | O39: 3.09633254 | P39: 5.240423697 | Q39: 5.979381917 | R39: 3.590228723 | S39: 16.0092863 | T39: 3.566687134 | U39: 2.308427811 | V39: 0.6765233953 | W39: 2.017850519 | X39: 1.195803668 | Y39: 0.9565020485 | Z39: 0.4594567615 | AA39: 0.6856090248 | AB39: 4.111983968 | AC39: 0.6392416376 | AD39: 1.908936583 | AE39: 1.685098334 | AF39: 4.127095124 | AG39: 0.1747326753 | AH39: 0.6246588046 | AI39: 3.003984066 | AJ39: 0.4451087384 | AK39: 0.3704050945 | AL39: 0.3006210973 | AM39: 0.2782611321 | AN39: 18.52838975 | AO39: 2.479467911 | AP39: 0.1203438778 | AQ39: 0.1726080241 | AR39: 0.1427492901 | AS39: 0.0096575053 | AT39: 0.1560880092 | AU39: 0.422907838 | AV39: 0.5500119695 | AW39: 0.06604597448 | AX39: 1.244488857 | AY39: 0 | AZ39: 0 | BA39: 0 | BB39: 0 | BC39: 0.5560677934 | BD39: 9.972783082 | BE39: 0.09885876896 | BF39: 0 | BG39: 0 | BH39: 0 | BI39: 0 | BJ39: 0.1543496582 | BK39: 0 | BL39: 0.2403582643 | BM39: 0 | BN39: 0.4685026248 | BO39: 0.4226465172 | BP39: 1.788922196 | BQ39: 0.06979535889 | BR39: 2.597687137 | BS39: 1.292219656 | BT39: 15.98159199 | BU39: 0 | BV39: 0 | BW39: 0 | BX39: 0 | BY39: 0 | BZ39: 0 | CA39: 0 | CB39: 0 | CC39: 0 | CD39: 0 | CE39: 0 | CF39: 0 | CG39: 0 | CH39: 0 | CI39: 0 | CJ39: 0 | CK39: 0 | CL39: 0 | CM39: 0 | CN39: 0 | CO39: 0 | CP39: 0 | CQ39: 0 | CR39: 0 | CS39: 0 | CT39: 0 | CV39: 87.21496874 | CW39: 21.94693094 | CX39: 57.35754993 | CY39: 1262.8405 | CZ39: 1583.534109 | DA39: 5927.454671 | DB39: 1242.592773 | DC39: 2250.387881 | DD39: 3808.694907 | DE39: 4345.763391 | DF39: 2609.347382 | DG39: 11635.4117 | DH39: 2592.237557 | DI39: 1677.745495 | DJ39: 491.6913898 | DK39: 1466.556416 | DL39: 869.0998294 | DM39: 695.1774688 | DN39: 333.9292257 | DO39: 498.2947472 | DP39: 2988.554611 | DQ39: 464.5953287 | DR39: 1387.398703 | DS39: 1224.714987 | DT39: 2999.537268 | DU39: 126.9942068 | DV39: 453.996651 | DW39: 2183.269804 | DX39: 323.5012059 | DY39: 269.2072395 | DZ39: 218.4888301 | EA39: 202.2377995 | EB39: 13466.27444 | EC39: 1802.055969 | ED39: 87.46489618 | EE39: 125.4500286 | EF39: 103.7489573 | EG39: 7.018991857 | EH39: 113.4434237 | EI39: 307.3657822 | EJ39: 399.7439727 | EK39: 48.00164667 | EL39: 904.483806 | EM39: 0 | EN39: 0 | EO39: 0 | EP39: 0 | EQ39: 404.1452935 | ER39: 7248.133039 | ES39: 71.8497037 | ET39: 0 | EU39: 0 | EV39: 0 | EW39: 0 | EX39: 112.1800052 | EY39: 0 | EZ39: 174.6903209 | FA39: 0 | FB39: 340.5036814 | FC39: 307.1758566 | FD39: 1300.173279 | FE39: 50.72666703 | FF39: 1887.976687 | FG39: 939.174141 | FH39: 11615.28371 | FI39: 0 | FJ39: 0 | FK39: 0 | FL39: 0 | FM39: 0 | FN39: 0 | FO39: 0 | FP39: 0 | FQ39: 0 | FR39: 0 | FS39: 0 | FT39: 0 | FU39: 0 | FV39: 0 | FW39: 0 | FX39: 0 | FY39: 0 | FZ39: 0 | GA39: 0 | GB39: 0 | GC39: 0 | GD39: 0 | GE39: 0 | GF39: 0 | GG39: 0 | GH39: 0
A40: 6 | B40: UNDERGROUND CABLES | C40: > 33 kv & < = 66 kv | D40: 726.7914062 | E40: 65.10566196 | F40: 8.068807964 | G40: 2 | H40: 0.001 | I40: 0.07999851852 | J40: 0 | K40: 1.40328914 | L40: 0 | M40: 4.068036132 | N40: 0.05458030452 | O40: 0 | P40: 6.326178238 | Q40: 1.576549065 | R40: 0.9962967365 | S40: 0 | T40: 0 | U40: 0.04728703244 | V40: 0 | W40: 0 | X40: 0.7515448594 | Y40: 0.4063366053 | Z40: 2.856806469 | AA40: 0 | AB40: 0 | AC40: 0 | AD40: 0 | AE40: 0 | AF40: 0 | AG40: 0 | AH40: 0 | AI40: 0 | AJ40: 2.612501727 | AK40: 3.271072272 | AL40: 0.1255158214 | AM40: 0 | AN40: 4.739315253 | AO40: 0 | AP40: 1.140453128 | AQ40: 0 | AR40: 0 | AS40: 0 | AT40: 0 | AU40: 0 | AV40: 0 | AW40: 0 | AX40: 0 | AY40: 0 | AZ40: 0 | BA40: 0 | BB40: 0 | BC40: 4.873078235 | BD40: 4.916589459 | BE40: 1.083239694 | BF40: 1.983432169 | BG40: 1.824311653 | BH40: 0.6568714311 | BI40: 0.1438682376 | BJ40: 3.397124655 | BK40: 2.001506368 | BL40: 1.376262301 | BM40: 0.5673748349 | BN40: 0 | BO40: 0.4094764881 | BP40: 0 | BQ40: 0.2300460969 | BR40: 0 | BS40: 0 | BT40: 0.0800570751 | BU40: 0 | BV40: 0 | BW40: 0 | BX40: 0 | BY40: 0 | BZ40: 0 | CA40: 0 | CB40: 0 | CC40: 0 | CD40: 0 | CE40: 0 | CF40: 0 | CG40: 0 | CH40: 0 | CI40: 0 | CJ40: 0 | CK40: 0 | CL40: 0 | CM40: 0 | CN40: 0 | CO40: 0 | CP40: 0 | CQ40: 0 | CR40: 0 | CS40: 0 | CT40: 0 | CV40: 0.7267914062 | CW40: 58.14223577 | CX40: 0 | CY40: 1019.898487 | CZ40: 0 | DA40: 2956.613701 | DB40: 39.66849627 | DC40: 0 | DD40: 4597.811977 | DE40: 1145.822312 | DF40: 724.0999061 | DG40: 0 | DH40: 0 | DI40: 34.3678088 | DJ40: 0 | DK40: 0 | DL40: 546.2163452 | DM40: 295.3219528 | DN40: 2076.302391 | DO40: 0 | DP40: 0 | DQ40: 0 | DR40: 0 | DS40: 0 | DT40: 0 | DU40: 0 | DV40: 0 | DW40: 0 | DX40: 1898.743804 | DY40: 2377.387216 | DZ40: 91.2238203 | EA40: 0 | EB40: 3444.493597 | EC40: 0 | ED40: 828.8715325 | EE40: 0 | EF40: 0 | EG40: 0 | EH40: 0 | EI40: 0 | EJ40: 0 | EK40: 0 | EL40: 0 | EM40: 0 | EN40: 0 | EO40: 0 | EP40: 0 | EQ40: 3541.711383 | ER40: 3573.334967 | ES40: 787.2893003 | ET40: 1441.541455 | EU40: 1325.894032 | EV40: 477.4085111 | EW40: 104.5621987 | EX40: 2469.001005 | EY40: 1454.677628 | EZ40: 1000.255613 | FA40: 412.3631541 | FB40: 0 | FC40: 297.6039926 | FD40: 0 | FE40: 167.1955262 | FF40: 0 | FG40: 0 | FH40: 58.18479418 | FI40: 0 | FJ40: 0 | FK40: 0 | FL40: 0 | FM40: 0 | FN40: 0 | FO40: 0 | FP40: 0 | FQ40: 0 | FR40: 0 | FS40: 0 | FT40: 0 | FU40: 0 | FV40: 0 | FW40: 0 | FX40: 0 | FY40: 0 | FZ40: 0 | GA40: 0 | GB40: 0 | GC40: 0 | GD40: 0 | GE40: 0 | GF40: 0 | GG40: 0 | GH40: 0
CV41: 0 | CW41: 0 | CX41: 0 | CY41: 0 | CZ41: 0 | DA41: 0 | DB41: 0 | DC41: 0 | DD41: 0 | DE41: 0 | DF41: 0 | DG41: 0 | DH41: 0 | DI41: 0 | DJ41: 0 | DK41: 0 | DL41: 0 | DM41: 0 | DN41: 0 | DO41: 0 | DP41: 0 | DQ41: 0 | DR41: 0 | DS41: 0 | DT41: 0 | DU41: 0 | DV41: 0 | DW41: 0 | DX41: 0 | DY41: 0 | DZ41: 0 | EA41: 0 | EB41: 0 | EC41: 0 | ED41: 0 | EE41: 0 | EF41: 0 | EG41: 0 | EH41: 0 | EI41: 0 | EJ41: 0 | EK41: 0 | EL41: 0 | EM41: 0 | EN41: 0 | EO41: 0 | EP41: 0 | EQ41: 0 | ER41: 0 | ES41: 0 | ET41: 0 | EU41: 0 | EV41: 0 | EW41: 0 | EX41: 0 | EY41: 0 | EZ41: 0 | FA41: 0 | FB41: 0 | FC41: 0 | FD41: 0 | FE41: 0 | FF41: 0 | FG41: 0 | FH41: 0 | FI41: 0 | FJ41: 0 | FK41: 0 | FL41: 0 | FM41: 0 | FN41: 0 | FO41: 0 | FP41: 0 | FQ41: 0 | FR41: 0 | FS41: 0 | FT41: 0 | FU41: 0 | FV41: 0 | FW41: 0 | FX41: 0 | FY41: 0 | FZ41: 0 | GA41: 0 | GB41: 0 | GC41: 0 | GD41: 0 | GE41: 0 | GF41: 0 | GG41: 0 | GH41: 0
CV42: 0 | CW42: 0 | CX42: 0 | CY42: 0 | CZ42: 0 | DA42: 0 | DB42: 0 | DC42: 0 | DD42: 0 | DE42: 0 | DF42: 0 | DG42: 0 | DH42: 0 | DI42: 0 | DJ42: 0 | DK42: 0 | DL42: 0 | DM42: 0 | DN42: 0 | DO42: 0 | DP42: 0 | DQ42: 0 | DR42: 0 | DS42: 0 | DT42: 0 | DU42: 0 | DV42: 0 | DW42: 0 | DX42: 0 | DY42: 0 | DZ42: 0 | EA42: 0 | EB42: 0 | EC42: 0 | ED42: 0 | EE42: 0 | EF42: 0 | EG42: 0 | EH42: 0 | EI42: 0 | EJ42: 0 | EK42: 0 | EL42: 0 | EM42: 0 | EN42: 0 | EO42: 0 | EP42: 0 | EQ42: 0 | ER42: 0 | ES42: 0 | ET42: 0 | EU42: 0 | EV42: 0 | EW42: 0 | EX42: 0 | EY42: 0 | EZ42: 0 | FA42: 0 | FB42: 0 | FC42: 0 | FD42: 0 | FE42: 0 | FF42: 0 | FG42: 0 | FH42: 0 | FI42: 0 | FJ42: 0 | FK42: 0 | FL42: 0 | FM42: 0 | FN42: 0 | FO42: 0 | FP42: 0 | FQ42: 0 | FR42: 0 | FS42: 0 | FT42: 0 | FU42: 0 | FV42: 0 | FW42: 0 | FX42: 0 | FY42: 0 | FZ42: 0 | GA42: 0 | GB42: 0 | GC42: 0 | GD42: 0 | GE42: 0 | GF42: 0 | GG42: 0 | GH42: 0
CV43: 0 | CW43: 0 | CX43: 0 | CY43: 0 | CZ43: 0 | DA43: 0 | DB43: 0 | DC43: 0 | DD43: 0 | DE43: 0 | DF43: 0 | DG43: 0 | DH43: 0 | DI43: 0 | DJ43: 0 | DK43: 0 | DL43: 0 | DM43: 0 | DN43: 0 | DO43: 0 | DP43: 0 | DQ43: 0 | DR43: 0 | DS43: 0 | DT43: 0 | DU43: 0 | DV43: 0 | DW43: 0 | DX43: 0 | DY43: 0 | DZ43: 0 | EA43: 0 | EB43: 0 | EC43: 0 | ED43: 0 | EE43: 0 | EF43: 0 | EG43: 0 | EH43: 0 | EI43: 0 | EJ43: 0 | EK43: 0 | EL43: 0 | EM43: 0 | EN43: 0 | EO43: 0 | EP43: 0 | EQ43: 0 | ER43: 0 | ES43: 0 | ET43: 0 | EU43: 0 | EV43: 0 | EW43: 0 | EX43: 0 | EY43: 0 | EZ43: 0 | FA43: 0 | FB43: 0 | FC43: 0 | FD43: 0 | FE43: 0 | FF43: 0 | FG43: 0 | FH43: 0 | FI43: 0 | FJ43: 0 | FK43: 0 | FL43: 0 | FM43: 0 | FN43: 0 | FO43: 0 | FP43: 0 | FQ43: 0 | FR43: 0 | FS43: 0 | FT43: 0 | FU43: 0 | FV43: 0 | FW43: 0 | FX43: 0 | FY43: 0 | FZ43: 0 | GA43: 0 | GB43: 0 | GC43: 0 | GD43: 0 | GE43: 0 | GF43: 0 | GG43: 0 | GH43: 0
CV44: 0 | CW44: 0 | CX44: 0 | CY44: 0 | CZ44: 0 | DA44: 0 | DB44: 0 | DC44: 0 | DD44: 0 | DE44: 0 | DF44: 0 | DG44: 0 | DH44: 0 | DI44: 0 | DJ44: 0 | DK44: 0 | DL44: 0 | DM44: 0 | DN44: 0 | DO44: 0 | DP44: 0 | DQ44: 0 | DR44: 0 | DS44: 0 | DT44: 0 | DU44: 0 | DV44: 0 | DW44: 0 | DX44: 0 | DY44: 0 | DZ44: 0 | EA44: 0 | EB44: 0 | EC44: 0 | ED44: 0 | EE44: 0 | EF44: 0 | EG44: 0 | EH44: 0 | EI44: 0 | EJ44: 0 | EK44: 0 | EL44: 0 | EM44: 0 | EN44: 0 | EO44: 0 | EP44: 0 | EQ44: 0 | ER44: 0 | ES44: 0 | ET44: 0 | EU44: 0 | EV44: 0 | EW44: 0 | EX44: 0 | EY44: 0 | EZ44: 0 | FA44: 0 | FB44: 0 | FC44: 0 | FD44: 0 | FE44: 0 | FF44: 0 | FG44: 0 | FH44: 0 | FI44: 0 | FJ44: 0 | FK44: 0 | FL44: 0 | FM44: 0 | FN44: 0 | FO44: 0 | FP44: 0 | FQ44: 0 | FR44: 0 | FS44: 0 | FT44: 0 | FU44: 0 | FV44: 0 | FW44: 0 | FX44: 0 | FY44: 0 | FZ44: 0 | GA44: 0 | GB44: 0 | GC44: 0 | GD44: 0 | GE44: 0 | GF44: 0 | GG44: 0 | GH44: 0
CV45: 0 | CW45: 0 | CX45: 0 | CY45: 0 | CZ45: 0 | DA45: 0 | DB45: 0 | DC45: 0 | DD45: 0 | DE45: 0 | DF45: 0 | DG45: 0 | DH45: 0 | DI45: 0 | DJ45: 0 | DK45: 0 | DL45: 0 | DM45: 0 | DN45: 0 | DO45: 0 | DP45: 0 | DQ45: 0 | DR45: 0 | DS45: 0 | DT45: 0 | DU45: 0 | DV45: 0 | DW45: 0 | DX45: 0 | DY45: 0 | DZ45: 0 | EA45: 0 | EB45: 0 | EC45: 0 | ED45: 0 | EE45: 0 | EF45: 0 | EG45: 0 | EH45: 0 | EI45: 0 | EJ45: 0 | EK45: 0 | EL45: 0 | EM45: 0 | EN45: 0 | EO45: 0 | EP45: 0 | EQ45: 0 | ER45: 0 | ES45: 0 | ET45: 0 | EU45: 0 | EV45: 0 | EW45: 0 | EX45: 0 | EY45: 0 | EZ45: 0 | FA45: 0 | FB45: 0 | FC45: 0 | FD45: 0 | FE45: 0 | FF45: 0 | FG45: 0 | FH45: 0 | FI45: 0 | FJ45: 0 | FK45: 0 | FL45: 0 | FM45: 0 | FN45: 0 | FO45: 0 | FP45: 0 | FQ45: 0 | FR45: 0 | FS45: 0 | FT45: 0 | FU45: 0 | FV45: 0 | FW45: 0 | FX45: 0 | FY45: 0 | FZ45: 0 | GA45: 0 | GB45: 0 | GC45: 0 | GD45: 0 | GE45: 0 | GF45: 0 | GG45: 0 | GH45: 0
CV46: 0 | CW46: 0 | CX46: 0 | CY46: 0 | CZ46: 0 | DA46: 0 | DB46: 0 | DC46: 0 | DD46: 0 | DE46: 0 | DF46: 0 | DG46: 0 | DH46: 0 | DI46: 0 | DJ46: 0 | DK46: 0 | DL46: 0 | DM46: 0 | DN46: 0 | DO46: 0 | DP46: 0 | DQ46: 0 | DR46: 0 | DS46: 0 | DT46: 0 | DU46: 0 | DV46: 0 | DW46: 0 | DX46: 0 | DY46: 0 | DZ46: 0 | EA46: 0 | EB46: 0 | EC46: 0 | ED46: 0 | EE46: 0 | EF46: 0 | EG46: 0 | EH46: 0 | EI46: 0 | EJ46: 0 | EK46: 0 | EL46: 0 | EM46: 0 | EN46: 0 | EO46: 0 | EP46: 0 | EQ46: 0 | ER46: 0 | ES46: 0 | ET46: 0 | EU46: 0 | EV46: 0 | EW46: 0 | EX46: 0 | EY46: 0 | EZ46: 0 | FA46: 0 | FB46: 0 | FC46: 0 | FD46: 0 | FE46: 0 | FF46: 0 | FG46: 0 | FH46: 0 | FI46: 0 | FJ46: 0 | FK46: 0 | FL46: 0 | FM46: 0 | FN46: 0 | FO46: 0 | FP46: 0 | FQ46: 0 | FR46: 0 | FS46: 0 | FT46: 0 | FU46: 0 | FV46: 0 | FW46: 0 | FX46: 0 | FY46: 0 | FZ46: 0 | GA46: 0 | GB46: 0 | GC46: 0 | GD46: 0 | GE46: 0 | GF46: 0 | GG46: 0 | GH46: 0
CV47: 0 | CW47: 0 | CX47: 0 | CY47: 0 | CZ47: 0 | DA47: 0 | DB47: 0 | DC47: 0 | DD47: 0 | DE47: 0 | DF47: 0 | DG47: 0 | DH47: 0 | DI47: 0 | DJ47: 0 | DK47: 0 | DL47: 0 | DM47: 0 | DN47: 0 | DO47: 0 | DP47: 0 | DQ47: 0 | DR47: 0 | DS47: 0 | DT47: 0 | DU47: 0 | DV47: 0 | DW47: 0 | DX47: 0 | DY47: 0 | DZ47: 0 | EA47: 0 | EB47: 0 | EC47: 0 | ED47: 0 | EE47: 0 | EF47: 0 | EG47: 0 | EH47: 0 | EI47: 0 | EJ47: 0 | EK47: 0 | EL47: 0 | EM47: 0 | EN47: 0 | EO47: 0 | EP47: 0 | EQ47: 0 | ER47: 0 | ES47: 0 | ET47: 0 | EU47: 0 | EV47: 0 | EW47: 0 | EX47: 0 | EY47: 0 | EZ47: 0 | FA47: 0 | FB47: 0 | FC47: 0 | FD47: 0 | FE47: 0 | FF47: 0 | FG47: 0 | FH47: 0 | FI47: 0 | FJ47: 0 | FK47: 0 | FL47: 0 | FM47: 0 | FN47: 0 | FO47: 0 | FP47: 0 | FQ47: 0 | FR47: 0 | FS47: 0 | FT47: 0 | FU47: 0 | FV47: 0 | FW47: 0 | FX47: 0 | FY47: 0 | FZ47: 0 | GA47: 0 | GB47: 0 | GC47: 0 | GD47: 0 | GE47: 0 | GF47: 0 | GG47: 0 | GH47: 0
CV48: 0 | CW48: 0 | CX48: 0 | CY48: 0 | CZ48: 0 | DA48: 0 | DB48: 0 | DC48: 0 | DD48: 0 | DE48: 0 | DF48: 0 | DG48: 0 | DH48: 0 | DI48: 0 | DJ48: 0 | DK48: 0 | DL48: 0 | DM48: 0 | DN48: 0 | DO48: 0 | DP48: 0 | DQ48: 0 | DR48: 0 | DS48: 0 | DT48: 0 | DU48: 0 | DV48: 0 | DW48: 0 | DX48: 0 | DY48: 0 | DZ48: 0 | EA48: 0 | EB48: 0 | EC48: 0 | ED48: 0 | EE48: 0 | EF48: 0 | EG48: 0 | EH48: 0 | EI48: 0 | EJ48: 0 | EK48: 0 | EL48: 0 | EM48: 0 | EN48: 0 | EO48: 0 | EP48: 0 | EQ48: 0 | ER48: 0 | ES48: 0 | ET48: 0 | EU48: 0 | EV48: 0 | EW48: 0 | EX48: 0 | EY48: 0 | EZ48: 0 | FA48: 0 | FB48: 0 | FC48: 0 | FD48: 0 | FE48: 0 | FF48: 0 | FG48: 0 | FH48: 0 | FI48: 0 | FJ48: 0 | FK48: 0 | FL48: 0 | FM48: 0 | FN48: 0 | FO48: 0 | FP48: 0 | FQ48: 0 | FR48: 0 | FS48: 0 | FT48: 0 | FU48: 0 | FV48: 0 | FW48: 0 | FX48: 0 | FY48: 0 | FZ48: 0 | GA48: 0 | GB48: 0 | GC48: 0 | GD48: 0 | GE48: 0 | GF48: 0 | GG48: 0 | GH48: 0
CV49: 0 | CW49: 0 | CX49: 0 | CY49: 0 | CZ49: 0 | DA49: 0 | DB49: 0 | DC49: 0 | DD49: 0 | DE49: 0 | DF49: 0 | DG49: 0 | DH49: 0 | DI49: 0 | DJ49: 0 | DK49: 0 | DL49: 0 | DM49: 0 | DN49: 0 | DO49: 0 | DP49: 0 | DQ49: 0 | DR49: 0 | DS49: 0 | DT49: 0 | DU49: 0 | DV49: 0 | DW49: 0 | DX49: 0 | DY49: 0 | DZ49: 0 | EA49: 0 | EB49: 0 | EC49: 0 | ED49: 0 | EE49: 0 | EF49: 0 | EG49: 0 | EH49: 0 | EI49: 0 | EJ49: 0 | EK49: 0 | EL49: 0 | EM49: 0 | EN49: 0 | EO49: 0 | EP49: 0 | EQ49: 0 | ER49: 0 | ES49: 0 | ET49: 0 | EU49: 0 | EV49: 0 | EW49: 0 | EX49: 0 | EY49: 0 | EZ49: 0 | FA49: 0 | FB49: 0 | FC49: 0 | FD49: 0 | FE49: 0 | FF49: 0 | FG49: 0 | FH49: 0 | FI49: 0 | FJ49: 0 | FK49: 0 | FL49: 0 | FM49: 0 | FN49: 0 | FO49: 0 | FP49: 0 | FQ49: 0 | FR49: 0 | FS49: 0 | FT49: 0 | FU49: 0 | FV49: 0 | FW49: 0 | FX49: 0 | FY49: 0 | FZ49: 0 | GA49: 0 | GB49: 0 | GC49: 0 | GD49: 0 | GE49: 0 | GF49: 0 | GG49: 0 | GH49: 0
CV50: 0 | CW50: 0 | CX50: 0 | CY50: 0 | CZ50: 0 | DA50: 0 | DB50: 0 | DC50: 0 | DD50: 0 | DE50: 0 | DF50: 0 | DG50: 0 | DH50: 0 | DI50: 0 | DJ50: 0 | DK50: 0 | DL50: 0 | DM50: 0 | DN50: 0 | DO50: 0 | DP50: 0 | DQ50: 0 | DR50: 0 | DS50: 0 | DT50: 0 | DU50: 0 | DV50: 0 | DW50: 0 | DX50: 0 | DY50: 0 | DZ50: 0 | EA50: 0 | EB50: 0 | EC50: 0 | ED50: 0 | EE50: 0 | EF50: 0 | EG50: 0 | EH50: 0 | EI50: 0 | EJ50: 0 | EK50: 0 | EL50: 0 | EM50: 0 | EN50: 0 | EO50: 0 | EP50: 0 | EQ50: 0 | ER50: 0 | ES50: 0 | ET50: 0 | EU50: 0 | EV50: 0 | EW50: 0 | EX50: 0 | EY50: 0 | EZ50: 0 | FA50: 0 | FB50: 0 | FC50: 0 | FD50: 0 | FE50: 0 | FF50: 0 | FG50: 0 | FH50: 0 | FI50: 0 | FJ50: 0 | FK50: 0 | FL50: 0 | FM50: 0 | FN50: 0 | FO50: 0 | FP50: 0 | FQ50: 0 | FR50: 0 | FS50: 0 | FT50: 0 | FU50: 0 | FV50: 0 | FW50: 0 | FX50: 0 | FY50: 0 | FZ50: 0 | GA50: 0 | GB50: 0 | GC50: 0 | GD50: 0 | GE50: 0 | GF50: 0 | GG50: 0 | GH50: 0
CV51: 0 | CW51: 0 | CX51: 0 | CY51: 0 | CZ51: 0 | DA51: 0 | DB51: 0 | DC51: 0 | DD51: 0 | DE51: 0 | DF51: 0 | DG51: 0 | DH51: 0 | DI51: 0 | DJ51: 0 | DK51: 0 | DL51: 0 | DM51: 0 | DN51: 0 | DO51: 0 | DP51: 0 | DQ51: 0 | DR51: 0 | DS51: 0 | DT51: 0 | DU51: 0 | DV51: 0 | DW51: 0 | DX51: 0 | DY51: 0 | DZ51: 0 | EA51: 0 | EB51: 0 | EC51: 0 | ED51: 0 | EE51: 0 | EF51: 0 | EG51: 0 | EH51: 0 | EI51: 0 | EJ51: 0 | EK51: 0 | EL51: 0 | EM51: 0 | EN51: 0 | EO51: 0 | EP51: 0 | EQ51: 0 | ER51: 0 | ES51: 0 | ET51: 0 | EU51: 0 | EV51: 0 | EW51: 0 | EX51: 0 | EY51: 0 | EZ51: 0 | FA51: 0 | FB51: 0 | FC51: 0 | FD51: 0 | FE51: 0 | FF51: 0 | FG51: 0 | FH51: 0 | FI51: 0 | FJ51: 0 | FK51: 0 | FL51: 0 | FM51: 0 | FN51: 0 | FO51: 0 | FP51: 0 | FQ51: 0 | FR51: 0 | FS51: 0 | FT51: 0 | FU51: 0 | FV51: 0 | FW51: 0 | FX51: 0 | FY51: 0 | FZ51: 0 | GA51: 0 | GB51: 0 | GC51: 0 | GD51: 0 | GE51: 0 | GF51: 0 | GG51: 0 | GH51: 0
CV52: 0 | CW52: 0 | CX52: 0 | CY52: 0 | CZ52: 0 | DA52: 0 | DB52: 0 | DC52: 0 | DD52: 0 | DE52: 0 | DF52: 0 | DG52: 0 | DH52: 0 | DI52: 0 | DJ52: 0 | DK52: 0 | DL52: 0 | DM52: 0 | DN52: 0 | DO52: 0 | DP52: 0 | DQ52: 0 | DR52: 0 | DS52: 0 | DT52: 0 | DU52: 0 | DV52: 0 | DW52: 0 | DX52: 0 | DY52: 0 | DZ52: 0 | EA52: 0 | EB52: 0 | EC52: 0 | ED52: 0 | EE52: 0 | EF52: 0 | EG52: 0 | EH52: 0 | EI52: 0 | EJ52: 0 | EK52: 0 | EL52: 0 | EM52: 0 | EN52: 0 | EO52: 0 | EP52: 0 | EQ52: 0 | ER52: 0 | ES52: 0 | ET52: 0 | EU52: 0 | EV52: 0 | EW52: 0 | EX52: 0 | EY52: 0 | EZ52: 0 | FA52: 0 | FB52: 0 | FC52: 0 | FD52: 0 | FE52: 0 | FF52: 0 | FG52: 0 | FH52: 0 | FI52: 0 | FJ52: 0 | FK52: 0 | FL52: 0 | FM52: 0 | FN52: 0 | FO52: 0 | FP52: 0 | FQ52: 0 | FR52: 0 | FS52: 0 | FT52: 0 | FU52: 0 | FV52: 0 | FW52: 0 | FX52: 0 | FY52: 0 | FZ52: 0 | GA52: 0 | GB52: 0 | GC52: 0 | GD52: 0 | GE52: 0 | GF52: 0 | GG52: 0 | GH52: 0
CV53: 0 | CW53: 0 | CX53: 0 | CY53: 0 | CZ53: 0 | DA53: 0 | DB53: 0 | DC53: 0 | DD53: 0 | DE53: 0 | DF53: 0 | DG53: 0 | DH53: 0 | DI53: 0 | DJ53: 0 | DK53: 0 | DL53: 0 | DM53: 0 | DN53: 0 | DO53: 0 | DP53: 0 | DQ53: 0 | DR53: 0 | DS53: 0 | DT53: 0 | DU53: 0 | DV53: 0 | DW53: 0 | DX53: 0 | DY53: 0 | DZ53: 0 | EA53: 0 | EB53: 0 | EC53: 0 | ED53: 0 | EE53: 0 | EF53: 0 | EG53: 0 | EH53: 0 | EI53: 0 | EJ53: 0 | EK53: 0 | EL53: 0 | EM53: 0 | EN53: 0 | EO53: 0 | EP53: 0 | EQ53: 0 | ER53: 0 | ES53: 0 | ET53: 0 | EU53: 0 | EV53: 0 | EW53: 0 | EX53: 0 | EY53: 0 | EZ53: 0 | FA53: 0 | FB53: 0 | FC53: 0 | FD53: 0 | FE53: 0 | FF53: 0 | FG53: 0 | FH53: 0 | FI53: 0 | FJ53: 0 | FK53: 0 | FL53: 0 | FM53: 0 | FN53: 0 | FO53: 0 | FP53: 0 | FQ53: 0 | FR53: 0 | FS53: 0 | FT53: 0 | FU53: 0 | FV53: 0 | FW53: 0 | FX53: 0 | FY53: 0 | FZ53: 0 | GA53: 0 | GB53: 0 | GC53: 0 | GD53: 0 | GE53: 0 | GF53: 0 | GG53: 0 | GH53: 0
CV54: 0 | CW54: 0 | CX54: 0 | CY54: 0 | CZ54: 0 | DA54: 0 | DB54: 0 | DC54: 0 | DD54: 0 | DE54: 0 | DF54: 0 | DG54: 0 | DH54: 0 | DI54: 0 | DJ54: 0 | DK54: 0 | DL54: 0 | DM54: 0 | DN54: 0 | DO54: 0 | DP54: 0 | DQ54: 0 | DR54: 0 | DS54: 0 | DT54: 0 | DU54: 0 | DV54: 0 | DW54: 0 | DX54: 0 | DY54: 0 | DZ54: 0 | EA54: 0 | EB54: 0 | EC54: 0 | ED54: 0 | EE54: 0 | EF54: 0 | EG54: 0 | EH54: 0 | EI54: 0 | EJ54: 0 | EK54: 0 | EL54: 0 | EM54: 0 | EN54: 0 | EO54: 0 | EP54: 0 | EQ54: 0 | ER54: 0 | ES54: 0 | ET54: 0 | EU54: 0 | EV54: 0 | EW54: 0 | EX54: 0 | EY54: 0 | EZ54: 0 | FA54: 0 | FB54: 0 | FC54: 0 | FD54: 0 | FE54: 0 | FF54: 0 | FG54: 0 | FH54: 0 | FI54: 0 | FJ54: 0 | FK54: 0 | FL54: 0 | FM54: 0 | FN54: 0 | FO54: 0 | FP54: 0 | FQ54: 0 | FR54: 0 | FS54: 0 | FT54: 0 | FU54: 0 | FV54: 0 | FW54: 0 | FX54: 0 | FY54: 0 | FZ54: 0 | GA54: 0 | GB54: 0 | GC54: 0 | GD54: 0 | GE54: 0 | GF54: 0 | GG54: 0 | GH54: 0
CV55: 0 | CW55: 0 | CX55: 0 | CY55: 0 | CZ55: 0 | DA55: 0 | DB55: 0 | DC55: 0 | DD55: 0 | DE55: 0 | DF55: 0 | DG55: 0 | DH55: 0 | DI55: 0 | DJ55: 0 | DK55: 0 | DL55: 0 | DM55: 0 | DN55: 0 | DO55: 0 | DP55: 0 | DQ55: 0 | DR55: 0 | DS55: 0 | DT55: 0 | DU55: 0 | DV55: 0 | DW55: 0 | DX55: 0 | DY55: 0 | DZ55: 0 | EA55: 0 | EB55: 0 | EC55: 0 | ED55: 0 | EE55: 0 | EF55: 0 | EG55: 0 | EH55: 0 | EI55: 0 | EJ55: 0 | EK55: 0 | EL55: 0 | EM55: 0 | EN55: 0 | EO55: 0 | EP55: 0 | EQ55: 0 | ER55: 0 | ES55: 0 | ET55: 0 | EU55: 0 | EV55: 0 | EW55: 0 | EX55: 0 | EY55: 0 | EZ55: 0 | FA55: 0 | FB55: 0 | FC55: 0 | FD55: 0 | FE55: 0 | FF55: 0 | FG55: 0 | FH55: 0 | FI55: 0 | FJ55: 0 | FK55: 0 | FL55: 0 | FM55: 0 | FN55: 0 | FO55: 0 | FP55: 0 | FQ55: 0 | FR55: 0 | FS55: 0 | FT55: 0 | FU55: 0 | FV55: 0 | FW55: 0 | FX55: 0 | FY55: 0 | FZ55: 0 | GA55: 0 | GB55: 0 | GC55: 0 | GD55: 0 | GE55: 0 | GF55: 0 | GG55: 0 | GH55: 0
CV56: 0 | CW56: 0 | CX56: 0 | CY56: 0 | CZ56: 0 | DA56: 0 | DB56: 0 | DC56: 0 | DD56: 0 | DE56: 0 | DF56: 0 | DG56: 0 | DH56: 0 | DI56: 0 | DJ56: 0 | DK56: 0 | DL56: 0 | DM56: 0 | DN56: 0 | DO56: 0 | DP56: 0 | DQ56: 0 | DR56: 0 | DS56: 0 | DT56: 0 | DU56: 0 | DV56: 0 | DW56: 0 | DX56: 0 | DY56: 0 | DZ56: 0 | EA56: 0 | EB56: 0 | EC56: 0 | ED56: 0 | EE56: 0 | EF56: 0 | EG56: 0 | EH56: 0 | EI56: 0 | EJ56: 0 | EK56: 0 | EL56: 0 | EM56: 0 | EN56: 0 | EO56: 0 | EP56: 0 | EQ56: 0 | ER56: 0 | ES56: 0 | ET56: 0 | EU56: 0 | EV56: 0 | EW56: 0 | EX56: 0 | EY56: 0 | EZ56: 0 | FA56: 0 | FB56: 0 | FC56: 0 | FD56: 0 | FE56: 0 | FF56: 0 | FG56: 0 | FH56: 0 | FI56: 0 | FJ56: 0 | FK56: 0 | FL56: 0 | FM56: 0 | FN56: 0 | FO56: 0 | FP56: 0 | FQ56: 0 | FR56: 0 | FS56: 0 | FT56: 0 | FU56: 0 | FV56: 0 | FW56: 0 | FX56: 0 | FY56: 0 | FZ56: 0 | GA56: 0 | GB56: 0 | GC56: 0 | GD56: 0 | GE56: 0 | GF56: 0 | GG56: 0 | GH56: 0
CV57: 0 | CW57: 0 | CX57: 0 | CY57: 0 | CZ57: 0 | DA57: 0 | DB57: 0 | DC57: 0 | DD57: 0 | DE57: 0 | DF57: 0 | DG57: 0 | DH57: 0 | DI57: 0 | DJ57: 0 | DK57: 0 | DL57: 0 | DM57: 0 | DN57: 0 | DO57: 0 | DP57: 0 | DQ57: 0 | DR57: 0 | DS57: 0 | DT57: 0 | DU57: 0 | DV57: 0 | DW57: 0 | DX57: 0 | DY57: 0 | DZ57: 0 | EA57: 0 | EB57: 0 | EC57: 0 | ED57: 0 | EE57: 0 | EF57: 0 | EG57: 0 | EH57: 0 | EI57: 0 | EJ57: 0 | EK57: 0 | EL57: 0 | EM57: 0 | EN57: 0 | EO57: 0 | EP57: 0 | EQ57: 0 | ER57: 0 | ES57: 0 | ET57: 0 | EU57: 0 | EV57: 0 | EW57: 0 | EX57: 0 | EY57: 0 | EZ57: 0 | FA57: 0 | FB57: 0 | FC57: 0 | FD57: 0 | FE57: 0 | FF57: 0 | FG57: 0 | FH57: 0 | FI57: 0 | FJ57: 0 | FK57: 0 | FL57: 0 | FM57: 0 | FN57: 0 | FO57: 0 | FP57: 0 | FQ57: 0 | FR57: 0 | FS57: 0 | FT57: 0 | FU57: 0 | FV57: 0 | FW57: 0 | FX57: 0 | FY57: 0 | FZ57: 0 | GA57: 0 | GB57: 0 | GC57: 0 | GD57: 0 | GE57: 0 | GF57: 0 | GG57: 0 | GH57: 0
CV58: 0 | CW58: 0 | CX58: 0 | CY58: 0 | CZ58: 0 | DA58: 0 | DB58: 0 | DC58: 0 | DD58: 0 | DE58: 0 | DF58: 0 | DG58: 0 | DH58: 0 | DI58: 0 | DJ58: 0 | DK58: 0 | DL58: 0 | DM58: 0 | DN58: 0 | DO58: 0 | DP58: 0 | DQ58: 0 | DR58: 0 | DS58: 0 | DT58: 0 | DU58: 0 | DV58: 0 | DW58: 0 | DX58: 0 | DY58: 0 | DZ58: 0 | EA58: 0 | EB58: 0 | EC58: 0 | ED58: 0 | EE58: 0 | EF58: 0 | EG58: 0 | EH58: 0 | EI58: 0 | EJ58: 0 | EK58: 0 | EL58: 0 | EM58: 0 | EN58: 0 | EO58: 0 | EP58: 0 | EQ58: 0 | ER58: 0 | ES58: 0 | ET58: 0 | EU58: 0 | EV58: 0 | EW58: 0 | EX58: 0 | EY58: 0 | EZ58: 0 | FA58: 0 | FB58: 0 | FC58: 0 | FD58: 0 | FE58: 0 | FF58: 0 | FG58: 0 | FH58: 0 | FI58: 0 | FJ58: 0 | FK58: 0 | FL58: 0 | FM58: 0 | FN58: 0 | FO58: 0 | FP58: 0 | FQ58: 0 | FR58: 0 | FS58: 0 | FT58: 0 | FU58: 0 | FV58: 0 | FW58: 0 | FX58: 0 | FY58: 0 | FZ58: 0 | GA58: 0 | GB58: 0 | GC58: 0 | GD58: 0 | GE58: 0 | GF58: 0 | GG58: 0 | GH58: 0
CV59: 0 | CW59: 0 | CX59: 0 | CY59: 0 | CZ59: 0 | DA59: 0 | DB59: 0 | DC59: 0 | DD59: 0 | DE59: 0 | DF59: 0 | DG59: 0 | DH59: 0 | DI59: 0 | DJ59: 0 | DK59: 0 | DL59: 0 | DM59: 0 | DN59: 0 | DO59: 0 | DP59: 0 | DQ59: 0 | DR59: 0 | DS59: 0 | DT59: 0 | DU59: 0 | DV59: 0 | DW59: 0 | DX59: 0 | DY59: 0 | DZ59: 0 | EA59: 0 | EB59: 0 | EC59: 0 | ED59: 0 | EE59: 0 | EF59: 0 | EG59: 0 | EH59: 0 | EI59: 0 | EJ59: 0 | EK59: 0 | EL59: 0 | EM59: 0 | EN59: 0 | EO59: 0 | EP59: 0 | EQ59: 0 | ER59: 0 | ES59: 0 | ET59: 0 | EU59: 0 | EV59: 0 | EW59: 0 | EX59: 0 | EY59: 0 | EZ59: 0 | FA59: 0 | FB59: 0 | FC59: 0 | FD59: 0 | FE59: 0 | FF59: 0 | FG59: 0 | FH59: 0 | FI59: 0 | FJ59: 0 | FK59: 0 | FL59: 0 | FM59: 0 | FN59: 0 | FO59: 0 | FP59: 0 | FQ59: 0 | FR59: 0 | FS59: 0 | FT59: 0 | FU59: 0 | FV59: 0 | FW59: 0 | FX59: 0 | FY59: 0 | FZ59: 0 | GA59: 0 | GB59: 0 | GC59: 0 | GD59: 0 | GE59: 0 | GF59: 0 | GG59: 0 | GH59: 0
CV60: 0 | CW60: 0 | CX60: 0 | CY60: 0 | CZ60: 0 | DA60: 0 | DB60: 0 | DC60: 0 | DD60: 0 | DE60: 0 | DF60: 0 | DG60: 0 | DH60: 0 | DI60: 0 | DJ60: 0 | DK60: 0 | DL60: 0 | DM60: 0 | DN60: 0 | DO60: 0 | DP60: 0 | DQ60: 0 | DR60: 0 | DS60: 0 | DT60: 0 | DU60: 0 | DV60: 0 | DW60: 0 | DX60: 0 | DY60: 0 | DZ60: 0 | EA60: 0 | EB60: 0 | EC60: 0 | ED60: 0 | EE60: 0 | EF60: 0 | EG60: 0 | EH60: 0 | EI60: 0 | EJ60: 0 | EK60: 0 | EL60: 0 | EM60: 0 | EN60: 0 | EO60: 0 | EP60: 0 | EQ60: 0 | ER60: 0 | ES60: 0 | ET60: 0 | EU60: 0 | EV60: 0 | EW60: 0 | EX60: 0 | EY60: 0 | EZ60: 0 | FA60: 0 | FB60: 0 | FC60: 0 | FD60: 0 | FE60: 0 | FF60: 0 | FG60: 0 | FH60: 0 | FI60: 0 | FJ60: 0 | FK60: 0 | FL60: 0 | FM60: 0 | FN60: 0 | FO60: 0 | FP60: 0 | FQ60: 0 | FR60: 0 | FS60: 0 | FT60: 0 | FU60: 0 | FV60: 0 | FW60: 0 | FX60: 0 | FY60: 0 | FZ60: 0 | GA60: 0 | GB60: 0 | GC60: 0 | GD60: 0 | GE60: 0 | GF60: 0 | GG60: 0 | GH60: 0
CV61: 0 | CW61: 0 | CX61: 0 | CY61: 0 | CZ61: 0 | DA61: 0 | DB61: 0 | DC61: 0 | DD61: 0 | DE61: 0 | DF61: 0 | DG61: 0 | DH61: 0 | DI61: 0 | DJ61: 0 | DK61: 0 | DL61: 0 | DM61: 0 | DN61: 0 | DO61: 0 | DP61: 0 | DQ61: 0 | DR61: 0 | DS61: 0 | DT61: 0 | DU61: 0 | DV61: 0 | DW61: 0 | DX61: 0 | DY61: 0 | DZ61: 0 | EA61: 0 | EB61: 0 | EC61: 0 | ED61: 0 | EE61: 0 | EF61: 0 | EG61: 0 | EH61: 0 | EI61: 0 | EJ61: 0 | EK61: 0 | EL61: 0 | EM61: 0 | EN61: 0 | EO61: 0 | EP61: 0 | EQ61: 0 | ER61: 0 | ES61: 0 | ET61: 0 | EU61: 0 | EV61: 0 | EW61: 0 | EX61: 0 | EY61: 0 | EZ61: 0 | FA61: 0 | FB61: 0 | FC61: 0 | FD61: 0 | FE61: 0 | FF61: 0 | FG61: 0 | FH61: 0 | FI61: 0 | FJ61: 0 | FK61: 0 | FL61: 0 | FM61: 0 | FN61: 0 | FO61: 0 | FP61: 0 | FQ61: 0 | FR61: 0 | FS61: 0 | FT61: 0 | FU61: 0 | FV61: 0 | FW61: 0 | FX61: 0 | FY61: 0 | FZ61: 0 | GA61: 0 | GB61: 0 | GC61: 0 | GD61: 0 | GE61: 0 | GF61: 0 | GG61: 0 | GH61: 0
CV62: 0 | CW62: 0 | CX62: 0 | CY62: 0 | CZ62: 0 | DA62: 0 | DB62: 0 | DC62: 0 | DD62: 0 | DE62: 0 | DF62: 0 | DG62: 0 | DH62: 0 | DI62: 0 | DJ62: 0 | DK62: 0 | DL62: 0 | DM62: 0 | DN62: 0 | DO62: 0 | DP62: 0 | DQ62: 0 | DR62: 0 | DS62: 0 | DT62: 0 | DU62: 0 | DV62: 0 | DW62: 0 | DX62: 0 | DY62: 0 | DZ62: 0 | EA62: 0 | EB62: 0 | EC62: 0 | ED62: 0 | EE62: 0 | EF62: 0 | EG62: 0 | EH62: 0 | EI62: 0 | EJ62: 0 | EK62: 0 | EL62: 0 | EM62: 0 | EN62: 0 | EO62: 0 | EP62: 0 | EQ62: 0 | ER62: 0 | ES62: 0 | ET62: 0 | EU62: 0 | EV62: 0 | EW62: 0 | EX62: 0 | EY62: 0 | EZ62: 0 | FA62: 0 | FB62: 0 | FC62: 0 | FD62: 0 | FE62: 0 | FF62: 0 | FG62: 0 | FH62: 0 | FI62: 0 | FJ62: 0 | FK62: 0 | FL62: 0 | FM62: 0 | FN62: 0 | FO62: 0 | FP62: 0 | FQ62: 0 | FR62: 0 | FS62: 0 | FT62: 0 | FU62: 0 | FV62: 0 | FW62: 0 | FX62: 0 | FY62: 0 | FZ62: 0 | GA62: 0 | GB62: 0 | GC62: 0 | GD62: 0 | GE62: 0 | GF62: 0 | GG62: 0 | GH62: 0
CV63: 0 | CW63: 0 | CX63: 0 | CY63: 0 | CZ63: 0 | DA63: 0 | DB63: 0 | DC63: 0 | DD63: 0 | DE63: 0 | DF63: 0 | DG63: 0 | DH63: 0 | DI63: 0 | DJ63: 0 | DK63: 0 | DL63: 0 | DM63: 0 | DN63: 0 | DO63: 0 | DP63: 0 | DQ63: 0 | DR63: 0 | DS63: 0 | DT63: 0 | DU63: 0 | DV63: 0 | DW63: 0 | DX63: 0 | DY63: 0 | DZ63: 0 | EA63: 0 | EB63: 0 | EC63: 0 | ED63: 0 | EE63: 0 | EF63: 0 | EG63: 0 | EH63: 0 | EI63: 0 | EJ63: 0 | EK63: 0 | EL63: 0 | EM63: 0 | EN63: 0 | EO63: 0 | EP63: 0 | EQ63: 0 | ER63: 0 | ES63: 0 | ET63: 0 | EU63: 0 | EV63: 0 | EW63: 0 | EX63: 0 | EY63: 0 | EZ63: 0 | FA63: 0 | FB63: 0 | FC63: 0 | FD63: 0 | FE63: 0 | FF63: 0 | FG63: 0 | FH63: 0 | FI63: 0 | FJ63: 0 | FK63: 0 | FL63: 0 | FM63: 0 | FN63: 0 | FO63: 0 | FP63: 0 | FQ63: 0 | FR63: 0 | FS63: 0 | FT63: 0 | FU63: 0 | FV63: 0 | FW63: 0 | FX63: 0 | FY63: 0 | FZ63: 0 | GA63: 0 | GB63: 0 | GC63: 0 | GD63: 0 | GE63: 0 | GF63: 0 | GG63: 0 | GH63: 0
CV64: 0 | CW64: 0 | CX64: 0 | CY64: 0 | CZ64: 0 | DA64: 0 | DB64: 0 | DC64: 0 | DD64: 0 | DE64: 0 | DF64: 0 | DG64: 0 | DH64: 0 | DI64: 0 | DJ64: 0 | DK64: 0 | DL64: 0 | DM64: 0 | DN64: 0 | DO64: 0 | DP64: 0 | DQ64: 0 | DR64: 0 | DS64: 0 | DT64: 0 | DU64: 0 | DV64: 0 | DW64: 0 | DX64: 0 | DY64: 0 | DZ64: 0 | EA64: 0 | EB64: 0 | EC64: 0 | ED64: 0 | EE64: 0 | EF64: 0 | EG64: 0 | EH64: 0 | EI64: 0 | EJ64: 0 | EK64: 0 | EL64: 0 | EM64: 0 | EN64: 0 | EO64: 0 | EP64: 0 | EQ64: 0 | ER64: 0 | ES64: 0 | ET64: 0 | EU64: 0 | EV64: 0 | EW64: 0 | EX64: 0 | EY64: 0 | EZ64: 0 | FA64: 0 | FB64: 0 | FC64: 0 | FD64: 0 | FE64: 0 | FF64: 0 | FG64: 0 | FH64: 0 | FI64: 0 | FJ64: 0 | FK64: 0 | FL64: 0 | FM64: 0 | FN64: 0 | FO64: 0 | FP64: 0 | FQ64: 0 | FR64: 0 | FS64: 0 | FT64: 0 | FU64: 0 | FV64: 0 | FW64: 0 | FX64: 0 | FY64: 0 | FZ64: 0 | GA64: 0 | GB64: 0 | GC64: 0 | GD64: 0 | GE64: 0 | GF64: 0 | GG64: 0 | GH64: 0
CV65: 0 | CW65: 0 | CX65: 0 | CY65: 0 | CZ65: 0 | DA65: 0 | DB65: 0 | DC65: 0 | DD65: 0 | DE65: 0 | DF65: 0 | DG65: 0 | DH65: 0 | DI65: 0 | DJ65: 0 | DK65: 0 | DL65: 0 | DM65: 0 | DN65: 0 | DO65: 0 | DP65: 0 | DQ65: 0 | DR65: 0 | DS65: 0 | DT65: 0 | DU65: 0 | DV65: 0 | DW65: 0 | DX65: 0 | DY65: 0 | DZ65: 0 | EA65: 0 | EB65: 0 | EC65: 0 | ED65: 0 | EE65: 0 | EF65: 0 | EG65: 0 | EH65: 0 | EI65: 0 | EJ65: 0 | EK65: 0 | EL65: 0 | EM65: 0 | EN65: 0 | EO65: 0 | EP65: 0 | EQ65: 0 | ER65: 0 | ES65: 0 | ET65: 0 | EU65: 0 | EV65: 0 | EW65: 0 | EX65: 0 | EY65: 0 | EZ65: 0 | FA65: 0 | FB65: 0 | FC65: 0 | FD65: 0 | FE65: 0 | FF65: 0 | FG65: 0 | FH65: 0 | FI65: 0 | FJ65: 0 | FK65: 0 | FL65: 0 | FM65: 0 | FN65: 0 | FO65: 0 | FP65: 0 | FQ65: 0 | FR65: 0 | FS65: 0 | FT65: 0 | FU65: 0 | FV65: 0 | FW65: 0 | FX65: 0 | FY65: 0 | FZ65: 0 | GA65: 0 | GB65: 0 | GC65: 0 | GD65: 0 | GE65: 0 | GF65: 0 | GG65: 0 | GH65: 0
CV66: =IFERROR($D66*H66,"") -> 0 | CW66: =IFERROR($D66*I66,"") -> 0 | CX66: =IFERROR($D66*J66,"") -> 0 | CY66: =IFERROR($D66*K66,"") -> 0 | CZ66: =IFERROR($D66*L66,"") -> 0 | DA66: =IFERROR($D66*M66,"") -> 0 | DB66: =IFERROR($D66*N66,"") -> 0 | DC66: =IFERROR($D66*O66,"") -> 0 | DD66: =IFERROR($D66*P66,"") -> 0 | DE66: =IFERROR($D66*Q66,"") -> 0 | DF66: =IFERROR($D66*R66,"") -> 0 | DG66: =IFERROR($D66*S66,"") -> 0 | DH66: =IFERROR($D66*T66,"") -> 0 | DI66: =IFERROR($D66*U66,"") -> 0 | DJ66: =IFERROR($D66*V66,"") -> 0 | DK66: =IFERROR($D66*W66,"") -> 0 | DL66: =IFERROR($D66*X66,"") -> 0 | DM66: =IFERROR($D66*Y66,"") -> 0 | DN66: =IFERROR($D66*Z66,"") -> 0 | DO66: =IFERROR($D66*AA66,"") -> 0 | DP66: =IFERROR($D66*AB66,"") -> 0 | DQ66: =IFERROR($D66*AC66,"") -> 0 | DR66: =IFERROR($D66*AD66,"") -> 0 | DS66: =IFERROR($D66*AE66,"") -> 0 | DT66: =IFERROR($D66*AF66,"") -> 0 | DU66: =IFERROR($D66*AG66,"") -> 0 | DV66: =IFERROR($D66*AH66,"") -> 0 | DW66: =IFERROR($D66*AI66,"") -> 0 | DX66: =IFERROR($D66*AJ66,"") -> 0 | DY66: =IFERROR($D66*AK66,"") -> 0 | DZ66: =IFERROR($D66*AL66,"") -> 0 | EA66: =IFERROR($D66*AM66,"") -> 0 | EB66: =IFERROR($D66*AN66,"") -> 0 | EC66: =IFERROR($D66*AO66,"") -> 0 | ED66: =IFERROR($D66*AP66,"") -> 0 | EE66: =IFERROR($D66*AQ66,"") -> 0 | EF66: =IFERROR($D66*AR66,"") -> 0 | EG66: =IFERROR($D66*AS66,"") -> 0 | EH66: =IFERROR($D66*AT66,"") -> 0 | EI66: =IFERROR($D66*AU66,"") -> 0 | EJ66: =IFERROR($D66*AV66,"") -> 0 | EK66: =IFERROR($D66*AW66,"") -> 0 | EL66: =IFERROR($D66*AX66,"") -> 0 | EM66: =IFERROR($D66*AY66,"") -> 0 | EN66: =IFERROR($D66*AZ66,"") -> 0 | EO66: =IFERROR($D66*BA66,"") -> 0 | EP66: =IFERROR($D66*BB66,"") -> 0 | EQ66: =IFERROR($D66*BC66,"") -> 0 | ER66: =IFERROR($D66*BD66,"") -> 0 | ES66: =IFERROR($D66*BE66,"") -> 0 | ET66: =IFERROR($D66*BF66,"") -> 0 | EU66: =IFERROR($D66*BG66,"") -> 0 | EV66: =IFERROR($D66*BH66,"") -> 0 | EW66: =IFERROR($D66*BI66,"") -> 0 | EX66: =IFERROR($D66*BJ66,"") -> 0 | EY66: =IFERROR($D66*BK66,"") -> 0 | EZ66: =IFERROR($D66*BL66,"") -> 0 | FA66: =IFERROR($D66*BM66,"") -> 0 | FB66: =IFERROR($D66*BN66,"") -> 0 | FC66: =IFERROR($D66*BO66,"") -> 0 | FD66: =IFERROR($D66*BP66,"") -> 0 | FE66: =IFERROR($D66*BQ66,"") -> 0 | FF66: =IFERROR($D66*BR66,"") -> 0 | FG66: =IFERROR($D66*BS66,"") -> 0 | FH66: =IFERROR($D66*BT66,"") -> 0 | FI66: =IFERROR($D66*BU66,"") -> 0 | FJ66: =IFERROR($D66*BV66,"") -> 0 | FK66: =IFERROR($D66*BW66,"") -> 0 | FL66: =IFERROR($D66*BX66,"") -> 0 | FM66: =IFERROR($D66*BY66,"") -> 0 | FN66: =IFERROR($D66*BZ66,"") -> 0 | FO66: =IFERROR($D66*CA66,"") -> 0 | FP66: =IFERROR($D66*CB66,"") -> 0 | FQ66: =IFERROR($D66*CC66,"") -> 0 | FR66: =IFERROR($D66*CD66,"") -> 0 | FS66: =IFERROR($D66*CE66,"") -> 0 | FT66: =IFERROR($D66*CF66,"") -> 0 | FU66: =IFERROR($D66*CG66,"") -> 0 | FV66: =IFERROR($D66*CH66,"") -> 0 | FW66: =IFERROR($D66*CI66,"") -> 0 | FX66: =IFERROR($D66*CJ66,"") -> 0 | FY66: =IFERROR($D66*CK66,"") -> 0 | FZ66: =IFERROR($D66*CL66,"") -> 0 | GA66: =IFERROR($D66*CM66,"") -> 0 | GB66: =IFERROR($D66*CN66,"") -> 0 | GC66: =IFERROR($D66*CO66,"") -> 0 | GD66: =IFERROR($D66*CP66,"") -> 0 | GE66: =IFERROR($D66*CQ66,"") -> 0 | GF66: =IFERROR($D66*CR66,"") -> 0 | GG66: =IFERROR($D66*CS66,"") -> 0 | GH66: =IFERROR($D66*CT66,"") -> 0
CV67: 0 | CW67: 0 | CX67: 0 | CY67: 0 | CZ67: 0 | DA67: 0 | DB67: 0 | DC67: 0 | DD67: 0 | DE67: 0 | DF67: 0 | DG67: 0 | DH67: 0 | DI67: 0 | DJ67: 0 | DK67: 0 | DL67: 0 | DM67: 0 | DN67: 0 | DO67: 0 | DP67: 0 | DQ67: 0 | DR67: 0 | DS67: 0 | DT67: 0 | DU67: 0 | DV67: 0 | DW67: 0 | DX67: 0 | DY67: 0 | DZ67: 0 | EA67: 0 | EB67: 0 | EC67: 0 | ED67: 0 | EE67: 0 | EF67: 0 | EG67: 0 | EH67: 0 | EI67: 0 | EJ67: 0 | EK67: 0 | EL67: 0 | EM67: 0 | EN67: 0 | EO67: 0 | EP67: 0 | EQ67: 0 | ER67: 0 | ES67: 0 | ET67: 0 | EU67: 0 | EV67: 0 | EW67: 0 | EX67: 0 | EY67: 0 | EZ67: 0 | FA67: 0 | FB67: 0 | FC67: 0 | FD67: 0 | FE67: 0 | FF67: 0 | FG67: 0 | FH67: 0 | FI67: 0 | FJ67: 0 | FK67: 0 | FL67: 0 | FM67: 0 | FN67: 0 | FO67: 0 | FP67: 0 | FQ67: 0 | FR67: 0 | FS67: 0 | FT67: 0 | FU67: 0 | FV67: 0 | FW67: 0 | FX67: 0 | FY67: 0 | FZ67: 0 | GA67: 0 | GB67: 0 | GC67: 0 | GD67: 0 | GE67: 0 | GF67: 0 | GG67: 0 | GH67: 0
CV68: 0 | CW68: 0 | CX68: 0 | CY68: 0 | CZ68: 0 | DA68: 0 | DB68: 0 | DC68: 0 | DD68: 0 | DE68: 0 | DF68: 0 | DG68: 0 | DH68: 0 | DI68: 0 | DJ68: 0 | DK68: 0 | DL68: 0 | DM68: 0 | DN68: 0 | DO68: 0 | DP68: 0 | DQ68: 0 | DR68: 0 | DS68: 0 | DT68: 0 | DU68: 0 | DV68: 0 | DW68: 0 | DX68: 0 | DY68: 0 | DZ68: 0 | EA68: 0 | EB68: 0 | EC68: 0 | ED68: 0 | EE68: 0 | EF68: 0 | EG68: 0 | EH68: 0 | EI68: 0 | EJ68: 0 | EK68: 0 | EL68: 0 | EM68: 0 | EN68: 0 | EO68: 0 | EP68: 0 | EQ68: 0 | ER68: 0 | ES68: 0 | ET68: 0 | EU68: 0 | EV68: 0 | EW68: 0 | EX68: 0 | EY68: 0 | EZ68: 0 | FA68: 0 | FB68: 0 | FC68: 0 | FD68: 0 | FE68: 0 | FF68: 0 | FG68: 0 | FH68: 0 | FI68: 0 | FJ68: 0 | FK68: 0 | FL68: 0 | FM68: 0 | FN68: 0 | FO68: 0 | FP68: 0 | FQ68: 0 | FR68: 0 | FS68: 0 | FT68: 0 | FU68: 0 | FV68: 0 | FW68: 0 | FX68: 0 | FY68: 0 | FZ68: 0 | GA68: 0 | GB68: 0 | GC68: 0 | GD68: 0 | GE68: 0 | GF68: 0 | GG68: 0 | GH68: 0
CV69: 0 | CW69: 0 | CX69: 0 | CY69: 0 | CZ69: 0 | DA69: 0 | DB69: 0 | DC69: 0 | DD69: 0 | DE69: 0 | DF69: 0 | DG69: 0 | DH69: 0 | DI69: 0 | DJ69: 0 | DK69: 0 | DL69: 0 | DM69: 0 | DN69: 0 | DO69: 0 | DP69: 0 | DQ69: 0 | DR69: 0 | DS69: 0 | DT69: 0 | DU69: 0 | DV69: 0 | DW69: 0 | DX69: 0 | DY69: 0 | DZ69: 0 | EA69: 0 | EB69: 0 | EC69: 0 | ED69: 0 | EE69: 0 | EF69: 0 | EG69: 0 | EH69: 0 | EI69: 0 | EJ69: 0 | EK69: 0 | EL69: 0 | EM69: 0 | EN69: 0 | EO69: 0 | EP69: 0 | EQ69: 0 | ER69: 0 | ES69: 0 | ET69: 0 | EU69: 0 | EV69: 0 | EW69: 0 | EX69: 0 | EY69: 0 | EZ69: 0 | FA69: 0 | FB69: 0 | FC69: 0 | FD69: 0 | FE69: 0 | FF69: 0 | FG69: 0 | FH69: 0 | FI69: 0 | FJ69: 0 | FK69: 0 | FL69: 0 | FM69: 0 | FN69: 0 | FO69: 0 | FP69: 0 | FQ69: 0 | FR69: 0 | FS69: 0 | FT69: 0 | FU69: 0 | FV69: 0 | FW69: 0 | FX69: 0 | FY69: 0 | FZ69: 0 | GA69: 0 | GB69: 0 | GC69: 0 | GD69: 0 | GE69: 0 | GF69: 0 | GG69: 0 | GH69: 0
CV70: 0 | CW70: 0 | CX70: 0 | CY70: 0 | CZ70: 0 | DA70: 0 | DB70: 0 | DC70: 0 | DD70: 0 | DE70: 0 | DF70: 0 | DG70: 0 | DH70: 0 | DI70: 0 | DJ70: 0 | DK70: 0 | DL70: 0 | DM70: 0 | DN70: 0 | DO70: 0 | DP70: 0 | DQ70: 0 | DR70: 0 | DS70: 0 | DT70: 0 | DU70: 0 | DV70: 0 | DW70: 0 | DX70: 0 | DY70: 0 | DZ70: 0 | EA70: 0 | EB70: 0 | EC70: 0 | ED70: 0 | EE70: 0 | EF70: 0 | EG70: 0 | EH70: 0 | EI70: 0 | EJ70: 0 | EK70: 0 | EL70: 0 | EM70: 0 | EN70: 0 | EO70: 0 | EP70: 0 | EQ70: 0 | ER70: 0 | ES70: 0 | ET70: 0 | EU70: 0 | EV70: 0 | EW70: 0 | EX70: 0 | EY70: 0 | EZ70: 0 | FA70: 0 | FB70: 0 | FC70: 0 | FD70: 0 | FE70: 0 | FF70: 0 | FG70: 0 | FH70: 0 | FI70: 0 | FJ70: 0 | FK70: 0 | FL70: 0 | FM70: 0 | FN70: 0 | FO70: 0 | FP70: 0 | FQ70: 0 | FR70: 0 | FS70: 0 | FT70: 0 | FU70: 0 | FV70: 0 | FW70: 0 | FX70: 0 | FY70: 0 | FZ70: 0 | GA70: 0 | GB70: 0 | GC70: 0 | GD70: 0 | GE70: 0 | GF70: 0 | GG70: 0 | GH70: 0
CV71: 0 | CW71: 0 | CX71: 0 | CY71: 0 | CZ71: 0 | DA71: 0 | DB71: 0 | DC71: 0 | DD71: 0 | DE71: 0 | DF71: 0 | DG71: 0 | DH71: 0 | DI71: 0 | DJ71: 0 | DK71: 0 | DL71: 0 | DM71: 0 | DN71: 0 | DO71: 0 | DP71: 0 | DQ71: 0 | DR71: 0 | DS71: 0 | DT71: 0 | DU71: 0 | DV71: 0 | DW71: 0 | DX71: 0 | DY71: 0 | DZ71: 0 | EA71: 0 | EB71: 0 | EC71: 0 | ED71: 0 | EE71: 0 | EF71: 0 | EG71: 0 | EH71: 0 | EI71: 0 | EJ71: 0 | EK71: 0 | EL71: 0 | EM71: 0 | EN71: 0 | EO71: 0 | EP71: 0 | EQ71: 0 | ER71: 0 | ES71: 0 | ET71: 0 | EU71: 0 | EV71: 0 | EW71: 0 | EX71: 0 | EY71: 0 | EZ71: 0 | FA71: 0 | FB71: 0 | FC71: 0 | FD71: 0 | FE71: 0 | FF71: 0 | FG71: 0 | FH71: 0 | FI71: 0 | FJ71: 0 | FK71: 0 | FL71: 0 | FM71: 0 | FN71: 0 | FO71: 0 | FP71: 0 | FQ71: 0 | FR71: 0 | FS71: 0 | FT71: 0 | FU71: 0 | FV71: 0 | FW71: 0 | FX71: 0 | FY71: 0 | FZ71: 0 | GA71: 0 | GB71: 0 | GC71: 0 | GD71: 0 | GE71: 0 | GF71: 0 | GG71: 0 | GH71: 0
CV72: 0 | CW72: 0 | CX72: 0 | CY72: 0 | CZ72: 0 | DA72: 0 | DB72: 0 | DC72: 0 | DD72: 0 | DE72: 0 | DF72: 0 | DG72: 0 | DH72: 0 | DI72: 0 | DJ72: 0 | DK72: 0 | DL72: 0 | DM72: 0 | DN72: 0 | DO72: 0 | DP72: 0 | DQ72: 0 | DR72: 0 | DS72: 0 | DT72: 0 | DU72: 0 | DV72: 0 | DW72: 0 | DX72: 0 | DY72: 0 | DZ72: 0 | EA72: 0 | EB72: 0 | EC72: 0 | ED72: 0 | EE72: 0 | EF72: 0 | EG72: 0 | EH72: 0 | EI72: 0 | EJ72: 0 | EK72: 0 | EL72: 0 | EM72: 0 | EN72: 0 | EO72: 0 | EP72: 0 | EQ72: 0 | ER72: 0 | ES72: 0 | ET72: 0 | EU72: 0 | EV72: 0 | EW72: 0 | EX72: 0 | EY72: 0 | EZ72: 0 | FA72: 0 | FB72: 0 | FC72: 0 | FD72: 0 | FE72: 0 | FF72: 0 | FG72: 0 | FH72: 0 | FI72: 0 | FJ72: 0 | FK72: 0 | FL72: 0 | FM72: 0 | FN72: 0 | FO72: 0 | FP72: 0 | FQ72: 0 | FR72: 0 | FS72: 0 | FT72: 0 | FU72: 0 | FV72: 0 | FW72: 0 | FX72: 0 | FY72: 0 | FZ72: 0 | GA72: 0 | GB72: 0 | GC72: 0 | GD72: 0 | GE72: 0 | GF72: 0 | GG72: 0 | GH72: 0
CV73: 0 | CW73: 0 | CX73: 0 | CY73: 0 | CZ73: 0 | DA73: 0 | DB73: 0 | DC73: 0 | DD73: 0 | DE73: 0 | DF73: 0 | DG73: 0 | DH73: 0 | DI73: 0 | DJ73: 0 | DK73: 0 | DL73: 0 | DM73: 0 | DN73: 0 | DO73: 0 | DP73: 0 | DQ73: 0 | DR73: 0 | DS73: 0 | DT73: 0 | DU73: 0 | DV73: 0 | DW73: 0 | DX73: 0 | DY73: 0 | DZ73: 0 | EA73: 0 | EB73: 0 | EC73: 0 | ED73: 0 | EE73: 0 | EF73: 0 | EG73: 0 | EH73: 0 | EI73: 0 | EJ73: 0 | EK73: 0 | EL73: 0 | EM73: 0 | EN73: 0 | EO73: 0 | EP73: 0 | EQ73: 0 | ER73: 0 | ES73: 0 | ET73: 0 | EU73: 0 | EV73: 0 | EW73: 0 | EX73: 0 | EY73: 0 | EZ73: 0 | FA73: 0 | FB73: 0 | FC73: 0 | FD73: 0 | FE73: 0 | FF73: 0 | FG73: 0 | FH73: 0 | FI73: 0 | FJ73: 0 | FK73: 0 | FL73: 0 | FM73: 0 | FN73: 0 | FO73: 0 | FP73: 0 | FQ73: 0 | FR73: 0 | FS73: 0 | FT73: 0 | FU73: 0 | FV73: 0 | FW73: 0 | FX73: 0 | FY73: 0 | FZ73: 0 | GA73: 0 | GB73: 0 | GC73: 0 | GD73: 0 | GE73: 0 | GF73: 0 | GG73: 0 | GH73: 0
CV74: 0 | CW74: 0 | CX74: 0 | CY74: 0 | CZ74: 0 | DA74: 0 | DB74: 0 | DC74: 0 | DD74: 0 | DE74: 0 | DF74: 0 | DG74: 0 | DH74: 0 | DI74: 0 | DJ74: 0 | DK74: 0 | DL74: 0 | DM74: 0 | DN74: 0 | DO74: 0 | DP74: 0 | DQ74: 0 | DR74: 0 | DS74: 0 | DT74: 0 | DU74: 0 | DV74: 0 | DW74: 0 | DX74: 0 | DY74: 0 | DZ74: 0 | EA74: 0 | EB74: 0 | EC74: 0 | ED74: 0 | EE74: 0 | EF74: 0 | EG74: 0 | EH74: 0 | EI74: 0 | EJ74: 0 | EK74: 0 | EL74: 0 | EM74: 0 | EN74: 0 | EO74: 0 | EP74: 0 | EQ74: 0 | ER74: 0 | ES74: 0 | ET74: 0 | EU74: 0 | EV74: 0 | EW74: 0 | EX74: 0 | EY74: 0 | EZ74: 0 | FA74: 0 | FB74: 0 | FC74: 0 | FD74: 0 | FE74: 0 | FF74: 0 | FG74: 0 | FH74: 0 | FI74: 0 | FJ74: 0 | FK74: 0 | FL74: 0 | FM74: 0 | FN74: 0 | FO74: 0 | FP74: 0 | FQ74: 0 | FR74: 0 | FS74: 0 | FT74: 0 | FU74: 0 | FV74: 0 | FW74: 0 | FX74: 0 | FY74: 0 | FZ74: 0 | GA74: 0 | GB74: 0 | GC74: 0 | GD74: 0 | GE74: 0 | GF74: 0 | GG74: 0 | GH74: 0
CV75: 0 | CW75: 0 | CX75: 0 | CY75: 0 | CZ75: 0 | DA75: 0 | DB75: 0 | DC75: 0 | DD75: 0 | DE75: 0 | DF75: 0 | DG75: 0 | DH75: 0 | DI75: 0 | DJ75: 0 | DK75: 0 | DL75: 0 | DM75: 0 | DN75: 0 | DO75: 0 | DP75: 0 | DQ75: 0 | DR75: 0 | DS75: 0 | DT75: 0 | DU75: 0 | DV75: 0 | DW75: 0 | DX75: 0 | DY75: 0 | DZ75: 0 | EA75: 0 | EB75: 0 | EC75: 0 | ED75: 0 | EE75: 0 | EF75: 0 | EG75: 0 | EH75: 0 | EI75: 0 | EJ75: 0 | EK75: 0 | EL75: 0 | EM75: 0 | EN75: 0 | EO75: 0 | EP75: 0 | EQ75: 0 | ER75: 0 | ES75: 0 | ET75: 0 | EU75: 0 | EV75: 0 | EW75: 0 | EX75: 0 | EY75: 0 | EZ75: 0 | FA75: 0 | FB75: 0 | FC75: 0 | FD75: 0 | FE75: 0 | FF75: 0 | FG75: 0 | FH75: 0 | FI75: 0 | FJ75: 0 | FK75: 0 | FL75: 0 | FM75: 0 | FN75: 0 | FO75: 0 | FP75: 0 | FQ75: 0 | FR75: 0 | FS75: 0 | FT75: 0 | FU75: 0 | FV75: 0 | FW75: 0 | FX75: 0 | FY75: 0 | FZ75: 0 | GA75: 0 | GB75: 0 | GC75: 0 | GD75: 0 | GE75: 0 | GF75: 0 | GG75: 0 | GH75: 0
CV76: 0 | CW76: 0 | CX76: 0 | CY76: 0 | CZ76: 0 | DA76: 0 | DB76: 0 | DC76: 0 | DD76: 0 | DE76: 0 | DF76: 0 | DG76: 0 | DH76: 0 | DI76: 0 | DJ76: 0 | DK76: 0 | DL76: 0 | DM76: 0 | DN76: 0 | DO76: 0 | DP76: 0 | DQ76: 0 | DR76: 0 | DS76: 0 | DT76: 0 | DU76: 0 | DV76: 0 | DW76: 0 | DX76: 0 | DY76: 0 | DZ76: 0 | EA76: 0 | EB76: 0 | EC76: 0 | ED76: 0 | EE76: 0 | EF76: 0 | EG76: 0 | EH76: 0 | EI76: 0 | EJ76: 0 | EK76: 0 | EL76: 0 | EM76: 0 | EN76: 0 | EO76: 0 | EP76: 0 | EQ76: 0 | ER76: 0 | ES76: 0 | ET76: 0 | EU76: 0 | EV76: 0 | EW76: 0 | EX76: 0 | EY76: 0 | EZ76: 0 | FA76: 0 | FB76: 0 | FC76: 0 | FD76: 0 | FE76: 0 | FF76: 0 | FG76: 0 | FH76: 0 | FI76: 0 | FJ76: 0 | FK76: 0 | FL76: 0 | FM76: 0 | FN76: 0 | FO76: 0 | FP76: 0 | FQ76: 0 | FR76: 0 | FS76: 0 | FT76: 0 | FU76: 0 | FV76: 0 | FW76: 0 | FX76: 0 | FY76: 0 | FZ76: 0 | GA76: 0 | GB76: 0 | GC76: 0 | GD76: 0 | GE76: 0 | GF76: 0 | GG76: 0 | GH76: 0
CV77: 0 | CW77: 0 | CX77: 0 | CY77: 0 | CZ77: 0 | DA77: 0 | DB77: 0 | DC77: 0 | DD77: 0 | DE77: 0 | DF77: 0 | DG77: 0 | DH77: 0 | DI77: 0 | DJ77: 0 | DK77: 0 | DL77: 0 | DM77: 0 | DN77: 0 | DO77: 0 | DP77: 0 | DQ77: 0 | DR77: 0 | DS77: 0 | DT77: 0 | DU77: 0 | DV77: 0 | DW77: 0 | DX77: 0 | DY77: 0 | DZ77: 0 | EA77: 0 | EB77: 0 | EC77: 0 | ED77: 0 | EE77: 0 | EF77: 0 | EG77: 0 | EH77: 0 | EI77: 0 | EJ77: 0 | EK77: 0 | EL77: 0 | EM77: 0 | EN77: 0 | EO77: 0 | EP77: 0 | EQ77: 0 | ER77: 0 | ES77: 0 | ET77: 0 | EU77: 0 | EV77: 0 | EW77: 0 | EX77: 0 | EY77: 0 | EZ77: 0 | FA77: 0 | FB77: 0 | FC77: 0 | FD77: 0 | FE77: 0 | FF77: 0 | FG77: 0 | FH77: 0 | FI77: 0 | FJ77: 0 | FK77: 0 | FL77: 0 | FM77: 0 | FN77: 0 | FO77: 0 | FP77: 0 | FQ77: 0 | FR77: 0 | FS77: 0 | FT77: 0 | FU77: 0 | FV77: 0 | FW77: 0 | FX77: 0 | FY77: 0 | FZ77: 0 | GA77: 0 | GB77: 0 | GC77: 0 | GD77: 0 | GE77: 0 | GF77: 0 | GG77: 0 | GH77: 0
CV78: 0 | CW78: 0 | CX78: 0 | CY78: 0 | CZ78: 0 | DA78: 0 | DB78: 0 | DC78: 0 | DD78: 0 | DE78: 0 | DF78: 0 | DG78: 0 | DH78: 0 | DI78: 0 | DJ78: 0 | DK78: 0 | DL78: 0 | DM78: 0 | DN78: 0 | DO78: 0 | DP78: 0 | DQ78: 0 | DR78: 0 | DS78: 0 | DT78: 0 | DU78: 0 | DV78: 0 | DW78: 0 | DX78: 0 | DY78: 0 | DZ78: 0 | EA78: 0 | EB78: 0 | EC78: 0 | ED78: 0 | EE78: 0 | EF78: 0 | EG78: 0 | EH78: 0 | EI78: 0 | EJ78: 0 | EK78: 0 | EL78: 0 | EM78: 0 | EN78: 0 | EO78: 0 | EP78: 0 | EQ78: 0 | ER78: 0 | ES78: 0 | ET78: 0 | EU78: 0 | EV78: 0 | EW78: 0 | EX78: 0 | EY78: 0 | EZ78: 0 | FA78: 0 | FB78: 0 | FC78: 0 | FD78: 0 | FE78: 0 | FF78: 0 | FG78: 0 | FH78: 0 | FI78: 0 | FJ78: 0 | FK78: 0 | FL78: 0 | FM78: 0 | FN78: 0 | FO78: 0 | FP78: 0 | FQ78: 0 | FR78: 0 | FS78: 0 | FT78: 0 | FU78: 0 | FV78: 0 | FW78: 0 | FX78: 0 | FY78: 0 | FZ78: 0 | GA78: 0 | GB78: 0 | GC78: 0 | GD78: 0 | GE78: 0 | GF78: 0 | GG78: 0 | GH78: 0
CV79: 0 | CW79: 0 | CX79: 0 | CY79: 0 | CZ79: 0 | DA79: 0 | DB79: 0 | DC79: 0 | DD79: 0 | DE79: 0 | DF79: 0 | DG79: 0 | DH79: 0 | DI79: 0 | DJ79: 0 | DK79: 0 | DL79: 0 | DM79: 0 | DN79: 0 | DO79: 0 | DP79: 0 | DQ79: 0 | DR79: 0 | DS79: 0 | DT79: 0 | DU79: 0 | DV79: 0 | DW79: 0 | DX79: 0 | DY79: 0 | DZ79: 0 | EA79: 0 | EB79: 0 | EC79: 0 | ED79: 0 | EE79: 0 | EF79: 0 | EG79: 0 | EH79: 0 | EI79: 0 | EJ79: 0 | EK79: 0 | EL79: 0 | EM79: 0 | EN79: 0 | EO79: 0 | EP79: 0 | EQ79: 0 | ER79: 0 | ES79: 0 | ET79: 0 | EU79: 0 | EV79: 0 | EW79: 0 | EX79: 0 | EY79: 0 | EZ79: 0 | FA79: 0 | FB79: 0 | FC79: 0 | FD79: 0 | FE79: 0 | FF79: 0 | FG79: 0 | FH79: 0 | FI79: 0 | FJ79: 0 | FK79: 0 | FL79: 0 | FM79: 0 | FN79: 0 | FO79: 0 | FP79: 0 | FQ79: 0 | FR79: 0 | FS79: 0 | FT79: 0 | FU79: 0 | FV79: 0 | FW79: 0 | FX79: 0 | FY79: 0 | FZ79: 0 | GA79: 0 | GB79: 0 | GC79: 0 | GD79: 0 | GE79: 0 | GF79: 0 | GG79: 0 | GH79: 0
CV80: 0 | CW80: 0 | CX80: 0 | CY80: 0 | CZ80: 0 | DA80: 0 | DB80: 0 | DC80: 0 | DD80: 0 | DE80: 0 | DF80: 0 | DG80: 0 | DH80: 0 | DI80: 0 | DJ80: 0 | DK80: 0 | DL80: 0 | DM80: 0 | DN80: 0 | DO80: 0 | DP80: 0 | DQ80: 0 | DR80: 0 | DS80: 0 | DT80: 0 | DU80: 0 | DV80: 0 | DW80: 0 | DX80: 0 | DY80: 0 | DZ80: 0 | EA80: 0 | EB80: 0 | EC80: 0 | ED80: 0 | EE80: 0 | EF80: 0 | EG80: 0 | EH80: 0 | EI80: 0 | EJ80: 0 | EK80: 0 | EL80: 0 | EM80: 0 | EN80: 0 | EO80: 0 | EP80: 0 | EQ80: 0 | ER80: 0 | ES80: 0 | ET80: 0 | EU80: 0 | EV80: 0 | EW80: 0 | EX80: 0 | EY80: 0 | EZ80: 0 | FA80: 0 | FB80: 0 | FC80: 0 | FD80: 0 | FE80: 0 | FF80: 0 | FG80: 0 | FH80: 0 | FI80: 0 | FJ80: 0 | FK80: 0 | FL80: 0 | FM80: 0 | FN80: 0 | FO80: 0 | FP80: 0 | FQ80: 0 | FR80: 0 | FS80: 0 | FT80: 0 | FU80: 0 | FV80: 0 | FW80: 0 | FX80: 0 | FY80: 0 | FZ80: 0 | GA80: 0 | GB80: 0 | GC80: 0 | GD80: 0 | GE80: 0 | GF80: 0 | GG80: 0 | GH80: 0
CV81: 0 | CW81: 0 | CX81: 0 | CY81: 0 | CZ81: 0 | DA81: 0 | DB81: 0 | DC81: 0 | DD81: 0 | DE81: 0 | DF81: 0 | DG81: 0 | DH81: 0 | DI81: 0 | DJ81: 0 | DK81: 0 | DL81: 0 | DM81: 0 | DN81: 0 | DO81: 0 | DP81: 0 | DQ81: 0 | DR81: 0 | DS81: 0 | DT81: 0 | DU81: 0 | DV81: 0 | DW81: 0 | DX81: 0 | DY81: 0 | DZ81: 0 | EA81: 0 | EB81: 0 | EC81: 0 | ED81: 0 | EE81: 0 | EF81: 0 | EG81: 0 | EH81: 0 | EI81: 0 | EJ81: 0 | EK81: 0 | EL81: 0 | EM81: 0 | EN81: 0 | EO81: 0 | EP81: 0 | EQ81: 0 | ER81: 0 | ES81: 0 | ET81: 0 | EU81: 0 | EV81: 0 | EW81: 0 | EX81: 0 | EY81: 0 | EZ81: 0 | FA81: 0 | FB81: 0 | FC81: 0 | FD81: 0 | FE81: 0 | FF81: 0 | FG81: 0 | FH81: 0 | FI81: 0 | FJ81: 0 | FK81: 0 | FL81: 0 | FM81: 0 | FN81: 0 | FO81: 0 | FP81: 0 | FQ81: 0 | FR81: 0 | FS81: 0 | FT81: 0 | FU81: 0 | FV81: 0 | FW81: 0 | FX81: 0 | FY81: 0 | FZ81: 0 | GA81: 0 | GB81: 0 | GC81: 0 | GD81: 0 | GE81: 0 | GF81: 0 | GG81: 0 | GH81: 0
CV82: 0 | CW82: 0 | CX82: 0 | CY82: 0 | CZ82: 0 | DA82: 0 | DB82: 0 | DC82: 0 | DD82: 0 | DE82: 0 | DF82: 0 | DG82: 0 | DH82: 0 | DI82: 0 | DJ82: 0 | DK82: 0 | DL82: 0 | DM82: 0 | DN82: 0 | DO82: 0 | DP82: 0 | DQ82: 0 | DR82: 0 | DS82: 0 | DT82: 0 | DU82: 0 | DV82: 0 | DW82: 0 | DX82: 0 | DY82: 0 | DZ82: 0 | EA82: 0 | EB82: 0 | EC82: 0 | ED82: 0 | EE82: 0 | EF82: 0 | EG82: 0 | EH82: 0 | EI82: 0 | EJ82: 0 | EK82: 0 | EL82: 0 | EM82: 0 | EN82: 0 | EO82: 0 | EP82: 0 | EQ82: 0 | ER82: 0 | ES82: 0 | ET82: 0 | EU82: 0 | EV82: 0 | EW82: 0 | EX82: 0 | EY82: 0 | EZ82: 0 | FA82: 0 | FB82: 0 | FC82: 0 | FD82: 0 | FE82: 0 | FF82: 0 | FG82: 0 | FH82: 0 | FI82: 0 | FJ82: 0 | FK82: 0 | FL82: 0 | FM82: 0 | FN82: 0 | FO82: 0 | FP82: 0 | FQ82: 0 | FR82: 0 | FS82: 0 | FT82: 0 | FU82: 0 | FV82: 0 | FW82: 0 | FX82: 0 | FY82: 0 | FZ82: 0 | GA82: 0 | GB82: 0 | GC82: 0 | GD82: 0 | GE82: 0 | GF82: 0 | GG82: 0 | GH82: 0
CV83: 0 | CW83: 0 | CX83: 0 | CY83: 0 | CZ83: 0 | DA83: 0 | DB83: 0 | DC83: 0 | DD83: 0 | DE83: 0 | DF83: 0 | DG83: 0 | DH83: 0 | DI83: 0 | DJ83: 0 | DK83: 0 | DL83: 0 | DM83: 0 | DN83: 0 | DO83: 0 | DP83: 0 | DQ83: 0 | DR83: 0 | DS83: 0 | DT83: 0 | DU83: 0 | DV83: 0 | DW83: 0 | DX83: 0 | DY83: 0 | DZ83: 0 | EA83: 0 | EB83: 0 | EC83: 0 | ED83: 0 | EE83: 0 | EF83: 0 | EG83: 0 | EH83: 0 | EI83: 0 | EJ83: 0 | EK83: 0 | EL83: 0 | EM83: 0 | EN83: 0 | EO83: 0 | EP83: 0 | EQ83: 0 | ER83: 0 | ES83: 0 | ET83: 0 | EU83: 0 | EV83: 0 | EW83: 0 | EX83: 0 | EY83: 0 | EZ83: 0 | FA83: 0 | FB83: 0 | FC83: 0 | FD83: 0 | FE83: 0 | FF83: 0 | FG83: 0 | FH83: 0 | FI83: 0 | FJ83: 0 | FK83: 0 | FL83: 0 | FM83: 0 | FN83: 0 | FO83: 0 | FP83: 0 | FQ83: 0 | FR83: 0 | FS83: 0 | FT83: 0 | FU83: 0 | FV83: 0 | FW83: 0 | FX83: 0 | FY83: 0 | FZ83: 0 | GA83: 0 | GB83: 0 | GC83: 0 | GD83: 0 | GE83: 0 | GF83: 0 | GG83: 0 | GH83: 0
CV84: 0 | CW84: 0 | CX84: 0 | CY84: 0 | CZ84: 0 | DA84: 0 | DB84: 0 | DC84: 0 | DD84: 0 | DE84: 0 | DF84: 0 | DG84: 0 | DH84: 0 | DI84: 0 | DJ84: 0 | DK84: 0 | DL84: 0 | DM84: 0 | DN84: 0 | DO84: 0 | DP84: 0 | DQ84: 0 | DR84: 0 | DS84: 0 | DT84: 0 | DU84: 0 | DV84: 0 | DW84: 0 | DX84: 0 | DY84: 0 | DZ84: 0 | EA84: 0 | EB84: 0 | EC84: 0 | ED84: 0 | EE84: 0 | EF84: 0 | EG84: 0 | EH84: 0 | EI84: 0 | EJ84: 0 | EK84: 0 | EL84: 0 | EM84: 0 | EN84: 0 | EO84: 0 | EP84: 0 | EQ84: 0 | ER84: 0 | ES84: 0 | ET84: 0 | EU84: 0 | EV84: 0 | EW84: 0 | EX84: 0 | EY84: 0 | EZ84: 0 | FA84: 0 | FB84: 0 | FC84: 0 | FD84: 0 | FE84: 0 | FF84: 0 | FG84: 0 | FH84: 0 | FI84: 0 | FJ84: 0 | FK84: 0 | FL84: 0 | FM84: 0 | FN84: 0 | FO84: 0 | FP84: 0 | FQ84: 0 | FR84: 0 | FS84: 0 | FT84: 0 | FU84: 0 | FV84: 0 | FW84: 0 | FX84: 0 | FY84: 0 | FZ84: 0 | GA84: 0 | GB84: 0 | GC84: 0 | GD84: 0 | GE84: 0 | GF84: 0 | GG84: 0 | GH84: 0
CV85: 0 | CW85: 0 | CX85: 0 | CY85: 0 | CZ85: 0 | DA85: 0 | DB85: 0 | DC85: 0 | DD85: 0 | DE85: 0 | DF85: 0 | DG85: 0 | DH85: 0 | DI85: 0 | DJ85: 0 | DK85: 0 | DL85: 0 | DM85: 0 | DN85: 0 | DO85: 0 | DP85: 0 | DQ85: 0 | DR85: 0 | DS85: 0 | DT85: 0 | DU85: 0 | DV85: 0 | DW85: 0 | DX85: 0 | DY85: 0 | DZ85: 0 | EA85: 0 | EB85: 0 | EC85: 0 | ED85: 0 | EE85: 0 | EF85: 0 | EG85: 0 | EH85: 0 | EI85: 0 | EJ85: 0 | EK85: 0 | EL85: 0 | EM85: 0 | EN85: 0 | EO85: 0 | EP85: 0 | EQ85: 0 | ER85: 0 | ES85: 0 | ET85: 0 | EU85: 0 | EV85: 0 | EW85: 0 | EX85: 0 | EY85: 0 | EZ85: 0 | FA85: 0 | FB85: 0 | FC85: 0 | FD85: 0 | FE85: 0 | FF85: 0 | FG85: 0 | FH85: 0 | FI85: 0 | FJ85: 0 | FK85: 0 | FL85: 0 | FM85: 0 | FN85: 0 | FO85: 0 | FP85: 0 | FQ85: 0 | FR85: 0 | FS85: 0 | FT85: 0 | FU85: 0 | FV85: 0 | FW85: 0 | FX85: 0 | FY85: 0 | FZ85: 0 | GA85: 0 | GB85: 0 | GC85: 0 | GD85: 0 | GE85: 0 | GF85: 0 | GG85: 0 | GH85: 0
CV86: =IFERROR($D86*H86,"") -> 0 | CW86: =IFERROR($D86*I86,"") -> 0 | CX86: =IFERROR($D86*J86,"") -> 0 | CY86: =IFERROR($D86*K86,"") -> 0 | CZ86: =IFERROR($D86*L86,"") -> 0 | DA86: =IFERROR($D86*M86,"") -> 0 | DB86: =IFERROR($D86*N86,"") -> 0 | DC86: =IFERROR($D86*O86,"") -> 0 | DD86: =IFERROR($D86*P86,"") -> 0 | DE86: =IFERROR($D86*Q86,"") -> 0 | DF86: =IFERROR($D86*R86,"") -> 0 | DG86: =IFERROR($D86*S86,"") -> 0 | DH86: =IFERROR($D86*T86,"") -> 0 | DI86: =IFERROR($D86*U86,"") -> 0 | DJ86: =IFERROR($D86*V86,"") -> 0 | DK86: =IFERROR($D86*W86,"") -> 0 | DL86: =IFERROR($D86*X86,"") -> 0 | DM86: =IFERROR($D86*Y86,"") -> 0 | DN86: =IFERROR($D86*Z86,"") -> 0 | DO86: =IFERROR($D86*AA86,"") -> 0 | DP86: =IFERROR($D86*AB86,"") -> 0 | DQ86: =IFERROR($D86*AC86,"") -> 0 | DR86: =IFERROR($D86*AD86,"") -> 0 | DS86: =IFERROR($D86*AE86,"") -> 0 | DT86: =IFERROR($D86*AF86,"") -> 0 | DU86: =IFERROR($D86*AG86,"") -> 0 | DV86: =IFERROR($D86*AH86,"") -> 0 | DW86: =IFERROR($D86*AI86,"") -> 0 | DX86: =IFERROR($D86*AJ86,"") -> 0 | DY86: =IFERROR($D86*AK86,"") -> 0 | DZ86: =IFERROR($D86*AL86,"") -> 0 | EA86: =IFERROR($D86*AM86,"") -> 0 | EB86: =IFERROR($D86*AN86,"") -> 0 | EC86: =IFERROR($D86*AO86,"") -> 0 | ED86: =IFERROR($D86*AP86,"") -> 0 | EE86: =IFERROR($D86*AQ86,"") -> 0 | EF86: =IFERROR($D86*AR86,"") -> 0 | EG86: =IFERROR($D86*AS86,"") -> 0 | EH86: =IFERROR($D86*AT86,"") -> 0 | EI86: =IFERROR($D86*AU86,"") -> 0 | EJ86: =IFERROR($D86*AV86,"") -> 0 | EK86: =IFERROR($D86*AW86,"") -> 0 | EL86: =IFERROR($D86*AX86,"") -> 0 | EM86: =IFERROR($D86*AY86,"") -> 0 | EN86: =IFERROR($D86*AZ86,"") -> 0 | EO86: =IFERROR($D86*BA86,"") -> 0 | EP86: =IFERROR($D86*BB86,"") -> 0 | EQ86: =IFERROR($D86*BC86,"") -> 0 | ER86: =IFERROR($D86*BD86,"") -> 0 | ES86: =IFERROR($D86*BE86,"") -> 0 | ET86: =IFERROR($D86*BF86,"") -> 0 | EU86: =IFERROR($D86*BG86,"") -> 0 | EV86: =IFERROR($D86*BH86,"") -> 0 | EW86: =IFERROR($D86*BI86,"") -> 0 | EX86: =IFERROR($D86*BJ86,"") -> 0 | EY86: =IFERROR($D86*BK86,"") -> 0 | EZ86: =IFERROR($D86*BL86,"") -> 0 | FA86: =IFERROR($D86*BM86,"") -> 0 | FB86: =IFERROR($D86*BN86,"") -> 0 | FC86: =IFERROR($D86*BO86,"") -> 0 | FD86: =IFERROR($D86*BP86,"") -> 0 | FE86: =IFERROR($D86*BQ86,"") -> 0 | FF86: =IFERROR($D86*BR86,"") -> 0 | FG86: =IFERROR($D86*BS86,"") -> 0 | FH86: =IFERROR($D86*BT86,"") -> 0 | FI86: =IFERROR($D86*BU86,"") -> 0 | FJ86: =IFERROR($D86*BV86,"") -> 0 | FK86: =IFERROR($D86*BW86,"") -> 0 | FL86: =IFERROR($D86*BX86,"") -> 0 | FM86: =IFERROR($D86*BY86,"") -> 0 | FN86: =IFERROR($D86*BZ86,"") -> 0 | FO86: =IFERROR($D86*CA86,"") -> 0 | FP86: =IFERROR($D86*CB86,"") -> 0 | FQ86: =IFERROR($D86*CC86,"") -> 0 | FR86: =IFERROR($D86*CD86,"") -> 0 | FS86: =IFERROR($D86*CE86,"") -> 0 | FT86: =IFERROR($D86*CF86,"") -> 0 | FU86: =IFERROR($D86*CG86,"") -> 0 | FV86: =IFERROR($D86*CH86,"") -> 0 | FW86: =IFERROR($D86*CI86,"") -> 0 | FX86: =IFERROR($D86*CJ86,"") -> 0 | FY86: =IFERROR($D86*CK86,"") -> 0 | FZ86: =IFERROR($D86*CL86,"") -> 0 | GA86: =IFERROR($D86*CM86,"") -> 0 | GB86: =IFERROR($D86*CN86,"") -> 0 | GC86: =IFERROR($D86*CO86,"") -> 0 | GD86: =IFERROR($D86*CP86,"") -> 0 | GE86: =IFERROR($D86*CQ86,"") -> 0 | GF86: =IFERROR($D86*CR86,"") -> 0 | GG86: =IFERROR($D86*CS86,"") -> 0 | GH86: =IFERROR($D86*CT86,"") -> 0
CV87: 0 | CW87: 0 | CX87: 0 | CY87: 0 | CZ87: 0 | DA87: 0 | DB87: 0 | DC87: 0 | DD87: 0 | DE87: 0 | DF87: 0 | DG87: 0 | DH87: 0 | DI87: 0 | DJ87: 0 | DK87: 0 | DL87: 0 | DM87: 0 | DN87: 0 | DO87: 0 | DP87: 0 | DQ87: 0 | DR87: 0 | DS87: 0 | DT87: 0 | DU87: 0 | DV87: 0 | DW87: 0 | DX87: 0 | DY87: 0 | DZ87: 0 | EA87: 0 | EB87: 0 | EC87: 0 | ED87: 0 | EE87: 0 | EF87: 0 | EG87: 0 | EH87: 0 | EI87: 0 | EJ87: 0 | EK87: 0 | EL87: 0 | EM87: 0 | EN87: 0 | EO87: 0 | EP87: 0 | EQ87: 0 | ER87: 0 | ES87: 0 | ET87: 0 | EU87: 0 | EV87: 0 | EW87: 0 | EX87: 0 | EY87: 0 | EZ87: 0 | FA87: 0 | FB87: 0 | FC87: 0 | FD87: 0 | FE87: 0 | FF87: 0 | FG87: 0 | FH87: 0 | FI87: 0 | FJ87: 0 | FK87: 0 | FL87: 0 | FM87: 0 | FN87: 0 | FO87: 0 | FP87: 0 | FQ87: 0 | FR87: 0 | FS87: 0 | FT87: 0 | FU87: 0 | FV87: 0 | FW87: 0 | FX87: 0 | FY87: 0 | FZ87: 0 | GA87: 0 | GB87: 0 | GC87: 0 | GD87: 0 | GE87: 0 | GF87: 0 | GG87: 0 | GH87: 0
CV88: 0 | CW88: 0 | CX88: 0 | CY88: 0 | CZ88: 0 | DA88: 0 | DB88: 0 | DC88: 0 | DD88: 0 | DE88: 0 | DF88: 0 | DG88: 0 | DH88: 0 | DI88: 0 | DJ88: 0 | DK88: 0 | DL88: 0 | DM88: 0 | DN88: 0 | DO88: 0 | DP88: 0 | DQ88: 0 | DR88: 0 | DS88: 0 | DT88: 0 | DU88: 0 | DV88: 0 | DW88: 0 | DX88: 0 | DY88: 0 | DZ88: 0 | EA88: 0 | EB88: 0 | EC88: 0 | ED88: 0 | EE88: 0 | EF88: 0 | EG88: 0 | EH88: 0 | EI88: 0 | EJ88: 0 | EK88: 0 | EL88: 0 | EM88: 0 | EN88: 0 | EO88: 0 | EP88: 0 | EQ88: 0 | ER88: 0 | ES88: 0 | ET88: 0 | EU88: 0 | EV88: 0 | EW88: 0 | EX88: 0 | EY88: 0 | EZ88: 0 | FA88: 0 | FB88: 0 | FC88: 0 | FD88: 0 | FE88: 0 | FF88: 0 | FG88: 0 | FH88: 0 | FI88: 0 | FJ88: 0 | FK88: 0 | FL88: 0 | FM88: 0 | FN88: 0 | FO88: 0 | FP88: 0 | FQ88: 0 | FR88: 0 | FS88: 0 | FT88: 0 | FU88: 0 | FV88: 0 | FW88: 0 | FX88: 0 | FY88: 0 | FZ88: 0 | GA88: 0 | GB88: 0 | GC88: 0 | GD88: 0 | GE88: 0 | GF88: 0 | GG88: 0 | GH88: 0
CV89: 0 | CW89: 0 | CX89: 0 | CY89: 0 | CZ89: 0 | DA89: 0 | DB89: 0 | DC89: 0 | DD89: 0 | DE89: 0 | DF89: 0 | DG89: 0 | DH89: 0 | DI89: 0 | DJ89: 0 | DK89: 0 | DL89: 0 | DM89: 0 | DN89: 0 | DO89: 0 | DP89: 0 | DQ89: 0 | DR89: 0 | DS89: 0 | DT89: 0 | DU89: 0 | DV89: 0 | DW89: 0 | DX89: 0 | DY89: 0 | DZ89: 0 | EA89: 0 | EB89: 0 | EC89: 0 | ED89: 0 | EE89: 0 | EF89: 0 | EG89: 0 | EH89: 0 | EI89: 0 | EJ89: 0 | EK89: 0 | EL89: 0 | EM89: 0 | EN89: 0 | EO89: 0 | EP89: 0 | EQ89: 0 | ER89: 0 | ES89: 0 | ET89: 0 | EU89: 0 | EV89: 0 | EW89: 0 | EX89: 0 | EY89: 0 | EZ89: 0 | FA89: 0 | FB89: 0 | FC89: 0 | FD89: 0 | FE89: 0 | FF89: 0 | FG89: 0 | FH89: 0 | FI89: 0 | FJ89: 0 | FK89: 0 | FL89: 0 | FM89: 0 | FN89: 0 | FO89: 0 | FP89: 0 | FQ89: 0 | FR89: 0 | FS89: 0 | FT89: 0 | FU89: 0 | FV89: 0 | FW89: 0 | FX89: 0 | FY89: 0 | FZ89: 0 | GA89: 0 | GB89: 0 | GC89: 0 | GD89: 0 | GE89: 0 | GF89: 0 | GG89: 0 | GH89: 0
CV90: 0 | CW90: 0 | CX90: 0 | CY90: 0 | CZ90: 0 | DA90: 0 | DB90: 0 | DC90: 0 | DD90: 0 | DE90: 0 | DF90: 0 | DG90: 0 | DH90: 0 | DI90: 0 | DJ90: 0 | DK90: 0 | DL90: 0 | DM90: 0 | DN90: 0 | DO90: 0 | DP90: 0 | DQ90: 0 | DR90: 0 | DS90: 0 | DT90: 0 | DU90: 0 | DV90: 0 | DW90: 0 | DX90: 0 | DY90: 0 | DZ90: 0 | EA90: 0 | EB90: 0 | EC90: 0 | ED90: 0 | EE90: 0 | EF90: 0 | EG90: 0 | EH90: 0 | EI90: 0 | EJ90: 0 | EK90: 0 | EL90: 0 | EM90: 0 | EN90: 0 | EO90: 0 | EP90: 0 | EQ90: 0 | ER90: 0 | ES90: 0 | ET90: 0 | EU90: 0 | EV90: 0 | EW90: 0 | EX90: 0 | EY90: 0 | EZ90: 0 | FA90: 0 | FB90: 0 | FC90: 0 | FD90: 0 | FE90: 0 | FF90: 0 | FG90: 0 | FH90: 0 | FI90: 0 | FJ90: 0 | FK90: 0 | FL90: 0 | FM90: 0 | FN90: 0 | FO90: 0 | FP90: 0 | FQ90: 0 | FR90: 0 | FS90: 0 | FT90: 0 | FU90: 0 | FV90: 0 | FW90: 0 | FX90: 0 | FY90: 0 | FZ90: 0 | GA90: 0 | GB90: 0 | GC90: 0 | GD90: 0 | GE90: 0 | GF90: 0 | GG90: 0 | GH90: 0
CV91: 0 | CW91: 0 | CX91: 0 | CY91: 0 | CZ91: 0 | DA91: 0 | DB91: 0 | DC91: 0 | DD91: 0 | DE91: 0 | DF91: 0 | DG91: 0 | DH91: 0 | DI91: 0 | DJ91: 0 | DK91: 0 | DL91: 0 | DM91: 0 | DN91: 0 | DO91: 0 | DP91: 0 | DQ91: 0 | DR91: 0 | DS91: 0 | DT91: 0 | DU91: 0 | DV91: 0 | DW91: 0 | DX91: 0 | DY91: 0 | DZ91: 0 | EA91: 0 | EB91: 0 | EC91: 0 | ED91: 0 | EE91: 0 | EF91: 0 | EG91: 0 | EH91: 0 | EI91: 0 | EJ91: 0 | EK91: 0 | EL91: 0 | EM91: 0 | EN91: 0 | EO91: 0 | EP91: 0 | EQ91: 0 | ER91: 0 | ES91: 0 | ET91: 0 | EU91: 0 | EV91: 0 | EW91: 0 | EX91: 0 | EY91: 0 | EZ91: 0 | FA91: 0 | FB91: 0 | FC91: 0 | FD91: 0 | FE91: 0 | FF91: 0 | FG91: 0 | FH91: 0 | FI91: 0 | FJ91: 0 | FK91: 0 | FL91: 0 | FM91: 0 | FN91: 0 | FO91: 0 | FP91: 0 | FQ91: 0 | FR91: 0 | FS91: 0 | FT91: 0 | FU91: 0 | FV91: 0 | FW91: 0 | FX91: 0 | FY91: 0 | FZ91: 0 | GA91: 0 | GB91: 0 | GC91: 0 | GD91: 0 | GE91: 0 | GF91: 0 | GG91: 0 | GH91: 0
CV92: 0 | CW92: 0 | CX92: 0 | CY92: 0 | CZ92: 0 | DA92: 0 | DB92: 0 | DC92: 0 | DD92: 0 | DE92: 0 | DF92: 0 | DG92: 0 | DH92: 0 | DI92: 0 | DJ92: 0 | DK92: 0 | DL92: 0 | DM92: 0 | DN92: 0 | DO92: 0 | DP92: 0 | DQ92: 0 | DR92: 0 | DS92: 0 | DT92: 0 | DU92: 0 | DV92: 0 | DW92: 0 | DX92: 0 | DY92: 0 | DZ92: 0 | EA92: 0 | EB92: 0 | EC92: 0 | ED92: 0 | EE92: 0 | EF92: 0 | EG92: 0 | EH92: 0 | EI92: 0 | EJ92: 0 | EK92: 0 | EL92: 0 | EM92: 0 | EN92: 0 | EO92: 0 | EP92: 0 | EQ92: 0 | ER92: 0 | ES92: 0 | ET92: 0 | EU92: 0 | EV92: 0 | EW92: 0 | EX92: 0 | EY92: 0 | EZ92: 0 | FA92: 0 | FB92: 0 | FC92: 0 | FD92: 0 | FE92: 0 | FF92: 0 | FG92: 0 | FH92: 0 | FI92: 0 | FJ92: 0 | FK92: 0 | FL92: 0 | FM92: 0 | FN92: 0 | FO92: 0 | FP92: 0 | FQ92: 0 | FR92: 0 | FS92: 0 | FT92: 0 | FU92: 0 | FV92: 0 | FW92: 0 | FX92: 0 | FY92: 0 | FZ92: 0 | GA92: 0 | GB92: 0 | GC92: 0 | GD92: 0 | GE92: 0 | GF92: 0 | GG92: 0 | GH92: 0
CV93: 0 | CW93: 0 | CX93: 0 | CY93: 0 | CZ93: 0 | DA93: 0 | DB93: 0 | DC93: 0 | DD93: 0 | DE93: 0 | DF93: 0 | DG93: 0 | DH93: 0 | DI93: 0 | DJ93: 0 | DK93: 0 | DL93: 0 | DM93: 0 | DN93: 0 | DO93: 0 | DP93: 0 | DQ93: 0 | DR93: 0 | DS93: 0 | DT93: 0 | DU93: 0 | DV93: 0 | DW93: 0 | DX93: 0 | DY93: 0 | DZ93: 0 | EA93: 0 | EB93: 0 | EC93: 0 | ED93: 0 | EE93: 0 | EF93: 0 | EG93: 0 | EH93: 0 | EI93: 0 | EJ93: 0 | EK93: 0 | EL93: 0 | EM93: 0 | EN93: 0 | EO93: 0 | EP93: 0 | EQ93: 0 | ER93: 0 | ES93: 0 | ET93: 0 | EU93: 0 | EV93: 0 | EW93: 0 | EX93: 0 | EY93: 0 | EZ93: 0 | FA93: 0 | FB93: 0 | FC93: 0 | FD93: 0 | FE93: 0 | FF93: 0 | FG93: 0 | FH93: 0 | FI93: 0 | FJ93: 0 | FK93: 0 | FL93: 0 | FM93: 0 | FN93: 0 | FO93: 0 | FP93: 0 | FQ93: 0 | FR93: 0 | FS93: 0 | FT93: 0 | FU93: 0 | FV93: 0 | FW93: 0 | FX93: 0 | FY93: 0 | FZ93: 0 | GA93: 0 | GB93: 0 | GC93: 0 | GD93: 0 | GE93: 0 | GF93: 0 | GG93: 0 | GH93: 0
CV94: 0 | CW94: 0 | CX94: 0 | CY94: 0 | CZ94: 0 | DA94: 0 | DB94: 0 | DC94: 0 | DD94: 0 | DE94: 0 | DF94: 0 | DG94: 0 | DH94: 0 | DI94: 0 | DJ94: 0 | DK94: 0 | DL94: 0 | DM94: 0 | DN94: 0 | DO94: 0 | DP94: 0 | DQ94: 0 | DR94: 0 | DS94: 0 | DT94: 0 | DU94: 0 | DV94: 0 | DW94: 0 | DX94: 0 | DY94: 0 | DZ94: 0 | EA94: 0 | EB94: 0 | EC94: 0 | ED94: 0 | EE94: 0 | EF94: 0 | EG94: 0 | EH94: 0 | EI94: 0 | EJ94: 0 | EK94: 0 | EL94: 0 | EM94: 0 | EN94: 0 | EO94: 0 | EP94: 0 | EQ94: 0 | ER94: 0 | ES94: 0 | ET94: 0 | EU94: 0 | EV94: 0 | EW94: 0 | EX94: 0 | EY94: 0 | EZ94: 0 | FA94: 0 | FB94: 0 | FC94: 0 | FD94: 0 | FE94: 0 | FF94: 0 | FG94: 0 | FH94: 0 | FI94: 0 | FJ94: 0 | FK94: 0 | FL94: 0 | FM94: 0 | FN94: 0 | FO94: 0 | FP94: 0 | FQ94: 0 | FR94: 0 | FS94: 0 | FT94: 0 | FU94: 0 | FV94: 0 | FW94: 0 | FX94: 0 | FY94: 0 | FZ94: 0 | GA94: 0 | GB94: 0 | GC94: 0 | GD94: 0 | GE94: 0 | GF94: 0 | GG94: 0 | GH94: 0
CV95: 0 | CW95: 0 | CX95: 0 | CY95: 0 | CZ95: 0 | DA95: 0 | DB95: 0 | DC95: 0 | DD95: 0 | DE95: 0 | DF95: 0 | DG95: 0 | DH95: 0 | DI95: 0 | DJ95: 0 | DK95: 0 | DL95: 0 | DM95: 0 | DN95: 0 | DO95: 0 | DP95: 0 | DQ95: 0 | DR95: 0 | DS95: 0 | DT95: 0 | DU95: 0 | DV95: 0 | DW95: 0 | DX95: 0 | DY95: 0 | DZ95: 0 | EA95: 0 | EB95: 0 | EC95: 0 | ED95: 0 | EE95: 0 | EF95: 0 | EG95: 0 | EH95: 0 | EI95: 0 | EJ95: 0 | EK95: 0 | EL95: 0 | EM95: 0 | EN95: 0 | EO95: 0 | EP95: 0 | EQ95: 0 | ER95: 0 | ES95: 0 | ET95: 0 | EU95: 0 | EV95: 0 | EW95: 0 | EX95: 0 | EY95: 0 | EZ95: 0 | FA95: 0 | FB95: 0 | FC95: 0 | FD95: 0 | FE95: 0 | FF95: 0 | FG95: 0 | FH95: 0 | FI95: 0 | FJ95: 0 | FK95: 0 | FL95: 0 | FM95: 0 | FN95: 0 | FO95: 0 | FP95: 0 | FQ95: 0 | FR95: 0 | FS95: 0 | FT95: 0 | FU95: 0 | FV95: 0 | FW95: 0 | FX95: 0 | FY95: 0 | FZ95: 0 | GA95: 0 | GB95: 0 | GC95: 0 | GD95: 0 | GE95: 0 | GF95: 0 | GG95: 0 | GH95: 0
CV96: 0 | CW96: 0 | CX96: 0 | CY96: 0 | CZ96: 0 | DA96: 0 | DB96: 0 | DC96: 0 | DD96: 0 | DE96: 0 | DF96: 0 | DG96: 0 | DH96: 0 | DI96: 0 | DJ96: 0 | DK96: 0 | DL96: 0 | DM96: 0 | DN96: 0 | DO96: 0 | DP96: 0 | DQ96: 0 | DR96: 0 | DS96: 0 | DT96: 0 | DU96: 0 | DV96: 0 | DW96: 0 | DX96: 0 | DY96: 0 | DZ96: 0 | EA96: 0 | EB96: 0 | EC96: 0 | ED96: 0 | EE96: 0 | EF96: 0 | EG96: 0 | EH96: 0 | EI96: 0 | EJ96: 0 | EK96: 0 | EL96: 0 | EM96: 0 | EN96: 0 | EO96: 0 | EP96: 0 | EQ96: 0 | ER96: 0 | ES96: 0 | ET96: 0 | EU96: 0 | EV96: 0 | EW96: 0 | EX96: 0 | EY96: 0 | EZ96: 0 | FA96: 0 | FB96: 0 | FC96: 0 | FD96: 0 | FE96: 0 | FF96: 0 | FG96: 0 | FH96: 0 | FI96: 0 | FJ96: 0 | FK96: 0 | FL96: 0 | FM96: 0 | FN96: 0 | FO96: 0 | FP96: 0 | FQ96: 0 | FR96: 0 | FS96: 0 | FT96: 0 | FU96: 0 | FV96: 0 | FW96: 0 | FX96: 0 | FY96: 0 | FZ96: 0 | GA96: 0 | GB96: 0 | GC96: 0 | GD96: 0 | GE96: 0 | GF96: 0 | GG96: 0 | GH96: 0
CV97: 0 | CW97: 0 | CX97: 0 | CY97: 0 | CZ97: 0 | DA97: 0 | DB97: 0 | DC97: 0 | DD97: 0 | DE97: 0 | DF97: 0 | DG97: 0 | DH97: 0 | DI97: 0 | DJ97: 0 | DK97: 0 | DL97: 0 | DM97: 0 | DN97: 0 | DO97: 0 | DP97: 0 | DQ97: 0 | DR97: 0 | DS97: 0 | DT97: 0 | DU97: 0 | DV97: 0 | DW97: 0 | DX97: 0 | DY97: 0 | DZ97: 0 | EA97: 0 | EB97: 0 | EC97: 0 | ED97: 0 | EE97: 0 | EF97: 0 | EG97: 0 | EH97: 0 | EI97: 0 | EJ97: 0 | EK97: 0 | EL97: 0 | EM97: 0 | EN97: 0 | EO97: 0 | EP97: 0 | EQ97: 0 | ER97: 0 | ES97: 0 | ET97: 0 | EU97: 0 | EV97: 0 | EW97: 0 | EX97: 0 | EY97: 0 | EZ97: 0 | FA97: 0 | FB97: 0 | FC97: 0 | FD97: 0 | FE97: 0 | FF97: 0 | FG97: 0 | FH97: 0 | FI97: 0 | FJ97: 0 | FK97: 0 | FL97: 0 | FM97: 0 | FN97: 0 | FO97: 0 | FP97: 0 | FQ97: 0 | FR97: 0 | FS97: 0 | FT97: 0 | FU97: 0 | FV97: 0 | FW97: 0 | FX97: 0 | FY97: 0 | FZ97: 0 | GA97: 0 | GB97: 0 | GC97: 0 | GD97: 0 | GE97: 0 | GF97: 0 | GG97: 0 | GH97: 0
CV98: 0 | CW98: 0 | CX98: 0 | CY98: 0 | CZ98: 0 | DA98: 0 | DB98: 0 | DC98: 0 | DD98: 0 | DE98: 0 | DF98: 0 | DG98: 0 | DH98: 0 | DI98: 0 | DJ98: 0 | DK98: 0 | DL98: 0 | DM98: 0 | DN98: 0 | DO98: 0 | DP98: 0 | DQ98: 0 | DR98: 0 | DS98: 0 | DT98: 0 | DU98: 0 | DV98: 0 | DW98: 0 | DX98: 0 | DY98: 0 | DZ98: 0 | EA98: 0 | EB98: 0 | EC98: 0 | ED98: 0 | EE98: 0 | EF98: 0 | EG98: 0 | EH98: 0 | EI98: 0 | EJ98: 0 | EK98: 0 | EL98: 0 | EM98: 0 | EN98: 0 | EO98: 0 | EP98: 0 | EQ98: 0 | ER98: 0 | ES98: 0 | ET98: 0 | EU98: 0 | EV98: 0 | EW98: 0 | EX98: 0 | EY98: 0 | EZ98: 0 | FA98: 0 | FB98: 0 | FC98: 0 | FD98: 0 | FE98: 0 | FF98: 0 | FG98: 0 | FH98: 0 | FI98: 0 | FJ98: 0 | FK98: 0 | FL98: 0 | FM98: 0 | FN98: 0 | FO98: 0 | FP98: 0 | FQ98: 0 | FR98: 0 | FS98: 0 | FT98: 0 | FU98: 0 | FV98: 0 | FW98: 0 | FX98: 0 | FY98: 0 | FZ98: 0 | GA98: 0 | GB98: 0 | GC98: 0 | GD98: 0 | GE98: 0 | GF98: 0 | GG98: 0 | GH98: 0
CV99: 0 | CW99: 0 | CX99: 0 | CY99: 0 | CZ99: 0 | DA99: 0 | DB99: 0 | DC99: 0 | DD99: 0 | DE99: 0 | DF99: 0 | DG99: 0 | DH99: 0 | DI99: 0 | DJ99: 0 | DK99: 0 | DL99: 0 | DM99: 0 | DN99: 0 | DO99: 0 | DP99: 0 | DQ99: 0 | DR99: 0 | DS99: 0 | DT99: 0 | DU99: 0 | DV99: 0 | DW99: 0 | DX99: 0 | DY99: 0 | DZ99: 0 | EA99: 0 | EB99: 0 | EC99: 0 | ED99: 0 | EE99: 0 | EF99: 0 | EG99: 0 | EH99: 0 | EI99: 0 | EJ99: 0 | EK99: 0 | EL99: 0 | EM99: 0 | EN99: 0 | EO99: 0 | EP99: 0 | EQ99: 0 | ER99: 0 | ES99: 0 | ET99: 0 | EU99: 0 | EV99: 0 | EW99: 0 | EX99: 0 | EY99: 0 | EZ99: 0 | FA99: 0 | FB99: 0 | FC99: 0 | FD99: 0 | FE99: 0 | FF99: 0 | FG99: 0 | FH99: 0 | FI99: 0 | FJ99: 0 | FK99: 0 | FL99: 0 | FM99: 0 | FN99: 0 | FO99: 0 | FP99: 0 | FQ99: 0 | FR99: 0 | FS99: 0 | FT99: 0 | FU99: 0 | FV99: 0 | FW99: 0 | FX99: 0 | FY99: 0 | FZ99: 0 | GA99: 0 | GB99: 0 | GC99: 0 | GD99: 0 | GE99: 0 | GF99: 0 | GG99: 0 | GH99: 0
CV100: 0 | CW100: 0 | CX100: 0 | CY100: 0 | CZ100: 0 | DA100: 0 | DB100: 0 | DC100: 0 | DD100: 0 | DE100: 0 | DF100: 0 | DG100: 0 | DH100: 0 | DI100: 0 | DJ100: 0 | DK100: 0 | DL100: 0 | DM100: 0 | DN100: 0 | DO100: 0 | DP100: 0 | DQ100: 0 | DR100: 0 | DS100: 0 | DT100: 0 | DU100: 0 | DV100: 0 | DW100: 0 | DX100: 0 | DY100: 0 | DZ100: 0 | EA100: 0 | EB100: 0 | EC100: 0 | ED100: 0 | EE100: 0 | EF100: 0 | EG100: 0 | EH100: 0 | EI100: 0 | EJ100: 0 | EK100: 0 | EL100: 0 | EM100: 0 | EN100: 0 | EO100: 0 | EP100: 0 | EQ100: 0 | ER100: 0 | ES100: 0 | ET100: 0 | EU100: 0 | EV100: 0 | EW100: 0 | EX100: 0 | EY100: 0 | EZ100: 0 | FA100: 0 | FB100: 0 | FC100: 0 | FD100: 0 | FE100: 0 | FF100: 0 | FG100: 0 | FH100: 0 | FI100: 0 | FJ100: 0 | FK100: 0 | FL100: 0 | FM100: 0 | FN100: 0 | FO100: 0 | FP100: 0 | FQ100: 0 | FR100: 0 | FS100: 0 | FT100: 0 | FU100: 0 | FV100: 0 | FW100: 0 | FX100: 0 | FY100: 0 | FZ100: 0 | GA100: 0 | GB100: 0 | GC100: 0 | GD100: 0 | GE100: 0 | GF100: 0 | GG100: 0 | GH100: 0
CV101: 0 | CW101: 0 | CX101: 0 | CY101: 0 | CZ101: 0 | DA101: 0 | DB101: 0 | DC101: 0 | DD101: 0 | DE101: 0 | DF101: 0 | DG101: 0 | DH101: 0 | DI101: 0 | DJ101: 0 | DK101: 0 | DL101: 0 | DM101: 0 | DN101: 0 | DO101: 0 | DP101: 0 | DQ101: 0 | DR101: 0 | DS101: 0 | DT101: 0 | DU101: 0 | DV101: 0 | DW101: 0 | DX101: 0 | DY101: 0 | DZ101: 0 | EA101: 0 | EB101: 0 | EC101: 0 | ED101: 0 | EE101: 0 | EF101: 0 | EG101: 0 | EH101: 0 | EI101: 0 | EJ101: 0 | EK101: 0 | EL101: 0 | EM101: 0 | EN101: 0 | EO101: 0 | EP101: 0 | EQ101: 0 | ER101: 0 | ES101: 0 | ET101: 0 | EU101: 0 | EV101: 0 | EW101: 0 | EX101: 0 | EY101: 0 | EZ101: 0 | FA101: 0 | FB101: 0 | FC101: 0 | FD101: 0 | FE101: 0 | FF101: 0 | FG101: 0 | FH101: 0 | FI101: 0 | FJ101: 0 | FK101: 0 | FL101: 0 | FM101: 0 | FN101: 0 | FO101: 0 | FP101: 0 | FQ101: 0 | FR101: 0 | FS101: 0 | FT101: 0 | FU101: 0 | FV101: 0 | FW101: 0 | FX101: 0 | FY101: 0 | FZ101: 0 | GA101: 0 | GB101: 0 | GC101: 0 | GD101: 0 | GE101: 0 | GF101: 0 | GG101: 0 | GH101: 0
CV102: 0 | CW102: 0 | CX102: 0 | CY102: 0 | CZ102: 0 | DA102: 0 | DB102: 0 | DC102: 0 | DD102: 0 | DE102: 0 | DF102: 0 | DG102: 0 | DH102: 0 | DI102: 0 | DJ102: 0 | DK102: 0 | DL102: 0 | DM102: 0 | DN102: 0 | DO102: 0 | DP102: 0 | DQ102: 0 | DR102: 0 | DS102: 0 | DT102: 0 | DU102: 0 | DV102: 0 | DW102: 0 | DX102: 0 | DY102: 0 | DZ102: 0 | EA102: 0 | EB102: 0 | EC102: 0 | ED102: 0 | EE102: 0 | EF102: 0 | EG102: 0 | EH102: 0 | EI102: 0 | EJ102: 0 | EK102: 0 | EL102: 0 | EM102: 0 | EN102: 0 | EO102: 0 | EP102: 0 | EQ102: 0 | ER102: 0 | ES102: 0 | ET102: 0 | EU102: 0 | EV102: 0 | EW102: 0 | EX102: 0 | EY102: 0 | EZ102: 0 | FA102: 0 | FB102: 0 | FC102: 0 | FD102: 0 | FE102: 0 | FF102: 0 | FG102: 0 | FH102: 0 | FI102: 0 | FJ102: 0 | FK102: 0 | FL102: 0 | FM102: 0 | FN102: 0 | FO102: 0 | FP102: 0 | FQ102: 0 | FR102: 0 | FS102: 0 | FT102: 0 | FU102: 0 | FV102: 0 | FW102: 0 | FX102: 0 | FY102: 0 | FZ102: 0 | GA102: 0 | GB102: 0 | GC102: 0 | GD102: 0 | GE102: 0 | GF102: 0 | GG102: 0 | GH102: 0
CV103: 0 | CW103: 0 | CX103: 0 | CY103: 0 | CZ103: 0 | DA103: 0 | DB103: 0 | DC103: 0 | DD103: 0 | DE103: 0 | DF103: 0 | DG103: 0 | DH103: 0 | DI103: 0 | DJ103: 0 | DK103: 0 | DL103: 0 | DM103: 0 | DN103: 0 | DO103: 0 | DP103: 0 | DQ103: 0 | DR103: 0 | DS103: 0 | DT103: 0 | DU103: 0 | DV103: 0 | DW103: 0 | DX103: 0 | DY103: 0 | DZ103: 0 | EA103: 0 | EB103: 0 | EC103: 0 | ED103: 0 | EE103: 0 | EF103: 0 | EG103: 0 | EH103: 0 | EI103: 0 | EJ103: 0 | EK103: 0 | EL103: 0 | EM103: 0 | EN103: 0 | EO103: 0 | EP103: 0 | EQ103: 0 | ER103: 0 | ES103: 0 | ET103: 0 | EU103: 0 | EV103: 0 | EW103: 0 | EX103: 0 | EY103: 0 | EZ103: 0 | FA103: 0 | FB103: 0 | FC103: 0 | FD103: 0 | FE103: 0 | FF103: 0 | FG103: 0 | FH103: 0 | FI103: 0 | FJ103: 0 | FK103: 0 | FL103: 0 | FM103: 0 | FN103: 0 | FO103: 0 | FP103: 0 | FQ103: 0 | FR103: 0 | FS103: 0 | FT103: 0 | FU103: 0 | FV103: 0 | FW103: 0 | FX103: 0 | FY103: 0 | FZ103: 0 | GA103: 0 | GB103: 0 | GC103: 0 | GD103: 0 | GE103: 0 | GF103: 0 | GG103: 0 | GH103: 0
CV104: 0 | CW104: 0 | CX104: 0 | CY104: 0 | CZ104: 0 | DA104: 0 | DB104: 0 | DC104: 0 | DD104: 0 | DE104: 0 | DF104: 0 | DG104: 0 | DH104: 0 | DI104: 0 | DJ104: 0 | DK104: 0 | DL104: 0 | DM104: 0 | DN104: 0 | DO104: 0 | DP104: 0 | DQ104: 0 | DR104: 0 | DS104: 0 | DT104: 0 | DU104: 0 | DV104: 0 | DW104: 0 | DX104: 0 | DY104: 0 | DZ104: 0 | EA104: 0 | EB104: 0 | EC104: 0 | ED104: 0 | EE104: 0 | EF104: 0 | EG104: 0 | EH104: 0 | EI104: 0 | EJ104: 0 | EK104: 0 | EL104: 0 | EM104: 0 | EN104: 0 | EO104: 0 | EP104: 0 | EQ104: 0 | ER104: 0 | ES104: 0 | ET104: 0 | EU104: 0 | EV104: 0 | EW104: 0 | EX104: 0 | EY104: 0 | EZ104: 0 | FA104: 0 | FB104: 0 | FC104: 0 | FD104: 0 | FE104: 0 | FF104: 0 | FG104: 0 | FH104: 0 | FI104: 0 | FJ104: 0 | FK104: 0 | FL104: 0 | FM104: 0 | FN104: 0 | FO104: 0 | FP104: 0 | FQ104: 0 | FR104: 0 | FS104: 0 | FT104: 0 | FU104: 0 | FV104: 0 | FW104: 0 | FX104: 0 | FY104: 0 | FZ104: 0 | GA104: 0 | GB104: 0 | GC104: 0 | GD104: 0 | GE104: 0 | GF104: 0 | GG104: 0 | GH104: 0
CV105: 0 | CW105: 0 | CX105: 0 | CY105: 0 | CZ105: 0 | DA105: 0 | DB105: 0 | DC105: 0 | DD105: 0 | DE105: 0 | DF105: 0 | DG105: 0 | DH105: 0 | DI105: 0 | DJ105: 0 | DK105: 0 | DL105: 0 | DM105: 0 | DN105: 0 | DO105: 0 | DP105: 0 | DQ105: 0 | DR105: 0 | DS105: 0 | DT105: 0 | DU105: 0 | DV105: 0 | DW105: 0 | DX105: 0 | DY105: 0 | DZ105: 0 | EA105: 0 | EB105: 0 | EC105: 0 | ED105: 0 | EE105: 0 | EF105: 0 | EG105: 0 | EH105: 0 | EI105: 0 | EJ105: 0 | EK105: 0 | EL105: 0 | EM105: 0 | EN105: 0 | EO105: 0 | EP105: 0 | EQ105: 0 | ER105: 0 | ES105: 0 | ET105: 0 | EU105: 0 | EV105: 0 | EW105: 0 | EX105: 0 | EY105: 0 | EZ105: 0 | FA105: 0 | FB105: 0 | FC105: 0 | FD105: 0 | FE105: 0 | FF105: 0 | FG105: 0 | FH105: 0 | FI105: 0 | FJ105: 0 | FK105: 0 | FL105: 0 | FM105: 0 | FN105: 0 | FO105: 0 | FP105: 0 | FQ105: 0 | FR105: 0 | FS105: 0 | FT105: 0 | FU105: 0 | FV105: 0 | FW105: 0 | FX105: 0 | FY105: 0 | FZ105: 0 | GA105: 0 | GB105: 0 | GC105: 0 | GD105: 0 | GE105: 0 | GF105: 0 | GG105: 0 | GH105: 0
CV106: 0 | CW106: 0 | CX106: 0 | CY106: 0 | CZ106: 0 | DA106: 0 | DB106: 0 | DC106: 0 | DD106: 0 | DE106: 0 | DF106: 0 | DG106: 0 | DH106: 0 | DI106: 0 | DJ106: 0 | DK106: 0 | DL106: 0 | DM106: 0 | DN106: 0 | DO106: 0 | DP106: 0 | DQ106: 0 | DR106: 0 | DS106: 0 | DT106: 0 | DU106: 0 | DV106: 0 | DW106: 0 | DX106: 0 | DY106: 0 | DZ106: 0 | EA106: 0 | EB106: 0 | EC106: 0 | ED106: 0 | EE106: 0 | EF106: 0 | EG106: 0 | EH106: 0 | EI106: 0 | EJ106: 0 | EK106: 0 | EL106: 0 | EM106: 0 | EN106: 0 | EO106: 0 | EP106: 0 | EQ106: 0 | ER106: 0 | ES106: 0 | ET106: 0 | EU106: 0 | EV106: 0 | EW106: 0 | EX106: 0 | EY106: 0 | EZ106: 0 | FA106: 0 | FB106: 0 | FC106: 0 | FD106: 0 | FE106: 0 | FF106: 0 | FG106: 0 | FH106: 0 | FI106: 0 | FJ106: 0 | FK106: 0 | FL106: 0 | FM106: 0 | FN106: 0 | FO106: 0 | FP106: 0 | FQ106: 0 | FR106: 0 | FS106: 0 | FT106: 0 | FU106: 0 | FV106: 0 | FW106: 0 | FX106: 0 | FY106: 0 | FZ106: 0 | GA106: 0 | GB106: 0 | GC106: 0 | GD106: 0 | GE106: 0 | GF106: 0 | GG106: 0 | GH106: 0
CV107: 0 | CW107: 0 | CX107: 0 | CY107: 0 | CZ107: 0 | DA107: 0 | DB107: 0 | DC107: 0 | DD107: 0 | DE107: 0 | DF107: 0 | DG107: 0 | DH107: 0 | DI107: 0 | DJ107: 0 | DK107: 0 | DL107: 0 | DM107: 0 | DN107: 0 | DO107: 0 | DP107: 0 | DQ107: 0 | DR107: 0 | DS107: 0 | DT107: 0 | DU107: 0 | DV107: 0 | DW107: 0 | DX107: 0 | DY107: 0 | DZ107: 0 | EA107: 0 | EB107: 0 | EC107: 0 | ED107: 0 | EE107: 0 | EF107: 0 | EG107: 0 | EH107: 0 | EI107: 0 | EJ107: 0 | EK107: 0 | EL107: 0 | EM107: 0 | EN107: 0 | EO107: 0 | EP107: 0 | EQ107: 0 | ER107: 0 | ES107: 0 | ET107: 0 | EU107: 0 | EV107: 0 | EW107: 0 | EX107: 0 | EY107: 0 | EZ107: 0 | FA107: 0 | FB107: 0 | FC107: 0 | FD107: 0 | FE107: 0 | FF107: 0 | FG107: 0 | FH107: 0 | FI107: 0 | FJ107: 0 | FK107: 0 | FL107: 0 | FM107: 0 | FN107: 0 | FO107: 0 | FP107: 0 | FQ107: 0 | FR107: 0 | FS107: 0 | FT107: 0 | FU107: 0 | FV107: 0 | FW107: 0 | FX107: 0 | FY107: 0 | FZ107: 0 | GA107: 0 | GB107: 0 | GC107: 0 | GD107: 0 | GE107: 0 | GF107: 0 | GG107: 0 | GH107: 0
CV108: 0 | CW108: 0 | CX108: 0 | CY108: 0 | CZ108: 0 | DA108: 0 | DB108: 0 | DC108: 0 | DD108: 0 | DE108: 0 | DF108: 0 | DG108: 0 | DH108: 0 | DI108: 0 | DJ108: 0 | DK108: 0 | DL108: 0 | DM108: 0 | DN108: 0 | DO108: 0 | DP108: 0 | DQ108: 0 | DR108: 0 | DS108: 0 | DT108: 0 | DU108: 0 | DV108: 0 | DW108: 0 | DX108: 0 | DY108: 0 | DZ108: 0 | EA108: 0 | EB108: 0 | EC108: 0 | ED108: 0 | EE108: 0 | EF108: 0 | EG108: 0 | EH108: 0 | EI108: 0 | EJ108: 0 | EK108: 0 | EL108: 0 | EM108: 0 | EN108: 0 | EO108: 0 | EP108: 0 | EQ108: 0 | ER108: 0 | ES108: 0 | ET108: 0 | EU108: 0 | EV108: 0 | EW108: 0 | EX108: 0 | EY108: 0 | EZ108: 0 | FA108: 0 | FB108: 0 | FC108: 0 | FD108: 0 | FE108: 0 | FF108: 0 | FG108: 0 | FH108: 0 | FI108: 0 | FJ108: 0 | FK108: 0 | FL108: 0 | FM108: 0 | FN108: 0 | FO108: 0 | FP108: 0 | FQ108: 0 | FR108: 0 | FS108: 0 | FT108: 0 | FU108: 0 | FV108: 0 | FW108: 0 | FX108: 0 | FY108: 0 | FZ108: 0 | GA108: 0 | GB108: 0 | GC108: 0 | GD108: 0 | GE108: 0 | GF108: 0 | GG108: 0 | GH108: 0
CV109: 0 | CW109: 0 | CX109: 0 | CY109: 0 | CZ109: 0 | DA109: 0 | DB109: 0 | DC109: 0 | DD109: 0 | DE109: 0 | DF109: 0 | DG109: 0 | DH109: 0 | DI109: 0 | DJ109: 0 | DK109: 0 | DL109: 0 | DM109: 0 | DN109: 0 | DO109: 0 | DP109: 0 | DQ109: 0 | DR109: 0 | DS109: 0 | DT109: 0 | DU109: 0 | DV109: 0 | DW109: 0 | DX109: 0 | DY109: 0 | DZ109: 0 | EA109: 0 | EB109: 0 | EC109: 0 | ED109: 0 | EE109: 0 | EF109: 0 | EG109: 0 | EH109: 0 | EI109: 0 | EJ109: 0 | EK109: 0 | EL109: 0 | EM109: 0 | EN109: 0 | EO109: 0 | EP109: 0 | EQ109: 0 | ER109: 0 | ES109: 0 | ET109: 0 | EU109: 0 | EV109: 0 | EW109: 0 | EX109: 0 | EY109: 0 | EZ109: 0 | FA109: 0 | FB109: 0 | FC109: 0 | FD109: 0 | FE109: 0 | FF109: 0 | FG109: 0 | FH109: 0 | FI109: 0 | FJ109: 0 | FK109: 0 | FL109: 0 | FM109: 0 | FN109: 0 | FO109: 0 | FP109: 0 | FQ109: 0 | FR109: 0 | FS109: 0 | FT109: 0 | FU109: 0 | FV109: 0 | FW109: 0 | FX109: 0 | FY109: 0 | FZ109: 0 | GA109: 0 | GB109: 0 | GC109: 0 | GD109: 0 | GE109: 0 | GF109: 0 | GG109: 0 | GH109: 0
CV110: 0 | CW110: 0 | CX110: 0 | CY110: 0 | CZ110: 0 | DA110: 0 | DB110: 0 | DC110: 0 | DD110: 0 | DE110: 0 | DF110: 0 | DG110: 0 | DH110: 0 | DI110: 0 | DJ110: 0 | DK110: 0 | DL110: 0 | DM110: 0 | DN110: 0 | DO110: 0 | DP110: 0 | DQ110: 0 | DR110: 0 | DS110: 0 | DT110: 0 | DU110: 0 | DV110: 0 | DW110: 0 | DX110: 0 | DY110: 0 | DZ110: 0 | EA110: 0 | EB110: 0 | EC110: 0 | ED110: 0 | EE110: 0 | EF110: 0 | EG110: 0 | EH110: 0 | EI110: 0 | EJ110: 0 | EK110: 0 | EL110: 0 | EM110: 0 | EN110: 0 | EO110: 0 | EP110: 0 | EQ110: 0 | ER110: 0 | ES110: 0 | ET110: 0 | EU110: 0 | EV110: 0 | EW110: 0 | EX110: 0 | EY110: 0 | EZ110: 0 | FA110: 0 | FB110: 0 | FC110: 0 | FD110: 0 | FE110: 0 | FF110: 0 | FG110: 0 | FH110: 0 | FI110: 0 | FJ110: 0 | FK110: 0 | FL110: 0 | FM110: 0 | FN110: 0 | FO110: 0 | FP110: 0 | FQ110: 0 | FR110: 0 | FS110: 0 | FT110: 0 | FU110: 0 | FV110: 0 | FW110: 0 | FX110: 0 | FY110: 0 | FZ110: 0 | GA110: 0 | GB110: 0 | GC110: 0 | GD110: 0 | GE110: 0 | GF110: 0 | GG110: 0 | GH110: 0
CV111: 0 | CW111: 0 | CX111: 0 | CY111: 0 | CZ111: 0 | DA111: 0 | DB111: 0 | DC111: 0 | DD111: 0 | DE111: 0 | DF111: 0 | DG111: 0 | DH111: 0 | DI111: 0 | DJ111: 0 | DK111: 0 | DL111: 0 | DM111: 0 | DN111: 0 | DO111: 0 | DP111: 0 | DQ111: 0 | DR111: 0 | DS111: 0 | DT111: 0 | DU111: 0 | DV111: 0 | DW111: 0 | DX111: 0 | DY111: 0 | DZ111: 0 | EA111: 0 | EB111: 0 | EC111: 0 | ED111: 0 | EE111: 0 | EF111: 0 | EG111: 0 | EH111: 0 | EI111: 0 | EJ111: 0 | EK111: 0 | EL111: 0 | EM111: 0 | EN111: 0 | EO111: 0 | EP111: 0 | EQ111: 0 | ER111: 0 | ES111: 0 | ET111: 0 | EU111: 0 | EV111: 0 | EW111: 0 | EX111: 0 | EY111: 0 | EZ111: 0 | FA111: 0 | FB111: 0 | FC111: 0 | FD111: 0 | FE111: 0 | FF111: 0 | FG111: 0 | FH111: 0 | FI111: 0 | FJ111: 0 | FK111: 0 | FL111: 0 | FM111: 0 | FN111: 0 | FO111: 0 | FP111: 0 | FQ111: 0 | FR111: 0 | FS111: 0 | FT111: 0 | FU111: 0 | FV111: 0 | FW111: 0 | FX111: 0 | FY111: 0 | FZ111: 0 | GA111: 0 | GB111: 0 | GC111: 0 | GD111: 0 | GE111: 0 | GF111: 0 | GG111: 0 | GH111: 0
CV112: 0 | CW112: 0 | CX112: 0 | CY112: 0 | CZ112: 0 | DA112: 0 | DB112: 0 | DC112: 0 | DD112: 0 | DE112: 0 | DF112: 0 | DG112: 0 | DH112: 0 | DI112: 0 | DJ112: 0 | DK112: 0 | DL112: 0 | DM112: 0 | DN112: 0 | DO112: 0 | DP112: 0 | DQ112: 0 | DR112: 0 | DS112: 0 | DT112: 0 | DU112: 0 | DV112: 0 | DW112: 0 | DX112: 0 | DY112: 0 | DZ112: 0 | EA112: 0 | EB112: 0 | EC112: 0 | ED112: 0 | EE112: 0 | EF112: 0 | EG112: 0 | EH112: 0 | EI112: 0 | EJ112: 0 | EK112: 0 | EL112: 0 | EM112: 0 | EN112: 0 | EO112: 0 | EP112: 0 | EQ112: 0 | ER112: 0 | ES112: 0 | ET112: 0 | EU112: 0 | EV112: 0 | EW112: 0 | EX112: 0 | EY112: 0 | EZ112: 0 | FA112: 0 | FB112: 0 | FC112: 0 | FD112: 0 | FE112: 0 | FF112: 0 | FG112: 0 | FH112: 0 | FI112: 0 | FJ112: 0 | FK112: 0 | FL112: 0 | FM112: 0 | FN112: 0 | FO112: 0 | FP112: 0 | FQ112: 0 | FR112: 0 | FS112: 0 | FT112: 0 | FU112: 0 | FV112: 0 | FW112: 0 | FX112: 0 | FY112: 0 | FZ112: 0 | GA112: 0 | GB112: 0 | GC112: 0 | GD112: 0 | GE112: 0 | GF112: 0 | GG112: 0 | GH112: 0
CV113: 0 | CW113: 0 | CX113: 0 | CY113: 0 | CZ113: 0 | DA113: 0 | DB113: 0 | DC113: 0 | DD113: 0 | DE113: 0 | DF113: 0 | DG113: 0 | DH113: 0 | DI113: 0 | DJ113: 0 | DK113: 0 | DL113: 0 | DM113: 0 | DN113: 0 | DO113: 0 | DP113: 0 | DQ113: 0 | DR113: 0 | DS113: 0 | DT113: 0 | DU113: 0 | DV113: 0 | DW113: 0 | DX113: 0 | DY113: 0 | DZ113: 0 | EA113: 0 | EB113: 0 | EC113: 0 | ED113: 0 | EE113: 0 | EF113: 0 | EG113: 0 | EH113: 0 | EI113: 0 | EJ113: 0 | EK113: 0 | EL113: 0 | EM113: 0 | EN113: 0 | EO113: 0 | EP113: 0 | EQ113: 0 | ER113: 0 | ES113: 0 | ET113: 0 | EU113: 0 | EV113: 0 | EW113: 0 | EX113: 0 | EY113: 0 | EZ113: 0 | FA113: 0 | FB113: 0 | FC113: 0 | FD113: 0 | FE113: 0 | FF113: 0 | FG113: 0 | FH113: 0 | FI113: 0 | FJ113: 0 | FK113: 0 | FL113: 0 | FM113: 0 | FN113: 0 | FO113: 0 | FP113: 0 | FQ113: 0 | FR113: 0 | FS113: 0 | FT113: 0 | FU113: 0 | FV113: 0 | FW113: 0 | FX113: 0 | FY113: 0 | FZ113: 0 | GA113: 0 | GB113: 0 | GC113: 0 | GD113: 0 | GE113: 0 | GF113: 0 | GG113: 0 | GH113: 0
CV114: 0 | CW114: 0 | CX114: 0 | CY114: 0 | CZ114: 0 | DA114: 0 | DB114: 0 | DC114: 0 | DD114: 0 | DE114: 0 | DF114: 0 | DG114: 0 | DH114: 0 | DI114: 0 | DJ114: 0 | DK114: 0 | DL114: 0 | DM114: 0 | DN114: 0 | DO114: 0 | DP114: 0 | DQ114: 0 | DR114: 0 | DS114: 0 | DT114: 0 | DU114: 0 | DV114: 0 | DW114: 0 | DX114: 0 | DY114: 0 | DZ114: 0 | EA114: 0 | EB114: 0 | EC114: 0 | ED114: 0 | EE114: 0 | EF114: 0 | EG114: 0 | EH114: 0 | EI114: 0 | EJ114: 0 | EK114: 0 | EL114: 0 | EM114: 0 | EN114: 0 | EO114: 0 | EP114: 0 | EQ114: 0 | ER114: 0 | ES114: 0 | ET114: 0 | EU114: 0 | EV114: 0 | EW114: 0 | EX114: 0 | EY114: 0 | EZ114: 0 | FA114: 0 | FB114: 0 | FC114: 0 | FD114: 0 | FE114: 0 | FF114: 0 | FG114: 0 | FH114: 0 | FI114: 0 | FJ114: 0 | FK114: 0 | FL114: 0 | FM114: 0 | FN114: 0 | FO114: 0 | FP114: 0 | FQ114: 0 | FR114: 0 | FS114: 0 | FT114: 0 | FU114: 0 | FV114: 0 | FW114: 0 | FX114: 0 | FY114: 0 | FZ114: 0 | GA114: 0 | GB114: 0 | GC114: 0 | GD114: 0 | GE114: 0 | GF114: 0 | GG114: 0 | GH114: 0
CV115: 0 | CW115: 0 | CX115: 0 | CY115: 0 | CZ115: 0 | DA115: 0 | DB115: 0 | DC115: 0 | DD115: 0 | DE115: 0 | DF115: 0 | DG115: 0 | DH115: 0 | DI115: 0 | DJ115: 0 | DK115: 0 | DL115: 0 | DM115: 0 | DN115: 0 | DO115: 0 | DP115: 0 | DQ115: 0 | DR115: 0 | DS115: 0 | DT115: 0 | DU115: 0 | DV115: 0 | DW115: 0 | DX115: 0 | DY115: 0 | DZ115: 0 | EA115: 0 | EB115: 0 | EC115: 0 | ED115: 0 | EE115: 0 | EF115: 0 | EG115: 0 | EH115: 0 | EI115: 0 | EJ115: 0 | EK115: 0 | EL115: 0 | EM115: 0 | EN115: 0 | EO115: 0 | EP115: 0 | EQ115: 0 | ER115: 0 | ES115: 0 | ET115: 0 | EU115: 0 | EV115: 0 | EW115: 0 | EX115: 0 | EY115: 0 | EZ115: 0 | FA115: 0 | FB115: 0 | FC115: 0 | FD115: 0 | FE115: 0 | FF115: 0 | FG115: 0 | FH115: 0 | FI115: 0 | FJ115: 0 | FK115: 0 | FL115: 0 | FM115: 0 | FN115: 0 | FO115: 0 | FP115: 0 | FQ115: 0 | FR115: 0 | FS115: 0 | FT115: 0 | FU115: 0 | FV115: 0 | FW115: 0 | FX115: 0 | FY115: 0 | FZ115: 0 | GA115: 0 | GB115: 0 | GC115: 0 | GD115: 0 | GE115: 0 | GF115: 0 | GG115: 0 | GH115: 0
CV116: 0 | CW116: 0 | CX116: 0 | CY116: 0 | CZ116: 0 | DA116: 0 | DB116: 0 | DC116: 0 | DD116: 0 | DE116: 0 | DF116: 0 | DG116: 0 | DH116: 0 | DI116: 0 | DJ116: 0 | DK116: 0 | DL116: 0 | DM116: 0 | DN116: 0 | DO116: 0 | DP116: 0 | DQ116: 0 | DR116: 0 | DS116: 0 | DT116: 0 | DU116: 0 | DV116: 0 | DW116: 0 | DX116: 0 | DY116: 0 | DZ116: 0 | EA116: 0 | EB116: 0 | EC116: 0 | ED116: 0 | EE116: 0 | EF116: 0 | EG116: 0 | EH116: 0 | EI116: 0 | EJ116: 0 | EK116: 0 | EL116: 0 | EM116: 0 | EN116: 0 | EO116: 0 | EP116: 0 | EQ116: 0 | ER116: 0 | ES116: 0 | ET116: 0 | EU116: 0 | EV116: 0 | EW116: 0 | EX116: 0 | EY116: 0 | EZ116: 0 | FA116: 0 | FB116: 0 | FC116: 0 | FD116: 0 | FE116: 0 | FF116: 0 | FG116: 0 | FH116: 0 | FI116: 0 | FJ116: 0 | FK116: 0 | FL116: 0 | FM116: 0 | FN116: 0 | FO116: 0 | FP116: 0 | FQ116: 0 | FR116: 0 | FS116: 0 | FT116: 0 | FU116: 0 | FV116: 0 | FW116: 0 | FX116: 0 | FY116: 0 | FZ116: 0 | GA116: 0 | GB116: 0 | GC116: 0 | GD116: 0 | GE116: 0 | GF116: 0 | GG116: 0 | GH116: 0
CV117: 0 | CW117: 0 | CX117: 0 | CY117: 0 | CZ117: 0 | DA117: 0 | DB117: 0 | DC117: 0 | DD117: 0 | DE117: 0 | DF117: 0 | DG117: 0 | DH117: 0 | DI117: 0 | DJ117: 0 | DK117: 0 | DL117: 0 | DM117: 0 | DN117: 0 | DO117: 0 | DP117: 0 | DQ117: 0 | DR117: 0 | DS117: 0 | DT117: 0 | DU117: 0 | DV117: 0 | DW117: 0 | DX117: 0 | DY117: 0 | DZ117: 0 | EA117: 0 | EB117: 0 | EC117: 0 | ED117: 0 | EE117: 0 | EF117: 0 | EG117: 0 | EH117: 0 | EI117: 0 | EJ117: 0 | EK117: 0 | EL117: 0 | EM117: 0 | EN117: 0 | EO117: 0 | EP117: 0 | EQ117: 0 | ER117: 0 | ES117: 0 | ET117: 0 | EU117: 0 | EV117: 0 | EW117: 0 | EX117: 0 | EY117: 0 | EZ117: 0 | FA117: 0 | FB117: 0 | FC117: 0 | FD117: 0 | FE117: 0 | FF117: 0 | FG117: 0 | FH117: 0 | FI117: 0 | FJ117: 0 | FK117: 0 | FL117: 0 | FM117: 0 | FN117: 0 | FO117: 0 | FP117: 0 | FQ117: 0 | FR117: 0 | FS117: 0 | FT117: 0 | FU117: 0 | FV117: 0 | FW117: 0 | FX117: 0 | FY117: 0 | FZ117: 0 | GA117: 0 | GB117: 0 | GC117: 0 | GD117: 0 | GE117: 0 | GF117: 0 | GG117: 0 | GH117: 0
CV118: 0 | CW118: 0 | CX118: 0 | CY118: 0 | CZ118: 0 | DA118: 0 | DB118: 0 | DC118: 0 | DD118: 0 | DE118: 0 | DF118: 0 | DG118: 0 | DH118: 0 | DI118: 0 | DJ118: 0 | DK118: 0 | DL118: 0 | DM118: 0 | DN118: 0 | DO118: 0 | DP118: 0 | DQ118: 0 | DR118: 0 | DS118: 0 | DT118: 0 | DU118: 0 | DV118: 0 | DW118: 0 | DX118: 0 | DY118: 0 | DZ118: 0 | EA118: 0 | EB118: 0 | EC118: 0 | ED118: 0 | EE118: 0 | EF118: 0 | EG118: 0 | EH118: 0 | EI118: 0 | EJ118: 0 | EK118: 0 | EL118: 0 | EM118: 0 | EN118: 0 | EO118: 0 | EP118: 0 | EQ118: 0 | ER118: 0 | ES118: 0 | ET118: 0 | EU118: 0 | EV118: 0 | EW118: 0 | EX118: 0 | EY118: 0 | EZ118: 0 | FA118: 0 | FB118: 0 | FC118: 0 | FD118: 0 | FE118: 0 | FF118: 0 | FG118: 0 | FH118: 0 | FI118: 0 | FJ118: 0 | FK118: 0 | FL118: 0 | FM118: 0 | FN118: 0 | FO118: 0 | FP118: 0 | FQ118: 0 | FR118: 0 | FS118: 0 | FT118: 0 | FU118: 0 | FV118: 0 | FW118: 0 | FX118: 0 | FY118: 0 | FZ118: 0 | GA118: 0 | GB118: 0 | GC118: 0 | GD118: 0 | GE118: 0 | GF118: 0 | GG118: 0 | GH118: 0
CV119: 0 | CW119: 0 | CX119: 0 | CY119: 0 | CZ119: 0 | DA119: 0 | DB119: 0 | DC119: 0 | DD119: 0 | DE119: 0 | DF119: 0 | DG119: 0 | DH119: 0 | DI119: 0 | DJ119: 0 | DK119: 0 | DL119: 0 | DM119: 0 | DN119: 0 | DO119: 0 | DP119: 0 | DQ119: 0 | DR119: 0 | DS119: 0 | DT119: 0 | DU119: 0 | DV119: 0 | DW119: 0 | DX119: 0 | DY119: 0 | DZ119: 0 | EA119: 0 | EB119: 0 | EC119: 0 | ED119: 0 | EE119: 0 | EF119: 0 | EG119: 0 | EH119: 0 | EI119: 0 | EJ119: 0 | EK119: 0 | EL119: 0 | EM119: 0 | EN119: 0 | EO119: 0 | EP119: 0 | EQ119: 0 | ER119: 0 | ES119: 0 | ET119: 0 | EU119: 0 | EV119: 0 | EW119: 0 | EX119: 0 | EY119: 0 | EZ119: 0 | FA119: 0 | FB119: 0 | FC119: 0 | FD119: 0 | FE119: 0 | FF119: 0 | FG119: 0 | FH119: 0 | FI119: 0 | FJ119: 0 | FK119: 0 | FL119: 0 | FM119: 0 | FN119: 0 | FO119: 0 | FP119: 0 | FQ119: 0 | FR119: 0 | FS119: 0 | FT119: 0 | FU119: 0 | FV119: 0 | FW119: 0 | FX119: 0 | FY119: 0 | FZ119: 0 | GA119: 0 | GB119: 0 | GC119: 0 | GD119: 0 | GE119: 0 | GF119: 0 | GG119: 0 | GH119: 0
CV120: 0 | CW120: 0 | CX120: 0 | CY120: 0 | CZ120: 0 | DA120: 0 | DB120: 0 | DC120: 0 | DD120: 0 | DE120: 0 | DF120: 0 | DG120: 0 | DH120: 0 | DI120: 0 | DJ120: 0 | DK120: 0 | DL120: 0 | DM120: 0 | DN120: 0 | DO120: 0 | DP120: 0 | DQ120: 0 | DR120: 0 | DS120: 0 | DT120: 0 | DU120: 0 | DV120: 0 | DW120: 0 | DX120: 0 | DY120: 0 | DZ120: 0 | EA120: 0 | EB120: 0 | EC120: 0 | ED120: 0 | EE120: 0 | EF120: 0 | EG120: 0 | EH120: 0 | EI120: 0 | EJ120: 0 | EK120: 0 | EL120: 0 | EM120: 0 | EN120: 0 | EO120: 0 | EP120: 0 | EQ120: 0 | ER120: 0 | ES120: 0 | ET120: 0 | EU120: 0 | EV120: 0 | EW120: 0 | EX120: 0 | EY120: 0 | EZ120: 0 | FA120: 0 | FB120: 0 | FC120: 0 | FD120: 0 | FE120: 0 | FF120: 0 | FG120: 0 | FH120: 0 | FI120: 0 | FJ120: 0 | FK120: 0 | FL120: 0 | FM120: 0 | FN120: 0 | FO120: 0 | FP120: 0 | FQ120: 0 | FR120: 0 | FS120: 0 | FT120: 0 | FU120: 0 | FV120: 0 | FW120: 0 | FX120: 0 | FY120: 0 | FZ120: 0 | GA120: 0 | GB120: 0 | GC120: 0 | GD120: 0 | GE120: 0 | GF120: 0 | GG120: 0 | GH120: 0
CV121: 0 | CW121: 0 | CX121: 0 | CY121: 0 | CZ121: 0 | DA121: 0 | DB121: 0 | DC121: 0 | DD121: 0 | DE121: 0 | DF121: 0 | DG121: 0 | DH121: 0 | DI121: 0 | DJ121: 0 | DK121: 0 | DL121: 0 | DM121: 0 | DN121: 0 | DO121: 0 | DP121: 0 | DQ121: 0 | DR121: 0 | DS121: 0 | DT121: 0 | DU121: 0 | DV121: 0 | DW121: 0 | DX121: 0 | DY121: 0 | DZ121: 0 | EA121: 0 | EB121: 0 | EC121: 0 | ED121: 0 | EE121: 0 | EF121: 0 | EG121: 0 | EH121: 0 | EI121: 0 | EJ121: 0 | EK121: 0 | EL121: 0 | EM121: 0 | EN121: 0 | EO121: 0 | EP121: 0 | EQ121: 0 | ER121: 0 | ES121: 0 | ET121: 0 | EU121: 0 | EV121: 0 | EW121: 0 | EX121: 0 | EY121: 0 | EZ121: 0 | FA121: 0 | FB121: 0 | FC121: 0 | FD121: 0 | FE121: 0 | FF121: 0 | FG121: 0 | FH121: 0 | FI121: 0 | FJ121: 0 | FK121: 0 | FL121: 0 | FM121: 0 | FN121: 0 | FO121: 0 | FP121: 0 | FQ121: 0 | FR121: 0 | FS121: 0 | FT121: 0 | FU121: 0 | FV121: 0 | FW121: 0 | FX121: 0 | FY121: 0 | FZ121: 0 | GA121: 0 | GB121: 0 | GC121: 0 | GD121: 0 | GE121: 0 | GF121: 0 | GG121: 0 | GH121: 0
CV122: 0 | CW122: 0 | CX122: 0 | CY122: 0 | CZ122: 0 | DA122: 0 | DB122: 0 | DC122: 0 | DD122: 0 | DE122: 0 | DF122: 0 | DG122: 0 | DH122: 0 | DI122: 0 | DJ122: 0 | DK122: 0 | DL122: 0 | DM122: 0 | DN122: 0 | DO122: 0 | DP122: 0 | DQ122: 0 | DR122: 0 | DS122: 0 | DT122: 0 | DU122: 0 | DV122: 0 | DW122: 0 | DX122: 0 | DY122: 0 | DZ122: 0 | EA122: 0 | EB122: 0 | EC122: 0 | ED122: 0 | EE122: 0 | EF122: 0 | EG122: 0 | EH122: 0 | EI122: 0 | EJ122: 0 | EK122: 0 | EL122: 0 | EM122: 0 | EN122: 0 | EO122: 0 | EP122: 0 | EQ122: 0 | ER122: 0 | ES122: 0 | ET122: 0 | EU122: 0 | EV122: 0 | EW122: 0 | EX122: 0 | EY122: 0 | EZ122: 0 | FA122: 0 | FB122: 0 | FC122: 0 | FD122: 0 | FE122: 0 | FF122: 0 | FG122: 0 | FH122: 0 | FI122: 0 | FJ122: 0 | FK122: 0 | FL122: 0 | FM122: 0 | FN122: 0 | FO122: 0 | FP122: 0 | FQ122: 0 | FR122: 0 | FS122: 0 | FT122: 0 | FU122: 0 | FV122: 0 | FW122: 0 | FX122: 0 | FY122: 0 | FZ122: 0 | GA122: 0 | GB122: 0 | GC122: 0 | GD122: 0 | GE122: 0 | GF122: 0 | GG122: 0 | GH122: 0
CV123: 0 | CW123: 0 | CX123: 0 | CY123: 0 | CZ123: 0 | DA123: 0 | DB123: 0 | DC123: 0 | DD123: 0 | DE123: 0 | DF123: 0 | DG123: 0 | DH123: 0 | DI123: 0 | DJ123: 0 | DK123: 0 | DL123: 0 | DM123: 0 | DN123: 0 | DO123: 0 | DP123: 0 | DQ123: 0 | DR123: 0 | DS123: 0 | DT123: 0 | DU123: 0 | DV123: 0 | DW123: 0 | DX123: 0 | DY123: 0 | DZ123: 0 | EA123: 0 | EB123: 0 | EC123: 0 | ED123: 0 | EE123: 0 | EF123: 0 | EG123: 0 | EH123: 0 | EI123: 0 | EJ123: 0 | EK123: 0 | EL123: 0 | EM123: 0 | EN123: 0 | EO123: 0 | EP123: 0 | EQ123: 0 | ER123: 0 | ES123: 0 | ET123: 0 | EU123: 0 | EV123: 0 | EW123: 0 | EX123: 0 | EY123: 0 | EZ123: 0 | FA123: 0 | FB123: 0 | FC123: 0 | FD123: 0 | FE123: 0 | FF123: 0 | FG123: 0 | FH123: 0 | FI123: 0 | FJ123: 0 | FK123: 0 | FL123: 0 | FM123: 0 | FN123: 0 | FO123: 0 | FP123: 0 | FQ123: 0 | FR123: 0 | FS123: 0 | FT123: 0 | FU123: 0 | FV123: 0 | FW123: 0 | FX123: 0 | FY123: 0 | FZ123: 0 | GA123: 0 | GB123: 0 | GC123: 0 | GD123: 0 | GE123: 0 | GF123: 0 | GG123: 0 | GH123: 0
CV124: 0 | CW124: 0 | CX124: 0 | CY124: 0 | CZ124: 0 | DA124: 0 | DB124: 0 | DC124: 0 | DD124: 0 | DE124: 0 | DF124: 0 | DG124: 0 | DH124: 0 | DI124: 0 | DJ124: 0 | DK124: 0 | DL124: 0 | DM124: 0 | DN124: 0 | DO124: 0 | DP124: 0 | DQ124: 0 | DR124: 0 | DS124: 0 | DT124: 0 | DU124: 0 | DV124: 0 | DW124: 0 | DX124: 0 | DY124: 0 | DZ124: 0 | EA124: 0 | EB124: 0 | EC124: 0 | ED124: 0 | EE124: 0 | EF124: 0 | EG124: 0 | EH124: 0 | EI124: 0 | EJ124: 0 | EK124: 0 | EL124: 0 | EM124: 0 | EN124: 0 | EO124: 0 | EP124: 0 | EQ124: 0 | ER124: 0 | ES124: 0 | ET124: 0 | EU124: 0 | EV124: 0 | EW124: 0 | EX124: 0 | EY124: 0 | EZ124: 0 | FA124: 0 | FB124: 0 | FC124: 0 | FD124: 0 | FE124: 0 | FF124: 0 | FG124: 0 | FH124: 0 | FI124: 0 | FJ124: 0 | FK124: 0 | FL124: 0 | FM124: 0 | FN124: 0 | FO124: 0 | FP124: 0 | FQ124: 0 | FR124: 0 | FS124: 0 | FT124: 0 | FU124: 0 | FV124: 0 | FW124: 0 | FX124: 0 | FY124: 0 | FZ124: 0 | GA124: 0 | GB124: 0 | GC124: 0 | GD124: 0 | GE124: 0 | GF124: 0 | GG124: 0 | GH124: 0
CV125: 0 | CW125: 0 | CX125: 0 | CY125: 0 | CZ125: 0 | DA125: 0 | DB125: 0 | DC125: 0 | DD125: 0 | DE125: 0 | DF125: 0 | DG125: 0 | DH125: 0 | DI125: 0 | DJ125: 0 | DK125: 0 | DL125: 0 | DM125: 0 | DN125: 0 | DO125: 0 | DP125: 0 | DQ125: 0 | DR125: 0 | DS125: 0 | DT125: 0 | DU125: 0 | DV125: 0 | DW125: 0 | DX125: 0 | DY125: 0 | DZ125: 0 | EA125: 0 | EB125: 0 | EC125: 0 | ED125: 0 | EE125: 0 | EF125: 0 | EG125: 0 | EH125: 0 | EI125: 0 | EJ125: 0 | EK125: 0 | EL125: 0 | EM125: 0 | EN125: 0 | EO125: 0 | EP125: 0 | EQ125: 0 | ER125: 0 | ES125: 0 | ET125: 0 | EU125: 0 | EV125: 0 | EW125: 0 | EX125: 0 | EY125: 0 | EZ125: 0 | FA125: 0 | FB125: 0 | FC125: 0 | FD125: 0 | FE125: 0 | FF125: 0 | FG125: 0 | FH125: 0 | FI125: 0 | FJ125: 0 | FK125: 0 | FL125: 0 | FM125: 0 | FN125: 0 | FO125: 0 | FP125: 0 | FQ125: 0 | FR125: 0 | FS125: 0 | FT125: 0 | FU125: 0 | FV125: 0 | FW125: 0 | FX125: 0 | FY125: 0 | FZ125: 0 | GA125: 0 | GB125: 0 | GC125: 0 | GD125: 0 | GE125: 0 | GF125: 0 | GG125: 0 | GH125: 0
CV126: 0 | CW126: 0 | CX126: 0 | CY126: 0 | CZ126: 0 | DA126: 0 | DB126: 0 | DC126: 0 | DD126: 0 | DE126: 0 | DF126: 0 | DG126: 0 | DH126: 0 | DI126: 0 | DJ126: 0 | DK126: 0 | DL126: 0 | DM126: 0 | DN126: 0 | DO126: 0 | DP126: 0 | DQ126: 0 | DR126: 0 | DS126: 0 | DT126: 0 | DU126: 0 | DV126: 0 | DW126: 0 | DX126: 0 | DY126: 0 | DZ126: 0 | EA126: 0 | EB126: 0 | EC126: 0 | ED126: 0 | EE126: 0 | EF126: 0 | EG126: 0 | EH126: 0 | EI126: 0 | EJ126: 0 | EK126: 0 | EL126: 0 | EM126: 0 | EN126: 0 | EO126: 0 | EP126: 0 | EQ126: 0 | ER126: 0 | ES126: 0 | ET126: 0 | EU126: 0 | EV126: 0 | EW126: 0 | EX126: 0 | EY126: 0 | EZ126: 0 | FA126: 0 | FB126: 0 | FC126: 0 | FD126: 0 | FE126: 0 | FF126: 0 | FG126: 0 | FH126: 0 | FI126: 0 | FJ126: 0 | FK126: 0 | FL126: 0 | FM126: 0 | FN126: 0 | FO126: 0 | FP126: 0 | FQ126: 0 | FR126: 0 | FS126: 0 | FT126: 0 | FU126: 0 | FV126: 0 | FW126: 0 | FX126: 0 | FY126: 0 | FZ126: 0 | GA126: 0 | GB126: 0 | GC126: 0 | GD126: 0 | GE126: 0 | GF126: 0 | GG126: 0 | GH126: 0
CV127: 0 | CW127: 0 | CX127: 0 | CY127: 0 | CZ127: 0 | DA127: 0 | DB127: 0 | DC127: 0 | DD127: 0 | DE127: 0 | DF127: 0 | DG127: 0 | DH127: 0 | DI127: 0 | DJ127: 0 | DK127: 0 | DL127: 0 | DM127: 0 | DN127: 0 | DO127: 0 | DP127: 0 | DQ127: 0 | DR127: 0 | DS127: 0 | DT127: 0 | DU127: 0 | DV127: 0 | DW127: 0 | DX127: 0 | DY127: 0 | DZ127: 0 | EA127: 0 | EB127: 0 | EC127: 0 | ED127: 0 | EE127: 0 | EF127: 0 | EG127: 0 | EH127: 0 | EI127: 0 | EJ127: 0 | EK127: 0 | EL127: 0 | EM127: 0 | EN127: 0 | EO127: 0 | EP127: 0 | EQ127: 0 | ER127: 0 | ES127: 0 | ET127: 0 | EU127: 0 | EV127: 0 | EW127: 0 | EX127: 0 | EY127: 0 | EZ127: 0 | FA127: 0 | FB127: 0 | FC127: 0 | FD127: 0 | FE127: 0 | FF127: 0 | FG127: 0 | FH127: 0 | FI127: 0 | FJ127: 0 | FK127: 0 | FL127: 0 | FM127: 0 | FN127: 0 | FO127: 0 | FP127: 0 | FQ127: 0 | FR127: 0 | FS127: 0 | FT127: 0 | FU127: 0 | FV127: 0 | FW127: 0 | FX127: 0 | FY127: 0 | FZ127: 0 | GA127: 0 | GB127: 0 | GC127: 0 | GD127: 0 | GE127: 0 | GF127: 0 | GG127: 0 | GH127: 0
CV128: 0 | CW128: 0 | CX128: 0 | CY128: 0 | CZ128: 0 | DA128: 0 | DB128: 0 | DC128: 0 | DD128: 0 | DE128: 0 | DF128: 0 | DG128: 0 | DH128: 0 | DI128: 0 | DJ128: 0 | DK128: 0 | DL128: 0 | DM128: 0 | DN128: 0 | DO128: 0 | DP128: 0 | DQ128: 0 | DR128: 0 | DS128: 0 | DT128: 0 | DU128: 0 | DV128: 0 | DW128: 0 | DX128: 0 | DY128: 0 | DZ128: 0 | EA128: 0 | EB128: 0 | EC128: 0 | ED128: 0 | EE128: 0 | EF128: 0 | EG128: 0 | EH128: 0 | EI128: 0 | EJ128: 0 | EK128: 0 | EL128: 0 | EM128: 0 | EN128: 0 | EO128: 0 | EP128: 0 | EQ128: 0 | ER128: 0 | ES128: 0 | ET128: 0 | EU128: 0 | EV128: 0 | EW128: 0 | EX128: 0 | EY128: 0 | EZ128: 0 | FA128: 0 | FB128: 0 | FC128: 0 | FD128: 0 | FE128: 0 | FF128: 0 | FG128: 0 | FH128: 0 | FI128: 0 | FJ128: 0 | FK128: 0 | FL128: 0 | FM128: 0 | FN128: 0 | FO128: 0 | FP128: 0 | FQ128: 0 | FR128: 0 | FS128: 0 | FT128: 0 | FU128: 0 | FV128: 0 | FW128: 0 | FX128: 0 | FY128: 0 | FZ128: 0 | GA128: 0 | GB128: 0 | GC128: 0 | GD128: 0 | GE128: 0 | GF128: 0 | GG128: 0 | GH128: 0
CV129: 0 | CW129: 0 | CX129: 0 | CY129: 0 | CZ129: 0 | DA129: 0 | DB129: 0 | DC129: 0 | DD129: 0 | DE129: 0 | DF129: 0 | DG129: 0 | DH129: 0 | DI129: 0 | DJ129: 0 | DK129: 0 | DL129: 0 | DM129: 0 | DN129: 0 | DO129: 0 | DP129: 0 | DQ129: 0 | DR129: 0 | DS129: 0 | DT129: 0 | DU129: 0 | DV129: 0 | DW129: 0 | DX129: 0 | DY129: 0 | DZ129: 0 | EA129: 0 | EB129: 0 | EC129: 0 | ED129: 0 | EE129: 0 | EF129: 0 | EG129: 0 | EH129: 0 | EI129: 0 | EJ129: 0 | EK129: 0 | EL129: 0 | EM129: 0 | EN129: 0 | EO129: 0 | EP129: 0 | EQ129: 0 | ER129: 0 | ES129: 0 | ET129: 0 | EU129: 0 | EV129: 0 | EW129: 0 | EX129: 0 | EY129: 0 | EZ129: 0 | FA129: 0 | FB129: 0 | FC129: 0 | FD129: 0 | FE129: 0 | FF129: 0 | FG129: 0 | FH129: 0 | FI129: 0 | FJ129: 0 | FK129: 0 | FL129: 0 | FM129: 0 | FN129: 0 | FO129: 0 | FP129: 0 | FQ129: 0 | FR129: 0 | FS129: 0 | FT129: 0 | FU129: 0 | FV129: 0 | FW129: 0 | FX129: 0 | FY129: 0 | FZ129: 0 | GA129: 0 | GB129: 0 | GC129: 0 | GD129: 0 | GE129: 0 | GF129: 0 | GG129: 0 | GH129: 0
CV130: 0 | CW130: 0 | CX130: 0 | CY130: 0 | CZ130: 0 | DA130: 0 | DB130: 0 | DC130: 0 | DD130: 0 | DE130: 0 | DF130: 0 | DG130: 0 | DH130: 0 | DI130: 0 | DJ130: 0 | DK130: 0 | DL130: 0 | DM130: 0 | DN130: 0 | DO130: 0 | DP130: 0 | DQ130: 0 | DR130: 0 | DS130: 0 | DT130: 0 | DU130: 0 | DV130: 0 | DW130: 0 | DX130: 0 | DY130: 0 | DZ130: 0 | EA130: 0 | EB130: 0 | EC130: 0 | ED130: 0 | EE130: 0 | EF130: 0 | EG130: 0 | EH130: 0 | EI130: 0 | EJ130: 0 | EK130: 0 | EL130: 0 | EM130: 0 | EN130: 0 | EO130: 0 | EP130: 0 | EQ130: 0 | ER130: 0 | ES130: 0 | ET130: 0 | EU130: 0 | EV130: 0 | EW130: 0 | EX130: 0 | EY130: 0 | EZ130: 0 | FA130: 0 | FB130: 0 | FC130: 0 | FD130: 0 | FE130: 0 | FF130: 0 | FG130: 0 | FH130: 0 | FI130: 0 | FJ130: 0 | FK130: 0 | FL130: 0 | FM130: 0 | FN130: 0 | FO130: 0 | FP130: 0 | FQ130: 0 | FR130: 0 | FS130: 0 | FT130: 0 | FU130: 0 | FV130: 0 | FW130: 0 | FX130: 0 | FY130: 0 | FZ130: 0 | GA130: 0 | GB130: 0 | GC130: 0 | GD130: 0 | GE130: 0 | GF130: 0 | GG130: 0 | GH130: 0
CV131: 0 | CW131: 0 | CX131: 0 | CY131: 0 | CZ131: 0 | DA131: 0 | DB131: 0 | DC131: 0 | DD131: 0 | DE131: 0 | DF131: 0 | DG131: 0 | DH131: 0 | DI131: 0 | DJ131: 0 | DK131: 0 | DL131: 0 | DM131: 0 | DN131: 0 | DO131: 0 | DP131: 0 | DQ131: 0 | DR131: 0 | DS131: 0 | DT131: 0 | DU131: 0 | DV131: 0 | DW131: 0 | DX131: 0 | DY131: 0 | DZ131: 0 | EA131: 0 | EB131: 0 | EC131: 0 | ED131: 0 | EE131: 0 | EF131: 0 | EG131: 0 | EH131: 0 | EI131: 0 | EJ131: 0 | EK131: 0 | EL131: 0 | EM131: 0 | EN131: 0 | EO131: 0 | EP131: 0 | EQ131: 0 | ER131: 0 | ES131: 0 | ET131: 0 | EU131: 0 | EV131: 0 | EW131: 0 | EX131: 0 | EY131: 0 | EZ131: 0 | FA131: 0 | FB131: 0 | FC131: 0 | FD131: 0 | FE131: 0 | FF131: 0 | FG131: 0 | FH131: 0 | FI131: 0 | FJ131: 0 | FK131: 0 | FL131: 0 | FM131: 0 | FN131: 0 | FO131: 0 | FP131: 0 | FQ131: 0 | FR131: 0 | FS131: 0 | FT131: 0 | FU131: 0 | FV131: 0 | FW131: 0 | FX131: 0 | FY131: 0 | FZ131: 0 | GA131: 0 | GB131: 0 | GC131: 0 | GD131: 0 | GE131: 0 | GF131: 0 | GG131: 0 | GH131: 0
CV132: 0 | CW132: 0 | CX132: 0 | CY132: 0 | CZ132: 0 | DA132: 0 | DB132: 0 | DC132: 0 | DD132: 0 | DE132: 0 | DF132: 0 | DG132: 0 | DH132: 0 | DI132: 0 | DJ132: 0 | DK132: 0 | DL132: 0 | DM132: 0 | DN132: 0 | DO132: 0 | DP132: 0 | DQ132: 0 | DR132: 0 | DS132: 0 | DT132: 0 | DU132: 0 | DV132: 0 | DW132: 0 | DX132: 0 | DY132: 0 | DZ132: 0 | EA132: 0 | EB132: 0 | EC132: 0 | ED132: 0 | EE132: 0 | EF132: 0 | EG132: 0 | EH132: 0 | EI132: 0 | EJ132: 0 | EK132: 0 | EL132: 0 | EM132: 0 | EN132: 0 | EO132: 0 | EP132: 0 | EQ132: 0 | ER132: 0 | ES132: 0 | ET132: 0 | EU132: 0 | EV132: 0 | EW132: 0 | EX132: 0 | EY132: 0 | EZ132: 0 | FA132: 0 | FB132: 0 | FC132: 0 | FD132: 0 | FE132: 0 | FF132: 0 | FG132: 0 | FH132: 0 | FI132: 0 | FJ132: 0 | FK132: 0 | FL132: 0 | FM132: 0 | FN132: 0 | FO132: 0 | FP132: 0 | FQ132: 0 | FR132: 0 | FS132: 0 | FT132: 0 | FU132: 0 | FV132: 0 | FW132: 0 | FX132: 0 | FY132: 0 | FZ132: 0 | GA132: 0 | GB132: 0 | GC132: 0 | GD132: 0 | GE132: 0 | GF132: 0 | GG132: 0 | GH132: 0
CV133: 0 | CW133: 0 | CX133: 0 | CY133: 0 | CZ133: 0 | DA133: 0 | DB133: 0 | DC133: 0 | DD133: 0 | DE133: 0 | DF133: 0 | DG133: 0 | DH133: 0 | DI133: 0 | DJ133: 0 | DK133: 0 | DL133: 0 | DM133: 0 | DN133: 0 | DO133: 0 | DP133: 0 | DQ133: 0 | DR133: 0 | DS133: 0 | DT133: 0 | DU133: 0 | DV133: 0 | DW133: 0 | DX133: 0 | DY133: 0 | DZ133: 0 | EA133: 0 | EB133: 0 | EC133: 0 | ED133: 0 | EE133: 0 | EF133: 0 | EG133: 0 | EH133: 0 | EI133: 0 | EJ133: 0 | EK133: 0 | EL133: 0 | EM133: 0 | EN133: 0 | EO133: 0 | EP133: 0 | EQ133: 0 | ER133: 0 | ES133: 0 | ET133: 0 | EU133: 0 | EV133: 0 | EW133: 0 | EX133: 0 | EY133: 0 | EZ133: 0 | FA133: 0 | FB133: 0 | FC133: 0 | FD133: 0 | FE133: 0 | FF133: 0 | FG133: 0 | FH133: 0 | FI133: 0 | FJ133: 0 | FK133: 0 | FL133: 0 | FM133: 0 | FN133: 0 | FO133: 0 | FP133: 0 | FQ133: 0 | FR133: 0 | FS133: 0 | FT133: 0 | FU133: 0 | FV133: 0 | FW133: 0 | FX133: 0 | FY133: 0 | FZ133: 0 | GA133: 0 | GB133: 0 | GC133: 0 | GD133: 0 | GE133: 0 | GF133: 0 | GG133: 0 | GH133: 0
CV134: 0 | CW134: =IFERROR($D134*I134,"") -> 0 | CX134: =IFERROR($D134*J134,"") -> 0 | CY134: =IFERROR($D134*K134,"") -> 0 | CZ134: =IFERROR($D134*L134,"") -> 0 | DA134: =IFERROR($D134*M134,"") -> 0 | DB134: =IFERROR($D134*N134,"") -> 0 | DC134: =IFERROR($D134*O134,"") -> 0 | DD134: =IFERROR($D134*P134,"") -> 0 | DE134: =IFERROR($D134*Q134,"") -> 0 | DF134: =IFERROR($D134*R134,"") -> 0 | DG134: =IFERROR($D134*S134,"") -> 0 | DH134: =IFERROR($D134*T134,"") -> 0 | DI134: =IFERROR($D134*U134,"") -> 0 | DJ134: =IFERROR($D134*V134,"") -> 0 | DK134: =IFERROR($D134*W134,"") -> 0 | DL134: =IFERROR($D134*X134,"") -> 0 | DM134: =IFERROR($D134*Y134,"") -> 0 | DN134: =IFERROR($D134*Z134,"") -> 0 | DO134: =IFERROR($D134*AA134,"") -> 0 | DP134: =IFERROR($D134*AB134,"") -> 0 | DQ134: =IFERROR($D134*AC134,"") -> 0 | DR134: =IFERROR($D134*AD134,"") -> 0 | DS134: =IFERROR($D134*AE134,"") -> 0 | DT134: =IFERROR($D134*AF134,"") -> 0 | DU134: =IFERROR($D134*AG134,"") -> 0 | DV134: =IFERROR($D134*AH134,"") -> 0 | DW134: =IFERROR($D134*AI134,"") -> 0 | DX134: =IFERROR($D134*AJ134,"") -> 0 | DY134: =IFERROR($D134*AK134,"") -> 0 | DZ134: =IFERROR($D134*AL134,"") -> 0 | EA134: =IFERROR($D134*AM134,"") -> 0 | EB134: =IFERROR($D134*AN134,"") -> 0 | EC134: =IFERROR($D134*AO134,"") -> 0 | ED134: =IFERROR($D134*AP134,"") -> 0 | EE134: =IFERROR($D134*AQ134,"") -> 0 | EF134: =IFERROR($D134*AR134,"") -> 0 | EG134: =IFERROR($D134*AS134,"") -> 0 | EH134: =IFERROR($D134*AT134,"") -> 0 | EI134: =IFERROR($D134*AU134,"") -> 0 | EJ134: =IFERROR($D134*AV134,"") -> 0 | EK134: =IFERROR($D134*AW134,"") -> 0 | EL134: =IFERROR($D134*AX134,"") -> 0 | EM134: =IFERROR($D134*AY134,"") -> 0 | EN134: =IFERROR($D134*AZ134,"") -> 0 | EO134: =IFERROR($D134*BA134,"") -> 0 | EP134: =IFERROR($D134*BB134,"") -> 0 | EQ134: =IFERROR($D134*BC134,"") -> 0 | ER134: =IFERROR($D134*BD134,"") -> 0 | ES134: =IFERROR($D134*BE134,"") -> 0 | ET134: =IFERROR($D134*BF134,"") -> 0 | EU134: =IFERROR($D134*BG134,"") -> 0 | EV134: =IFERROR($D134*BH134,"") -> 0 | EW134: =IFERROR($D134*BI134,"") -> 0 | EX134: =IFERROR($D134*BJ134,"") -> 0 | EY134: =IFERROR($D134*BK134,"") -> 0 | EZ134: =IFERROR($D134*BL134,"") -> 0 | FA134: =IFERROR($D134*BM134,"") -> 0 | FB134: =IFERROR($D134*BN134,"") -> 0 | FC134: =IFERROR($D134*BO134,"") -> 0 | FD134: =IFERROR($D134*BP134,"") -> 0 | FE134: =IFERROR($D134*BQ134,"") -> 0 | FF134: =IFERROR($D134*BR134,"") -> 0 | FG134: =IFERROR($D134*BS134,"") -> 0 | FH134: =IFERROR($D134*BT134,"") -> 0 | FI134: =IFERROR($D134*BU134,"") -> 0 | FJ134: =IFERROR($D134*BV134,"") -> 0 | FK134: =IFERROR($D134*BW134,"") -> 0 | FL134: =IFERROR($D134*BX134,"") -> 0 | FM134: =IFERROR($D134*BY134,"") -> 0 | FN134: =IFERROR($D134*BZ134,"") -> 0 | FO134: =IFERROR($D134*CA134,"") -> 0 | FP134: =IFERROR($D134*CB134,"") -> 0 | FQ134: =IFERROR($D134*CC134,"") -> 0 | FR134: =IFERROR($D134*CD134,"") -> 0 | FS134: =IFERROR($D134*CE134,"") -> 0 | FT134: =IFERROR($D134*CF134,"") -> 0 | FU134: =IFERROR($D134*CG134,"") -> 0 | FV134: =IFERROR($D134*CH134,"") -> 0 | FW134: =IFERROR($D134*CI134,"") -> 0 | FX134: =IFERROR($D134*CJ134,"") -> 0 | FY134: =IFERROR($D134*CK134,"") -> 0 | FZ134: =IFERROR($D134*CL134,"") -> 0 | GA134: =IFERROR($D134*CM134,"") -> 0 | GB134: =IFERROR($D134*CN134,"") -> 0 | GC134: =IFERROR($D134*CO134,"") -> 0 | GD134: =IFERROR($D134*CP134,"") -> 0 | GE134: =IFERROR($D134*CQ134,"") -> 0 | GF134: =IFERROR($D134*CR134,"") -> 0 | GG134: =IFERROR($D134*CS134,"") -> 0 | GH134: =IFERROR($D134*CT134,"") -> 0
CV135: =IFERROR($D135*H135,"") -> 0 | CW135: 0 | CX135: 0 | CY135: 0 | CZ135: 0 | DA135: 0 | DB135: 0 | DC135: 0 | DD135: 0 | DE135: 0 | DF135: 0 | DG135: 0 | DH135: 0 | DI135: 0 | DJ135: 0 | DK135: 0 | DL135: 0 | DM135: 0 | DN135: 0 | DO135: 0 | DP135: 0 | DQ135: 0 | DR135: 0 | DS135: 0 | DT135: 0 | DU135: 0 | DV135: 0 | DW135: 0 | DX135: 0 | DY135: 0 | DZ135: 0 | EA135: 0 | EB135: 0 | EC135: 0 | ED135: 0 | EE135: 0 | EF135: 0 | EG135: 0 | EH135: 0 | EI135: 0 | EJ135: 0 | EK135: 0 | EL135: 0 | EM135: 0 | EN135: 0 | EO135: 0 | EP135: 0 | EQ135: 0 | ER135: 0 | ES135: 0 | ET135: 0 | EU135: 0 | EV135: 0 | EW135: 0 | EX135: 0 | EY135: 0 | EZ135: 0 | FA135: 0 | FB135: 0 | FC135: 0 | FD135: 0 | FE135: 0 | FF135: 0 | FG135: 0 | FH135: 0 | FI135: 0 | FJ135: 0 | FK135: 0 | FL135: 0 | FM135: 0 | FN135: 0 | FO135: 0 | FP135: 0 | FQ135: 0 | FR135: 0 | FS135: 0 | FT135: 0 | FU135: 0 | FV135: 0 | FW135: 0 | FX135: 0 | FY135: 0 | FZ135: 0 | GA135: 0 | GB135: 0 | GC135: 0 | GD135: 0 | GE135: 0 | GF135: 0 | GG135: 0 | GH135: 0
CV136: 0 | CW136: 0 | CX136: 0 | CY136: 0 | CZ136: 0 | DA136: 0 | DB136: 0 | DC136: 0 | DD136: 0 | DE136: 0 | DF136: 0 | DG136: 0 | DH136: 0 | DI136: 0 | DJ136: 0 | DK136: 0 | DL136: 0 | DM136: 0 | DN136: 0 | DO136: 0 | DP136: 0 | DQ136: 0 | DR136: 0 | DS136: 0 | DT136: 0 | DU136: 0 | DV136: 0 | DW136: 0 | DX136: 0 | DY136: 0 | DZ136: 0 | EA136: 0 | EB136: 0 | EC136: 0 | ED136: 0 | EE136: 0 | EF136: 0 | EG136: 0 | EH136: 0 | EI136: 0 | EJ136: 0 | EK136: 0 | EL136: 0 | EM136: 0 | EN136: 0 | EO136: 0 | EP136: 0 | EQ136: 0 | ER136: 0 | ES136: 0 | ET136: 0 | EU136: 0 | EV136: 0 | EW136: 0 | EX136: 0 | EY136: 0 | EZ136: 0 | FA136: 0 | FB136: 0 | FC136: 0 | FD136: 0 | FE136: 0 | FF136: 0 | FG136: 0 | FH136: 0 | FI136: 0 | FJ136: 0 | FK136: 0 | FL136: 0 | FM136: 0 | FN136: 0 | FO136: 0 | FP136: 0 | FQ136: 0 | FR136: 0 | FS136: 0 | FT136: 0 | FU136: 0 | FV136: 0 | FW136: 0 | FX136: 0 | FY136: 0 | FZ136: 0 | GA136: 0 | GB136: 0 | GC136: 0 | GD136: 0 | GE136: 0 | GF136: 0 | GG136: 0 | GH136: 0
CV137: 0 | CW137: 0 | CX137: 0 | CY137: 0 | CZ137: 0 | DA137: 0 | DB137: 0 | DC137: 0 | DD137: 0 | DE137: 0 | DF137: 0 | DG137: 0 | DH137: 0 | DI137: 0 | DJ137: 0 | DK137: 0 | DL137: 0 | DM137: 0 | DN137: 0 | DO137: 0 | DP137: 0 | DQ137: 0 | DR137: 0 | DS137: 0 | DT137: 0 | DU137: 0 | DV137: 0 | DW137: 0 | DX137: 0 | DY137: 0 | DZ137: 0 | EA137: 0 | EB137: 0 | EC137: 0 | ED137: 0 | EE137: 0 | EF137: 0 | EG137: 0 | EH137: 0 | EI137: 0 | EJ137: 0 | EK137: 0 | EL137: 0 | EM137: 0 | EN137: 0 | EO137: 0 | EP137: 0 | EQ137: 0 | ER137: 0 | ES137: 0 | ET137: 0 | EU137: 0 | EV137: 0 | EW137: 0 | EX137: 0 | EY137: 0 | EZ137: 0 | FA137: 0 | FB137: 0 | FC137: 0 | FD137: 0 | FE137: 0 | FF137: 0 | FG137: 0 | FH137: 0 | FI137: 0 | FJ137: 0 | FK137: 0 | FL137: 0 | FM137: 0 | FN137: 0 | FO137: 0 | FP137: 0 | FQ137: 0 | FR137: 0 | FS137: 0 | FT137: 0 | FU137: 0 | FV137: 0 | FW137: 0 | FX137: 0 | FY137: 0 | FZ137: 0 | GA137: 0 | GB137: 0 | GC137: 0 | GD137: 0 | GE137: 0 | GF137: 0 | GG137: 0 | GH137: 0
CV138: 0 | CW138: 0 | CX138: 0 | CY138: 0 | CZ138: 0 | DA138: 0 | DB138: 0 | DC138: 0 | DD138: 0 | DE138: 0 | DF138: 0 | DG138: 0 | DH138: 0 | DI138: 0 | DJ138: 0 | DK138: 0 | DL138: 0 | DM138: 0 | DN138: 0 | DO138: 0 | DP138: 0 | DQ138: 0 | DR138: 0 | DS138: 0 | DT138: 0 | DU138: 0 | DV138: 0 | DW138: 0 | DX138: 0 | DY138: 0 | DZ138: 0 | EA138: 0 | EB138: 0 | EC138: 0 | ED138: 0 | EE138: 0 | EF138: 0 | EG138: 0 | EH138: 0 | EI138: 0 | EJ138: 0 | EK138: 0 | EL138: 0 | EM138: 0 | EN138: 0 | EO138: 0 | EP138: 0 | EQ138: 0 | ER138: 0 | ES138: 0 | ET138: 0 | EU138: 0 | EV138: 0 | EW138: 0 | EX138: 0 | EY138: 0 | EZ138: 0 | FA138: 0 | FB138: 0 | FC138: 0 | FD138: 0 | FE138: 0 | FF138: 0 | FG138: 0 | FH138: 0 | FI138: 0 | FJ138: 0 | FK138: 0 | FL138: 0 | FM138: 0 | FN138: 0 | FO138: 0 | FP138: 0 | FQ138: 0 | FR138: 0 | FS138: 0 | FT138: 0 | FU138: 0 | FV138: 0 | FW138: 0 | FX138: 0 | FY138: 0 | FZ138: 0 | GA138: 0 | GB138: 0 | GC138: 0 | GD138: 0 | GE138: 0 | GF138: 0 | GG138: 0 | GH138: 0
CV139: 0 | CW139: 0 | CX139: 0 | CY139: 0 | CZ139: 0 | DA139: 0 | DB139: 0 | DC139: 0 | DD139: 0 | DE139: 0 | DF139: 0 | DG139: 0 | DH139: 0 | DI139: 0 | DJ139: 0 | DK139: 0 | DL139: 0 | DM139: 0 | DN139: 0 | DO139: 0 | DP139: 0 | DQ139: 0 | DR139: 0 | DS139: 0 | DT139: 0 | DU139: 0 | DV139: 0 | DW139: 0 | DX139: 0 | DY139: 0 | DZ139: 0 | EA139: 0 | EB139: 0 | EC139: 0 | ED139: 0 | EE139: 0 | EF139: 0 | EG139: 0 | EH139: 0 | EI139: 0 | EJ139: 0 | EK139: 0 | EL139: 0 | EM139: 0 | EN139: 0 | EO139: 0 | EP139: 0 | EQ139: 0 | ER139: 0 | ES139: 0 | ET139: 0 | EU139: 0 | EV139: 0 | EW139: 0 | EX139: 0 | EY139: 0 | EZ139: 0 | FA139: 0 | FB139: 0 | FC139: 0 | FD139: 0 | FE139: 0 | FF139: 0 | FG139: 0 | FH139: 0 | FI139: 0 | FJ139: 0 | FK139: 0 | FL139: 0 | FM139: 0 | FN139: 0 | FO139: 0 | FP139: 0 | FQ139: 0 | FR139: 0 | FS139: 0 | FT139: 0 | FU139: 0 | FV139: 0 | FW139: 0 | FX139: 0 | FY139: 0 | FZ139: 0 | GA139: 0 | GB139: 0 | GC139: 0 | GD139: 0 | GE139: 0 | GF139: 0 | GG139: 0 | GH139: 0
CV140: 0 | CW140: 0 | CX140: 0 | CY140: 0 | CZ140: 0 | DA140: 0 | DB140: 0 | DC140: 0 | DD140: 0 | DE140: 0 | DF140: 0 | DG140: 0 | DH140: 0 | DI140: 0 | DJ140: 0 | DK140: 0 | DL140: 0 | DM140: 0 | DN140: 0 | DO140: 0 | DP140: 0 | DQ140: 0 | DR140: 0 | DS140: 0 | DT140: 0 | DU140: 0 | DV140: 0 | DW140: 0 | DX140: 0 | DY140: 0 | DZ140: 0 | EA140: 0 | EB140: 0 | EC140: 0 | ED140: 0 | EE140: 0 | EF140: 0 | EG140: 0 | EH140: 0 | EI140: 0 | EJ140: 0 | EK140: 0 | EL140: 0 | EM140: 0 | EN140: 0 | EO140: 0 | EP140: 0 | EQ140: 0 | ER140: 0 | ES140: 0 | ET140: 0 | EU140: 0 | EV140: 0 | EW140: 0 | EX140: 0 | EY140: 0 | EZ140: 0 | FA140: 0 | FB140: 0 | FC140: 0 | FD140: 0 | FE140: 0 | FF140: 0 | FG140: 0 | FH140: 0 | FI140: 0 | FJ140: 0 | FK140: 0 | FL140: 0 | FM140: 0 | FN140: 0 | FO140: 0 | FP140: 0 | FQ140: 0 | FR140: 0 | FS140: 0 | FT140: 0 | FU140: 0 | FV140: 0 | FW140: 0 | FX140: 0 | FY140: 0 | FZ140: 0 | GA140: 0 | GB140: 0 | GC140: 0 | GD140: 0 | GE140: 0 | GF140: 0 | GG140: 0 | GH140: 0
CV141: 0 | CW141: 0 | CX141: 0 | CY141: 0 | CZ141: 0 | DA141: 0 | DB141: 0 | DC141: 0 | DD141: 0 | DE141: 0 | DF141: 0 | DG141: 0 | DH141: 0 | DI141: 0 | DJ141: 0 | DK141: 0 | DL141: 0 | DM141: 0 | DN141: 0 | DO141: 0 | DP141: 0 | DQ141: 0 | DR141: 0 | DS141: 0 | DT141: 0 | DU141: 0 | DV141: 0 | DW141: 0 | DX141: 0 | DY141: 0 | DZ141: 0 | EA141: 0 | EB141: 0 | EC141: 0 | ED141: 0 | EE141: 0 | EF141: 0 | EG141: 0 | EH141: 0 | EI141: 0 | EJ141: 0 | EK141: 0 | EL141: 0 | EM141: 0 | EN141: 0 | EO141: 0 | EP141: 0 | EQ141: 0 | ER141: 0 | ES141: 0 | ET141: 0 | EU141: 0 | EV141: 0 | EW141: 0 | EX141: 0 | EY141: 0 | EZ141: 0 | FA141: 0 | FB141: 0 | FC141: 0 | FD141: 0 | FE141: 0 | FF141: 0 | FG141: 0 | FH141: 0 | FI141: 0 | FJ141: 0 | FK141: 0 | FL141: 0 | FM141: 0 | FN141: 0 | FO141: 0 | FP141: 0 | FQ141: 0 | FR141: 0 | FS141: 0 | FT141: 0 | FU141: 0 | FV141: 0 | FW141: 0 | FX141: 0 | FY141: 0 | FZ141: 0 | GA141: 0 | GB141: 0 | GC141: 0 | GD141: 0 | GE141: 0 | GF141: 0 | GG141: 0 | GH141: 0
CV142: 0 | CW142: 0 | CX142: 0 | CY142: 0 | CZ142: 0 | DA142: 0 | DB142: 0 | DC142: 0 | DD142: 0 | DE142: 0 | DF142: 0 | DG142: 0 | DH142: 0 | DI142: 0 | DJ142: 0 | DK142: 0 | DL142: 0 | DM142: 0 | DN142: 0 | DO142: 0 | DP142: 0 | DQ142: 0 | DR142: 0 | DS142: 0 | DT142: 0 | DU142: 0 | DV142: 0 | DW142: 0 | DX142: 0 | DY142: 0 | DZ142: 0 | EA142: 0 | EB142: 0 | EC142: 0 | ED142: 0 | EE142: 0 | EF142: 0 | EG142: 0 | EH142: 0 | EI142: 0 | EJ142: 0 | EK142: 0 | EL142: 0 | EM142: 0 | EN142: 0 | EO142: 0 | EP142: 0 | EQ142: 0 | ER142: 0 | ES142: 0 | ET142: 0 | EU142: 0 | EV142: 0 | EW142: 0 | EX142: 0 | EY142: 0 | EZ142: 0 | FA142: 0 | FB142: 0 | FC142: 0 | FD142: 0 | FE142: 0 | FF142: 0 | FG142: 0 | FH142: 0 | FI142: 0 | FJ142: 0 | FK142: 0 | FL142: 0 | FM142: 0 | FN142: 0 | FO142: 0 | FP142: 0 | FQ142: 0 | FR142: 0 | FS142: 0 | FT142: 0 | FU142: 0 | FV142: 0 | FW142: 0 | FX142: 0 | FY142: 0 | FZ142: 0 | GA142: 0 | GB142: 0 | GC142: 0 | GD142: 0 | GE142: 0 | GF142: 0 | GG142: 0 | GH142: 0
CV143: 0 | CW143: 0 | CX143: 0 | CY143: 0 | CZ143: 0 | DA143: 0 | DB143: 0 | DC143: 0 | DD143: 0 | DE143: 0 | DF143: 0 | DG143: 0 | DH143: 0 | DI143: 0 | DJ143: 0 | DK143: 0 | DL143: 0 | DM143: 0 | DN143: 0 | DO143: 0 | DP143: 0 | DQ143: 0 | DR143: 0 | DS143: 0 | DT143: 0 | DU143: 0 | DV143: 0 | DW143: 0 | DX143: 0 | DY143: 0 | DZ143: 0 | EA143: 0 | EB143: 0 | EC143: 0 | ED143: 0 | EE143: 0 | EF143: 0 | EG143: 0 | EH143: 0 | EI143: 0 | EJ143: 0 | EK143: 0 | EL143: 0 | EM143: 0 | EN143: 0 | EO143: 0 | EP143: 0 | EQ143: 0 | ER143: 0 | ES143: 0 | ET143: 0 | EU143: 0 | EV143: 0 | EW143: 0 | EX143: 0 | EY143: 0 | EZ143: 0 | FA143: 0 | FB143: 0 | FC143: 0 | FD143: 0 | FE143: 0 | FF143: 0 | FG143: 0 | FH143: 0 | FI143: 0 | FJ143: 0 | FK143: 0 | FL143: 0 | FM143: 0 | FN143: 0 | FO143: 0 | FP143: 0 | FQ143: 0 | FR143: 0 | FS143: 0 | FT143: 0 | FU143: 0 | FV143: 0 | FW143: 0 | FX143: 0 | FY143: 0 | FZ143: 0 | GA143: 0 | GB143: 0 | GC143: 0 | GD143: 0 | GE143: 0 | GF143: 0 | GG143: 0 | GH143: 0
CV144: 0 | CW144: 0 | CX144: 0 | CY144: 0 | CZ144: 0 | DA144: 0 | DB144: 0 | DC144: 0 | DD144: 0 | DE144: 0 | DF144: 0 | DG144: 0 | DH144: 0 | DI144: 0 | DJ144: 0 | DK144: 0 | DL144: 0 | DM144: 0 | DN144: 0 | DO144: 0 | DP144: 0 | DQ144: 0 | DR144: 0 | DS144: 0 | DT144: 0 | DU144: 0 | DV144: 0 | DW144: 0 | DX144: 0 | DY144: 0 | DZ144: 0 | EA144: 0 | EB144: 0 | EC144: 0 | ED144: 0 | EE144: 0 | EF144: 0 | EG144: 0 | EH144: 0 | EI144: 0 | EJ144: 0 | EK144: 0 | EL144: 0 | EM144: 0 | EN144: 0 | EO144: 0 | EP144: 0 | EQ144: 0 | ER144: 0 | ES144: 0 | ET144: 0 | EU144: 0 | EV144: 0 | EW144: 0 | EX144: 0 | EY144: 0 | EZ144: 0 | FA144: 0 | FB144: 0 | FC144: 0 | FD144: 0 | FE144: 0 | FF144: 0 | FG144: 0 | FH144: 0 | FI144: 0 | FJ144: 0 | FK144: 0 | FL144: 0 | FM144: 0 | FN144: 0 | FO144: 0 | FP144: 0 | FQ144: 0 | FR144: 0 | FS144: 0 | FT144: 0 | FU144: 0 | FV144: 0 | FW144: 0 | FX144: 0 | FY144: 0 | FZ144: 0 | GA144: 0 | GB144: 0 | GC144: 0 | GD144: 0 | GE144: 0 | GF144: 0 | GG144: 0 | GH144: 0
CV145: 0 | CW145: 0 | CX145: 0 | CY145: 0 | CZ145: 0 | DA145: 0 | DB145: 0 | DC145: 0 | DD145: 0 | DE145: 0 | DF145: 0 | DG145: 0 | DH145: 0 | DI145: 0 | DJ145: 0 | DK145: 0 | DL145: 0 | DM145: 0 | DN145: 0 | DO145: 0 | DP145: 0 | DQ145: 0 | DR145: 0 | DS145: 0 | DT145: 0 | DU145: 0 | DV145: 0 | DW145: 0 | DX145: 0 | DY145: 0 | DZ145: 0 | EA145: 0 | EB145: 0 | EC145: 0 | ED145: 0 | EE145: 0 | EF145: 0 | EG145: 0 | EH145: 0 | EI145: 0 | EJ145: 0 | EK145: 0 | EL145: 0 | EM145: 0 | EN145: 0 | EO145: 0 | EP145: 0 | EQ145: 0 | ER145: 0 | ES145: 0 | ET145: 0 | EU145: 0 | EV145: 0 | EW145: 0 | EX145: 0 | EY145: 0 | EZ145: 0 | FA145: 0 | FB145: 0 | FC145: 0 | FD145: 0 | FE145: 0 | FF145: 0 | FG145: 0 | FH145: 0 | FI145: 0 | FJ145: 0 | FK145: 0 | FL145: 0 | FM145: 0 | FN145: 0 | FO145: 0 | FP145: 0 | FQ145: 0 | FR145: 0 | FS145: 0 | FT145: 0 | FU145: 0 | FV145: 0 | FW145: 0 | FX145: 0 | FY145: 0 | FZ145: 0 | GA145: 0 | GB145: 0 | GC145: 0 | GD145: 0 | GE145: 0 | GF145: 0 | GG145: 0 | GH145: 0
CV146: 0 | CW146: 0 | CX146: 0 | CY146: 0 | CZ146: 0 | DA146: 0 | DB146: 0 | DC146: 0 | DD146: 0 | DE146: 0 | DF146: 0 | DG146: 0 | DH146: 0 | DI146: 0 | DJ146: 0 | DK146: 0 | DL146: 0 | DM146: 0 | DN146: 0 | DO146: 0 | DP146: 0 | DQ146: 0 | DR146: 0 | DS146: 0 | DT146: 0 | DU146: 0 | DV146: 0 | DW146: 0 | DX146: 0 | DY146: 0 | DZ146: 0 | EA146: 0 | EB146: 0 | EC146: 0 | ED146: 0 | EE146: 0 | EF146: 0 | EG146: 0 | EH146: 0 | EI146: 0 | EJ146: 0 | EK146: 0 | EL146: 0 | EM146: 0 | EN146: 0 | EO146: 0 | EP146: 0 | EQ146: 0 | ER146: 0 | ES146: 0 | ET146: 0 | EU146: 0 | EV146: 0 | EW146: 0 | EX146: 0 | EY146: 0 | EZ146: 0 | FA146: 0 | FB146: 0 | FC146: 0 | FD146: 0 | FE146: 0 | FF146: 0 | FG146: 0 | FH146: 0 | FI146: 0 | FJ146: 0 | FK146: 0 | FL146: 0 | FM146: 0 | FN146: 0 | FO146: 0 | FP146: 0 | FQ146: 0 | FR146: 0 | FS146: 0 | FT146: 0 | FU146: 0 | FV146: 0 | FW146: 0 | FX146: 0 | FY146: 0 | FZ146: 0 | GA146: 0 | GB146: 0 | GC146: 0 | GD146: 0 | GE146: 0 | GF146: 0 | GG146: 0 | GH146: 0
CV147: 0 | CW147: 0 | CX147: 0 | CY147: 0 | CZ147: 0 | DA147: 0 | DB147: 0 | DC147: 0 | DD147: 0 | DE147: 0 | DF147: 0 | DG147: 0 | DH147: 0 | DI147: 0 | DJ147: 0 | DK147: 0 | DL147: 0 | DM147: 0 | DN147: 0 | DO147: 0 | DP147: 0 | DQ147: 0 | DR147: 0 | DS147: 0 | DT147: 0 | DU147: 0 | DV147: 0 | DW147: 0 | DX147: 0 | DY147: 0 | DZ147: 0 | EA147: 0 | EB147: 0 | EC147: 0 | ED147: 0 | EE147: 0 | EF147: 0 | EG147: 0 | EH147: 0 | EI147: 0 | EJ147: 0 | EK147: 0 | EL147: 0 | EM147: 0 | EN147: 0 | EO147: 0 | EP147: 0 | EQ147: 0 | ER147: 0 | ES147: 0 | ET147: 0 | EU147: 0 | EV147: 0 | EW147: 0 | EX147: 0 | EY147: 0 | EZ147: 0 | FA147: 0 | FB147: 0 | FC147: 0 | FD147: 0 | FE147: 0 | FF147: 0 | FG147: 0 | FH147: 0 | FI147: 0 | FJ147: 0 | FK147: 0 | FL147: 0 | FM147: 0 | FN147: 0 | FO147: 0 | FP147: 0 | FQ147: 0 | FR147: 0 | FS147: 0 | FT147: 0 | FU147: 0 | FV147: 0 | FW147: 0 | FX147: 0 | FY147: 0 | FZ147: 0 | GA147: 0 | GB147: 0 | GC147: 0 | GD147: 0 | GE147: 0 | GF147: 0 | GG147: 0 | GH147: 0
CV148: 0 | CW148: 0 | CX148: 0 | CY148: 0 | CZ148: 0 | DA148: 0 | DB148: 0 | DC148: 0 | DD148: 0 | DE148: 0 | DF148: 0 | DG148: 0 | DH148: 0 | DI148: 0 | DJ148: 0 | DK148: 0 | DL148: 0 | DM148: 0 | DN148: 0 | DO148: 0 | DP148: 0 | DQ148: 0 | DR148: 0 | DS148: 0 | DT148: 0 | DU148: 0 | DV148: 0 | DW148: 0 | DX148: 0 | DY148: 0 | DZ148: 0 | EA148: 0 | EB148: 0 | EC148: 0 | ED148: 0 | EE148: 0 | EF148: 0 | EG148: 0 | EH148: 0 | EI148: 0 | EJ148: 0 | EK148: 0 | EL148: 0 | EM148: 0 | EN148: 0 | EO148: 0 | EP148: 0 | EQ148: 0 | ER148: 0 | ES148: 0 | ET148: 0 | EU148: 0 | EV148: 0 | EW148: 0 | EX148: 0 | EY148: 0 | EZ148: 0 | FA148: 0 | FB148: 0 | FC148: 0 | FD148: 0 | FE148: 0 | FF148: 0 | FG148: 0 | FH148: 0 | FI148: 0 | FJ148: 0 | FK148: 0 | FL148: 0 | FM148: 0 | FN148: 0 | FO148: 0 | FP148: 0 | FQ148: 0 | FR148: 0 | FS148: 0 | FT148: 0 | FU148: 0 | FV148: 0 | FW148: 0 | FX148: 0 | FY148: 0 | FZ148: 0 | GA148: 0 | GB148: 0 | GC148: 0 | GD148: 0 | GE148: 0 | GF148: 0 | GG148: 0 | GH148: 0
CV149: 0 | CW149: 0 | CX149: 0 | CY149: 0 | CZ149: 0 | DA149: 0 | DB149: 0 | DC149: 0 | DD149: 0 | DE149: 0 | DF149: 0 | DG149: 0 | DH149: 0 | DI149: 0 | DJ149: 0 | DK149: 0 | DL149: 0 | DM149: 0 | DN149: 0 | DO149: 0 | DP149: 0 | DQ149: 0 | DR149: 0 | DS149: 0 | DT149: 0 | DU149: 0 | DV149: 0 | DW149: 0 | DX149: 0 | DY149: 0 | DZ149: 0 | EA149: 0 | EB149: 0 | EC149: 0 | ED149: 0 | EE149: 0 | EF149: 0 | EG149: 0 | EH149: 0 | EI149: 0 | EJ149: 0 | EK149: 0 | EL149: 0 | EM149: 0 | EN149: 0 | EO149: 0 | EP149: 0 | EQ149: 0 | ER149: 0 | ES149: 0 | ET149: 0 | EU149: 0 | EV149: 0 | EW149: 0 | EX149: 0 | EY149: 0 | EZ149: 0 | FA149: 0 | FB149: 0 | FC149: 0 | FD149: 0 | FE149: 0 | FF149: 0 | FG149: 0 | FH149: 0 | FI149: 0 | FJ149: 0 | FK149: 0 | FL149: 0 | FM149: 0 | FN149: 0 | FO149: 0 | FP149: 0 | FQ149: 0 | FR149: 0 | FS149: 0 | FT149: 0 | FU149: 0 | FV149: 0 | FW149: 0 | FX149: 0 | FY149: 0 | FZ149: 0 | GA149: 0 | GB149: 0 | GC149: 0 | GD149: 0 | GE149: 0 | GF149: 0 | GG149: 0 | GH149: 0
CV150: 0 | CW150: 0 | CX150: 0 | CY150: 0 | CZ150: 0 | DA150: 0 | DB150: 0 | DC150: 0 | DD150: 0 | DE150: 0 | DF150: 0 | DG150: 0 | DH150: 0 | DI150: 0 | DJ150: 0 | DK150: 0 | DL150: 0 | DM150: 0 | DN150: 0 | DO150: 0 | DP150: 0 | DQ150: 0 | DR150: 0 | DS150: 0 | DT150: 0 | DU150: 0 | DV150: 0 | DW150: 0 | DX150: 0 | DY150: 0 | DZ150: 0 | EA150: 0 | EB150: 0 | EC150: 0 | ED150: 0 | EE150: 0 | EF150: 0 | EG150: 0 | EH150: 0 | EI150: 0 | EJ150: 0 | EK150: 0 | EL150: 0 | EM150: 0 | EN150: 0 | EO150: 0 | EP150: 0 | EQ150: 0 | ER150: 0 | ES150: 0 | ET150: 0 | EU150: 0 | EV150: 0 | EW150: 0 | EX150: 0 | EY150: 0 | EZ150: 0 | FA150: 0 | FB150: 0 | FC150: 0 | FD150: 0 | FE150: 0 | FF150: 0 | FG150: 0 | FH150: 0 | FI150: 0 | FJ150: 0 | FK150: 0 | FL150: 0 | FM150: 0 | FN150: 0 | FO150: 0 | FP150: 0 | FQ150: 0 | FR150: 0 | FS150: 0 | FT150: 0 | FU150: 0 | FV150: 0 | FW150: 0 | FX150: 0 | FY150: 0 | FZ150: 0 | GA150: 0 | GB150: 0 | GC150: 0 | GD150: 0 | GE150: 0 | GF150: 0 | GG150: 0 | GH150: 0
CV151: 0 | CW151: 0 | CX151: 0 | CY151: 0 | CZ151: 0 | DA151: 0 | DB151: 0 | DC151: 0 | DD151: 0 | DE151: 0 | DF151: 0 | DG151: 0 | DH151: 0 | DI151: 0 | DJ151: 0 | DK151: 0 | DL151: 0 | DM151: 0 | DN151: 0 | DO151: 0 | DP151: 0 | DQ151: 0 | DR151: 0 | DS151: 0 | DT151: 0 | DU151: 0 | DV151: 0 | DW151: 0 | DX151: 0 | DY151: 0 | DZ151: 0 | EA151: 0 | EB151: 0 | EC151: 0 | ED151: 0 | EE151: 0 | EF151: 0 | EG151: 0 | EH151: 0 | EI151: 0 | EJ151: 0 | EK151: 0 | EL151: 0 | EM151: 0 | EN151: 0 | EO151: 0 | EP151: 0 | EQ151: 0 | ER151: 0 | ES151: 0 | ET151: 0 | EU151: 0 | EV151: 0 | EW151: 0 | EX151: 0 | EY151: 0 | EZ151: 0 | FA151: 0 | FB151: 0 | FC151: 0 | FD151: 0 | FE151: 0 | FF151: 0 | FG151: 0 | FH151: 0 | FI151: 0 | FJ151: 0 | FK151: 0 | FL151: 0 | FM151: 0 | FN151: 0 | FO151: 0 | FP151: 0 | FQ151: 0 | FR151: 0 | FS151: 0 | FT151: 0 | FU151: 0 | FV151: 0 | FW151: 0 | FX151: 0 | FY151: 0 | FZ151: 0 | GA151: 0 | GB151: 0 | GC151: 0 | GD151: 0 | GE151: 0 | GF151: 0 | GG151: 0 | GH151: 0
CV152: 0 | CW152: 0 | CX152: 0 | CY152: 0 | CZ152: 0 | DA152: 0 | DB152: 0 | DC152: 0 | DD152: 0 | DE152: 0 | DF152: 0 | DG152: 0 | DH152: 0 | DI152: 0 | DJ152: 0 | DK152: 0 | DL152: 0 | DM152: 0 | DN152: 0 | DO152: 0 | DP152: 0 | DQ152: 0 | DR152: 0 | DS152: 0 | DT152: 0 | DU152: 0 | DV152: 0 | DW152: 0 | DX152: 0 | DY152: 0 | DZ152: 0 | EA152: 0 | EB152: 0 | EC152: 0 | ED152: 0 | EE152: 0 | EF152: 0 | EG152: 0 | EH152: 0 | EI152: 0 | EJ152: 0 | EK152: 0 | EL152: 0 | EM152: 0 | EN152: 0 | EO152: 0 | EP152: 0 | EQ152: 0 | ER152: 0 | ES152: 0 | ET152: 0 | EU152: 0 | EV152: 0 | EW152: 0 | EX152: 0 | EY152: 0 | EZ152: 0 | FA152: 0 | FB152: 0 | FC152: 0 | FD152: 0 | FE152: 0 | FF152: 0 | FG152: 0 | FH152: 0 | FI152: 0 | FJ152: 0 | FK152: 0 | FL152: 0 | FM152: 0 | FN152: 0 | FO152: 0 | FP152: 0 | FQ152: 0 | FR152: 0 | FS152: 0 | FT152: 0 | FU152: 0 | FV152: 0 | FW152: 0 | FX152: 0 | FY152: 0 | FZ152: 0 | GA152: 0 | GB152: 0 | GC152: 0 | GD152: 0 | GE152: 0 | GF152: 0 | GG152: 0 | GH152: 0
CV153: 0 | CW153: 0 | CX153: 0 | CY153: 0 | CZ153: 0 | DA153: 0 | DB153: 0 | DC153: 0 | DD153: 0 | DE153: 0 | DF153: 0 | DG153: 0 | DH153: 0 | DI153: 0 | DJ153: 0 | DK153: 0 | DL153: 0 | DM153: 0 | DN153: 0 | DO153: 0 | DP153: 0 | DQ153: 0 | DR153: 0 | DS153: 0 | DT153: 0 | DU153: 0 | DV153: 0 | DW153: 0 | DX153: 0 | DY153: 0 | DZ153: 0 | EA153: 0 | EB153: 0 | EC153: 0 | ED153: 0 | EE153: 0 | EF153: 0 | EG153: 0 | EH153: 0 | EI153: 0 | EJ153: 0 | EK153: 0 | EL153: 0 | EM153: 0 | EN153: 0 | EO153: 0 | EP153: 0 | EQ153: 0 | ER153: 0 | ES153: 0 | ET153: 0 | EU153: 0 | EV153: 0 | EW153: 0 | EX153: 0 | EY153: 0 | EZ153: 0 | FA153: 0 | FB153: 0 | FC153: 0 | FD153: 0 | FE153: 0 | FF153: 0 | FG153: 0 | FH153: 0 | FI153: 0 | FJ153: 0 | FK153: 0 | FL153: 0 | FM153: 0 | FN153: 0 | FO153: 0 | FP153: 0 | FQ153: 0 | FR153: 0 | FS153: 0 | FT153: 0 | FU153: 0 | FV153: 0 | FW153: 0 | FX153: 0 | FY153: 0 | FZ153: 0 | GA153: 0 | GB153: 0 | GC153: 0 | GD153: 0 | GE153: 0 | GF153: 0 | GG153: 0 | GH153: 0
CV154: 0 | CW154: 0 | CX154: 0 | CY154: 0 | CZ154: 0 | DA154: 0 | DB154: 0 | DC154: 0 | DD154: 0 | DE154: 0 | DF154: 0 | DG154: 0 | DH154: 0 | DI154: 0 | DJ154: 0 | DK154: 0 | DL154: 0 | DM154: 0 | DN154: 0 | DO154: 0 | DP154: 0 | DQ154: 0 | DR154: 0 | DS154: 0 | DT154: 0 | DU154: 0 | DV154: 0 | DW154: 0 | DX154: 0 | DY154: 0 | DZ154: 0 | EA154: 0 | EB154: 0 | EC154: 0 | ED154: 0 | EE154: 0 | EF154: 0 | EG154: 0 | EH154: 0 | EI154: 0 | EJ154: 0 | EK154: 0 | EL154: 0 | EM154: 0 | EN154: 0 | EO154: 0 | EP154: 0 | EQ154: 0 | ER154: 0 | ES154: 0 | ET154: 0 | EU154: 0 | EV154: 0 | EW154: 0 | EX154: 0 | EY154: 0 | EZ154: 0 | FA154: 0 | FB154: 0 | FC154: 0 | FD154: 0 | FE154: 0 | FF154: 0 | FG154: 0 | FH154: 0 | FI154: 0 | FJ154: 0 | FK154: 0 | FL154: 0 | FM154: 0 | FN154: 0 | FO154: 0 | FP154: 0 | FQ154: 0 | FR154: 0 | FS154: 0 | FT154: 0 | FU154: 0 | FV154: 0 | FW154: 0 | FX154: 0 | FY154: 0 | FZ154: 0 | GA154: 0 | GB154: 0 | GC154: 0 | GD154: 0 | GE154: 0 | GF154: 0 | GG154: 0 | GH154: 0
CV155: 0 | CW155: 0 | CX155: 0 | CY155: 0 | CZ155: 0 | DA155: 0 | DB155: 0 | DC155: 0 | DD155: 0 | DE155: 0 | DF155: 0 | DG155: 0 | DH155: 0 | DI155: 0 | DJ155: 0 | DK155: 0 | DL155: 0 | DM155: 0 | DN155: 0 | DO155: 0 | DP155: 0 | DQ155: 0 | DR155: 0 | DS155: 0 | DT155: 0 | DU155: 0 | DV155: 0 | DW155: 0 | DX155: 0 | DY155: 0 | DZ155: 0 | EA155: 0 | EB155: 0 | EC155: 0 | ED155: 0 | EE155: 0 | EF155: 0 | EG155: 0 | EH155: 0 | EI155: 0 | EJ155: 0 | EK155: 0 | EL155: 0 | EM155: 0 | EN155: 0 | EO155: 0 | EP155: 0 | EQ155: 0 | ER155: 0 | ES155: 0 | ET155: 0 | EU155: 0 | EV155: 0 | EW155: 0 | EX155: 0 | EY155: 0 | EZ155: 0 | FA155: 0 | FB155: 0 | FC155: 0 | FD155: 0 | FE155: 0 | FF155: 0 | FG155: 0 | FH155: 0 | FI155: 0 | FJ155: 0 | FK155: 0 | FL155: 0 | FM155: 0 | FN155: 0 | FO155: 0 | FP155: 0 | FQ155: 0 | FR155: 0 | FS155: 0 | FT155: 0 | FU155: 0 | FV155: 0 | FW155: 0 | FX155: 0 | FY155: 0 | FZ155: 0 | GA155: 0 | GB155: 0 | GC155: 0 | GD155: 0 | GE155: 0 | GF155: 0 | GG155: 0 | GH155: 0
CV156: 0 | CW156: 0 | CX156: 0 | CY156: 0 | CZ156: 0 | DA156: 0 | DB156: 0 | DC156: 0 | DD156: 0 | DE156: 0 | DF156: 0 | DG156: 0 | DH156: 0 | DI156: 0 | DJ156: 0 | DK156: 0 | DL156: 0 | DM156: 0 | DN156: 0 | DO156: 0 | DP156: 0 | DQ156: 0 | DR156: 0 | DS156: 0 | DT156: 0 | DU156: 0 | DV156: 0 | DW156: 0 | DX156: 0 | DY156: 0 | DZ156: 0 | EA156: 0 | EB156: 0 | EC156: 0 | ED156: 0 | EE156: 0 | EF156: 0 | EG156: 0 | EH156: 0 | EI156: 0 | EJ156: 0 | EK156: 0 | EL156: 0 | EM156: 0 | EN156: 0 | EO156: 0 | EP156: 0 | EQ156: 0 | ER156: 0 | ES156: 0 | ET156: 0 | EU156: 0 | EV156: 0 | EW156: 0 | EX156: 0 | EY156: 0 | EZ156: 0 | FA156: 0 | FB156: 0 | FC156: 0 | FD156: 0 | FE156: 0 | FF156: 0 | FG156: 0 | FH156: 0 | FI156: 0 | FJ156: 0 | FK156: 0 | FL156: 0 | FM156: 0 | FN156: 0 | FO156: 0 | FP156: 0 | FQ156: 0 | FR156: 0 | FS156: 0 | FT156: 0 | FU156: 0 | FV156: 0 | FW156: 0 | FX156: 0 | FY156: 0 | FZ156: 0 | GA156: 0 | GB156: 0 | GC156: 0 | GD156: 0 | GE156: 0 | GF156: 0 | GG156: 0 | GH156: 0
CV157: 0 | CW157: 0 | CX157: 0 | CY157: 0 | CZ157: 0 | DA157: 0 | DB157: 0 | DC157: 0 | DD157: 0 | DE157: 0 | DF157: 0 | DG157: 0 | DH157: 0 | DI157: 0 | DJ157: 0 | DK157: 0 | DL157: 0 | DM157: 0 | DN157: 0 | DO157: 0 | DP157: 0 | DQ157: 0 | DR157: 0 | DS157: 0 | DT157: 0 | DU157: 0 | DV157: 0 | DW157: 0 | DX157: 0 | DY157: 0 | DZ157: 0 | EA157: 0 | EB157: 0 | EC157: 0 | ED157: 0 | EE157: 0 | EF157: 0 | EG157: 0 | EH157: 0 | EI157: 0 | EJ157: 0 | EK157: 0 | EL157: 0 | EM157: 0 | EN157: 0 | EO157: 0 | EP157: 0 | EQ157: 0 | ER157: 0 | ES157: 0 | ET157: 0 | EU157: 0 | EV157: 0 | EW157: 0 | EX157: 0 | EY157: 0 | EZ157: 0 | FA157: 0 | FB157: 0 | FC157: 0 | FD157: 0 | FE157: 0 | FF157: 0 | FG157: 0 | FH157: 0 | FI157: 0 | FJ157: 0 | FK157: 0 | FL157: 0 | FM157: 0 | FN157: 0 | FO157: 0 | FP157: 0 | FQ157: 0 | FR157: 0 | FS157: 0 | FT157: 0 | FU157: 0 | FV157: 0 | FW157: 0 | FX157: 0 | FY157: 0 | FZ157: 0 | GA157: 0 | GB157: 0 | GC157: 0 | GD157: 0 | GE157: 0 | GF157: 0 | GG157: 0 | GH157: 0
CV158: 0 | CW158: 0 | CX158: 0 | CY158: 0 | CZ158: 0 | DA158: 0 | DB158: 0 | DC158: 0 | DD158: 0 | DE158: 0 | DF158: 0 | DG158: 0 | DH158: 0 | DI158: 0 | DJ158: 0 | DK158: 0 | DL158: 0 | DM158: 0 | DN158: 0 | DO158: 0 | DP158: 0 | DQ158: 0 | DR158: 0 | DS158: 0 | DT158: 0 | DU158: 0 | DV158: 0 | DW158: 0 | DX158: 0 | DY158: 0 | DZ158: 0 | EA158: 0 | EB158: 0 | EC158: 0 | ED158: 0 | EE158: 0 | EF158: 0 | EG158: 0 | EH158: 0 | EI158: 0 | EJ158: 0 | EK158: 0 | EL158: 0 | EM158: 0 | EN158: 0 | EO158: 0 | EP158: 0 | EQ158: 0 | ER158: 0 | ES158: 0 | ET158: 0 | EU158: 0 | EV158: 0 | EW158: 0 | EX158: 0 | EY158: 0 | EZ158: 0 | FA158: 0 | FB158: 0 | FC158: 0 | FD158: 0 | FE158: 0 | FF158: 0 | FG158: 0 | FH158: 0 | FI158: 0 | FJ158: 0 | FK158: 0 | FL158: 0 | FM158: 0 | FN158: 0 | FO158: 0 | FP158: 0 | FQ158: 0 | FR158: 0 | FS158: 0 | FT158: 0 | FU158: 0 | FV158: 0 | FW158: 0 | FX158: 0 | FY158: 0 | FZ158: 0 | GA158: 0 | GB158: 0 | GC158: 0 | GD158: 0 | GE158: 0 | GF158: 0 | GG158: 0 | GH158: 0
CV159: 0 | CW159: 0 | CX159: 0 | CY159: 0 | CZ159: 0 | DA159: 0 | DB159: 0 | DC159: 0 | DD159: 0 | DE159: 0 | DF159: 0 | DG159: 0 | DH159: 0 | DI159: 0 | DJ159: 0 | DK159: 0 | DL159: 0 | DM159: 0 | DN159: 0 | DO159: 0 | DP159: 0 | DQ159: 0 | DR159: 0 | DS159: 0 | DT159: 0 | DU159: 0 | DV159: 0 | DW159: 0 | DX159: 0 | DY159: 0 | DZ159: 0 | EA159: 0 | EB159: 0 | EC159: 0 | ED159: 0 | EE159: 0 | EF159: 0 | EG159: 0 | EH159: 0 | EI159: 0 | EJ159: 0 | EK159: 0 | EL159: 0 | EM159: 0 | EN159: 0 | EO159: 0 | EP159: 0 | EQ159: 0 | ER159: 0 | ES159: 0 | ET159: 0 | EU159: 0 | EV159: 0 | EW159: 0 | EX159: 0 | EY159: 0 | EZ159: 0 | FA159: 0 | FB159: 0 | FC159: 0 | FD159: 0 | FE159: 0 | FF159: 0 | FG159: 0 | FH159: 0 | FI159: 0 | FJ159: 0 | FK159: 0 | FL159: 0 | FM159: 0 | FN159: 0 | FO159: 0 | FP159: 0 | FQ159: 0 | FR159: 0 | FS159: 0 | FT159: 0 | FU159: 0 | FV159: 0 | FW159: 0 | FX159: 0 | FY159: 0 | FZ159: 0 | GA159: 0 | GB159: 0 | GC159: 0 | GD159: 0 | GE159: 0 | GF159: 0 | GG159: 0 | GH159: 0
CV160: 0 | CW160: 0 | CX160: 0 | CY160: 0 | CZ160: 0 | DA160: 0 | DB160: 0 | DC160: 0 | DD160: 0 | DE160: 0 | DF160: 0 | DG160: 0 | DH160: 0 | DI160: 0 | DJ160: 0 | DK160: 0 | DL160: 0 | DM160: 0 | DN160: 0 | DO160: 0 | DP160: 0 | DQ160: 0 | DR160: 0 | DS160: 0 | DT160: 0 | DU160: 0 | DV160: 0 | DW160: 0 | DX160: 0 | DY160: 0 | DZ160: 0 | EA160: 0 | EB160: 0 | EC160: 0 | ED160: 0 | EE160: 0 | EF160: 0 | EG160: 0 | EH160: 0 | EI160: 0 | EJ160: 0 | EK160: 0 | EL160: 0 | EM160: 0 | EN160: 0 | EO160: 0 | EP160: 0 | EQ160: 0 | ER160: 0 | ES160: 0 | ET160: 0 | EU160: 0 | EV160: 0 | EW160: 0 | EX160: 0 | EY160: 0 | EZ160: 0 | FA160: 0 | FB160: 0 | FC160: 0 | FD160: 0 | FE160: 0 | FF160: 0 | FG160: 0 | FH160: 0 | FI160: 0 | FJ160: 0 | FK160: 0 | FL160: 0 | FM160: 0 | FN160: 0 | FO160: 0 | FP160: 0 | FQ160: 0 | FR160: 0 | FS160: 0 | FT160: 0 | FU160: 0 | FV160: 0 | FW160: 0 | FX160: 0 | FY160: 0 | FZ160: 0 | GA160: 0 | GB160: 0 | GC160: 0 | GD160: 0 | GE160: 0 | GF160: 0 | GG160: 0 | GH160: 0
CV161: 0 | CW161: 0 | CX161: 0 | CY161: 0 | CZ161: 0 | DA161: 0 | DB161: 0 | DC161: 0 | DD161: 0 | DE161: 0 | DF161: 0 | DG161: 0 | DH161: 0 | DI161: 0 | DJ161: 0 | DK161: 0 | DL161: 0 | DM161: 0 | DN161: 0 | DO161: 0 | DP161: 0 | DQ161: 0 | DR161: 0 | DS161: 0 | DT161: 0 | DU161: 0 | DV161: 0 | DW161: 0 | DX161: 0 | DY161: 0 | DZ161: 0 | EA161: 0 | EB161: 0 | EC161: 0 | ED161: 0 | EE161: 0 | EF161: 0 | EG161: 0 | EH161: 0 | EI161: 0 | EJ161: 0 | EK161: 0 | EL161: 0 | EM161: 0 | EN161: 0 | EO161: 0 | EP161: 0 | EQ161: 0 | ER161: 0 | ES161: 0 | ET161: 0 | EU161: 0 | EV161: 0 | EW161: 0 | EX161: 0 | EY161: 0 | EZ161: 0 | FA161: 0 | FB161: 0 | FC161: 0 | FD161: 0 | FE161: 0 | FF161: 0 | FG161: 0 | FH161: 0 | FI161: 0 | FJ161: 0 | FK161: 0 | FL161: 0 | FM161: 0 | FN161: 0 | FO161: 0 | FP161: 0 | FQ161: 0 | FR161: 0 | FS161: 0 | FT161: 0 | FU161: 0 | FV161: 0 | FW161: 0 | FX161: 0 | FY161: 0 | FZ161: 0 | GA161: 0 | GB161: 0 | GC161: 0 | GD161: 0 | GE161: 0 | GF161: 0 | GG161: 0 | GH161: 0
CV162: 0 | CW162: 0 | CX162: 0 | CY162: 0 | CZ162: 0 | DA162: 0 | DB162: 0 | DC162: 0 | DD162: 0 | DE162: 0 | DF162: 0 | DG162: 0 | DH162: 0 | DI162: 0 | DJ162: 0 | DK162: 0 | DL162: 0 | DM162: 0 | DN162: 0 | DO162: 0 | DP162: 0 | DQ162: 0 | DR162: 0 | DS162: 0 | DT162: 0 | DU162: 0 | DV162: 0 | DW162: 0 | DX162: 0 | DY162: 0 | DZ162: 0 | EA162: 0 | EB162: 0 | EC162: 0 | ED162: 0 | EE162: 0 | EF162: 0 | EG162: 0 | EH162: 0 | EI162: 0 | EJ162: 0 | EK162: 0 | EL162: 0 | EM162: 0 | EN162: 0 | EO162: 0 | EP162: 0 | EQ162: 0 | ER162: 0 | ES162: 0 | ET162: 0 | EU162: 0 | EV162: 0 | EW162: 0 | EX162: 0 | EY162: 0 | EZ162: 0 | FA162: 0 | FB162: 0 | FC162: 0 | FD162: 0 | FE162: 0 | FF162: 0 | FG162: 0 | FH162: 0 | FI162: 0 | FJ162: 0 | FK162: 0 | FL162: 0 | FM162: 0 | FN162: 0 | FO162: 0 | FP162: 0 | FQ162: 0 | FR162: 0 | FS162: 0 | FT162: 0 | FU162: 0 | FV162: 0 | FW162: 0 | FX162: 0 | FY162: 0 | FZ162: 0 | GA162: 0 | GB162: 0 | GC162: 0 | GD162: 0 | GE162: 0 | GF162: 0 | GG162: 0 | GH162: 0
CV163: 0 | CW163: 0 | CX163: 0 | CY163: 0 | CZ163: 0 | DA163: 0 | DB163: 0 | DC163: 0 | DD163: 0 | DE163: 0 | DF163: 0 | DG163: 0 | DH163: 0 | DI163: 0 | DJ163: 0 | DK163: 0 | DL163: 0 | DM163: 0 | DN163: 0 | DO163: 0 | DP163: 0 | DQ163: 0 | DR163: 0 | DS163: 0 | DT163: 0 | DU163: 0 | DV163: 0 | DW163: 0 | DX163: 0 | DY163: 0 | DZ163: 0 | EA163: 0 | EB163: 0 | EC163: 0 | ED163: 0 | EE163: 0 | EF163: 0 | EG163: 0 | EH163: 0 | EI163: 0 | EJ163: 0 | EK163: 0 | EL163: 0 | EM163: 0 | EN163: 0 | EO163: 0 | EP163: 0 | EQ163: 0 | ER163: 0 | ES163: 0 | ET163: 0 | EU163: 0 | EV163: 0 | EW163: 0 | EX163: 0 | EY163: 0 | EZ163: 0 | FA163: 0 | FB163: 0 | FC163: 0 | FD163: 0 | FE163: 0 | FF163: 0 | FG163: 0 | FH163: 0 | FI163: 0 | FJ163: 0 | FK163: 0 | FL163: 0 | FM163: 0 | FN163: 0 | FO163: 0 | FP163: 0 | FQ163: 0 | FR163: 0 | FS163: 0 | FT163: 0 | FU163: 0 | FV163: 0 | FW163: 0 | FX163: 0 | FY163: 0 | FZ163: 0 | GA163: 0 | GB163: 0 | GC163: 0 | GD163: 0 | GE163: 0 | GF163: 0 | GG163: 0 | GH163: 0
CV164: 0 | CW164: 0 | CX164: 0 | CY164: 0 | CZ164: 0 | DA164: 0 | DB164: 0 | DC164: 0 | DD164: 0 | DE164: 0 | DF164: 0 | DG164: 0 | DH164: 0 | DI164: 0 | DJ164: 0 | DK164: 0 | DL164: 0 | DM164: 0 | DN164: 0 | DO164: 0 | DP164: 0 | DQ164: 0 | DR164: 0 | DS164: 0 | DT164: 0 | DU164: 0 | DV164: 0 | DW164: 0 | DX164: 0 | DY164: 0 | DZ164: 0 | EA164: 0 | EB164: 0 | EC164: 0 | ED164: 0 | EE164: 0 | EF164: 0 | EG164: 0 | EH164: 0 | EI164: 0 | EJ164: 0 | EK164: 0 | EL164: 0 | EM164: 0 | EN164: 0 | EO164: 0 | EP164: 0 | EQ164: 0 | ER164: 0 | ES164: 0 | ET164: 0 | EU164: 0 | EV164: 0 | EW164: 0 | EX164: 0 | EY164: 0 | EZ164: 0 | FA164: 0 | FB164: 0 | FC164: 0 | FD164: 0 | FE164: 0 | FF164: 0 | FG164: 0 | FH164: 0 | FI164: 0 | FJ164: 0 | FK164: 0 | FL164: 0 | FM164: 0 | FN164: 0 | FO164: 0 | FP164: 0 | FQ164: 0 | FR164: 0 | FS164: 0 | FT164: 0 | FU164: 0 | FV164: 0 | FW164: 0 | FX164: 0 | FY164: 0 | FZ164: 0 | GA164: 0 | GB164: 0 | GC164: 0 | GD164: 0 | GE164: 0 | GF164: 0 | GG164: 0 | GH164: 0
CV165: 0 | CW165: 0 | CX165: 0 | CY165: 0 | CZ165: 0 | DA165: 0 | DB165: 0 | DC165: 0 | DD165: 0 | DE165: 0 | DF165: 0 | DG165: 0 | DH165: 0 | DI165: 0 | DJ165: 0 | DK165: 0 | DL165: 0 | DM165: 0 | DN165: 0 | DO165: 0 | DP165: 0 | DQ165: 0 | DR165: 0 | DS165: 0 | DT165: 0 | DU165: 0 | DV165: 0 | DW165: 0 | DX165: 0 | DY165: 0 | DZ165: 0 | EA165: 0 | EB165: 0 | EC165: 0 | ED165: 0 | EE165: 0 | EF165: 0 | EG165: 0 | EH165: 0 | EI165: 0 | EJ165: 0 | EK165: 0 | EL165: 0 | EM165: 0 | EN165: 0 | EO165: 0 | EP165: 0 | EQ165: 0 | ER165: 0 | ES165: 0 | ET165: 0 | EU165: 0 | EV165: 0 | EW165: 0 | EX165: 0 | EY165: 0 | EZ165: 0 | FA165: 0 | FB165: 0 | FC165: 0 | FD165: 0 | FE165: 0 | FF165: 0 | FG165: 0 | FH165: 0 | FI165: 0 | FJ165: 0 | FK165: 0 | FL165: 0 | FM165: 0 | FN165: 0 | FO165: 0 | FP165: 0 | FQ165: 0 | FR165: 0 | FS165: 0 | FT165: 0 | FU165: 0 | FV165: 0 | FW165: 0 | FX165: 0 | FY165: 0 | FZ165: 0 | GA165: 0 | GB165: 0 | GC165: 0 | GD165: 0 | GE165: 0 | GF165: 0 | GG165: 0 | GH165: 0
CV166: 0 | CW166: 0 | CX166: 0 | CY166: 0 | CZ166: 0 | DA166: 0 | DB166: 0 | DC166: 0 | DD166: 0 | DE166: 0 | DF166: 0 | DG166: 0 | DH166: 0 | DI166: 0 | DJ166: 0 | DK166: 0 | DL166: 0 | DM166: 0 | DN166: 0 | DO166: 0 | DP166: 0 | DQ166: 0 | DR166: 0 | DS166: 0 | DT166: 0 | DU166: 0 | DV166: 0 | DW166: 0 | DX166: 0 | DY166: 0 | DZ166: 0 | EA166: 0 | EB166: 0 | EC166: 0 | ED166: 0 | EE166: 0 | EF166: 0 | EG166: 0 | EH166: 0 | EI166: 0 | EJ166: 0 | EK166: 0 | EL166: 0 | EM166: 0 | EN166: 0 | EO166: 0 | EP166: 0 | EQ166: 0 | ER166: 0 | ES166: 0 | ET166: 0 | EU166: 0 | EV166: 0 | EW166: 0 | EX166: 0 | EY166: 0 | EZ166: 0 | FA166: 0 | FB166: 0 | FC166: 0 | FD166: 0 | FE166: 0 | FF166: 0 | FG166: 0 | FH166: 0 | FI166: 0 | FJ166: 0 | FK166: 0 | FL166: 0 | FM166: 0 | FN166: 0 | FO166: 0 | FP166: 0 | FQ166: 0 | FR166: 0 | FS166: 0 | FT166: 0 | FU166: 0 | FV166: 0 | FW166: 0 | FX166: 0 | FY166: 0 | FZ166: 0 | GA166: 0 | GB166: 0 | GC166: 0 | GD166: 0 | GE166: 0 | GF166: 0 | GG166: 0 | GH166: 0
CV167: 0 | CW167: 0 | CX167: 0 | CY167: 0 | CZ167: 0 | DA167: 0 | DB167: 0 | DC167: 0 | DD167: 0 | DE167: 0 | DF167: 0 | DG167: 0 | DH167: 0 | DI167: 0 | DJ167: 0 | DK167: 0 | DL167: 0 | DM167: 0 | DN167: 0 | DO167: 0 | DP167: 0 | DQ167: 0 | DR167: 0 | DS167: 0 | DT167: 0 | DU167: 0 | DV167: 0 | DW167: 0 | DX167: 0 | DY167: 0 | DZ167: 0 | EA167: 0 | EB167: 0 | EC167: 0 | ED167: 0 | EE167: 0 | EF167: 0 | EG167: 0 | EH167: 0 | EI167: 0 | EJ167: 0 | EK167: 0 | EL167: 0 | EM167: 0 | EN167: 0 | EO167: 0 | EP167: 0 | EQ167: 0 | ER167: 0 | ES167: 0 | ET167: 0 | EU167: 0 | EV167: 0 | EW167: 0 | EX167: 0 | EY167: 0 | EZ167: 0 | FA167: 0 | FB167: 0 | FC167: 0 | FD167: 0 | FE167: 0 | FF167: 0 | FG167: 0 | FH167: 0 | FI167: 0 | FJ167: 0 | FK167: 0 | FL167: 0 | FM167: 0 | FN167: 0 | FO167: 0 | FP167: 0 | FQ167: 0 | FR167: 0 | FS167: 0 | FT167: 0 | FU167: 0 | FV167: 0 | FW167: 0 | FX167: 0 | FY167: 0 | FZ167: 0 | GA167: 0 | GB167: 0 | GC167: 0 | GD167: 0 | GE167: 0 | GF167: 0 | GG167: 0 | GH167: 0
CV168: 0 | CW168: 0 | CX168: 0 | CY168: 0 | CZ168: 0 | DA168: 0 | DB168: 0 | DC168: 0 | DD168: 0 | DE168: 0 | DF168: 0 | DG168: 0 | DH168: 0 | DI168: 0 | DJ168: 0 | DK168: 0 | DL168: 0 | DM168: 0 | DN168: 0 | DO168: 0 | DP168: 0 | DQ168: 0 | DR168: 0 | DS168: 0 | DT168: 0 | DU168: 0 | DV168: 0 | DW168: 0 | DX168: 0 | DY168: 0 | DZ168: 0 | EA168: 0 | EB168: 0 | EC168: 0 | ED168: 0 | EE168: 0 | EF168: 0 | EG168: 0 | EH168: 0 | EI168: 0 | EJ168: 0 | EK168: 0 | EL168: 0 | EM168: 0 | EN168: 0 | EO168: 0 | EP168: 0 | EQ168: 0 | ER168: 0 | ES168: 0 | ET168: 0 | EU168: 0 | EV168: 0 | EW168: 0 | EX168: 0 | EY168: 0 | EZ168: 0 | FA168: 0 | FB168: 0 | FC168: 0 | FD168: 0 | FE168: 0 | FF168: 0 | FG168: 0 | FH168: 0 | FI168: 0 | FJ168: 0 | FK168: 0 | FL168: 0 | FM168: 0 | FN168: 0 | FO168: 0 | FP168: 0 | FQ168: 0 | FR168: 0 | FS168: 0 | FT168: 0 | FU168: 0 | FV168: 0 | FW168: 0 | FX168: 0 | FY168: 0 | FZ168: 0 | GA168: 0 | GB168: 0 | GC168: 0 | GD168: 0 | GE168: 0 | GF168: 0 | GG168: 0 | GH168: 0
CV169: 0 | CW169: 0 | CX169: 0 | CY169: 0 | CZ169: 0 | DA169: 0 | DB169: 0 | DC169: 0 | DD169: 0 | DE169: 0 | DF169: 0 | DG169: 0 | DH169: 0 | DI169: 0 | DJ169: 0 | DK169: 0 | DL169: 0 | DM169: 0 | DN169: 0 | DO169: 0 | DP169: 0 | DQ169: 0 | DR169: 0 | DS169: 0 | DT169: 0 | DU169: 0 | DV169: 0 | DW169: 0 | DX169: 0 | DY169: 0 | DZ169: 0 | EA169: 0 | EB169: 0 | EC169: 0 | ED169: 0 | EE169: 0 | EF169: 0 | EG169: 0 | EH169: 0 | EI169: 0 | EJ169: 0 | EK169: 0 | EL169: 0 | EM169: 0 | EN169: 0 | EO169: 0 | EP169: 0 | EQ169: 0 | ER169: 0 | ES169: 0 | ET169: 0 | EU169: 0 | EV169: 0 | EW169: 0 | EX169: 0 | EY169: 0 | EZ169: 0 | FA169: 0 | FB169: 0 | FC169: 0 | FD169: 0 | FE169: 0 | FF169: 0 | FG169: 0 | FH169: 0 | FI169: 0 | FJ169: 0 | FK169: 0 | FL169: 0 | FM169: 0 | FN169: 0 | FO169: 0 | FP169: 0 | FQ169: 0 | FR169: 0 | FS169: 0 | FT169: 0 | FU169: 0 | FV169: 0 | FW169: 0 | FX169: 0 | FY169: 0 | FZ169: 0 | GA169: 0 | GB169: 0 | GC169: 0 | GD169: 0 | GE169: 0 | GF169: 0 | GG169: 0 | GH169: 0
CV170: 0 | CW170: 0 | CX170: 0 | CY170: 0 | CZ170: 0 | DA170: 0 | DB170: 0 | DC170: 0 | DD170: 0 | DE170: 0 | DF170: 0 | DG170: 0 | DH170: 0 | DI170: 0 | DJ170: 0 | DK170: 0 | DL170: 0 | DM170: 0 | DN170: 0 | DO170: 0 | DP170: 0 | DQ170: 0 | DR170: 0 | DS170: 0 | DT170: 0 | DU170: 0 | DV170: 0 | DW170: 0 | DX170: 0 | DY170: 0 | DZ170: 0 | EA170: 0 | EB170: 0 | EC170: 0 | ED170: 0 | EE170: 0 | EF170: 0 | EG170: 0 | EH170: 0 | EI170: 0 | EJ170: 0 | EK170: 0 | EL170: 0 | EM170: 0 | EN170: 0 | EO170: 0 | EP170: 0 | EQ170: 0 | ER170: 0 | ES170: 0 | ET170: 0 | EU170: 0 | EV170: 0 | EW170: 0 | EX170: 0 | EY170: 0 | EZ170: 0 | FA170: 0 | FB170: 0 | FC170: 0 | FD170: 0 | FE170: 0 | FF170: 0 | FG170: 0 | FH170: 0 | FI170: 0 | FJ170: 0 | FK170: 0 | FL170: 0 | FM170: 0 | FN170: 0 | FO170: 0 | FP170: 0 | FQ170: 0 | FR170: 0 | FS170: 0 | FT170: 0 | FU170: 0 | FV170: 0 | FW170: 0 | FX170: 0 | FY170: 0 | FZ170: 0 | GA170: 0 | GB170: 0 | GC170: 0 | GD170: 0 | GE170: 0 | GF170: 0 | GG170: 0 | GH170: 0
CV171: 0 | CW171: 0 | CX171: 0 | CY171: 0 | CZ171: 0 | DA171: 0 | DB171: 0 | DC171: 0 | DD171: 0 | DE171: 0 | DF171: 0 | DG171: 0 | DH171: 0 | DI171: 0 | DJ171: 0 | DK171: 0 | DL171: 0 | DM171: 0 | DN171: 0 | DO171: 0 | DP171: 0 | DQ171: 0 | DR171: 0 | DS171: 0 | DT171: 0 | DU171: 0 | DV171: 0 | DW171: 0 | DX171: 0 | DY171: 0 | DZ171: 0 | EA171: 0 | EB171: 0 | EC171: 0 | ED171: 0 | EE171: 0 | EF171: 0 | EG171: 0 | EH171: 0 | EI171: 0 | EJ171: 0 | EK171: 0 | EL171: 0 | EM171: 0 | EN171: 0 | EO171: 0 | EP171: 0 | EQ171: 0 | ER171: 0 | ES171: 0 | ET171: 0 | EU171: 0 | EV171: 0 | EW171: 0 | EX171: 0 | EY171: 0 | EZ171: 0 | FA171: 0 | FB171: 0 | FC171: 0 | FD171: 0 | FE171: 0 | FF171: 0 | FG171: 0 | FH171: 0 | FI171: 0 | FJ171: 0 | FK171: 0 | FL171: 0 | FM171: 0 | FN171: 0 | FO171: 0 | FP171: 0 | FQ171: 0 | FR171: 0 | FS171: 0 | FT171: 0 | FU171: 0 | FV171: 0 | FW171: 0 | FX171: 0 | FY171: 0 | FZ171: 0 | GA171: 0 | GB171: 0 | GC171: 0 | GD171: 0 | GE171: 0 | GF171: 0 | GG171: 0 | GH171: 0
CV172: 0 | CW172: 0 | CX172: 0 | CY172: 0 | CZ172: 0 | DA172: 0 | DB172: 0 | DC172: 0 | DD172: 0 | DE172: 0 | DF172: 0 | DG172: 0 | DH172: 0 | DI172: 0 | DJ172: 0 | DK172: 0 | DL172: 0 | DM172: 0 | DN172: 0 | DO172: 0 | DP172: 0 | DQ172: 0 | DR172: 0 | DS172: 0 | DT172: 0 | DU172: 0 | DV172: 0 | DW172: 0 | DX172: 0 | DY172: 0 | DZ172: 0 | EA172: 0 | EB172: 0 | EC172: 0 | ED172: 0 | EE172: 0 | EF172: 0 | EG172: 0 | EH172: 0 | EI172: 0 | EJ172: 0 | EK172: 0 | EL172: 0 | EM172: 0 | EN172: 0 | EO172: 0 | EP172: 0 | EQ172: 0 | ER172: 0 | ES172: 0 | ET172: 0 | EU172: 0 | EV172: 0 | EW172: 0 | EX172: 0 | EY172: 0 | EZ172: 0 | FA172: 0 | FB172: 0 | FC172: 0 | FD172: 0 | FE172: 0 | FF172: 0 | FG172: 0 | FH172: 0 | FI172: 0 | FJ172: 0 | FK172: 0 | FL172: 0 | FM172: 0 | FN172: 0 | FO172: 0 | FP172: 0 | FQ172: 0 | FR172: 0 | FS172: 0 | FT172: 0 | FU172: 0 | FV172: 0 | FW172: 0 | FX172: 0 | FY172: 0 | FZ172: 0 | GA172: 0 | GB172: 0 | GC172: 0 | GD172: 0 | GE172: 0 | GF172: 0 | GG172: 0 | GH172: 0
CV173: 0 | CW173: 0 | CX173: 0 | CY173: 0 | CZ173: 0 | DA173: 0 | DB173: 0 | DC173: 0 | DD173: 0 | DE173: 0 | DF173: 0 | DG173: 0 | DH173: 0 | DI173: 0 | DJ173: 0 | DK173: 0 | DL173: 0 | DM173: 0 | DN173: 0 | DO173: 0 | DP173: 0 | DQ173: 0 | DR173: 0 | DS173: 0 | DT173: 0 | DU173: 0 | DV173: 0 | DW173: 0 | DX173: 0 | DY173: 0 | DZ173: 0 | EA173: 0 | EB173: 0 | EC173: 0 | ED173: 0 | EE173: 0 | EF173: 0 | EG173: 0 | EH173: 0 | EI173: 0 | EJ173: 0 | EK173: 0 | EL173: 0 | EM173: 0 | EN173: 0 | EO173: 0 | EP173: 0 | EQ173: 0 | ER173: 0 | ES173: 0 | ET173: 0 | EU173: 0 | EV173: 0 | EW173: 0 | EX173: 0 | EY173: 0 | EZ173: 0 | FA173: 0 | FB173: 0 | FC173: 0 | FD173: 0 | FE173: 0 | FF173: 0 | FG173: 0 | FH173: 0 | FI173: 0 | FJ173: 0 | FK173: 0 | FL173: 0 | FM173: 0 | FN173: 0 | FO173: 0 | FP173: 0 | FQ173: 0 | FR173: 0 | FS173: 0 | FT173: 0 | FU173: 0 | FV173: 0 | FW173: 0 | FX173: 0 | FY173: 0 | FZ173: 0 | GA173: 0 | GB173: 0 | GC173: 0 | GD173: 0 | GE173: 0 | GF173: 0 | GG173: 0 | GH173: 0
CV174: 0 | CW174: 0 | CX174: 0 | CY174: 0 | CZ174: 0 | DA174: 0 | DB174: 0 | DC174: 0 | DD174: 0 | DE174: 0 | DF174: 0 | DG174: 0 | DH174: 0 | DI174: 0 | DJ174: 0 | DK174: 0 | DL174: 0 | DM174: 0 | DN174: 0 | DO174: 0 | DP174: 0 | DQ174: 0 | DR174: 0 | DS174: 0 | DT174: 0 | DU174: 0 | DV174: 0 | DW174: 0 | DX174: 0 | DY174: 0 | DZ174: 0 | EA174: 0 | EB174: 0 | EC174: 0 | ED174: 0 | EE174: 0 | EF174: 0 | EG174: 0 | EH174: 0 | EI174: 0 | EJ174: 0 | EK174: 0 | EL174: 0 | EM174: 0 | EN174: 0 | EO174: 0 | EP174: 0 | EQ174: 0 | ER174: 0 | ES174: 0 | ET174: 0 | EU174: 0 | EV174: 0 | EW174: 0 | EX174: 0 | EY174: 0 | EZ174: 0 | FA174: 0 | FB174: 0 | FC174: 0 | FD174: 0 | FE174: 0 | FF174: 0 | FG174: 0 | FH174: 0 | FI174: 0 | FJ174: 0 | FK174: 0 | FL174: 0 | FM174: 0 | FN174: 0 | FO174: 0 | FP174: 0 | FQ174: 0 | FR174: 0 | FS174: 0 | FT174: 0 | FU174: 0 | FV174: 0 | FW174: 0 | FX174: 0 | FY174: 0 | FZ174: 0 | GA174: 0 | GB174: 0 | GC174: 0 | GD174: 0 | GE174: 0 | GF174: 0 | GG174: 0 | GH174: 0
CV175: 0 | CW175: 0 | CX175: 0 | CY175: 0 | CZ175: 0 | DA175: 0 | DB175: 0 | DC175: 0 | DD175: 0 | DE175: 0 | DF175: 0 | DG175: 0 | DH175: 0 | DI175: 0 | DJ175: 0 | DK175: 0 | DL175: 0 | DM175: 0 | DN175: 0 | DO175: 0 | DP175: 0 | DQ175: 0 | DR175: 0 | DS175: 0 | DT175: 0 | DU175: 0 | DV175: 0 | DW175: 0 | DX175: 0 | DY175: 0 | DZ175: 0 | EA175: 0 | EB175: 0 | EC175: 0 | ED175: 0 | EE175: 0 | EF175: 0 | EG175: 0 | EH175: 0 | EI175: 0 | EJ175: 0 | EK175: 0 | EL175: 0 | EM175: 0 | EN175: 0 | EO175: 0 | EP175: 0 | EQ175: 0 | ER175: 0 | ES175: 0 | ET175: 0 | EU175: 0 | EV175: 0 | EW175: 0 | EX175: 0 | EY175: 0 | EZ175: 0 | FA175: 0 | FB175: 0 | FC175: 0 | FD175: 0 | FE175: 0 | FF175: 0 | FG175: 0 | FH175: 0 | FI175: 0 | FJ175: 0 | FK175: 0 | FL175: 0 | FM175: 0 | FN175: 0 | FO175: 0 | FP175: 0 | FQ175: 0 | FR175: 0 | FS175: 0 | FT175: 0 | FU175: 0 | FV175: 0 | FW175: 0 | FX175: 0 | FY175: 0 | FZ175: 0 | GA175: 0 | GB175: 0 | GC175: 0 | GD175: 0 | GE175: 0 | GF175: 0 | GG175: 0 | GH175: 0
CV176: 0 | CW176: 0 | CX176: 0 | CY176: 0 | CZ176: 0 | DA176: 0 | DB176: 0 | DC176: 0 | DD176: 0 | DE176: 0 | DF176: 0 | DG176: 0 | DH176: 0 | DI176: 0 | DJ176: 0 | DK176: 0 | DL176: 0 | DM176: 0 | DN176: 0 | DO176: 0 | DP176: 0 | DQ176: 0 | DR176: 0 | DS176: 0 | DT176: 0 | DU176: 0 | DV176: 0 | DW176: 0 | DX176: 0 | DY176: 0 | DZ176: 0 | EA176: 0 | EB176: 0 | EC176: 0 | ED176: 0 | EE176: 0 | EF176: 0 | EG176: 0 | EH176: 0 | EI176: 0 | EJ176: 0 | EK176: 0 | EL176: 0 | EM176: 0 | EN176: 0 | EO176: 0 | EP176: 0 | EQ176: 0 | ER176: 0 | ES176: 0 | ET176: 0 | EU176: 0 | EV176: 0 | EW176: 0 | EX176: 0 | EY176: 0 | EZ176: 0 | FA176: 0 | FB176: 0 | FC176: 0 | FD176: 0 | FE176: 0 | FF176: 0 | FG176: 0 | FH176: 0 | FI176: 0 | FJ176: 0 | FK176: 0 | FL176: 0 | FM176: 0 | FN176: 0 | FO176: 0 | FP176: 0 | FQ176: 0 | FR176: 0 | FS176: 0 | FT176: 0 | FU176: 0 | FV176: 0 | FW176: 0 | FX176: 0 | FY176: 0 | FZ176: 0 | GA176: 0 | GB176: 0 | GC176: 0 | GD176: 0 | GE176: 0 | GF176: 0 | GG176: 0 | GH176: 0
CV177: 0 | CW177: 0 | CX177: 0 | CY177: 0 | CZ177: 0 | DA177: 0 | DB177: 0 | DC177: 0 | DD177: 0 | DE177: 0 | DF177: 0 | DG177: 0 | DH177: 0 | DI177: 0 | DJ177: 0 | DK177: 0 | DL177: 0 | DM177: 0 | DN177: 0 | DO177: 0 | DP177: 0 | DQ177: 0 | DR177: 0 | DS177: 0 | DT177: 0 | DU177: 0 | DV177: 0 | DW177: 0 | DX177: 0 | DY177: 0 | DZ177: 0 | EA177: 0 | EB177: 0 | EC177: 0 | ED177: 0 | EE177: 0 | EF177: 0 | EG177: 0 | EH177: 0 | EI177: 0 | EJ177: 0 | EK177: 0 | EL177: 0 | EM177: 0 | EN177: 0 | EO177: 0 | EP177: 0 | EQ177: 0 | ER177: 0 | ES177: 0 | ET177: 0 | EU177: 0 | EV177: 0 | EW177: 0 | EX177: 0 | EY177: 0 | EZ177: 0 | FA177: 0 | FB177: 0 | FC177: 0 | FD177: 0 | FE177: 0 | FF177: 0 | FG177: 0 | FH177: 0 | FI177: 0 | FJ177: 0 | FK177: 0 | FL177: 0 | FM177: 0 | FN177: 0 | FO177: 0 | FP177: 0 | FQ177: 0 | FR177: 0 | FS177: 0 | FT177: 0 | FU177: 0 | FV177: 0 | FW177: 0 | FX177: 0 | FY177: 0 | FZ177: 0 | GA177: 0 | GB177: 0 | GC177: 0 | GD177: 0 | GE177: 0 | GF177: 0 | GG177: 0 | GH177: 0
CV178: 0 | CW178: 0 | CX178: 0 | CY178: 0 | CZ178: 0 | DA178: 0 | DB178: 0 | DC178: 0 | DD178: 0 | DE178: 0 | DF178: 0 | DG178: 0 | DH178: 0 | DI178: 0 | DJ178: 0 | DK178: 0 | DL178: 0 | DM178: 0 | DN178: 0 | DO178: 0 | DP178: 0 | DQ178: 0 | DR178: 0 | DS178: 0 | DT178: 0 | DU178: 0 | DV178: 0 | DW178: 0 | DX178: 0 | DY178: 0 | DZ178: 0 | EA178: 0 | EB178: 0 | EC178: 0 | ED178: 0 | EE178: 0 | EF178: 0 | EG178: 0 | EH178: 0 | EI178: 0 | EJ178: 0 | EK178: 0 | EL178: 0 | EM178: 0 | EN178: 0 | EO178: 0 | EP178: 0 | EQ178: 0 | ER178: 0 | ES178: 0 | ET178: 0 | EU178: 0 | EV178: 0 | EW178: 0 | EX178: 0 | EY178: 0 | EZ178: 0 | FA178: 0 | FB178: 0 | FC178: 0 | FD178: 0 | FE178: 0 | FF178: 0 | FG178: 0 | FH178: 0 | FI178: 0 | FJ178: 0 | FK178: 0 | FL178: 0 | FM178: 0 | FN178: 0 | FO178: 0 | FP178: 0 | FQ178: 0 | FR178: 0 | FS178: 0 | FT178: 0 | FU178: 0 | FV178: 0 | FW178: 0 | FX178: 0 | FY178: 0 | FZ178: 0 | GA178: 0 | GB178: 0 | GC178: 0 | GD178: 0 | GE178: 0 | GF178: 0 | GG178: 0 | GH178: 0
CV179: 0 | CW179: 0 | CX179: 0 | CY179: 0 | CZ179: 0 | DA179: 0 | DB179: 0 | DC179: 0 | DD179: 0 | DE179: 0 | DF179: 0 | DG179: 0 | DH179: 0 | DI179: 0 | DJ179: 0 | DK179: 0 | DL179: 0 | DM179: 0 | DN179: 0 | DO179: 0 | DP179: 0 | DQ179: 0 | DR179: 0 | DS179: 0 | DT179: 0 | DU179: 0 | DV179: 0 | DW179: 0 | DX179: 0 | DY179: 0 | DZ179: 0 | EA179: 0 | EB179: 0 | EC179: 0 | ED179: 0 | EE179: 0 | EF179: 0 | EG179: 0 | EH179: 0 | EI179: 0 | EJ179: 0 | EK179: 0 | EL179: 0 | EM179: 0 | EN179: 0 | EO179: 0 | EP179: 0 | EQ179: 0 | ER179: 0 | ES179: 0 | ET179: 0 | EU179: 0 | EV179: 0 | EW179: 0 | EX179: 0 | EY179: 0 | EZ179: 0 | FA179: 0 | FB179: 0 | FC179: 0 | FD179: 0 | FE179: 0 | FF179: 0 | FG179: 0 | FH179: 0 | FI179: 0 | FJ179: 0 | FK179: 0 | FL179: 0 | FM179: 0 | FN179: 0 | FO179: 0 | FP179: 0 | FQ179: 0 | FR179: 0 | FS179: 0 | FT179: 0 | FU179: 0 | FV179: 0 | FW179: 0 | FX179: 0 | FY179: 0 | FZ179: 0 | GA179: 0 | GB179: 0 | GC179: 0 | GD179: 0 | GE179: 0 | GF179: 0 | GG179: 0 | GH179: 0
CV180: 0 | CW180: 0 | CX180: 0 | CY180: 0 | CZ180: 0 | DA180: 0 | DB180: 0 | DC180: 0 | DD180: 0 | DE180: 0 | DF180: 0 | DG180: 0 | DH180: 0 | DI180: 0 | DJ180: 0 | DK180: 0 | DL180: 0 | DM180: 0 | DN180: 0 | DO180: 0 | DP180: 0 | DQ180: 0 | DR180: 0 | DS180: 0 | DT180: 0 | DU180: 0 | DV180: 0 | DW180: 0 | DX180: 0 | DY180: 0 | DZ180: 0 | EA180: 0 | EB180: 0 | EC180: 0 | ED180: 0 | EE180: 0 | EF180: 0 | EG180: 0 | EH180: 0 | EI180: 0 | EJ180: 0 | EK180: 0 | EL180: 0 | EM180: 0 | EN180: 0 | EO180: 0 | EP180: 0 | EQ180: 0 | ER180: 0 | ES180: 0 | ET180: 0 | EU180: 0 | EV180: 0 | EW180: 0 | EX180: 0 | EY180: 0 | EZ180: 0 | FA180: 0 | FB180: 0 | FC180: 0 | FD180: 0 | FE180: 0 | FF180: 0 | FG180: 0 | FH180: 0 | FI180: 0 | FJ180: 0 | FK180: 0 | FL180: 0 | FM180: 0 | FN180: 0 | FO180: 0 | FP180: 0 | FQ180: 0 | FR180: 0 | FS180: 0 | FT180: 0 | FU180: 0 | FV180: 0 | FW180: 0 | FX180: 0 | FY180: 0 | FZ180: 0 | GA180: 0 | GB180: 0 | GC180: 0 | GD180: 0 | GE180: 0 | GF180: 0 | GG180: 0 | GH180: 0
CV181: 0 | CW181: 0 | CX181: 0 | CY181: 0 | CZ181: 0 | DA181: 0 | DB181: 0 | DC181: 0 | DD181: 0 | DE181: 0 | DF181: 0 | DG181: 0 | DH181: 0 | DI181: 0 | DJ181: 0 | DK181: 0 | DL181: 0 | DM181: 0 | DN181: 0 | DO181: 0 | DP181: 0 | DQ181: 0 | DR181: 0 | DS181: 0 | DT181: 0 | DU181: 0 | DV181: 0 | DW181: 0 | DX181: 0 | DY181: 0 | DZ181: 0 | EA181: 0 | EB181: 0 | EC181: 0 | ED181: 0 | EE181: 0 | EF181: 0 | EG181: 0 | EH181: 0 | EI181: 0 | EJ181: 0 | EK181: 0 | EL181: 0 | EM181: 0 | EN181: 0 | EO181: 0 | EP181: 0 | EQ181: 0 | ER181: 0 | ES181: 0 | ET181: 0 | EU181: 0 | EV181: 0 | EW181: 0 | EX181: 0 | EY181: 0 | EZ181: 0 | FA181: 0 | FB181: 0 | FC181: 0 | FD181: 0 | FE181: 0 | FF181: 0 | FG181: 0 | FH181: 0 | FI181: 0 | FJ181: 0 | FK181: 0 | FL181: 0 | FM181: 0 | FN181: 0 | FO181: 0 | FP181: 0 | FQ181: 0 | FR181: 0 | FS181: 0 | FT181: 0 | FU181: 0 | FV181: 0 | FW181: 0 | FX181: 0 | FY181: 0 | FZ181: 0 | GA181: 0 | GB181: 0 | GC181: 0 | GD181: 0 | GE181: 0 | GF181: 0 | GG181: 0 | GH181: 0
CV182: 0 | CW182: 0 | CX182: 0 | CY182: 0 | CZ182: 0 | DA182: 0 | DB182: 0 | DC182: 0 | DD182: 0 | DE182: 0 | DF182: 0 | DG182: 0 | DH182: 0 | DI182: 0 | DJ182: 0 | DK182: 0 | DL182: 0 | DM182: 0 | DN182: 0 | DO182: 0 | DP182: 0 | DQ182: 0 | DR182: 0 | DS182: 0 | DT182: 0 | DU182: 0 | DV182: 0 | DW182: 0 | DX182: 0 | DY182: 0 | DZ182: 0 | EA182: 0 | EB182: 0 | EC182: 0 | ED182: 0 | EE182: 0 | EF182: 0 | EG182: 0 | EH182: 0 | EI182: 0 | EJ182: 0 | EK182: 0 | EL182: 0 | EM182: 0 | EN182: 0 | EO182: 0 | EP182: 0 | EQ182: 0 | ER182: 0 | ES182: 0 | ET182: 0 | EU182: 0 | EV182: 0 | EW182: 0 | EX182: 0 | EY182: 0 | EZ182: 0 | FA182: 0 | FB182: 0 | FC182: 0 | FD182: 0 | FE182: 0 | FF182: 0 | FG182: 0 | FH182: 0 | FI182: 0 | FJ182: 0 | FK182: 0 | FL182: 0 | FM182: 0 | FN182: 0 | FO182: 0 | FP182: 0 | FQ182: 0 | FR182: 0 | FS182: 0 | FT182: 0 | FU182: 0 | FV182: 0 | FW182: 0 | FX182: 0 | FY182: 0 | FZ182: 0 | GA182: 0 | GB182: 0 | GC182: 0 | GD182: 0 | GE182: 0 | GF182: 0 | GG182: 0 | GH182: 0
CV183: 0 | CW183: 0 | CX183: 0 | CY183: 0 | CZ183: 0 | DA183: 0 | DB183: 0 | DC183: 0 | DD183: 0 | DE183: 0 | DF183: 0 | DG183: 0 | DH183: 0 | DI183: 0 | DJ183: 0 | DK183: 0 | DL183: 0 | DM183: 0 | DN183: 0 | DO183: 0 | DP183: 0 | DQ183: 0 | DR183: 0 | DS183: 0 | DT183: 0 | DU183: 0 | DV183: 0 | DW183: 0 | DX183: 0 | DY183: 0 | DZ183: 0 | EA183: 0 | EB183: 0 | EC183: 0 | ED183: 0 | EE183: 0 | EF183: 0 | EG183: 0 | EH183: 0 | EI183: 0 | EJ183: 0 | EK183: 0 | EL183: 0 | EM183: 0 | EN183: 0 | EO183: 0 | EP183: 0 | EQ183: 0 | ER183: 0 | ES183: 0 | ET183: 0 | EU183: 0 | EV183: 0 | EW183: 0 | EX183: 0 | EY183: 0 | EZ183: 0 | FA183: 0 | FB183: 0 | FC183: 0 | FD183: 0 | FE183: 0 | FF183: 0 | FG183: 0 | FH183: 0 | FI183: 0 | FJ183: 0 | FK183: 0 | FL183: 0 | FM183: 0 | FN183: 0 | FO183: 0 | FP183: 0 | FQ183: 0 | FR183: 0 | FS183: 0 | FT183: 0 | FU183: 0 | FV183: 0 | FW183: 0 | FX183: 0 | FY183: 0 | FZ183: 0 | GA183: 0 | GB183: 0 | GC183: 0 | GD183: 0 | GE183: 0 | GF183: 0 | GG183: 0 | GH183: 0
CV184: 0 | CW184: 0 | CX184: 0 | CY184: 0 | CZ184: 0 | DA184: 0 | DB184: 0 | DC184: 0 | DD184: 0 | DE184: 0 | DF184: 0 | DG184: 0 | DH184: 0 | DI184: 0 | DJ184: 0 | DK184: 0 | DL184: 0 | DM184: 0 | DN184: 0 | DO184: 0 | DP184: 0 | DQ184: 0 | DR184: 0 | DS184: 0 | DT184: 0 | DU184: 0 | DV184: 0 | DW184: 0 | DX184: 0 | DY184: 0 | DZ184: 0 | EA184: 0 | EB184: 0 | EC184: 0 | ED184: 0 | EE184: 0 | EF184: 0 | EG184: 0 | EH184: 0 | EI184: 0 | EJ184: 0 | EK184: 0 | EL184: 0 | EM184: 0 | EN184: 0 | EO184: 0 | EP184: 0 | EQ184: 0 | ER184: 0 | ES184: 0 | ET184: 0 | EU184: 0 | EV184: 0 | EW184: 0 | EX184: 0 | EY184: 0 | EZ184: 0 | FA184: 0 | FB184: 0 | FC184: 0 | FD184: 0 | FE184: 0 | FF184: 0 | FG184: 0 | FH184: 0 | FI184: 0 | FJ184: 0 | FK184: 0 | FL184: 0 | FM184: 0 | FN184: 0 | FO184: 0 | FP184: 0 | FQ184: 0 | FR184: 0 | FS184: 0 | FT184: 0 | FU184: 0 | FV184: 0 | FW184: 0 | FX184: 0 | FY184: 0 | FZ184: 0 | GA184: 0 | GB184: 0 | GC184: 0 | GD184: 0 | GE184: 0 | GF184: 0 | GG184: 0 | GH184: 0
CV185: 0 | CW185: 0 | CX185: 0 | CY185: 0 | CZ185: 0 | DA185: 0 | DB185: 0 | DC185: 0 | DD185: 0 | DE185: 0 | DF185: 0 | DG185: 0 | DH185: 0 | DI185: 0 | DJ185: 0 | DK185: 0 | DL185: 0 | DM185: 0 | DN185: 0 | DO185: 0 | DP185: 0 | DQ185: 0 | DR185: 0 | DS185: 0 | DT185: 0 | DU185: 0 | DV185: 0 | DW185: 0 | DX185: 0 | DY185: 0 | DZ185: 0 | EA185: 0 | EB185: 0 | EC185: 0 | ED185: 0 | EE185: 0 | EF185: 0 | EG185: 0 | EH185: 0 | EI185: 0 | EJ185: 0 | EK185: 0 | EL185: 0 | EM185: 0 | EN185: 0 | EO185: 0 | EP185: 0 | EQ185: 0 | ER185: 0 | ES185: 0 | ET185: 0 | EU185: 0 | EV185: 0 | EW185: 0 | EX185: 0 | EY185: 0 | EZ185: 0 | FA185: 0 | FB185: 0 | FC185: 0 | FD185: 0 | FE185: 0 | FF185: 0 | FG185: 0 | FH185: 0 | FI185: 0 | FJ185: 0 | FK185: 0 | FL185: 0 | FM185: 0 | FN185: 0 | FO185: 0 | FP185: 0 | FQ185: 0 | FR185: 0 | FS185: 0 | FT185: 0 | FU185: 0 | FV185: 0 | FW185: 0 | FX185: 0 | FY185: 0 | FZ185: 0 | GA185: 0 | GB185: 0 | GC185: 0 | GD185: 0 | GE185: 0 | GF185: 0 | GG185: 0 | GH185: 0
CV186: 0 | CW186: 0 | CX186: 0 | CY186: 0 | CZ186: 0 | DA186: 0 | DB186: 0 | DC186: 0 | DD186: 0 | DE186: 0 | DF186: 0 | DG186: 0 | DH186: 0 | DI186: 0 | DJ186: 0 | DK186: 0 | DL186: 0 | DM186: 0 | DN186: 0 | DO186: 0 | DP186: 0 | DQ186: 0 | DR186: 0 | DS186: 0 | DT186: 0 | DU186: 0 | DV186: 0 | DW186: 0 | DX186: 0 | DY186: 0 | DZ186: 0 | EA186: 0 | EB186: 0 | EC186: 0 | ED186: 0 | EE186: 0 | EF186: 0 | EG186: 0 | EH186: 0 | EI186: 0 | EJ186: 0 | EK186: 0 | EL186: 0 | EM186: 0 | EN186: 0 | EO186: 0 | EP186: 0 | EQ186: 0 | ER186: 0 | ES186: 0 | ET186: 0 | EU186: 0 | EV186: 0 | EW186: 0 | EX186: 0 | EY186: 0 | EZ186: 0 | FA186: 0 | FB186: 0 | FC186: 0 | FD186: 0 | FE186: 0 | FF186: 0 | FG186: 0 | FH186: 0 | FI186: 0 | FJ186: 0 | FK186: 0 | FL186: 0 | FM186: 0 | FN186: 0 | FO186: 0 | FP186: 0 | FQ186: 0 | FR186: 0 | FS186: 0 | FT186: 0 | FU186: 0 | FV186: 0 | FW186: 0 | FX186: 0 | FY186: 0 | FZ186: 0 | GA186: 0 | GB186: 0 | GC186: 0 | GD186: 0 | GE186: 0 | GF186: 0 | GG186: 0 | GH186: 0
CV187: 0 | CW187: 0 | CX187: 0 | CY187: 0 | CZ187: 0 | DA187: 0 | DB187: 0 | DC187: 0 | DD187: 0 | DE187: 0 | DF187: 0 | DG187: 0 | DH187: 0 | DI187: 0 | DJ187: 0 | DK187: 0 | DL187: 0 | DM187: 0 | DN187: 0 | DO187: 0 | DP187: 0 | DQ187: 0 | DR187: 0 | DS187: 0 | DT187: 0 | DU187: 0 | DV187: 0 | DW187: 0 | DX187: 0 | DY187: 0 | DZ187: 0 | EA187: 0 | EB187: 0 | EC187: 0 | ED187: 0 | EE187: 0 | EF187: 0 | EG187: 0 | EH187: 0 | EI187: 0 | EJ187: 0 | EK187: 0 | EL187: 0 | EM187: 0 | EN187: 0 | EO187: 0 | EP187: 0 | EQ187: 0 | ER187: 0 | ES187: 0 | ET187: 0 | EU187: 0 | EV187: 0 | EW187: 0 | EX187: 0 | EY187: 0 | EZ187: 0 | FA187: 0 | FB187: 0 | FC187: 0 | FD187: 0 | FE187: 0 | FF187: 0 | FG187: 0 | FH187: 0 | FI187: 0 | FJ187: 0 | FK187: 0 | FL187: 0 | FM187: 0 | FN187: 0 | FO187: 0 | FP187: 0 | FQ187: 0 | FR187: 0 | FS187: 0 | FT187: 0 | FU187: 0 | FV187: 0 | FW187: 0 | FX187: 0 | FY187: 0 | FZ187: 0 | GA187: 0 | GB187: 0 | GC187: 0 | GD187: 0 | GE187: 0 | GF187: 0 | GG187: 0 | GH187: 0
CV188: 0 | CW188: 0 | CX188: 0 | CY188: 0 | CZ188: 0 | DA188: 0 | DB188: 0 | DC188: 0 | DD188: 0 | DE188: 0 | DF188: 0 | DG188: 0 | DH188: 0 | DI188: 0 | DJ188: 0 | DK188: 0 | DL188: 0 | DM188: 0 | DN188: 0 | DO188: 0 | DP188: 0 | DQ188: 0 | DR188: 0 | DS188: 0 | DT188: 0 | DU188: 0 | DV188: 0 | DW188: 0 | DX188: 0 | DY188: 0 | DZ188: 0 | EA188: 0 | EB188: 0 | EC188: 0 | ED188: 0 | EE188: 0 | EF188: 0 | EG188: 0 | EH188: 0 | EI188: 0 | EJ188: 0 | EK188: 0 | EL188: 0 | EM188: 0 | EN188: 0 | EO188: 0 | EP188: 0 | EQ188: 0 | ER188: 0 | ES188: 0 | ET188: 0 | EU188: 0 | EV188: 0 | EW188: 0 | EX188: 0 | EY188: 0 | EZ188: 0 | FA188: 0 | FB188: 0 | FC188: 0 | FD188: 0 | FE188: 0 | FF188: 0 | FG188: 0 | FH188: 0 | FI188: 0 | FJ188: 0 | FK188: 0 | FL188: 0 | FM188: 0 | FN188: 0 | FO188: 0 | FP188: 0 | FQ188: 0 | FR188: 0 | FS188: 0 | FT188: 0 | FU188: 0 | FV188: 0 | FW188: 0 | FX188: 0 | FY188: 0 | FZ188: 0 | GA188: 0 | GB188: 0 | GC188: 0 | GD188: 0 | GE188: 0 | GF188: 0 | GG188: 0 | GH188: 0
CV189: 0 | CW189: 0 | CX189: 0 | CY189: 0 | CZ189: 0 | DA189: 0 | DB189: 0 | DC189: 0 | DD189: 0 | DE189: 0 | DF189: 0 | DG189: 0 | DH189: 0 | DI189: 0 | DJ189: 0 | DK189: 0 | DL189: 0 | DM189: 0 | DN189: 0 | DO189: 0 | DP189: 0 | DQ189: 0 | DR189: 0 | DS189: 0 | DT189: 0 | DU189: 0 | DV189: 0 | DW189: 0 | DX189: 0 | DY189: 0 | DZ189: 0 | EA189: 0 | EB189: 0 | EC189: 0 | ED189: 0 | EE189: 0 | EF189: 0 | EG189: 0 | EH189: 0 | EI189: 0 | EJ189: 0 | EK189: 0 | EL189: 0 | EM189: 0 | EN189: 0 | EO189: 0 | EP189: 0 | EQ189: 0 | ER189: 0 | ES189: 0 | ET189: 0 | EU189: 0 | EV189: 0 | EW189: 0 | EX189: 0 | EY189: 0 | EZ189: 0 | FA189: 0 | FB189: 0 | FC189: 0 | FD189: 0 | FE189: 0 | FF189: 0 | FG189: 0 | FH189: 0 | FI189: 0 | FJ189: 0 | FK189: 0 | FL189: 0 | FM189: 0 | FN189: 0 | FO189: 0 | FP189: 0 | FQ189: 0 | FR189: 0 | FS189: 0 | FT189: 0 | FU189: 0 | FV189: 0 | FW189: 0 | FX189: 0 | FY189: 0 | FZ189: 0 | GA189: 0 | GB189: 0 | GC189: 0 | GD189: 0 | GE189: 0 | GF189: 0 | GG189: 0 | GH189: 0
CV190: 0 | CW190: 0 | CX190: 0 | CY190: 0 | CZ190: 0 | DA190: 0 | DB190: 0 | DC190: 0 | DD190: 0 | DE190: 0 | DF190: 0 | DG190: 0 | DH190: 0 | DI190: 0 | DJ190: 0 | DK190: 0 | DL190: 0 | DM190: 0 | DN190: 0 | DO190: 0 | DP190: 0 | DQ190: 0 | DR190: 0 | DS190: 0 | DT190: 0 | DU190: 0 | DV190: 0 | DW190: 0 | DX190: 0 | DY190: 0 | DZ190: 0 | EA190: 0 | EB190: 0 | EC190: 0 | ED190: 0 | EE190: 0 | EF190: 0 | EG190: 0 | EH190: 0 | EI190: 0 | EJ190: 0 | EK190: 0 | EL190: 0 | EM190: 0 | EN190: 0 | EO190: 0 | EP190: 0 | EQ190: 0 | ER190: 0 | ES190: 0 | ET190: 0 | EU190: 0 | EV190: 0 | EW190: 0 | EX190: 0 | EY190: 0 | EZ190: 0 | FA190: 0 | FB190: 0 | FC190: 0 | FD190: 0 | FE190: 0 | FF190: 0 | FG190: 0 | FH190: 0 | FI190: 0 | FJ190: 0 | FK190: 0 | FL190: 0 | FM190: 0 | FN190: 0 | FO190: 0 | FP190: 0 | FQ190: 0 | FR190: 0 | FS190: 0 | FT190: 0 | FU190: 0 | FV190: 0 | FW190: 0 | FX190: 0 | FY190: 0 | FZ190: 0 | GA190: 0 | GB190: 0 | GC190: 0 | GD190: 0 | GE190: 0 | GF190: 0 | GG190: 0 | GH190: 0

Sheet Historical scenario - output
D1: Replacement expenditure forecast ($,000) | X1: Replacement quantity forecast (#)
D2: 1 | E2: 2 | F2: 3 | G2: 4 | H2: 5 | I2: 6 | J2: 7 | K2: 8 | L2: 9 | M2: 10 | N2: 11 | O2: 12 | P2: 13 | Q2: 14 | R2: 15 | S2: 16 | T2: 17 | U2: 18 | V2: 19 | W2: 20 | X2: 1 | Y2: 2 | Z2: 3 | AA2: 4 | AB2: 5 | AC2: 6 | AD2: 7 | AE2: 8 | AF2: 9 | AG2: 10 | AH2: 11 | AI2: 12 | AJ2: 13 | AK2: 14 | AL2: 15 | AM2: 16 | AN2: 17 | AO2: 18 | AP2: 19 | AQ2: 20
A5: ID | B5: Asset group | D5: 2020 | E5: 2021 | F5: 2022 | G5: 2023 | H5: 2024 | I5: 2025 | J5: 2026 | K5: 2027 | L5: 2028 | M5: 2029 | N5: 2030 | O5: 2031 | P5: 2032 | Q5: 2033 | R5: 2034 | S5: 2035 | T5: 2036 | U5: 2037 | V5: 2038 | W5: 2039 | X5: 2020 | Y5: 2021 | Z5: 2022 | AA5: 2023 | AB5: 2024 | AC5: 2025 | AD5: 2026 | AE5: 2027 | AF5: 2028 | AG5: 2029 | AH5: 2030 | AI5: 2031 | AJ5: 2032 | AK5: 2033 | AL5: 2034 | AM5: 2035 | AN5: 2036 | AO5: 2037 | AP5: 2038 | AQ5: 2039
A6: 1 | B6: OVERHEAD CONDUCTORS | D6: =IFERROR(IF($A6="","",SUMIFS(D$21:D$175,$A$21:$A$175,$A6)),"") -> 3446.133987 | E6: =IFERROR(IF($A6="","",SUMIFS(E$21:E$175,$A$21:$A$175,$A6)),"") -> 4019.684529 | F6: 4675.611377 | G6: 5426.591347 | H6: 6287.679204 | I6: 7276.567219 | J6: 8413.767713 | K6: 9722.684164 | L6: 11229.53671 | M6: 12963.11072 | N6: 14954.30311 | O6: 17235.44946 | P6: 19839.42675 | Q6: 22798.5394 | R6: 26143.21124 | S6: 29900.52074 | T6: 34092.63108 | U6: =IFERROR(IF($A6="","",SUMIFS(U$21:U$175,$A$21:$A$175,$A6)),"") -> 38735.17903 | V6: 43835.69596 | W6: 49392.1406 | X6: =IFERROR(IF($A6="","",SUMIFS(X$21:X$175,$A$21:$A$175,$A6)),"") -> 118.8538091 | Y6: =IFERROR(IF($A6="","",SUMIFS(Y$21:Y$175,$A$21:$A$175,$A6)),"") -> 138.2259429 | Z6: 160.4001388 | AA6: 185.8440575 | AB6: 215.1191836 | AC6: 248.8902313 | AD6: 287.9310299 | AE6: 333.1254928 | AF6: 385.462308 | AG6: 446.0221485 | AH6: 515.956476 | AI6: 596.4574107 | AJ6: 688.7186438 | AK6: 793.8879497 | AL6: 913.0124843 | AM6: 1046.978681 | AN6: 1196.449142 | AO6: =IFERROR(IF($A6="","",SUMIFS(AO$21:AO$175,$A$21:$A$175,$A6)),"") -> 1361.799414 | AP6: 1543.05789 | AQ6: 1739.85226
A7: 2 | D7: =IFERROR(IF($A7="","",SUMIFS(D$21:D$175,$A$21:$A$175,$A7)),"") -> 0 | E7: 0 | F7: 0 | G7: 0 | H7: 0 | I7: 0 | J7: 0 | K7: 0 | L7: 0 | M7: 0 | N7: 0 | O7: 0 | P7: 0 | Q7: 0 | R7: 0 | S7: 0 | T7: 0 | U7: 0 | V7: 0 | W7: 0 | X7: 0 | Y7: 0 | Z7: 0 | AA7: 0 | AB7: 0 | AC7: 0 | AD7: 0 | AE7: 0 | AF7: 0 | AG7: 0 | AH7: 0 | AI7: 0 | AJ7: 0 | AK7: 0 | AL7: 0 | AM7: 0 | AN7: 0 | AO7: 0 | AP7: 0 | AQ7: 0
A8: 3 | B8: SERVICE LINES | D8: 9001.586844 | E8: 9108.551061 | F8: 9169.582241 | G8: 9189.629671 | H8: 9174.864749 | I8: 9132.335511 | J8: 9069.597726 | K8: 8994.329508 | L8: 8913.939263 | M8: 8835.181777 | N8: 8763.802783 | O8: 8704.236568 | P8: 8659.38237 | Q8: 8630.482306 | R8: 8617.116187 | S8: 8617.31769 | T8: 8627.803524 | U8: 8644.294746 | V8: 8661.899321 | W8: 8675.519154 | X8: 16884.62765 | Y8: 17085.25102 | Z8: 17199.68511 | AA8: 17237.19307 | AB8: 17209.33102 | AC8: 17129.30288 | AD8: 17011.27086 | AE8: 16869.63418 | AF8: 16718.29455 | AG8: 16569.9358 | AH8: 16435.35599 | AI8: 16322.89832 | AJ8: 16238.02927 | AK8: 16183.10697 | AL8: 16157.36911 | AM8: 16157.14876 | AN8: 16176.30303 | AO8: 16206.81515 | AP8: 16239.51237 | AQ8: 16264.83032
A9: 4 | B9: SWITCHGEAR | D9: 12351.28092 | E9: 11881.90264 | F9: 11431.45757 | G9: 11012.2175 | H9: 10637.85539 | I9: 10321.54949 | J9: 10075.0826 | K9: 9908.574956 | L9: 9830.585721 | M9: 9848.374168 | N9: 9968.148098 | O9: 10195.1594 | P9: 10533.54632 | Q9: 10985.87385 | R9: 11552.3868 | S9: 12230.05837 | T9: 13011.57848 | U9: 13884.46961 | V9: 14830.53054 | W9: 15825.78391 | X9: 156.8536616 | Y9: 151.116866 | Z9: 146.4443694 | AA9: 142.908579 | AB9: 140.6129401 | AC9: 139.6580021 | AD9: 140.1286452 | AE9: 142.0939429 | AF9: 145.6135259 | AG9: 150.745778 | AH9: 157.5541732 | AI9: 166.1088873 | AJ9: 176.481746 | AK9: 188.7337063 | AL9: 202.895431 | AM9: 218.9429561 | AN9: 236.7717699 | AO9: 256.1735328 | AP9: 276.8199341 | AQ9: 298.2576481
A10: 5 | B10: TRANSFORMERS | D10: 29994.40295 | E10: 29017.65873 | F10: 28364.36909 | G10: 27959.46044 | H10: 27744.68078 | I10: 27674.76747 | J10: 27714.31127 | K10: 27835.21026 | L10: 28014.64242 | M10: 28233.50913 | N10: 28475.31192 | O10: 28725.42231 | P10: 28970.69513 | Q10: 29199.36313 | R10: 29401.14034 | S10: 29567.45567 | T10: 29691.73971 | U10: 29769.6949 | V10: 29799.49302 | W10: 29781.86088 | X10: 1658.643855 | Y10: 1587.040519 | Z10: 1534.30526 | AA10: 1496.311254 | AB10: 1469.924395 | AC10: 1452.755063 | AD10: 1442.957783 | AE10: 1439.071766 | AF10: 1439.897097 | AG10: 1444.402536 | AH10: 1451.661376 | AI10: 1460.81181 | AJ10: 1471.037894 | AK10: 1481.56687 | AL10: 1491.678403 | AM10: 1500.721354 | AN10: 1508.134057 | AO10: 1513.464655 | AP10: 1516.38877 | AQ10: 1516.722563
A11: 6 | B11: UNDERGROUND CABLES | D11: 3502.213017 | E11: 3953.105448 | F11: 4460.798293 | G11: 5037.849081 | H11: 5699.496945 | I11: 6463.702826 | J11: 7351.059453 | K11: 8384.556714 | L11: 9589.195168 | M11: 10991.44922 | N11: 12618.59146 | O11: 14497.90021 | P11: 16655.78218 | Q11: 19116.85055 | R11: 21903.00385 | S11: 25032.55279 | T11: 28519.43877 | U11: 32372.58064 | V11: 36595.37511 | W11: 41185.36291 | X11: 5.351720821 | Y11: 6.100898216 | Z11: 6.957773676 | AA11: 7.946778512 | AB11: 9.097780321 | AC11: 10.44641802 | AD11: 12.03422423 | AE11: 13.90848353 | AF11: 16.12178232 | AG11: 18.73121856 | AH11: 21.7972582 | AI11: 25.38224879 | AJ11: 29.54862744 | AK11: 34.35688897 | AL11: 39.86340601 | AM11: 46.11821353 | AN11: 53.16288275 | AO11: 61.02861022 | AP11: 69.73463697 | AQ11: 79.2870898
C18: Total | D18: =IFERROR(SUM(D$6:D$17),"") -> 58295.61771 | E18: =IFERROR(SUM(E$6:E$17),"") -> 57980.90241 | F18: 58101.81858 | G18: 58625.74805 | H18: 59544.57707 | I18: 60868.92252 | J18: 62623.81876 | K18: 64845.35561 | L18: 67577.89928 | M18: 70871.62502 | N18: 74780.15737 | O18: 79358.16794 | P18: 84658.83275 | Q18: 90731.10923 | R18: 97616.85842 | S18: 105347.9053 | T18: 113943.1916 | U18: 123406.2189 | V18: 133722.9939 | W18: 144860.6675
A20: ID | B20: Asset group | C20: Asset category
A21: =IFERROR('Historical scenario - input'!A6,"") -> 1 | B21: =IFERROR('Historical scenario - input'!B6,"") -> OVERHEAD CONDUCTORS | C21: =IFERROR('Historical scenario - input'!C6,"") -> ˂ = 1 kv | D21: =IFERROR(repcalc('Historical scenario - input'!$CV6:$GH6,'Historical scenario - input'!$G6,'Historical scenario - input'!$E6,'Historical scenario - input'!$F6,20,TRUE,TRUE),"") -> 1955.031525 | E21: 2250.615717 | F21: 2581.045932 | G21: 2950.94631 | H21: 3366.040717 | I21: 3833.316194 | J21: 4361.143556 | K21: 4959.332817 | L21: 5639.101137 | M21: 6412.933111 | N21: 7294.317398 | O21: 8297.350064 | P21: 9436.20329 | Q21: 10724.46784 | R21: 12174.38828 | S21: 13796.02066 | T21: 15596.35204 | U21: 17578.42935 | V21: 19740.55045 | W21: 22075.57239 | X21: =IFERROR(IF(OR(D21="",'Historical scenario - input'!$D6=""),"",D21/'Historical scenario - input'!$D6),"") -> 77.37527615 | Y21: =IFERROR(IF(OR(E21="",'Historical scenario - input'!$D6=""),"",E21/'Historical scenario - input'!$D6),"") -> 89.07376193 | Z21: =IFERROR(IF(OR(F21="",'Historical scenario - input'!$D6=""),"",F21/'Historical scenario - input'!$D6),"") -> 102.1513665 | AA21: =IFERROR(IF(OR(G21="",'Historical scenario - input'!$D6=""),"",G21/'Historical scenario - input'!$D6),"") -> 116.7911017 | AB21: =IFERROR(IF(OR(H21="",'Historical scenario - input'!$D6=""),"",H21/'Historical scenario - input'!$D6),"") -> 133.219504 | AC21: =IFERROR(IF(OR(I21="",'Historical scenario - input'!$D6=""),"",I21/'Historical scenario - input'!$D6),"") -> 151.713103 | AD21: =IFERROR(IF(OR(J21="",'Historical scenario - input'!$D6=""),"",J21/'Historical scenario - input'!$D6),"") -> 172.6031947 | AE21: =IFERROR(IF(OR(K21="",'Historical scenario - input'!$D6=""),"",K21/'Historical scenario - input'!$D6),"") -> 196.2780351 | AF21: =IFERROR(IF(OR(L21="",'Historical scenario - input'!$D6=""),"",L21/'Historical scenario - input'!$D6),"") -> 223.1815713 | AG21: =IFERROR(IF(OR(M21="",'Historical scenario - input'!$D6=""),"",M21/'Historical scenario - input'!$D6),"") -> 253.8079126 | AH21: =IFERROR(IF(OR(N21="",'Historical scenario - input'!$D6=""),"",N21/'Historical scenario - input'!$D6),"") -> 288.6909064 | AI21: =IFERROR(IF(OR(O21="",'Historical scenario - input'!$D6=""),"",O21/'Historical scenario - input'!$D6),"") -> 328.3884399 | AJ21: =IFERROR(IF(OR(P21="",'Historical scenario - input'!$D6=""),"",P21/'Historical scenario - input'!$D6),"") -> 373.4614128 | AK21: =IFERROR(IF(OR(Q21="",'Historical scenario - input'!$D6=""),"",Q21/'Historical scenario - input'!$D6),"") -> 424.4477134 | AL21: =IFERROR(IF(OR(R21="",'Historical scenario - input'!$D6=""),"",R21/'Historical scenario - input'!$D6),"") -> 481.8319515 | AM21: =IFERROR(IF(OR(S21="",'Historical scenario - input'!$D6=""),"",S21/'Historical scenario - input'!$D6),"") -> 546.0121203 | AN21: =IFERROR(IF(OR(T21="",'Historical scenario - input'!$D6=""),"",T21/'Historical scenario - input'!$D6),"") -> 617.2647502 | AO21: =IFERROR(IF(OR(U21="",'Historical scenario - input'!$D6=""),"",U21/'Historical scenario - input'!$D6),"") -> 695.710431 | AP21: =IFERROR(IF(OR(V21="",'Historical scenario - input'!$D6=""),"",V21/'Historical scenario - input'!$D6),"") -> 781.2817968 | AQ21: =IFERROR(IF(OR(W21="",'Historical scenario - input'!$D6=""),"",W21/'Historical scenario - input'!$D6),"") -> 873.6961465
A22: =IFERROR('Historical scenario - input'!A7,"") -> 1 | B22: =IFERROR('Historical scenario - input'!B7,"") -> OVERHEAD CONDUCTORS | C22: =IFERROR('Historical scenario - input'!C7,"") -> ˃ 11 kv & < = 22 kv ; swer | D22: =IFERROR(repcalc('Historical scenario - input'!$CV7:$GH7,'Historical scenario - input'!$G7,'Historical scenario - input'!$E7,'Historical scenario - input'!$F7,20,TRUE,TRUE),"") -> 25.17618172 | E22: 32.32864341 | F22: 41.60604315 | G22: 53.61755585 | H22: 69.11916129 | I22: 89.03639818 | J22: 114.4863538 | K22: 146.7972475 | L22: 187.5235919 | M22: 238.4545841 | N22: 301.6131353 | O22: 379.2428381 | P22: 473.7802461 | Q22: 587.8101447 | R22: 724.0020606 | S22: 885.0271027 | T22: 1073.455351 | U22: 1291.635374 | V22: 1541.55898 | W22: 1824.715956 | X22: =IFERROR(IF(OR(D22="",'Historical scenario - input'!$D7=""),"",D22/'Historical scenario - input'!$D7),"") -> 2.691025585 | Y22: =IFERROR(IF(OR(E22="",'Historical scenario - input'!$D7=""),"",E22/'Historical scenario - input'!$D7),"") -> 3.455536169 | Z22: =IFERROR(IF(OR(F22="",'Historical scenario - input'!$D7=""),"",F22/'Historical scenario - input'!$D7),"") -> 4.447176614 | AA22: =IFERROR(IF(OR(G22="",'Historical scenario - input'!$D7=""),"",G22/'Historical scenario - input'!$D7),"") -> 5.731060261 | AB22: =IFERROR(IF(OR(H22="",'Historical scenario - input'!$D7=""),"",H22/'Historical scenario - input'!$D7),"") -> 7.38799209 | AC22: =IFERROR(IF(OR(I22="",'Historical scenario - input'!$D7=""),"",I22/'Historical scenario - input'!$D7),"") -> 9.516900859 | AD22: =IFERROR(IF(OR(J22="",'Historical scenario - input'!$D7=""),"",J22/'Historical scenario - input'!$D7),"") -> 12.23718952 | AE22: =IFERROR(IF(OR(K22="",'Historical scenario - input'!$D7=""),"",K22/'Historical scenario - input'!$D7),"") -> 15.69082846 | AF22: =IFERROR(IF(OR(L22="",'Historical scenario - input'!$D7=""),"",L22/'Historical scenario - input'!$D7),"") -> 20.04397605 | AG22: =IFERROR(IF(OR(M22="",'Historical scenario - input'!$D7=""),"",M22/'Historical scenario - input'!$D7),"") -> 25.48787555 | AH22: =IFERROR(IF(OR(N22="",'Historical scenario - input'!$D7=""),"",N22/'Historical scenario - input'!$D7),"") -> 32.2387514 | AI22: =IFERROR(IF(OR(O22="",'Historical scenario - input'!$D7=""),"",O22/'Historical scenario - input'!$D7),"") -> 40.53641618 | AJ22: =IFERROR(IF(OR(P22="",'Historical scenario - input'!$D7=""),"",P22/'Historical scenario - input'!$D7),"") -> 50.64130763 | AK22: =IFERROR(IF(OR(Q22="",'Historical scenario - input'!$D7=""),"",Q22/'Historical scenario - input'!$D7),"") -> 62.82970769 | AL22: =IFERROR(IF(OR(R22="",'Historical scenario - input'!$D7=""),"",R22/'Historical scenario - input'!$D7),"") -> 77.38695605 | AM22: =IFERROR(IF(OR(S22="",'Historical scenario - input'!$D7=""),"",S22/'Historical scenario - input'!$D7),"") -> 94.59856156 | AN22: =IFERROR(IF(OR(T22="",'Historical scenario - input'!$D7=""),"",T22/'Historical scenario - input'!$D7),"") -> 114.7392343 | AO22: =IFERROR(IF(OR(U22="",'Historical scenario - input'!$D7=""),"",U22/'Historical scenario - input'!$D7),"") -> 138.0600075 | AP22: =IFERROR(IF(OR(V22="",'Historical scenario - input'!$D7=""),"",V22/'Historical scenario - input'!$D7),"") -> 164.7737811 | AQ22: =IFERROR(IF(OR(W22="",'Historical scenario - input'!$D7=""),"",W22/'Historical scenario - input'!$D7),"") -> 195.039795
A23: =IFERROR('Historical scenario - input'!A8,"") -> 1 | B23: =IFERROR('Historical scenario - input'!B8,"") -> OVERHEAD CONDUCTORS | C23: =IFERROR('Historical scenario - input'!C8,"") -> > 1 kv & < = 11 kv | D23: =IFERROR(repcalc('Historical scenario - input'!$CV8:$GH8,'Historical scenario - input'!$G8,'Historical scenario - input'!$E8,'Historical scenario - input'!$F8,20,TRUE,TRUE),"") -> 878.1877265 | E23: 1032.585937 | F23: 1214.014318 | G23: 1427.622287 | H23: 1679.37984 | I23: 1976.077573 | J23: 2325.280486 | K23: 2735.227386 | L23: 3214.669948 | M23: 3772.648565 | N23: 4418.205967 | O23: 5160.043887 | P23: 6006.132549 | Q23: 6963.287072 | R23: 8036.728656 | S23: 9229.651234 | T23: 10542.81593 | U23: 11974.19591 | V23: 13518.69289 | W23: 15167.94415 | X23: =IFERROR(IF(OR(D23="",'Historical scenario - input'!$D8=""),"",D23/'Historical scenario - input'!$D8),"") -> 34.75648192 | Y23: =IFERROR(IF(OR(E23="",'Historical scenario - input'!$D8=""),"",E23/'Historical scenario - input'!$D8),"") -> 40.86717837 | Z23: =IFERROR(IF(OR(F23="",'Historical scenario - input'!$D8=""),"",F23/'Historical scenario - input'!$D8),"") -> 48.04766158 | AA23: =IFERROR(IF(OR(G23="",'Historical scenario - input'!$D8=""),"",G23/'Historical scenario - input'!$D8),"") -> 56.50173273 | AB23: =IFERROR(IF(OR(H23="",'Historical scenario - input'!$D8=""),"",H23/'Historical scenario - input'!$D8),"") -> 66.46566936 | AC23: =IFERROR(IF(OR(I23="",'Historical scenario - input'!$D8=""),"",I23/'Historical scenario - input'!$D8),"") -> 78.2082263 | AD23: =IFERROR(IF(OR(J23="",'Historical scenario - input'!$D8=""),"",J23/'Historical scenario - input'!$D8),"") -> 92.02880742 | AE23: =IFERROR(IF(OR(K23="",'Historical scenario - input'!$D8=""),"",K23/'Historical scenario - input'!$D8),"") -> 108.2534842 | AF23: =IFERROR(IF(OR(L23="",'Historical scenario - input'!$D8=""),"",L23/'Historical scenario - input'!$D8),"") -> 127.2286261 | AG23: =IFERROR(IF(OR(M23="",'Historical scenario - input'!$D8=""),"",M23/'Historical scenario - input'!$D8),"") -> 149.3120294 | AH23: =IFERROR(IF(OR(N23="",'Historical scenario - input'!$D8=""),"",N23/'Historical scenario - input'!$D8),"") -> 174.8615828 | AI23: =IFERROR(IF(OR(O23="",'Historical scenario - input'!$D8=""),"",O23/'Historical scenario - input'!$D8),"") -> 204.2216791 | AJ23: =IFERROR(IF(OR(P23="",'Historical scenario - input'!$D8=""),"",P23/'Historical scenario - input'!$D8),"") -> 237.70776 | AK23: =IFERROR(IF(OR(Q23="",'Historical scenario - input'!$D8=""),"",Q23/'Historical scenario - input'!$D8),"") -> 275.589551 | AL23: =IFERROR(IF(OR(R23="",'Historical scenario - input'!$D8=""),"",R23/'Historical scenario - input'!$D8),"") -> 318.073694 | AM23: =IFERROR(IF(OR(S23="",'Historical scenario - input'!$D8=""),"",S23/'Historical scenario - input'!$D8),"") -> 365.2865971 | AN23: =IFERROR(IF(OR(T23="",'Historical scenario - input'!$D8=""),"",T23/'Historical scenario - input'!$D8),"") -> 417.2583837 | AO23: =IFERROR(IF(OR(U23="",'Historical scenario - input'!$D8=""),"",U23/'Historical scenario - input'!$D8),"") -> 473.9088363 | AP23: =IFERROR(IF(OR(V23="",'Historical scenario - input'!$D8=""),"",V23/'Historical scenario - input'!$D8),"") -> 535.0361783 | AQ23: =IFERROR(IF(OR(W23="",'Historical scenario - input'!$D8=""),"",W23/'Historical scenario - input'!$D8),"") -> 600.3094336
A24: =IFERROR('Historical scenario - input'!A9,"") -> 1 | B24: =IFERROR('Historical scenario - input'!B9,"") -> OVERHEAD CONDUCTORS | C24: =IFERROR('Historical scenario - input'!C9,"") -> > 22 kv & < = 66 kv | D24: =IFERROR(repcalc('Historical scenario - input'!$CV9:$GH9,'Historical scenario - input'!$G9,'Historical scenario - input'!$E9,'Historical scenario - input'!$F9,20,TRUE,TRUE),"") -> 587.7385534 | E24: 704.1542313 | F24: 838.9450839 | G24: 994.405195 | H24: 1173.139485 | I24: 1378.137054 | J24: 1612.857317 | K24: 1881.326714 | L24: 2188.24203 | M24: 2539.074464 | N24: 2940.166609 | O24: 3398.812668 | P24: 3923.310661 | Q24: 4522.974346 | R24: 5208.092249 | S24: 5989.821744 | T24: 6880.00776 | U24: 7890.9184 | V24: 9034.893639 | W24: 10323.90811 | X24: =IFERROR(IF(OR(D24="",'Historical scenario - input'!$D9=""),"",D24/'Historical scenario - input'!$D9),"") -> 4.031025412 | Y24: =IFERROR(IF(OR(E24="",'Historical scenario - input'!$D9=""),"",E24/'Historical scenario - input'!$D9),"") -> 4.829466408 | Z24: =IFERROR(IF(OR(F24="",'Historical scenario - input'!$D9=""),"",F24/'Historical scenario - input'!$D9),"") -> 5.753934182 | AA24: =IFERROR(IF(OR(G24="",'Historical scenario - input'!$D9=""),"",G24/'Historical scenario - input'!$D9),"") -> 6.820162788 | AB24: =IFERROR(IF(OR(H24="",'Historical scenario - input'!$D9=""),"",H24/'Historical scenario - input'!$D9),"") -> 8.046018163 | AC24: =IFERROR(IF(OR(I24="",'Historical scenario - input'!$D9=""),"",I24/'Historical scenario - input'!$D9),"") -> 9.452001155 | AD24: =IFERROR(IF(OR(J24="",'Historical scenario - input'!$D9=""),"",J24/'Historical scenario - input'!$D9),"") -> 11.06183829 | AE24: =IFERROR(IF(OR(K24="",'Historical scenario - input'!$D9=""),"",K24/'Historical scenario - input'!$D9),"") -> 12.90314503 | AF24: =IFERROR(IF(OR(L24="",'Historical scenario - input'!$D9=""),"",L24/'Historical scenario - input'!$D9),"") -> 15.00813445 | AG24: =IFERROR(IF(OR(M24="",'Historical scenario - input'!$D9=""),"",M24/'Historical scenario - input'!$D9),"") -> 17.41433096 | AH24: =IFERROR(IF(OR(N24="",'Historical scenario - input'!$D9=""),"",N24/'Historical scenario - input'!$D9),"") -> 20.16523546 | AI24: =IFERROR(IF(OR(O24="",'Historical scenario - input'!$D9=""),"",O24/'Historical scenario - input'!$D9),"") -> 23.31087549 | AJ24: =IFERROR(IF(OR(P24="",'Historical scenario - input'!$D9=""),"",P24/'Historical scenario - input'!$D9),"") -> 26.9081633 | AK24: =IFERROR(IF(OR(Q24="",'Historical scenario - input'!$D9=""),"",Q24/'Historical scenario - input'!$D9),"") -> 31.02097765 | AL24: =IFERROR(IF(OR(R24="",'Historical scenario - input'!$D9=""),"",R24/'Historical scenario - input'!$D9),"") -> 35.71988273 | AM24: =IFERROR(IF(OR(S24="",'Historical scenario - input'!$D9=""),"",S24/'Historical scenario - input'!$D9),"") -> 41.0814018 | AN24: =IFERROR(IF(OR(T24="",'Historical scenario - input'!$D9=""),"",T24/'Historical scenario - input'!$D9),"") -> 47.1867737 | AO24: =IFERROR(IF(OR(U24="",'Historical scenario - input'!$D9=""),"",U24/'Historical scenario - input'!$D9),"") -> 54.12013967 | AP24: =IFERROR(IF(OR(V24="",'Historical scenario - input'!$D9=""),"",V24/'Historical scenario - input'!$D9),"") -> 61.96613383 | AQ24: =IFERROR(IF(OR(W24="",'Historical scenario - input'!$D9=""),"",W24/'Historical scenario - input'!$D9),"") -> 70.80688461
A25: =IFERROR('Historical scenario - input'!A10,"") -> 3 | B25: =IFERROR('Historical scenario - input'!B10,"") -> SERVICE LINES | C25: =IFERROR('Historical scenario - input'!C10,"") -> ˂ = 11 kv ; commercial and industrial ; complex type | D25: =IFERROR(repcalc('Historical scenario - input'!$CV10:$GH10,'Historical scenario - input'!$G10,'Historical scenario - input'!$E10,'Historical scenario - input'!$F10,20,TRUE,TRUE),"") -> 935.9799676 | E25: 947.421096 | F25: 954.8113838 | G25: 959.1453009 | H25: 961.5296993 | I25: 963.0811889 | J25: 964.8311687 | K25: 967.6459307 | L25: 972.1675391 | M25: 978.778932 | N25: 987.5941864 | O25: 998.4724261 | P25: 1011.05169 | Q25: 1024.797443 | R25: 1039.059442 | S25: 1053.130459 | T25: 1066.300888 | U25: 1077.904487 | V25: 1087.352193 | W25: 1094.152966 | X25: =IFERROR(IF(OR(D25="",'Historical scenario - input'!$D10=""),"",D25/'Historical scenario - input'!$D10),"") -> 1719.940685 | Y25: =IFERROR(IF(OR(E25="",'Historical scenario - input'!$D10=""),"",E25/'Historical scenario - input'!$D10),"") -> 1740.964705 | Z25: =IFERROR(IF(OR(F25="",'Historical scenario - input'!$D10=""),"",F25/'Historical scenario - input'!$D10),"") -> 1754.544971 | AA25: =IFERROR(IF(OR(G25="",'Historical scenario - input'!$D10=""),"",G25/'Historical scenario - input'!$D10),"") -> 1762.508903 | AB25: =IFERROR(IF(OR(H25="",'Historical scenario - input'!$D10=""),"",H25/'Historical scenario - input'!$D10),"") -> 1766.890432 | AC25: =IFERROR(IF(OR(I25="",'Historical scenario - input'!$D10=""),"",I25/'Historical scenario - input'!$D10),"") -> 1769.741423 | AD25: =IFERROR(IF(OR(J25="",'Historical scenario - input'!$D10=""),"",J25/'Historical scenario - input'!$D10),"") -> 1772.957155 | AE25: =IFERROR(IF(OR(K25="",'Historical scenario - input'!$D10=""),"",K25/'Historical scenario - input'!$D10),"") -> 1778.129514 | AF25: =IFERROR(IF(OR(L25="",'Historical scenario - input'!$D10=""),"",L25/'Historical scenario - input'!$D10),"") -> 1786.438344 | AG25: =IFERROR(IF(OR(M25="",'Historical scenario - input'!$D10=""),"",M25/'Historical scenario - input'!$D10),"") -> 1798.587325 | AH25: =IFERROR(IF(OR(N25="",'Historical scenario - input'!$D10=""),"",N25/'Historical scenario - input'!$D10),"") -> 1814.786085 | AI25: =IFERROR(IF(OR(O25="",'Historical scenario - input'!$D10=""),"",O25/'Historical scenario - input'!$D10),"") -> 1834.775751 | AJ25: =IFERROR(IF(OR(P25="",'Historical scenario - input'!$D10=""),"",P25/'Historical scenario - input'!$D10),"") -> 1857.89119 | AK25: =IFERROR(IF(OR(Q25="",'Historical scenario - input'!$D10=""),"",Q25/'Historical scenario - input'!$D10),"") -> 1883.150149 | AL25: =IFERROR(IF(OR(R25="",'Historical scenario - input'!$D10=""),"",R25/'Historical scenario - input'!$D10),"") -> 1909.357754 | AM25: =IFERROR(IF(OR(S25="",'Historical scenario - input'!$D10=""),"",S25/'Historical scenario - input'!$D10),"") -> 1935.214413 | AN25: =IFERROR(IF(OR(T25="",'Historical scenario - input'!$D10=""),"",T25/'Historical scenario - input'!$D10),"") -> 1959.416166 | AO25: =IFERROR(IF(OR(U25="",'Historical scenario - input'!$D10=""),"",U25/'Historical scenario - input'!$D10),"") -> 1980.738739 | AP25: =IFERROR(IF(OR(V25="",'Historical scenario - input'!$D10=""),"",V25/'Historical scenario - input'!$D10),"") -> 1998.099682 | AQ25: =IFERROR(IF(OR(W25="",'Historical scenario - input'!$D10=""),"",W25/'Historical scenario - input'!$D10),"") -> 2010.596665
A26: =IFERROR('Historical scenario - input'!A11,"") -> 3 | B26: =IFERROR('Historical scenario - input'!B11,"") -> SERVICE LINES | C26: =IFERROR('Historical scenario - input'!C11,"") -> ˂ = 11 kv ; residential ; simple type | D26: =IFERROR(repcalc('Historical scenario - input'!$CV11:$GH11,'Historical scenario - input'!$G11,'Historical scenario - input'!$E11,'Historical scenario - input'!$F11,20,TRUE,TRUE),"") -> 8065.606877 | E26: 8161.129965 | F26: 8214.770858 | G26: 8230.48437 | H26: 8213.33505 | I26: 8169.254322 | J26: 8104.766558 | K26: 8026.683577 | L26: 7941.771723 | M26: 7856.402845 | N26: 7776.208597 | O26: 7705.764142 | P26: 7648.33068 | Q26: 7605.684863 | R26: 7578.056745 | S26: 7564.187231 | T26: 7561.502636 | U26: 7566.390259 | V26: 7574.547127 | W26: 7581.366188 | X26: =IFERROR(IF(OR(D26="",'Historical scenario - input'!$D11=""),"",D26/'Historical scenario - input'!$D11),"") -> 15164.68697 | Y26: =IFERROR(IF(OR(E26="",'Historical scenario - input'!$D11=""),"",E26/'Historical scenario - input'!$D11),"") -> 15344.28631 | Z26: =IFERROR(IF(OR(F26="",'Historical scenario - input'!$D11=""),"",F26/'Historical scenario - input'!$D11),"") -> 15445.14014 | AA26: =IFERROR(IF(OR(G26="",'Historical scenario - input'!$D11=""),"",G26/'Historical scenario - input'!$D11),"") -> 15474.68417 | AB26: =IFERROR(IF(OR(H26="",'Historical scenario - input'!$D11=""),"",H26/'Historical scenario - input'!$D11),"") -> 15442.44058 | AC26: =IFERROR(IF(OR(I26="",'Historical scenario - input'!$D11=""),"",I26/'Historical scenario - input'!$D11),"") -> 15359.56146 | AD26: =IFERROR(IF(OR(J26="",'Historical scenario - input'!$D11=""),"",J26/'Historical scenario - input'!$D11),"") -> 15238.3137 | AE26: =IFERROR(IF(OR(K26="",'Historical scenario - input'!$D11=""),"",K26/'Historical scenario - input'!$D11),"") -> 15091.50467 | AF26: =IFERROR(IF(OR(L26="",'Historical scenario - input'!$D11=""),"",L26/'Historical scenario - input'!$D11),"") -> 14931.85621 | AG26: =IFERROR(IF(OR(M26="",'Historical scenario - input'!$D11=""),"",M26/'Historical scenario - input'!$D11),"") -> 14771.34847 | AH26: =IFERROR(IF(OR(N26="",'Historical scenario - input'!$D11=""),"",N26/'Historical scenario - input'!$D11),"") -> 14620.5699 | AI26: =IFERROR(IF(OR(O26="",'Historical scenario - input'!$D11=""),"",O26/'Historical scenario - input'!$D11),"") -> 14488.12257 | AJ26: =IFERROR(IF(OR(P26="",'Historical scenario - input'!$D11=""),"",P26/'Historical scenario - input'!$D11),"") -> 14380.13808 | AK26: =IFERROR(IF(OR(Q26="",'Historical scenario - input'!$D11=""),"",Q26/'Historical scenario - input'!$D11),"") -> 14299.95682 | AL26: =IFERROR(IF(OR(R26="",'Historical scenario - input'!$D11=""),"",R26/'Historical scenario - input'!$D11),"") -> 14248.01135 | AM26: =IFERROR(IF(OR(S26="",'Historical scenario - input'!$D11=""),"",S26/'Historical scenario - input'!$D11),"") -> 14221.93435 | AN26: =IFERROR(IF(OR(T26="",'Historical scenario - input'!$D11=""),"",T26/'Historical scenario - input'!$D11),"") -> 14216.88686 | AO26: =IFERROR(IF(OR(U26="",'Historical scenario - input'!$D11=""),"",U26/'Historical scenario - input'!$D11),"") -> 14226.07641 | AP26: =IFERROR(IF(OR(V26="",'Historical scenario - input'!$D11=""),"",V26/'Historical scenario - input'!$D11),"") -> 14241.41269 | AQ26: =IFERROR(IF(OR(W26="",'Historical scenario - input'!$D11=""),"",W26/'Historical scenario - input'!$D11),"") -> 14254.23366
A27: =IFERROR('Historical scenario - input'!A12,"") -> 4 | B27: =IFERROR('Historical scenario - input'!B12,"") -> SWITCHGEAR | C27: =IFERROR('Historical scenario - input'!C12,"") -> ˂ = 11 kv ; circuit breaker | D27: =IFERROR(repcalc('Historical scenario - input'!$CV12:$GH12,'Historical scenario - input'!$G12,'Historical scenario - input'!$E12,'Historical scenario - input'!$F12,20,TRUE,TRUE),"") -> 5705.860201 | E27: 5337.317152 | F27: 4931.833538 | G27: 4502.435708 | H27: 4062.353325 | I27: 3624.373882 | J27: 3200.244887 | K27: 2800.166396 | L27: 2432.407652 | M27: 2103.069322 | N27: 1815.999119 | O27: 1572.855103 | P27: 1373.299293 | Q27: 1215.295396 | R27: 1095.478979 | S27: 1009.566289 | T27: 952.7687621 | U27: 920.1835183 | V27: 907.1351738 | W27: 909.450535 | X27: =IFERROR(IF(OR(D27="",'Historical scenario - input'!$D12=""),"",D27/'Historical scenario - input'!$D12),"") -> 60.96147908 | Y27: =IFERROR(IF(OR(E27="",'Historical scenario - input'!$D12=""),"",E27/'Historical scenario - input'!$D12),"") -> 57.0239607 | Z27: =IFERROR(IF(OR(F27="",'Historical scenario - input'!$D12=""),"",F27/'Historical scenario - input'!$D12),"") -> 52.69176889 | AA27: =IFERROR(IF(OR(G27="",'Historical scenario - input'!$D12=""),"",G27/'Historical scenario - input'!$D12),"") -> 48.10407731 | AB27: =IFERROR(IF(OR(H27="",'Historical scenario - input'!$D12=""),"",H27/'Historical scenario - input'!$D12),"") -> 43.40223183 | AC27: =IFERROR(IF(OR(I27="",'Historical scenario - input'!$D12=""),"",I27/'Historical scenario - input'!$D12),"") -> 38.72285419 | AD27: =IFERROR(IF(OR(J27="",'Historical scenario - input'!$D12=""),"",J27/'Historical scenario - input'!$D12),"") -> 34.1914549 | AE27: =IFERROR(IF(OR(K27="",'Historical scenario - input'!$D12=""),"",K27/'Historical scenario - input'!$D12),"") -> 29.91701149 | AF27: =IFERROR(IF(OR(L27="",'Historical scenario - input'!$D12=""),"",L27/'Historical scenario - input'!$D12),"") -> 25.98787264 | AG27: =IFERROR(IF(OR(M27="",'Historical scenario - input'!$D12=""),"",M27/'Historical scenario - input'!$D12),"") -> 22.46921795 | AH27: =IFERROR(IF(OR(N27="",'Historical scenario - input'!$D12=""),"",N27/'Historical scenario - input'!$D12),"") -> 19.40215645 | AI27: =IFERROR(IF(OR(O27="",'Historical scenario - input'!$D12=""),"",O27/'Historical scenario - input'!$D12),"") -> 16.80440285 | AJ27: =IFERROR(IF(OR(P27="",'Historical scenario - input'!$D12=""),"",P27/'Historical scenario - input'!$D12),"") -> 14.67234618 | AK27: =IFERROR(IF(OR(Q27="",'Historical scenario - input'!$D12=""),"",Q27/'Historical scenario - input'!$D12),"") -> 12.98423064 | AL27: =IFERROR(IF(OR(R27="",'Historical scenario - input'!$D12=""),"",R27/'Historical scenario - input'!$D12),"") -> 11.7041106 | AM27: =IFERROR(IF(OR(S27="",'Historical scenario - input'!$D12=""),"",S27/'Historical scenario - input'!$D12),"") -> 10.78621839 | AN27: =IFERROR(IF(OR(T27="",'Historical scenario - input'!$D12=""),"",T27/'Historical scenario - input'!$D12),"") -> 10.17939292 | AO27: =IFERROR(IF(OR(U27="",'Historical scenario - input'!$D12=""),"",U27/'Historical scenario - input'!$D12),"") -> 9.831251787 | AP27: =IFERROR(IF(OR(V27="",'Historical scenario - input'!$D12=""),"",V27/'Historical scenario - input'!$D12),"") -> 9.691843117 | AQ27: =IFERROR(IF(OR(W27="",'Historical scenario - input'!$D12=""),"",W27/'Historical scenario - input'!$D12),"") -> 9.716580464
A28: =IFERROR('Historical scenario - input'!A13,"") -> 4 | B28: =IFERROR('Historical scenario - input'!B13,"") -> SWITCHGEAR | C28: =IFERROR('Historical scenario - input'!C13,"") -> ˂ = 11 kv ; switch | D28: =IFERROR(repcalc('Historical scenario - input'!$CV13:$GH13,'Historical scenario - input'!$G13,'Historical scenario - input'!$E13,'Historical scenario - input'!$F13,20,TRUE,TRUE),"") -> 223.3832427 | E28: 262.6459749 | F28: 309.2663192 | G28: 364.424744 | H28: 429.3471804 | I28: 505.2612867 | J28: 593.3416201 | K28: 694.6441981 | L28: 810.0318005 | M28: 940.0924071 | N28: 1085.054335 | O28: 1244.702841 | P28: 1418.304043 | Q28: 1604.542864 | R28: 1801.482058 | S28: 2006.549155 | T28: 2216.557193 | U28: 2427.76331 | V28: 2635.966781 | W28: 2836.644987 | X28: =IFERROR(IF(OR(D28="",'Historical scenario - input'!$D13=""),"",D28/'Historical scenario - input'!$D13),"") -> 2.658514046 | Y28: =IFERROR(IF(OR(E28="",'Historical scenario - input'!$D13=""),"",E28/'Historical scenario - input'!$D13),"") -> 3.125785109 | Z28: =IFERROR(IF(OR(F28="",'Historical scenario - input'!$D13=""),"",F28/'Historical scenario - input'!$D13),"") -> 3.680620103 | AA28: =IFERROR(IF(OR(G28="",'Historical scenario - input'!$D13=""),"",G28/'Historical scenario - input'!$D13),"") -> 4.337067943 | AB28: =IFERROR(IF(OR(H28="",'Historical scenario - input'!$D13=""),"",H28/'Historical scenario - input'!$D13),"") -> 5.1097186 | AC28: =IFERROR(IF(OR(I28="",'Historical scenario - input'!$D13=""),"",I28/'Historical scenario - input'!$D13),"") -> 6.013182599 | AD28: =IFERROR(IF(OR(J28="",'Historical scenario - input'!$D13=""),"",J28/'Historical scenario - input'!$D13),"") -> 7.061438507 | AE28: =IFERROR(IF(OR(K28="",'Historical scenario - input'!$D13=""),"",K28/'Historical scenario - input'!$D13),"") -> 8.267054127 | AF28: =IFERROR(IF(OR(L28="",'Historical scenario - input'!$D13=""),"",L28/'Historical scenario - input'!$D13),"") -> 9.640297517 | AG28: =IFERROR(IF(OR(M28="",'Historical scenario - input'!$D13=""),"",M28/'Historical scenario - input'!$D13),"") -> 11.18816631 | AH28: =IFERROR(IF(OR(N28="",'Historical scenario - input'!$D13=""),"",N28/'Historical scenario - input'!$D13),"") -> 12.91337773 | AI28: =IFERROR(IF(OR(O28="",'Historical scenario - input'!$D13=""),"",O28/'Historical scenario - input'!$D13),"") -> 14.8133761 | AJ28: =IFERROR(IF(OR(P28="",'Historical scenario - input'!$D13=""),"",P28/'Historical scenario - input'!$D13),"") -> 16.87942737 | AK28: =IFERROR(IF(OR(Q28="",'Historical scenario - input'!$D13=""),"",Q28/'Historical scenario - input'!$D13),"") -> 19.09588066 | AL28: =IFERROR(IF(OR(R28="",'Historical scenario - input'!$D13=""),"",R28/'Historical scenario - input'!$D13),"") -> 21.43968051 | AM28: =IFERROR(IF(OR(S28="",'Historical scenario - input'!$D13=""),"",S28/'Historical scenario - input'!$D13),"") -> 23.88021165 | AN28: =IFERROR(IF(OR(T28="",'Historical scenario - input'!$D13=""),"",T28/'Historical scenario - input'!$D13),"") -> 26.37954559 | AO28: =IFERROR(IF(OR(U28="",'Historical scenario - input'!$D13=""),"",U28/'Historical scenario - input'!$D13),"") -> 28.89313801 | AP28: =IFERROR(IF(OR(V28="",'Historical scenario - input'!$D13=""),"",V28/'Historical scenario - input'!$D13),"") -> 31.37099556 | AQ28: =IFERROR(IF(OR(W28="",'Historical scenario - input'!$D13=""),"",W28/'Historical scenario - input'!$D13),"") -> 33.75929391
A29: =IFERROR('Historical scenario - input'!A14,"") -> 4 | B29: =IFERROR('Historical scenario - input'!B14,"") -> SWITCHGEAR | C29: =IFERROR('Historical scenario - input'!C14,"") -> > 11 kv & < = 22 kv ; switch | D29: =IFERROR(repcalc('Historical scenario - input'!$CV14:$GH14,'Historical scenario - input'!$G14,'Historical scenario - input'!$E14,'Historical scenario - input'!$F14,20,TRUE,TRUE),"") -> 2933.995543 | E29: 2783.172699 | F29: 2689.165167 | G29: 2647.851732 | H29: 2656.61608 | I29: 2713.205547 | J29: 2815.492328 | K29: 2961.7407 | L29: 3151.094531 | M29: 3384.070025 | N29: 3662.887585 | O29: 3991.51844 | P29: 4375.366456 | Q29: 4820.55883 | R29: 5332.880976 | S29: 5916.455821 | T29: 6572.326319 | U29: 7297.140662 | V29: 8082.151738 | W29: 8912.718927 | X29: =IFERROR(IF(OR(D29="",'Historical scenario - input'!$D14=""),"",D29/'Historical scenario - input'!$D14),"") -> 66.31188786 | Y29: =IFERROR(IF(OR(E29="",'Historical scenario - input'!$D14=""),"",E29/'Historical scenario - input'!$D14),"") -> 62.90310711 | Z29: =IFERROR(IF(OR(F29="",'Historical scenario - input'!$D14=""),"",F29/'Historical scenario - input'!$D14),"") -> 60.77842191 | AA29: =IFERROR(IF(OR(G29="",'Historical scenario - input'!$D14=""),"",G29/'Historical scenario - input'!$D14),"") -> 59.84468775 | AB29: =IFERROR(IF(OR(H29="",'Historical scenario - input'!$D14=""),"",H29/'Historical scenario - input'!$D14),"") -> 60.04277273 | AC29: =IFERROR(IF(OR(I29="",'Historical scenario - input'!$D14=""),"",I29/'Historical scenario - input'!$D14),"") -> 61.32176389 | AD29: =IFERROR(IF(OR(J29="",'Historical scenario - input'!$D14=""),"",J29/'Historical scenario - input'!$D14),"") -> 63.63357025 | AE29: =IFERROR(IF(OR(K29="",'Historical scenario - input'!$D14=""),"",K29/'Historical scenario - input'!$D14),"") -> 66.93896234 | AF29: =IFERROR(IF(OR(L29="",'Historical scenario - input'!$D14=""),"",L29/'Historical scenario - input'!$D14),"") -> 71.21859053 | AG29: =IFERROR(IF(OR(M29="",'Historical scenario - input'!$D14=""),"",M29/'Historical scenario - input'!$D14),"") -> 76.48412163 | AH29: =IFERROR(IF(OR(N29="",'Historical scenario - input'!$D14=""),"",N29/'Historical scenario - input'!$D14),"") -> 82.78573952 | AI29: =IFERROR(IF(OR(O29="",'Historical scenario - input'!$D14=""),"",O29/'Historical scenario - input'!$D14),"") -> 90.21319878 | AJ29: =IFERROR(IF(OR(P29="",'Historical scenario - input'!$D14=""),"",P29/'Historical scenario - input'!$D14),"") -> 98.88863344 | AK29: =IFERROR(IF(OR(Q29="",'Historical scenario - input'!$D14=""),"",Q29/'Historical scenario - input'!$D14),"") -> 108.9505256 | AL29: =IFERROR(IF(OR(R29="",'Historical scenario - input'!$D14=""),"",R29/'Historical scenario - input'!$D14),"") -> 120.5296327 | AM29: =IFERROR(IF(OR(S29="",'Historical scenario - input'!$D14=""),"",S29/'Historical scenario - input'!$D14),"") -> 133.719138 | AN29: =IFERROR(IF(OR(T29="",'Historical scenario - input'!$D14=""),"",T29/'Historical scenario - input'!$D14),"") -> 148.5426135 | AO29: =IFERROR(IF(OR(U29="",'Historical scenario - input'!$D14=""),"",U29/'Historical scenario - input'!$D14),"") -> 164.9243041 | AP29: =IFERROR(IF(OR(V29="",'Historical scenario - input'!$D14=""),"",V29/'Historical scenario - input'!$D14),"") -> 182.6665146 | AQ29: =IFERROR(IF(OR(W29="",'Historical scenario - input'!$D14=""),"",W29/'Historical scenario - input'!$D14),"") -> 201.4383489
A30: =IFERROR('Historical scenario - input'!A15,"") -> 4 | B30: =IFERROR('Historical scenario - input'!B15,"") -> SWITCHGEAR | C30: =IFERROR('Historical scenario - input'!C15,"") -> > 22 kv & < = 33 kv ; circuit breaker | D30: =IFERROR(repcalc('Historical scenario - input'!$CV15:$GH15,'Historical scenario - input'!$G15,'Historical scenario - input'!$E15,'Historical scenario - input'!$F15,20,TRUE,TRUE),"") -> 1666.419827 | E30: 1606.760954 | F30: 1536.059475 | G30: 1456.08713 | H30: 1368.696988 | I30: 1275.755499 | J30: 1179.088002 | K30: 1080.438533 | L30: 981.4424808 | M30: 883.6089944 | N30: 788.30936 | O30: 696.7678686 | P30: 610.0527261 | Q30: 529.0660507 | R30: 454.5335337 | S30: 386.9955684 | T30: 326.8023394 | U30: 274.1154123 | V30: 228.9178118 | W30: 191.0335964 | X30: =IFERROR(IF(OR(D30="",'Historical scenario - input'!$D15=""),"",D30/'Historical scenario - input'!$D15),"") -> 8.623542498 | Y30: =IFERROR(IF(OR(E30="",'Historical scenario - input'!$D15=""),"",E30/'Historical scenario - input'!$D15),"") -> 8.314814278 | Z30: =IFERROR(IF(OR(F30="",'Historical scenario - input'!$D15=""),"",F30/'Historical scenario - input'!$D15),"") -> 7.948941763 | AA30: =IFERROR(IF(OR(G30="",'Historical scenario - input'!$D15=""),"",G30/'Historical scenario - input'!$D15),"") -> 7.535093525 | AB30: =IFERROR(IF(OR(H30="",'Historical scenario - input'!$D15=""),"",H30/'Historical scenario - input'!$D15),"") -> 7.082858981 | AC30: =IFERROR(IF(OR(I30="",'Historical scenario - input'!$D15=""),"",I30/'Historical scenario - input'!$D15),"") -> 6.601896822 | AD30: =IFERROR(IF(OR(J30="",'Historical scenario - input'!$D15=""),"",J30/'Historical scenario - input'!$D15),"") -> 6.101652973 | AE30: =IFERROR(IF(OR(K30="",'Historical scenario - input'!$D15=""),"",K30/'Historical scenario - input'!$D15),"") -> 5.591152631 | AF30: =IFERROR(IF(OR(L30="",'Historical scenario - input'!$D15=""),"",L30/'Historical scenario - input'!$D15),"") -> 5.078858763 | AG30: =IFERROR(IF(OR(M30="",'Historical scenario - input'!$D15=""),"",M30/'Historical scenario - input'!$D15),"") -> 4.572581045 | AH30: =IFERROR(IF(OR(N30="",'Historical scenario - input'!$D15=""),"",N30/'Historical scenario - input'!$D15),"") -> 4.079415736 | AI30: =IFERROR(IF(OR(O30="",'Historical scenario - input'!$D15=""),"",O30/'Historical scenario - input'!$D15),"") -> 3.605698412 | AJ30: =IFERROR(IF(OR(P30="",'Historical scenario - input'!$D15=""),"",P30/'Historical scenario - input'!$D15),"") -> 3.156956922 | AK30: =IFERROR(IF(OR(Q30="",'Historical scenario - input'!$D15=""),"",Q30/'Historical scenario - input'!$D15),"") -> 2.73785963 | AL30: =IFERROR(IF(OR(R30="",'Historical scenario - input'!$D15=""),"",R30/'Historical scenario - input'!$D15),"") -> 2.35216191 | AM30: =IFERROR(IF(OR(S30="",'Historical scenario - input'!$D15=""),"",S30/'Historical scenario - input'!$D15),"") -> 2.002660239 | AN30: =IFERROR(IF(OR(T30="",'Historical scenario - input'!$D15=""),"",T30/'Historical scenario - input'!$D15),"") -> 1.691166785 | AO30: =IFERROR(IF(OR(U30="",'Historical scenario - input'!$D15=""),"",U30/'Historical scenario - input'!$D15),"") -> 1.418517632 | AP30: =IFERROR(IF(OR(V30="",'Historical scenario - input'!$D15=""),"",V30/'Historical scenario - input'!$D15),"") -> 1.184624934 | AQ30: =IFERROR(IF(OR(W30="",'Historical scenario - input'!$D15=""),"",W30/'Historical scenario - input'!$D15),"") -> 0.9885782145
A31: =IFERROR('Historical scenario - input'!A16,"") -> 4 | B31: =IFERROR('Historical scenario - input'!B16,"") -> SWITCHGEAR | C31: =IFERROR('Historical scenario - input'!C16,"") -> > 22 kv & < = 33 kv ; switch | D31: =IFERROR(repcalc('Historical scenario - input'!$CV16:$GH16,'Historical scenario - input'!$G16,'Historical scenario - input'!$E16,'Historical scenario - input'!$F16,20,TRUE,TRUE),"") -> 171.3920414 | E31: 192.8311203 | F31: 217.015662 | G31: 244.1580076 | H31: 274.4215025 | I31: 307.905409 | J31: 344.6301657 | K31: 384.5234302 | L31: 427.4074245 | M31: 472.9882545 | N31: 520.8480595 | O31: 570.441035 | P31: 621.0945013 | Q31: 672.016193 | R31: 722.3087848 | S31: 770.9922879 | T31: 817.0343792 | U31: 859.3879758 | V31: 897.0345381 | W31: 929.0307661 | X31: =IFERROR(IF(OR(D31="",'Historical scenario - input'!$D16=""),"",D31/'Historical scenario - input'!$D16),"") -> 3.433469884 | Y31: =IFERROR(IF(OR(E31="",'Historical scenario - input'!$D16=""),"",E31/'Historical scenario - input'!$D16),"") -> 3.862955589 | Z31: =IFERROR(IF(OR(F31="",'Historical scenario - input'!$D16=""),"",F31/'Historical scenario - input'!$D16),"") -> 4.34744072 | AA31: =IFERROR(IF(OR(G31="",'Historical scenario - input'!$D16=""),"",G31/'Historical scenario - input'!$D16),"") -> 4.891179073 | AB31: =IFERROR(IF(OR(H31="",'Historical scenario - input'!$D16=""),"",H31/'Historical scenario - input'!$D16),"") -> 5.49744292 | AC31: =IFERROR(IF(OR(I31="",'Historical scenario - input'!$D16=""),"",I31/'Historical scenario - input'!$D16),"") -> 6.168220766 | AD31: =IFERROR(IF(OR(J31="",'Historical scenario - input'!$D16=""),"",J31/'Historical scenario - input'!$D16),"") -> 6.903922058 | AE31: =IFERROR(IF(OR(K31="",'Historical scenario - input'!$D16=""),"",K31/'Historical scenario - input'!$D16),"") -> 7.703097569 | AF31: =IFERROR(IF(OR(L31="",'Historical scenario - input'!$D16=""),"",L31/'Historical scenario - input'!$D16),"") -> 8.562185901 | AG31: =IFERROR(IF(OR(M31="",'Historical scenario - input'!$D16=""),"",M31/'Historical scenario - input'!$D16),"") -> 9.475299519 | AH31: =IFERROR(IF(OR(N31="",'Historical scenario - input'!$D16=""),"",N31/'Historical scenario - input'!$D16),"") -> 10.43406748 | AI31: =IFERROR(IF(OR(O31="",'Historical scenario - input'!$D16=""),"",O31/'Historical scenario - input'!$D16),"") -> 11.42755579 | AJ31: =IFERROR(IF(OR(P31="",'Historical scenario - input'!$D16=""),"",P31/'Historical scenario - input'!$D16),"") -> 12.44228873 | AK31: =IFERROR(IF(OR(Q31="",'Historical scenario - input'!$D16=""),"",Q31/'Historical scenario - input'!$D16),"") -> 13.46239499 | AL31: =IFERROR(IF(OR(R31="",'Historical scenario - input'!$D16=""),"",R31/'Historical scenario - input'!$D16),"") -> 14.4698986 | AM31: =IFERROR(IF(OR(S31="",'Historical scenario - input'!$D16=""),"",S31/'Historical scenario - input'!$D16),"") -> 15.44516758 | AN31: =IFERROR(IF(OR(T31="",'Historical scenario - input'!$D16=""),"",T31/'Historical scenario - input'!$D16),"") -> 16.36752157 | AO31: =IFERROR(IF(OR(U31="",'Historical scenario - input'!$D16=""),"",U31/'Historical scenario - input'!$D16),"") -> 17.21598453 | AP31: =IFERROR(IF(OR(V31="",'Historical scenario - input'!$D16=""),"",V31/'Historical scenario - input'!$D16),"") -> 17.97015221 | AQ31: =IFERROR(IF(OR(W31="",'Historical scenario - input'!$D16=""),"",W31/'Historical scenario - input'!$D16),"") -> 18.61112763
